Workbook

Sheet Menu
B1: Indice dei fogli e legenda celle di compilazione
B3: Fogli INPUT | C3: Foglio | D3: Breve descrizione dei contenuti | F3: Fogli OUTPUT | G3: Foglio | H3: Breve descrizione dei contenuti
B4: Inserimento dati di Input | C4: IN_Anagrafica | D4: Anagrafica gestori e ambito tariffario | F4: Fogli di calcolo | G4: CK | H4: Calcolo dei costi di capitale per il periodo 2026-2029
C5: IN_Par | D5: Scelta dello schema regolatorio e definizione coefficienti Xa, Ka, CRIa, b, R1 | G5: CKRD | H5: Calcolo dei costi di capitale attribuibil alla raccolta differenziata per l'annualità 2026
C6: IN_BIL_Gest_24 | D6: Inserimento dei dati del Bilancio d'esercizio dei gestori relativi all'anno 2024 | G6: T_ante_detr.4.5 | H6: Calcolo delle componenti di costo del PEF e del limite di crescita ante detrazioni di cui all.art 4.5 della delibera 397/2025/R/rif
C7: IN_BIL_Gest_25 | D7: Inserimento dei dati del Bilancio d'esercizio dei gestori relativi all'anno 2025 | G7: T_post_detr.4.5 | H7: Calcolo delle componenti di costo del PEF e del limite di crescita post detrazioni di cui all'art. 4.5 della delibera 397/2025/R/rif
C8: IN_BIL_Com_24 | D8: Inserimento dei dati del Bilancio d'esercizio del Comune (laddove il Comune svolga attività di gestione) relativi all'anno 2024 | F8: Output | G8: PEF | H8: ModPEF MTR-3 2026-2029 compilato con i risultati del calcolo
C9: IN_BIL_Com_25 | D9: Inserimento dei dati del Bilancio d'esercizio del Comune (laddove il Comune svolga attività di gestione) relativi all'anno 2025 | F9: PEF ambiti tariffari | G9: PEFUni_Dettagli | H9: Indicazione del totale entrate tariffarie per ambito tariffario in caso di PEF redatto ai sensi dell'articolo 31.2 del MTR-3
C10: IN_CTS_CTR_RC | D10: Inserimento dei costi CTR e CTS 2024 e 2025 e calcolo conguaglio RCimp art 19.1 lettera g) MTR-3 | F10: Parametri MTR-3 | G10: Tabelle | H10: Inflazione, Vite utili e deflatori degli investimenti di cui al MTR-3 utilizzate nel tool di calcolo
C11: IN_RC_ANT | D11: Inserimento delle componenti di anticipazione valorizzate nelle annualità 2024 e 2025 e Inserimento dei costi effettivamente sostenuti nelle medesime annualità ai fini del calcolo dei conguagli e delle poste rettificative | F11: Foglio di controllo | G11: Riepilogo CHECK | H11: Segnalazione di eventuali errori di compilazione del tool
C12: IN_RC_CO_INC | D12: Inserimento delle componenti previsionali incentivanti valorizzate nelle annualità 2024 e 2025 e Inserimento dei costi effettivamente sostenuti nelle medesime annualità ai fini del calcolo dei conguagli e delle poste rettificative
C13: IN_Cespiti | D13: Inserimento dei Cespiti
C14: IN_LIC_RCSlic | D14: Inserimento delle Immobilizzazioni in corso relative al periodo 2026-2029; Inserimento delle Rlic 2022 e 2023 ai fini del conguaglio per aggiornamento dei parametri finanziari
C15: IN_RCwacc&S,lic | D15: Inserimento delle componenti di costo di uso del capitale valorizzate per il periodo 2026-2029 ai fini del calcolo del conguaglio per aggiornamento dei parametri finanziari
C16: IN_COexp_RC_T | D16: Inserimento dei Costi previsionali,dei conguagli e dell'IVA indetraibile, costi per attività esterne al ciclo RU
C17: Rett_Ta-1 | D17: Inserimento di Rettifiche sulle Entrate Tariffarie dell'anno a-1 in caso di passaggio a tariffa corrrispettiva tra l'anno a e l'anno a-1
C18: IN_Detr 4.5 del_397 | D18: Inserimento delle detrazioni di cui all'art. 4.5 della deliberazione 397/2025/R/rif
C19: IN_Rimd | D19: Rimodulazione delta (∑Ta-∑Tmax) o istanza art.4 MTR-3, Recupero delta (∑Ta-∑Tmax) anni successivi
C20: IN_Calcolo H | D20: Inserimento dati di input ARsi, ARsc_si e CRDsc_si ai fini della verifica del raggiungimento degli obiettivi 2026 e della definizione degli obiettivi 2028 e 2029
B22: LEGENDA
C23: Cella compilabile per inserimento di dati di input o scelta delle opzioni da menu a tendina
C24: Cella non compilabile che accoglie formule e intestazioni/descrizioni di voci e componenti
C25: Cella non compilabile
B28: Istruzioni generali per la compilazione del tool
B30: Non sbloccare il tool
B31: Non inserire formule all'interno delle celle bianche da compilare
B32: Non aggiungere fogli
B33: Non spostare ordinamento fogli
B34: Non rinominare fogli
B35: Attenzione: in caso di cifre con valori decimali, separare la parte intera dai valori decimali utilizzando la virgola e non il punto, come nell'esempio seguente
B37: Esempio
B38: Compilazione corretta | C38: Compilazione errata
B39: 0.85 | C39: 0.85

Sheet IN_Anagrafica
B1: Dati di input: Anagrafica operatori
B3: Anagrafica 2026-2029
D5: Denominazione Ambito tariffario | G5: Regime Tariffario | H5: PEF UNITARIO (SI/NO) | I5: NOTA: Per PEF Unitario si intende il PEF predisposto ai sensi dell'articolo 31.2 del MTR-3
C6: Ambito tariffario | I6: =+IF(AND(G6=Tabelle!$B$144,IN_Anagrafica!H6="SI"),"attenzione verificare che sia rispettata la norma definita dall'articolo 31.2","") -> 
N7: Attività regolate oggetto di affidamento
D8: Denominazione Gestori | G8: Partiva IVA gestore/ Codice ISTAT Comune | H8: ID ARERA | I8: Tipologia di affidamento [selezionare da menu a tendina la tipologia di affidamento] | J8: Gara ai sensi della del 596/2024/R/rif (SI/NO) | K8: Tipologia di offerta in caso di gara ai sensi dell'art. 9 dell'Allegato A del. 596/2024/R/rif | L8: Inizio affidamento (gg/mm/aaaa) | M8: Scadenza affidamento (gg/mm/aaaa) | N8: Spazzamento e Lavaggio Strade (SI/NO) | O8: Raccolta e trasporto dei rifiuti urbani (SI/NO) | P8: Trattamento e Recupero dei rifiuti urbani (SI/NO) | Q8: Trattamento e Smaltimento dei rifiuti urbani (SI/NO) | R8: Gestione tariffe e rapporti con gli utenti (SI/NO)
C9: Gestore 1
C10: Gestore 2
C11: Gestore 3
C12: Comune
I13: *Ai fini della compilazione del PEFA sono considerati affidamenti con gara sia gli affidamenti a terzi mediante procedura ad evidenza pubblica, sia affidamenti a società mista
C15: In caso di PEF unitario ai sensi dell'articolo 31.2 del MTR-3, compilare la seguente tabella indicando il nome di ciascun Comune, comprensivo del relativo codice ISTAT, considerato nel PEF unitario
E17: Totale ambiti tariffari Comunali | F17: =+COUNTA(F20:F193) -> 0
F19: Codice ISTAT Comune | G19: Nome Ambito tariffario comunale

Sheet IN_PAR
C1: Dati di input di competenza dell'ETC: Livelli di qualità, obiettivi, schema regolatorio e coefficienti - periodo regolatorio 2026-2029
B3: Anagrafica
D5: Denominazione Ambito tariffario
C6: Ambito tariffario | D6: =IN_Anagrafica!$D$6 -> 0
D8: Denominazione Gestori
C9: Gestore 1 | D9: =IF(IN_Anagrafica!D9="",0,IN_Anagrafica!D9) -> 0
C10: Gestore 2 | D10: =IF(IN_Anagrafica!D10="",0,IN_Anagrafica!D10) -> 0
C11: Gestore 3 | D11: =IF(IN_Anagrafica!D11="",0,IN_Anagrafica!D11) -> 0
C12: Comune | D12: =IF(IN_Anagrafica!D12="",0,IN_Anagrafica!D12) -> 0
B15: Valutazione livello di qualità raggiunta nelle annualità (a-2) rispetto all'anno (a) del PEF
G17: 2026 | H17: 2027 | I17: 2028 | J17: 2029
C18: Percentuale Raccolta Differenziata | F18: %RD (a-2) | I18: =+H18 -> 0.0% | J18: 0.0%
E19: Valutazione in merito al rispetto degli obiettivi di raccolta differenziata raggiunti | F19: (γ1) | I19: 0 | J19: 0
C20: Efficacia dell’avvio a riciclaggio degli imballaggi - EfficaciaAVV_RicRD,sc - macro indicatore R1: i valori di R1 devono essere calcolati secondo quanto previsto dall'articolo art. 6 dell’Allegato A (RQTR) alla deliberazione 387/2023/R/rif così come modificato dalla deliberazione 374/2025/R/Rif | F20: R1a-2 (base dati a-4) | H20: =+G20 -> 0 | I20: =+H20 -> 0 | J20: =+I20 -> 0 | L20: NOTA per compilazione R1 Secondo l'articolo 3.3 del MTR-3, per la valutazione del parametro γ2, è necessario compilare la cella G24 con il valore del parametro R1 calcolato sulla base dei dati 2024 secondo i criteri stabiliti dal 6.4 della RQTR. Se il valore di R1 risulta pari o superiore allo 0,85, γ2 sarà considerato soddisfacente. In alternativa, qualora R1 risulti inferiore a 0,85, come esplicitato nel secondo periodo dell'articolo 3.3 del MTR-3, è possibile compilare la cella G20 indicando il valore di R1 ricalcolato sulla base dei dati 2022 secondo i criteri previsti dall'articolo 6.4 della RQTR; una volta compilata tale cella, automaticamente viene calcolato l'obiettivo dell'annualità 2024 sulla base della Tabella 1 di cui all'articolo 6.7 della RQTR. Se R1 effettivo del 2024 (cella G24) risulta pari o superiore all'obiettivo 2024 (cella G22), il γ2 sarà valutato soddisfacente, anche in presenza di un R1<0,85.
F21: Classe R1a-2 (base dati a-4) | G21: =IFERROR(IF(G20<>"",INDEX(Tabelle!$E$70:$E$78,MATCH(1,(G$20>=Tabelle!$B$70:$B$78)*(G$20<Tabelle!$C$70:$C$78),0)),0),) -> 0 | H21: =IFERROR(INDEX(Tabelle!$E$70:$E$78,MATCH(1,(H$20>=Tabelle!$B$70:$B$78)*(H$20<Tabelle!$C$70:$C$78),0)),0) -> I | I21: I | J21: I
F22: Obiettivo R1a | G22: =+IFERROR(MIN(G$20+INDEX(Tabelle!$D$70:$D$78,MATCH(G$21,Tabelle!$E$70:$E$78,0))+INDEX(Tabelle!$D$70:$D$78,MATCH(H$21,Tabelle!$E$70:$E$78,0)),0.85),"errore") -> errore | H22: =+G22 -> errore | I22: =+H22 -> errore | J22: errore
F23: Classe Obiettivo R1a | G23: =IFERROR(INDEX(Tabelle!$E$70:$E$78,MATCH(1,(G$22>=Tabelle!$B$70:$B$78)*(G$22<Tabelle!$C$70:$C$78),0)),0) -> 0 | H23: =+G23 -> 0 | I23: =IFERROR(INDEX(Tabelle!$E$70:$E$78,MATCH(1,(I$22>=Tabelle!$B$70:$B$78)*(I$22<Tabelle!$C$70:$C$78),0)),0) -> 0 | J23: =IFERROR(INDEX(Tabelle!$E$70:$E$78,MATCH(1,(J$22>=Tabelle!$B$70:$B$78)*(J$22<Tabelle!$C$70:$C$78),0)),0) -> 0
F24: R1a (base dati a-2) | H24: =+G24 -> 0 | I24: 0 | J24: 0
F25: Classe R1a (base dati a-2) | G25: =IFERROR(INDEX(Tabelle!$E$70:$E$78,MATCH(1,(G$24>=Tabelle!$B$70:$B$78)*(G$24<Tabelle!$C$70:$C$78),0)),0) -> I | H25: =IFERROR(INDEX(Tabelle!$E$70:$E$78,MATCH(1,(H$24>=Tabelle!$B$70:$B$78)*(H$24<Tabelle!$C$70:$C$78),0)),0) -> I | I25: I | J25: I
F26: Obiettivo R1a+2 | G26: =+IFERROR(MIN(G$24+INDEX(Tabelle!$D$70:$D$78,MATCH(G$25,Tabelle!$E$70:$E$78,0))+INDEX(Tabelle!$D$70:$D$78,MATCH(H$25,Tabelle!$E$70:$E$78,0)),0.85),"errore") -> 0.10 | H26: =+G26 -> 0.10 | I26: =+H26 -> 0.10 | J26: =+I26 -> 0.10
F27: Classe Obietttivo R1a+2 | G27: =IFERROR(INDEX(Tabelle!$E$70:$E$78,MATCH(1,(G$26>=Tabelle!$B$70:$B$78)*(G$26<Tabelle!$C$70:$C$78),0)),0) -> I | H27: =+G27 -> I | I27: =IFERROR(INDEX(Tabelle!$E$70:$E$78,MATCH(1,(I$26>=Tabelle!$B$70:$B$78)*(I$26<Tabelle!$C$70:$C$78),0)),0) -> I | J27: =IFERROR(INDEX(Tabelle!$E$70:$E$78,MATCH(1,(J$26>=Tabelle!$B$70:$B$78)*(J$26<Tabelle!$C$70:$C$78),0)),0) -> I
E28: Valutazione in merito al livello di efficacia delle attività di preparazione per il riutilizzo e il riciclo | F28: (γ2) | G28: =+IF(G24="","NON SODDISFACENTE",IF(OR(G24>=0.85,G24>=G22),"SODDISFACENTE","NON SODDISFACENTE")) -> NON SODDISFACENTE | H28: =+IF(H24="","NON SODDISFACENTE",IF(OR(H24>=0.85,H24>=H22),"SODDISFACENTE","NON SODDISFACENTE")) -> NON SODDISFACENTE | I28: =+IF(I24="","NON SODDISFACENTE",IF(OR(I24>=0.85,I24>=I22),"SODDISFACENTE","NON SODDISFACENTE")) -> NON SODDISFACENTE | J28: =+IF(J24="","NON SODDISFACENTE",IF(OR(J24>=0.85,J24>=J22),"SODDISFACENTE","NON SODDISFACENTE")) -> NON SODDISFACENTE
G31: 2026 | H31: 2027 | I31: 2028 | J31: 2029
F32: intervallo di riferimento ɣ1 | G32: =IF(G19="SODDISFACENTE",Tabelle!$B$163,Tabelle!$C$163) -> -0,4≤ɣ1≤-0,2 | H32: =IF(H19="SODDISFACENTE",Tabelle!$B$163,Tabelle!$C$163) -> -0,4≤ɣ1≤-0,2 | I32: =IF(I19="SODDISFACENTE",Tabelle!$B$163,Tabelle!$C$163) -> -0,4≤ɣ1≤-0,2 | J32: =IF(J19="SODDISFACENTE",Tabelle!$B$163,Tabelle!$C$163) -> -0,4≤ɣ1≤-0,2
F33: ɣ1
F34: intervallo di riferimento ɣ2 | G34: =IF(G28="SODDISFACENTE",Tabelle!$B$164,Tabelle!$C$164) -> -0,3≤ɣ2≤-0,15 | H34: =IF(H28="SODDISFACENTE",Tabelle!$B$164,Tabelle!$C$164) -> -0,3≤ɣ2≤-0,15 | I34: =IF(I28="SODDISFACENTE",Tabelle!$B$164,Tabelle!$C$164) -> -0,3≤ɣ2≤-0,15 | J34: =IF(J28="SODDISFACENTE",Tabelle!$B$164,Tabelle!$C$164) -> -0,3≤ɣ2≤-0,15
F35: ɣ2 | L35: NOTA: per la valorizzazione di Y2, inserire i valori di R1 nella tabella precedente
F36: ɣ | G36: =IF(OR(G33="",G35=""),"compilazione incompleta",G33+G35) -> compilazione incompleta | H36: =IF(OR(H33="",H35=""),"compilazione incompleta",H33+H35) -> compilazione incompleta | I36: =IF(OR(I33="",I35=""),"compilazione incompleta",I33+I35) -> compilazione incompleta | J36: =IF(OR(J33="",J35=""),"compilazione incompleta",J33+J35) -> compilazione incompleta
F37: 1+ɣ | G37: =IF(OR(G33="",G35=""),"compilazione incompleta",1+G36) -> compilazione incompleta | H37: =IF(OR(H33="",H35=""),"compilazione incompleta",1+H36) -> compilazione incompleta | I37: compilazione incompleta | J37: compilazione incompleta
F38: Qualità ambientale delle prestazioni | G38: =IF(OR(G33="",G35=""),"compilazione incompleta",IF(G37<=0.5,"LIVELLO INSODDISFACENTE O INTERMEDIO","LIVELLO AVANZATO")) -> compilazione incompleta | H38: =IF(OR(H33="",H35=""),"compilazione incompleta",IF(H37<=0.5,"LIVELLO INSODDISFACENTE O INTERMEDIO","LIVELLO AVANZATO")) -> compilazione incompleta | I38: =IF(OR(I33="",I35=""),"compilazione incompleta",IF(I37<=0.5,"LIVELLO INSODDISFACENTE O INTERMEDIO","LIVELLO AVANZATO")) -> compilazione incompleta | J38: =IF(OR(J33="",J35=""),"compilazione incompleta",IF(J37<=0.5,"LIVELLO INSODDISFACENTE O INTERMEDIO","LIVELLO AVANZATO")) -> compilazione incompleta
G40: 2026 | H40: 2027 | I40: 2028 | J40: 2029
C41: Efficacia dell’avvio a riciclaggio della frazione organica | F41: R2a (base dati a-2) | H41: =+G41 -> 0 | I41: =+H41 -> 0 | J41: =+I41 -> 0
F42: Classe R2a (base dati a-2) | G42: =IFERROR(INDEX(Tabelle!$E$81:$E$87,MATCH(1,(G$41>=Tabelle!$B$81:$B$87)*(G$41<Tabelle!$C$81:$C$87),0)),0) -> G | H42: =IFERROR(INDEX(Tabelle!$E$81:$E$87,MATCH(1,(H$41>=Tabelle!$B$81:$B$87)*(H$41<Tabelle!$C$81:$C$87),0)),0) -> G | I42: =IFERROR(INDEX(Tabelle!$E$81:$E$87,MATCH(1,(I$41>=Tabelle!$B$81:$B$87)*(I$41<Tabelle!$C$81:$C$87),0)),0) -> G | J42: =IFERROR(INDEX(Tabelle!$E$81:$E$87,MATCH(1,(J$41>=Tabelle!$B$81:$B$87)*(J$41<Tabelle!$C$81:$C$87),0)),0) -> G
F43: Obiettivo R2a (base dati a-2) | G43: =+IFERROR(MIN(H41+INDEX(Tabelle!$D$81:$D$87,MATCH(IN_PAR!H42,Tabelle!$E$81:$E$87,0))+INDEX(Tabelle!$D$81:$D$87,MATCH(IN_PAR!H42,Tabelle!$E$81:$E$87,0)),0.95),"errore") -> 0.10 | H43: =+G43 -> 0.10 | I43: =+H43 -> 0.10 | J43: =+I43 -> 0.10
F44: Classe obiettivo R2a (base dati a-2) | G44: =IFERROR(INDEX(Tabelle!$E$81:$E$87,MATCH(1,(G$43>=Tabelle!$B$81:$B$87)*(G$43<Tabelle!$C$81:$C$87),0)),0) -> G | H44: =IFERROR(INDEX(Tabelle!$E$81:$E$87,MATCH(1,(H$43>=Tabelle!$B$81:$B$87)*(H$43<Tabelle!$C$81:$C$87),0)),0) -> G | I44: =IFERROR(INDEX(Tabelle!$E$81:$E$87,MATCH(1,(I$43>=Tabelle!$B$81:$B$87)*(I$43<Tabelle!$C$81:$C$87),0)),0) -> G | J44: =IFERROR(INDEX(Tabelle!$E$81:$E$87,MATCH(1,(J$43>=Tabelle!$B$81:$B$87)*(J$43<Tabelle!$C$81:$C$87),0)),0) -> G
B47: Definizione del fattore di sharing in funzione del livelli qualitativi raggiunti
G49: 2026 | H49: 2027 | I49: 2028 | J49: 2029
F50: intervallo di riferimento b | G50: =+IF(AND(G32=Tabelle!$B$163,G34=Tabelle!$B$164),"[0,2-0,4]",IF(AND(G32=Tabelle!$B$163,G34=Tabelle!$C$164),"(0,55-0,7]",IF(AND(G32=Tabelle!$C$163,G34=Tabelle!$B$164),"(0,4-0,55]",IF(AND(G32=Tabelle!$C$163,G34=Tabelle!$C$164),"(0,7-0,9]")))) -> (0,7-0,9] | H50: =+IF(AND(H32=Tabelle!$B$163,H34=Tabelle!$B$164),"[0,2-0,4]",IF(AND(H32=Tabelle!$B$163,H34=Tabelle!$C$164),"(0,55-0,7]",IF(AND(H32=Tabelle!$C$163,H34=Tabelle!$B$164),"(0,4-0,55]",IF(AND(H32=Tabelle!$C$163,H34=Tabelle!$C$164),"(0,7-0,9]")))) -> (0,7-0,9] | I50: =+IF(AND(I32=Tabelle!$B$163,I34=Tabelle!$B$164),"[0,2-0,4]",IF(AND(I32=Tabelle!$B$163,I34=Tabelle!$C$164),"(0,55-0,7]",IF(AND(I32=Tabelle!$C$163,I34=Tabelle!$B$164),"(0,4-0,55]",IF(AND(I32=Tabelle!$C$163,I34=Tabelle!$C$164),"(0,7-0,9]")))) -> (0,7-0,9] | J50: =+IF(AND(J32=Tabelle!$B$163,J34=Tabelle!$B$164),"[0,2-0,4]",IF(AND(J32=Tabelle!$B$163,J34=Tabelle!$C$164),"(0,55-0,7]",IF(AND(J32=Tabelle!$C$163,J34=Tabelle!$B$164),"(0,4-0,55]",IF(AND(J32=Tabelle!$C$163,J34=Tabelle!$C$164),"(0,7-0,9]")))) -> (0,7-0,9]
F51: b
B54: Efficienza della gestione (anno-2)
G56: 2026 | H56: 2027 | I56: 2028 | J56: 2029 | K56: 2030
C57: ENTRATE TARIFFARIE approvate a lordo delle detr. 1.4 Det. 2/2021/R/rif nelle annualità (a-2) - [€] | F57: TVa-2 | I57: =+'Rett_Ta-1'!C29 -> 0 | J57: =+'Rett_Ta-1'!D29 -> 0 | K57: =+'Rett_Ta-1'!E29 -> 0
F58: TFa-2 | I58: =+'Rett_Ta-1'!C30 -> 0 | J58: =+'Rett_Ta-1'!D30 -> 0 | K58: =+'Rett_Ta-1'!E30 -> 0
F59: Ta-2 | G59: =SUM(G57:G58) -> 0 | H59: =SUM(H57:H58) -> 0 | I59: =SUM(I57:I58) -> 0 | J59: 0 | K59: =SUM(K57:K58) -> 0
C60: Quantità di rifiuti prodotti [ton]: | F60: qa-2 | I60: =+H60 -> 0 | J60: =+H60 -> 0
C61: Costo Unitario Effettivo | F61: CUeffa-2 [cent€/kg] | G61: =IFERROR((G59*100)/(G60*1000),"") ->  | H61: =IFERROR((H59*100)/(H60*1000),"") ->  | I61: =IFERROR((I59*100)/(I60*1000),"") ->  | J61: =IFERROR((J59*100)/(J60*1000),"") -> 
C62: Benchmark di riferimento | F62: Bencha-2 [cent€/kg] | I62: =+H62 -> 0.00 | J62: =+H62 -> 0.00
D64: Verifica dati input | G64: CHECK | H64: CHECK | I64: CHECK | J64: CHECK
F65: Cueffa-2 [cent€/kg] | G65: =+IFERROR(IF(OR(G61<1,G61>100),"verificare input",""),"") -> verificare input | H65: =+IFERROR(IF(OR(H61<1,H61>100),"verificare input",""),"") -> verificare input | I65: =+IFERROR(IF(OR(I61<1,I61>100),"verificare input",""),"") -> verificare input | J65: =+IFERROR(IF(OR(J61<1,J61>100),"verificare input",""),"") -> verificare input
F66: Bencha-2 [cent€/kg] | G66: =+IF(OR(G62<5,G62>100),"verificare input","") -> verificare input | H66: =+IF(OR(H62<5,H62>100),"verificare input","") -> verificare input | I66: =+IF(OR(I62<5,I62>100),"verificare input","") -> verificare input | J66: =+IF(OR(J62<5,J62>100),"verificare input","") -> verificare input
B68: Scelta dello schema regolatorio anno (a) ai sensi dell'art. 5.2 del MTR-3
G70: scegliere da menu a tendina tra le due opzioni di consolidamento/miglioramento per ciascuna annualità
F71: Obiettivi: consolidamento/miglioramento | G71: 2026 | H71: 2027 | I71: 2028 | J71: 2029
F72: Valutazione obiettivi
F73: Cueffa-2/Bencha-2 | G73: =+IFERROR(ROUND(G61/G62,3),1.051) -> 1.051 | H73: =+IFERROR(ROUND(H61/H62,3),1.051) -> 1.051 | I73: =+IFERROR(ROUND(I61/I62,3),1.051) -> 1.051 | J73: =+IFERROR(ROUND(J61/J62,3),1.051) -> 1.051
F74: SCHEMA REGOLATORIO | G74: =IF(AND(G72="consolidamento",G73>1.05),"Schema I",IF(AND(G72="consolidamento",G73<=1.05),"Schema II",IF(AND(G72="miglioramento",G73>1.05),"Schema III",IF(AND(G72="miglioramento",G73<=1.05),"Schema IV","")))) ->  | H74: =IF(AND(H72="consolidamento",H73>1.05),"Schema I",IF(AND(H72="consolidamento",H73<=1.05),"Schema II",IF(AND(H72="miglioramento",H73>1.05),"Schema III",IF(AND(H72="miglioramento",H73<=1.05),"Schema IV","")))) ->  | I74: =IF(AND(I72="consolidamento",I73>1.05),"Schema I",IF(AND(I72="consolidamento",I73<=1.05),"Schema II",IF(AND(I72="miglioramento",I73>1.05),"Schema III",IF(AND(I72="miglioramento",I73<=1.05),"Schema IV","")))) ->  | J74: =IF(AND(J72="consolidamento",J73>1.05),"Schema I",IF(AND(J72="consolidamento",J73<=1.05),"Schema II",IF(AND(J72="miglioramento",J73>1.05),"Schema III",IF(AND(J72="miglioramento",J73<=1.05),"Schema IV","")))) -> 
B76: Parametri per il limite di crescita delle entrate tariffarie - Ambito tariffario anno a
G78: 2026 | H78: 2027 | I78: 2028 | J78: 2029
B79: NOTA: In presenza di una pluralità di gestori e per finalità di garanzia della coerenza tra la predisposizione tariffaria e gli esiti di eventuali procedure di affidamento con gara, si consiglia di compilare la tabella sottostante prima di compilare le righe 81-93 | F79: rpi | G79: =+Tabelle!D6 -> 1.90% | H79: =+Tabelle!E6 -> 1.90% | I79: =+Tabelle!F6 -> 1.90% | J79: =+Tabelle!G6 -> 1.90%
G81: 2026 | H81: 2027 | I81: 2028 | J81: 2029
F82: intervallo di riferimento Xreg,a | G82: =IFERROR(IF(G38="LIVELLO AVANZATO",IF(G61<=G62,Tabelle!$C$167,Tabelle!$B$167),IF(G61<=G62,Tabelle!$C$166,Tabelle!$B$166)),"errore") -> 0,1%<Xreg≤0,3% | H82: =IFERROR(IF(H38="LIVELLO AVANZATO",IF(H61<=H62,Tabelle!$C$167,Tabelle!$B$167),IF(H61<=H62,Tabelle!$C$166,Tabelle!$B$166)),"errore") -> 0,1%<Xreg≤0,3% | I82: =IFERROR(IF(I38="LIVELLO AVANZATO",IF(I61<=I62,Tabelle!$C$167,Tabelle!$B$167),IF(I61<=I62,Tabelle!$C$166,Tabelle!$B$166)),"errore") -> 0,3%<Xreg≤0,5% | J82: =IFERROR(IF(J38="LIVELLO AVANZATO",IF(J61<=J62,Tabelle!$C$167,Tabelle!$B$167),IF(J61<=J62,Tabelle!$C$166,Tabelle!$B$166)),"errore") -> 0,3%<Xreg≤0,5%
F83: Xreg,a
F84: Xcom
F85: Xa | G85: =+G83+G84 -> 0.00% | H85: =+H83+H84 -> 0.00% | I85: 0.00% | J85: 0.00%
F86: Valore massimo Kcom,a | G86: =IF(G74="SCHEMA I",MAX(3%-G89,0%),IF(OR(G74="schema II",G74="schema III"),MAX(5%-G89,0%),IF(G74="SCHEMA IV",MAX(7%-G89,0%),0%))) -> 0.00% | H86: =IF(H74="SCHEMA I",MAX(3%-H89,0%),IF(OR(H74="schema II",H74="schema III"),MAX(5%-H89,0%),IF(H74="SCHEMA IV",MAX(7%-H89,0%),0%))) -> 0.00% | I86: =IF(I74="SCHEMA I",MAX(3%-I89,0%),IF(OR(I74="schema II",I74="schema III"),MAX(5%-I89,0%),IF(I74="SCHEMA IV",MAX(7%-I89,0%),0%))) -> 0.00% | J86: =IF(J74="SCHEMA I",MAX(3%-J89,0%),IF(OR(J74="schema II",J74="schema III"),MAX(5%-J89,0%),IF(J74="SCHEMA IV",MAX(7%-J89,0%),0%))) -> 0.00%
F87: Kcom,a
F88: Valore massimo Kreg,a | G88: =IF(G74="SCHEMA I",MAX(3%-G87,0%),IF(OR(G74="schema II",G74="schema III"),MAX(5%-G87,0%),IF(G74="SCHEMA IV",MAX(7%-G87,0%),0%))) -> 0.00% | H88: =IF(H74="SCHEMA I",MAX(3%-H87,0%),IF(OR(H74="schema II",H74="schema III"),MAX(5%-H87,0%),IF(H74="SCHEMA IV",MAX(7%-H87,0%),0%))) -> 0.00% | I88: =IF(I74="SCHEMA I",MAX(3%-I87,0%),IF(OR(I74="schema II",I74="schema III"),MAX(5%-I87,0%),IF(I74="SCHEMA IV",MAX(7%-I87,0%),0%))) -> 0.00% | J88: =IF(J74="SCHEMA I",MAX(3%-J87,0%),IF(OR(J74="schema II",J74="schema III"),MAX(5%-J87,0%),IF(J74="SCHEMA IV",MAX(7%-J87,0%),0%))) -> 0.00%
F89: Kreg,a
F90: Valore massimo Ka | G90: =IF(G74="SCHEMA I",3%,IF(G74="schema II",5%,IF(G74="SCHEMA III",5%,IF(G74="SCHEMA IV",7%,0%)))) -> 0.00% | H90: =IF(H74="SCHEMA I",3%,IF(H74="schema II",5%,IF(H74="SCHEMA III",5%,IF(H74="SCHEMA IV",7%,0%)))) -> 0.00% | I90: =IF(I74="SCHEMA I",3%,IF(I74="schema II",5%,IF(I74="SCHEMA III",5%,IF(I74="SCHEMA IV",7%,0%)))) -> 0.00% | J90: =IF(J74="SCHEMA I",3%,IF(J74="schema II",5%,IF(J74="SCHEMA III",5%,IF(J74="SCHEMA IV",7%,0%)))) -> 0.00%
F91: Ka | G91: =+G87+G89 -> 0.00% | H91: =+H87+H89 -> 0.00% | I91: 0.00% | J91: 0.00%
F92: Valore massimo CRIa | G92: =IF(G74="schema I",MIN(3%-G91,0.8*G91),IF(OR(G74="schema II",G74="schema III"),MIN(5%-G91,0.8*G91),IF(G74="schema IV",MIN(7%-G91,0.8*G91),0))) -> 0.00% | H92: =IF(H74="schema I",MIN(3%-H91,0.8*H91),IF(OR(H74="schema II",H74="schema III"),MIN(5%-H91,0.8*H91),IF(H74="schema IV",MIN(7%-H91,0.8*H91),0))) -> 0.00% | I92: =IF(I74="schema I",MIN(3%-I91,0.8*I91),IF(OR(I74="schema II",I74="schema III"),MIN(5%-I91,0.8*I91),IF(I74="schema IV",MIN(7%-I91,0.8*I91),0))) -> 0.00% | J92: =IF(J74="schema I",MIN(3%-J91,0.8*J91),IF(OR(J74="schema II",J74="schema III"),MIN(5%-J91,0.8*J91),IF(J74="schema IV",MIN(7%-J91,0.8*J91),0))) -> 0.00%
F93: CRIa
F94: Limite alla crescita delle entrate tariffarie ρ | G94: =G79-G85+G91+G93 -> 1.90% | H94: =H79-H85+H91+H93 -> 1.90% | I94: =I79-I85+I91+I93 -> 1.90% | J94: =J79-J85+J91+J93 -> 1.90%
F96: CHECK Ka-CRI | G96: =+IF((G91+G93)>G90,"verificare input","") ->  | H96: =+IF((H91+H93)>H90,"verificare input","") ->  | I96: =+IF((I91+I93)>I90,"verificare input","") ->  | J96: =+IF((J91+J93)>J90,"verificare input","") -> 
B98: Parametri limite di crescita delle entrate tariffarie per singoli gestori - anno a
C101: Denominazione Gestori | D101: Partiva IVA gestore/ Codice ISTAT Comune | E101: Tipologia affidamento | F101: Parametro | G101: 2026 | H101: 2027 | I101: 2028 | J101: 2029
B102: Gestore 1 | C102: =+IN_Anagrafica!D9 -> 0 | D102: =+IN_Anagrafica!G9 -> 0 | E102: =+IN_Anagrafica!I9 -> 0 | F102: Xreg,a
B103: Gestore 2 | C103: =+IN_Anagrafica!D10 -> 0 | D103: =+IN_Anagrafica!G10 -> 0 | E103: =+IN_Anagrafica!I10 -> 0 | F103: Xreg,a
B104: Gestore 3 | C104: =+IN_Anagrafica!D11 -> 0 | D104: =+IN_Anagrafica!G11 -> 0 | E104: =+IN_Anagrafica!I11 -> 0 | F104: Xreg,a
B105: Comune | C105: =+IN_Anagrafica!D12 -> 0 | D105: =+IN_Anagrafica!G12 -> 0 | F105: Xreg,a
B106: Gestore 1 | C106: =+IN_Anagrafica!D9 -> 0 | D106: =+IN_Anagrafica!G9 -> 0 | E106: =+IN_Anagrafica!I9 -> 0 | F106: Xcom
B107: Gestore 2 | C107: =+IN_Anagrafica!D10 -> 0 | D107: =+IN_Anagrafica!G10 -> 0 | E107: =+IN_Anagrafica!I10 -> 0 | F107: Xcom
B108: Gestore 3 | C108: =+IN_Anagrafica!D11 -> 0 | D108: =+IN_Anagrafica!G11 -> 0 | E108: =+IN_Anagrafica!I11 -> 0 | F108: Xcom
B109: Comune | C109: =+IN_Anagrafica!D12 -> 0 | D109: =+IN_Anagrafica!G12 -> 0
B110: Gestore 1 | C110: =+IN_Anagrafica!D9 -> 0 | D110: =+IN_Anagrafica!G9 -> 0 | E110: =+IN_Anagrafica!I9 -> 0 | F110: Kcom,a
B111: Gestore 2 | C111: =+IN_Anagrafica!D10 -> 0 | D111: =+IN_Anagrafica!G10 -> 0 | E111: =+IN_Anagrafica!I10 -> 0 | F111: Kcom,a
B112: Gestore 3 | C112: =+IN_Anagrafica!D11 -> 0 | D112: =+IN_Anagrafica!G11 -> 0 | E112: =+IN_Anagrafica!I11 -> 0 | F112: Kcom,a
B113: Comune | C113: =+IN_Anagrafica!D12 -> 0 | D113: =+IN_Anagrafica!G12 -> 0
B114: Gestore 1 | C114: =+IN_Anagrafica!D9 -> 0 | D114: =+IN_Anagrafica!G9 -> 0 | E114: =+IN_Anagrafica!I9 -> 0 | F114: Kreg,a
B115: Gestore 2 | C115: =+IN_Anagrafica!D10 -> 0 | D115: =+IN_Anagrafica!G10 -> 0 | E115: =+IN_Anagrafica!I10 -> 0 | F115: Kreg,a
B116: Gestore 3 | C116: =+IN_Anagrafica!D11 -> 0 | D116: =+IN_Anagrafica!G11 -> 0 | E116: =+IN_Anagrafica!I11 -> 0 | F116: Kreg,a
B117: Comune | C117: =+IN_Anagrafica!D12 -> 0 | D117: =+IN_Anagrafica!G12 -> 0 | F117: Kreg,a
B118: Gestore 1 | C118: =+IN_Anagrafica!D9 -> 0 | D118: =+IN_Anagrafica!G9 -> 0 | E118: =+IN_Anagrafica!I9 -> 0 | F118: CRIa
B119: Gestore 2 | C119: =+IN_Anagrafica!D10 -> 0 | D119: =+IN_Anagrafica!G10 -> 0 | E119: =+IN_Anagrafica!I10 -> 0 | F119: CRIa
B120: Gestore 3 | C120: =+IN_Anagrafica!D11 -> 0 | D120: =+IN_Anagrafica!G11 -> 0 | E120: =+IN_Anagrafica!I11 -> 0 | F120: CRIa
B121: Comune | C121: =+IN_Anagrafica!D12 -> 0 | D121: =+IN_Anagrafica!G12 -> 0 | F121: CRIa
C124: Denominazione Gestori | D124: Partiva IVA gestore/ Codice ISTAT Comune | E124: Tipologia affidamento | F124: CHECK Ka | G124: 2026 | H124: 2027 | I124: 2028 | J124: 2029
B125: Gestore 1 | C125: =+IN_Anagrafica!D9 -> 0 | D125: =+IN_Anagrafica!G9 -> 0 | E125: =+IN_Anagrafica!I9 -> 0 | F125: CHECK Ka | G125: =IF(G$74="SCHEMA I",(G110+G114)<=3%,IF(OR(G$74="schema II",G$74="SCHEMA III"),(G110+G114)<=5%,IF(G$74="SCHEMA IV",(G110+G114)<=7%,"verificare input"))) -> verificare input | H125: =IF(H$74="SCHEMA I",(H110+H114)<=3%,IF(OR(H$74="schema II",H$74="SCHEMA III"),(H110+H114)<=5%,IF(H$74="SCHEMA IV",(H110+H114)<=7%,"verificare input"))) -> verificare input | I125: =IF(I$74="SCHEMA I",(I110+I114)<=3%,IF(OR(I$74="schema II",I$74="SCHEMA III"),(I110+I114)<=5%,IF(I$74="SCHEMA IV",(I110+I114)<=7%,"verificare input"))) -> verificare input | J125: =IF(J$74="SCHEMA I",(J110+J114)<=3%,IF(OR(J$74="schema II",J$74="SCHEMA III"),(J110+J114)<=5%,IF(J$74="SCHEMA IV",(J110+J114)<=7%,"verificare input"))) -> verificare input
B126: Gestore 2 | C126: =+IN_Anagrafica!D10 -> 0 | D126: =+IN_Anagrafica!G10 -> 0 | E126: =+IN_Anagrafica!I10 -> 0 | F126: CHECK Ka | G126: =IF(G$74="SCHEMA I",(G111+G115)<=3%,IF(OR(G$74="schema II",G$74="SCHEMA III"),(G111+G115)<=5%,IF(G$74="SCHEMA IV",(G111+G115)<=7%,"verificare input"))) -> verificare input | H126: verificare input | I126: verificare input | J126: verificare input
B127: Gestore 3 | C127: =+IN_Anagrafica!D11 -> 0 | D127: =+IN_Anagrafica!G11 -> 0 | E127: =+IN_Anagrafica!I11 -> 0 | F127: CHECK Ka | G127: =IF(G$74="SCHEMA I",(G112+G116)<=3%,IF(OR(G$74="schema II",G$74="SCHEMA III"),(G112+G116)<=5%,IF(G$74="SCHEMA IV",(G112+G116)<=7%,"verificare input"))) -> verificare input | H127: verificare input | I127: verificare input | J127: verificare input
B128: Comune | C128: =+IN_Anagrafica!D12 -> 0 | D128: =+IN_Anagrafica!G12 -> 0 | F128: CHECK Ka | G128: =IF(G$74="SCHEMA I",(G113+G117)<=3%,IF(OR(G$74="schema II",G$74="SCHEMA III"),(G113+G117)<=5%,IF(G$74="SCHEMA IV",(G113+G117)<=7%,"verificare input"))) -> verificare input | H128: verificare input | I128: verificare input | J128: verificare input
C131: Denominazione Gestori | D131: Partiva IVA gestore/ Codice ISTAT Comune | E131: Tipologia affidamento | F131: Valore Entrate Ta-1 | G131: 2026 | H131: 2027 | I131: 2028 | J131: 2029
B132: Gestore 1 | C132: =+IN_Anagrafica!D9 -> 0 | D132: =+IN_Anagrafica!G9 -> 0 | E132: =+IN_Anagrafica!I9 -> 0 | F132: Ta-1 | H132: =+'Rett_Ta-1'!$C$22 -> 0 | I132: =+'Rett_Ta-1'!$H$22 -> 0 | J132: =+'Rett_Ta-1'!$M$22 -> 0
B133: Gestore 2 | C133: =+IN_Anagrafica!D10 -> 0 | D133: =+IN_Anagrafica!G10 -> 0 | E133: =+IN_Anagrafica!I10 -> 0 | F133: Ta-1 | H133: =+'Rett_Ta-1'!$D$22 -> 0 | I133: =+'Rett_Ta-1'!$I$22 -> 0 | J133: =+'Rett_Ta-1'!$N$22 -> 0
B134: Gestore 3 | C134: =+IN_Anagrafica!D11 -> 0 | D134: =+IN_Anagrafica!G11 -> 0 | E134: =+IN_Anagrafica!I11 -> 0 | F134: Ta-1 | H134: =+'Rett_Ta-1'!$E$22 -> 0 | I134: =+'Rett_Ta-1'!$J$22 -> 0 | J134: =+'Rett_Ta-1'!$O$22 -> 0
B135: Comune | C135: =+IN_Anagrafica!D12 -> 0 | D135: =+IN_Anagrafica!G12 -> 0 | F135: Ta-1 | H135: =+'Rett_Ta-1'!$G$22 -> 0 | I135: =+'Rett_Ta-1'!$L$22 -> 0 | J135: =+'Rett_Ta-1'!$Q$22 -> 0
F136: Totale gestori | G136: =+SUM(G132:G135) -> 0 | H136: =+SUM(H132:H135) -> 0 | I136: =+SUM(I132:I135) -> 0 | J136: =+SUM(J132:J135) -> 0
F138: CHECK | G138: =+SUM(G132:G135)=H59 -> TRUE | H138: =+SUM(H132:H135)=I59 -> TRUE | I138: =+SUM(I132:I135)=J59 -> TRUE | J138: =+SUM(J132:J135)=K59 -> TRUE
F140: Valori ponderati per ambito tariffario
G141: 2026 | H141: 2027 | I141: 2028 | J141: 2029
F142: Xreg,a | G142: =+IFERROR((G102*G132+G103*G133+G104*G134+G105*G135)/SUM(G132:G135),0) -> 0.00% | H142: =+IFERROR((H102*H132+H103*H133+H104*H134+H105*H135)/SUM(H132:H135),0) -> 0.00% | I142: 0.00% | J142: 0.00%
F143: Xcom | G143: =+IFERROR((G106*G132+G107*G133+G108*G134+G109*G135)/SUM(G132:G135),0) -> 0.00% | H143: =+IFERROR((H106*H132+H107*H133+H108*H134+H109*H135)/SUM(H132:H135),0) -> 0.00% | I143: 0.00% | J143: 0.00%
F144: Xa | G144: =+G142+G143 -> 0.00% | H144: =+H142+H143 -> 0.00% | I144: 0.00% | J144: 0.00%
F145: Kcom,a | G145: =+IFERROR((G110*G132+G111*G133+G112*G134+G113*G135)/SUM(G132:G135),0) -> 0.00% | H145: =+IFERROR((H110*H132+H111*H133+H112*H134+H113*H135)/SUM(H132:H135),0) -> 0.00% | I145: 0.00% | J145: 0.00%
F146: Kreg,a | G146: =+IFERROR((G114*G132+G115*G133+G116*G134+G117*G135)/SUM(G132:G135),0) -> 0.00% | H146: =+IFERROR((H114*H132+H115*H133+H116*H134+H117*H135)/SUM(H132:H135),0) -> 0.00% | I146: 0.00% | J146: 0.00%
F147: Ka | G147: =+G145+G146 -> 0.00% | H147: =+H145+H146 -> 0.00% | I147: 0.00% | J147: 0.00%
F148: CRIa | G148: =+IFERROR(SUMPRODUCT(G$118:G$121,G$132:G$135)/SUM(G$132:G$135),0) -> 0.00% | H148: =+IFERROR(SUMPRODUCT(H$118:H$121,H$132:H$135)/SUM(H$132:H$135),0) -> 0.00% | I148: 0.00% | J148: =+IFERROR(SUMPRODUCT(J$118:J$121,J$132:J$135)/SUM(J$132:J$135),0) -> 0.00%
F150: CHECK Xa | G150: =+ROUND(G144,4)=ROUND(G85,4) -> TRUE | H150: =+ROUND(H144,4)=ROUND(H85,4) -> TRUE | I150: =+ROUND(I144,4)=ROUND(I85,4) -> TRUE | J150: =+ROUND(J144,4)=ROUND(J85,4) -> TRUE
F151: CHECK Ka | G151: =ROUND(G147,4)=ROUND(G91,4) -> TRUE | H151: =ROUND(H147,4)=ROUND(H91,4) -> TRUE | I151: =ROUND(I147,4)=ROUND(I91,4) -> TRUE | J151: =ROUND(J147,4)=ROUND(J91,4) -> TRUE
G153: 2026 | H153: 2027 | I153: 2028 | J153: 2029
F154: Limite alla crescita delle entrate tariffarie ρ | G154: =+IF(OR(G79-G144+G148+G147>8.8%,G83=""),"verificare input",G79-G144+G148+G147) -> verificare input | H154: =+IF(OR(H79-H144+H148+H147>8.8%,H83=""),"verificare input",H79-H144+H148+H147) -> verificare input | I154: =+IF(OR(I79-I144+I148+I147>8.8%,I83=""),"verificare input",I79-I144+I148+I147) -> verificare input | J154: =+IF(OR(J79-J144+J148+J147>8.8%,J83=""),"verificare input",J79-J144+J148+J147) -> verificare input
F156: CHECK limite di crescita | G156: =+IFERROR(ROUND(G154,4)=ROUND(G94,4),"errore") -> errore | H156: =+IFERROR(ROUND(H154,4)=ROUND(H94,4),"errore") -> errore | I156: =+IFERROR(ROUND(I154,4)=ROUND(I94,4),"errore") -> errore | J156: =+IFERROR(ROUND(J154,4)=ROUND(J94,4),"errore") -> errore

Sheet IN_BIL_Gest_24
B1: Dati di input: RICAVI, COSTI e DATI ECONOMICO FINANZIARI DEI GESTORI - ANNO 2024
B3: =_xlfn.TEXTJOIN("",TRUE,"Dati da Bilancio d'esercizio: ", IN_Anagrafica!$D$9) -> Dati da Bilancio d'esercizio:
B5: Dati di conto economico:
B6: RICAVI | C6: 2024
B7: A1) Ricavi delle vendite e delle prestazioni relative alle attività afferenti al ciclo integrato dei RU
C9: A1) Ricavi delle vendite e delle prestazioni | D9: A5) Altri ricavi e proventi
B10: ARa | C10: =+SUM(C11:C13) -> 0 | D10: =+SUM(D11:D13) -> 0 | E10: =+SUM(C10:D10) -> 0
B11: di cui per vendita di materiali a mercato | E11: =+SUM(C11:D11) -> 0
B12: di cui per vendita energia da rifiuti urbani | E12: 0
B13: di cui per attività diverse dal SGRU che utilizzano asset e risorse del ciclo integrato rifiuti urbani | E13: 0
B14: ARsc,a | E14: =+SUM(C14:D14) -> 0
B15: Totale | C15: =+C10+C14 -> 0 | D15: =+D10+D14 -> 0 | E15: =+SUM(C15:D15) -> 0
B17: COSTI B6-B7 relativi al ciclo integrato dei RU al netto delle poste rettificative | C17: 2024
B18: B6 - Costi per materie di consumo e merci (al netto di resi, abbuoni e sconti) | C18: =SUM(C25:K25) -> 0
B19: B7 - Costi per servizi | C19: =SUM(C26:K26) -> 0
B21: Si usufruisce della deroga di cui al comma 4.11 det. 1/DTAC/2025? | C21: SI
C23: 2024
B24: =+IF(C21="SI","COSTI al netto delle poste rettificative e al netto dei CANONI/MUTUI pagati ai proprietari","COSTI al netto delle poste rettificative e al netto dei CANONI/MUTUI/LEASING pagati ai proprietari") -> COSTI al netto delle poste rettificative e al netto dei CANONI/MUTUI pagati ai proprietari | C24: CRTa | D24: CTSa | E24: CTRa | F24: CRDa | G24: CSLa | H24: CARCa | I24: CGGa | J24: CCDa | K24: COAL,a | L24: Acc costi di gestione post-operativa delle discariche | M24: Acc relativi ai crediti | N24: Acc per rischi e oneri previsti da normativa di settore e/o dal contratto di affidamento | O24: Acc per altri non in eccesso rispetto a norme tributarie
B25: B6 - Costi per materie di consumo e merci (al netto di resi, abbuoni e sconti)
B26: B7 - Costi per servizi | D26: =+IN_CTS_CTR_RC!C35 -> 0 | E26: =+IN_CTS_CTR_RC!C31 -> 0
B27: B8 - Costi per godimento di beni di terzi
B28: B9 - Costi del personale
B29: B11 - Variazioni delle rimanenze di materie prime, sussidiarie, di consumo e merci
B30: B14 - Oneri diversi di gestione
B31: B10d (da c. 16.2 MTR-3)
B32: B12 - Accantonamento per rischi, nella misura massima ammessa dalle leggi e prassi fiscali
B33: B13 - Altri accantonamenti
B34: totale | C34: =SUM(C25:C30) -> 0 | D34: 0 | E34: 0 | F34: 0 | G34: 0 | H34: 0 | I34: 0 | J34: 0 | K34: 0 | L34: =SUM(L31:L33) -> 0 | M34: =SUM(M31:M33) -> 0 | N34: 0 | O34: 0
B37: poste rettificative costi operativi: | C37: 2024
B38: Costi attribuibili alle attività capitalizzate
B39: poste rettificative di cui al comma 1.1 del MTR-3:
B40: accantonamenti, diversi dagli ammortamenti, operati in eccesso rispetto all’applicazione di norme tributarie, fatto salvo quanto disposto dall'articolo 16 del MTR-3 | E40: Canone, Mutuo, Leasing: | F40: 2024
B41: oneri finanziari e le rettifiche di valori di attività finanziarie | E41: Proprietario 1
B42: svalutazioni delle immobilizzazioni | E42: Proprietario 2
B43: oneri straordinari | E43: Proprietario 3
B44: oneri per assicurazioni, qualora non espressamente previste da specifici obblighi normativi | E44: Leasing
B45: oneri per sanzioni, penali e risarcimenti, nonché costi sostenuti per il contenzioso ove l’impresa sia risultata soccombente
B46: costi connessi all’erogazione di liberalità
B47: costi pubblicitari e di marketing, ad esclusione di oneri che derivino da obblighi posti in capo ai concessionari
B48: spese di rappresentanza
B49: Contributi in conto esercizio
B50: costi sostenuti per il conseguimento dei target cui è stata associata (in sede di determinazione delle entrate tariffarie riferite a precedenti annualità) la valorizzazione di costi operativi incentivanti (di natura previsionale) | C50: =+IN_RC_CO_INC!C11*(-1) -> 0
B51: scostamenti già intercettati attraverso la valorizzazione (in sede di determinazione delle entrate tariffarie riferite a precedenti annualità) delle ulteriori componenti di costo di natura previsionale o di anticipazione introdotte dalla regolazione pro tempore vigente, tenuto conto della quantificazione dei pertinenti recuperi nell’ambito delle componenti a conguaglio | C51: =++IN_RC_ANT!K61*(-1)+IN_RC_ANT!K50*(-1) -> 0
B53: Dati economico finanziari:
B55: poste rettificative capitale investito: | C55: 2024
B56: PRa
B57: di cui TFR
B58: di cui fondi rischi e oneri
B59: di cui fondi per il ripristino di beni di terzi
B62: =_xlfn.TEXTJOIN("",TRUE,"Dati da Bilancio d'esercizio: ", IN_Anagrafica!$D$10) -> Dati da Bilancio d'esercizio:
B64: Dati di conto economico:
B65: RICAVI | C65: 2024
B66: A1) Ricavi delle vendite e delle prestazioni relative alle attività afferenti al ciclo integrato dei RU
C68: A1) Ricavi delle vendite e delle prestazioni | D68: A5) Altri ricavi e proventi
B69: ARa | C69: =+SUM(C70:C72) -> 0 | D69: =+SUM(D70:D72) -> 0 | E69: =+SUM(C69:D69) -> 0
B70: di cui per vendita di materiali a mercato | E70: =+SUM(C70:D70) -> 0
B71: di cui per vendita energia da rifiuti urbani | E71: 0
B72: di cui per attività diverse dal SGRU che utilizzano asset e risorse del ciclo integrato rifiuti urbani | E72: 0
B73: ARsc,a | E73: =+SUM(C73:D73) -> 0
B74: Totale | C74: =+C69+C73 -> 0 | D74: =+D69+D73 -> 0 | E74: =+SUM(C74:D74) -> 0
B76: COSTI B6-B7 relativi al ciclo integrato dei RU al netto delle poste rettificative | C76: 2024
B77: B6 - Costi per materie di consumo e merci (al netto di resi, abbuoni e sconti) | C77: =SUM(C84:K84) -> 0
B78: B7 - Costi per servizi | C78: =SUM(C85:K85) -> 0
B80: Si usufruisce della deroga di cui al comma 4.11 det. 1/DTAC/2025?
C82: 2024
B83: =+IF(C80="SI","COSTI al netto delle poste rettificative e al netto dei CANONI/MUTUI pagati ai proprietari","COSTI al netto delle poste rettificative e al netto dei CANONI/MUTUI/LEASING pagati ai proprietari") -> COSTI al netto delle poste rettificative e al netto dei CANONI/MUTUI/LEASING pagati ai proprietari | C83: CRTa | D83: CTSa | E83: CTRa | F83: CRDa | G83: CSLa | H83: CARCa | I83: CGGa | J83: CCDa | K83: COAL,a | L83: Acc costi di gestione post-operativa delle discariche | M83: Acc relativi ai crediti | N83: Acc per rischi e oneri previsti da normativa di settore e/o dal contratto di affidamento | O83: Acc per altri non in eccesso rispetto a norme tributarie
B84: B6 - Costi per materie di consumo e merci (al netto di resi, abbuoni e sconti)
B85: B7 - Costi per servizi | D85: =+IN_CTS_CTR_RC!D35 -> 0 | E85: =+IN_CTS_CTR_RC!D31 -> 0
B86: B8 - Costi per godimento di beni di terzi
B87: B9 - Costi del personale
B88: B11 - Variazioni delle rimanenze di materie prime, sussidiarie, di consumo e merci
B89: B14 - Oneri diversi di gestione
B90: B10d (da c. 16.2 MTR-3)
B91: B12 - Accantonamento per rischi, nella misura massima ammessa dalle leggi e prassi fiscali
B92: B13 - Altri accantonamenti
B93: totale | C93: =SUM(C84:C89) -> 0 | D93: 0 | E93: 0 | F93: 0 | G93: 0 | H93: 0 | I93: 0 | J93: 0 | K93: 0 | L93: =SUM(L90:L92) -> 0 | M93: =SUM(M90:M92) -> 0 | N93: 0 | O93: 0
B96: poste rettificative costi operativi: | C96: 2024
B97: Costi attribuibili alle attività capitalizzate
B98: poste rettificative di cui al comma 1.1 del MTR-3:
B99: accantonamenti, diversi dagli ammortamenti, operati in eccesso rispetto all’applicazione di norme tributarie, fatto salvo quanto disposto dall'articolo 16 del MTR-3 | E99: Canone, Mutuo, Leasing: | F99: 2024
B100: oneri finanziari e le rettifiche di valori di attività finanziarie | E100: Proprietario 1
B101: svalutazioni delle immobilizzazioni | E101: Proprietario 2
B102: oneri straordinari | E102: Proprietario 3
B103: oneri per assicurazioni, qualora non espressamente previste da specifici obblighi normativi | E103: Leasing
B104: oneri per sanzioni, penali e risarcimenti, nonché costi sostenuti per il contenzioso ove l’impresa sia risultata soccombente
B105: costi connessi all’erogazione di liberalità
B106: costi pubblicitari e di marketing, ad esclusione di oneri che derivino da obblighi posti in capo ai concessionari
B107: spese di rappresentanza
B108: Contributi in conto esercizio
B109: costi sostenuti per il conseguimento dei target cui è stata associata (in sede di determinazione delle entrate tariffarie riferite a precedenti annualità) la valorizzazione di costi operativi incentivanti (di natura previsionale) | C109: =+IN_RC_CO_INC!D11*(-1) -> 0
B110: scostamenti già intercettati attraverso la valorizzazione (in sede di determinazione delle entrate tariffarie riferite a precedenti annualità) delle ulteriori componenti di costo di natura previsionale o di anticipazione introdotte dalla regolazione pro tempore vigente, tenuto conto della quantificazione dei pertinenti recuperi nell’ambito delle componenti a conguaglio | C110: =IN_RC_ANT!L61*(-1)+IN_RC_ANT!L50*(-1) -> 0
B112: Dati economico finanziari:
B114: poste rettificative capitale investito: | C114: 2024
B115: PRa
B116: di cui TFR
B117: di cui fondi rischi e oneri
B118: di cui fondi per il ripristino di beni di terzi
B121: =_xlfn.TEXTJOIN("",TRUE,"Dati da Bilancio d'esercizio: ", IN_Anagrafica!$D$11) -> Dati da Bilancio d'esercizio:
B123: Dati di conto economico:
B124: RICAVI | C124: 2024
B125: A1) Ricavi delle vendite e delle prestazioni
C127: A1) Ricavi delle vendite e delle prestazioni | D127: A5) Altri ricavi e proventi
B128: A1) Ricavi delle vendite e delle prestazioni relative alle attività afferenti al ciclo integrato dei RU | C128: =+SUM(C129:C131) -> 0 | D128: =+SUM(D129:D131) -> 0 | E128: =+SUM(C128:D128) -> 0
B129: di cui per vendita di materiali a mercato | E129: =+SUM(C129:D129) -> 0
B130: di cui per vendita energia da rifiuti urbani | E130: 0
B131: di cui per attività diverse dal SGRU che utilizzano asset e risorse del ciclo integrato rifiuti urbani | E131: 0
B132: ARsc,a | E132: =+SUM(C132:D132) -> 0
B133: Totale | C133: =+C128+C132 -> 0 | D133: =+D128+D132 -> 0 | E133: =+SUM(C133:D133) -> 0
B135: COSTI B6-B7 relativi al ciclo integrato dei RU al netto delle poste rettificative | C135: 2024
B136: B6 - Costi per materie di consumo e merci (al netto di resi, abbuoni e sconti) | C136: =SUM(C143:K143) -> 0
B137: B7 - Costi per servizi | C137: =SUM(C144:K144) -> 0
B139: Si usufruisce della deroga di cui al comma 4.11 det. 1/DTAC/2025?
C141: 2024
B142: =+IF(C139="SI","COSTI al netto delle poste rettificative e al netto dei CANONI/MUTUI pagati ai proprietari","COSTI al netto delle poste rettificative e al netto dei CANONI/MUTUI/LEASING pagati ai proprietari") -> COSTI al netto delle poste rettificative e al netto dei CANONI/MUTUI/LEASING pagati ai proprietari | C142: CRTa | D142: CTSa | E142: CTRa | F142: CRDa | G142: CSLa | H142: CARCa | I142: CGGa | J142: CCDa | K142: COAL,a | L142: Acc costi di gestione post-operativa delle discariche | M142: Acc relativi ai crediti | N142: Acc per rischi e oneri previsti da normativa di settore e/o dal contratto di affidamento | O142: Acc per altri non in eccesso rispetto a norme tributarie
B143: B6 - Costi per materie di consumo e merci (al netto di resi, abbuoni e sconti)
B144: B7 - Costi per servizi | D144: =+IN_CTS_CTR_RC!E35 -> 0 | E144: =+IN_CTS_CTR_RC!E31 -> 0
B145: B8 - Costi per godimento di beni di terzi
B146: B9 - Costi del personale
B147: B11 - Variazioni delle rimanenze di materie prime, sussidiarie, di consumo e merci
B148: B14 - Oneri diversi di gestione
B149: B10d (da c. 16.2 MTR-3)
B150: B12 - Accantonamento per rischi, nella misura massima ammessa dalle leggi e prassi fiscali
B151: B13 - Altri accantonamenti
B152: totale | C152: =SUM(C143:C148) -> 0 | D152: 0 | E152: 0 | F152: 0 | G152: 0 | H152: 0 | I152: 0 | J152: 0 | K152: 0 | L152: =SUM(L149:L151) -> 0 | M152: =SUM(M149:M151) -> 0 | N152: 0 | O152: 0
B155: poste rettificative costi operativi: | C155: 2024
B156: Costi attribuibili alle attività capitalizzate
B157: poste rettificative di cui al comma 1.1 del MTR-3:
B158: accantonamenti, diversi dagli ammortamenti, operati in eccesso rispetto all’applicazione di norme tributarie, fatto salvo quanto disposto dall'articolo 16 del MTR-3 | E158: Canone, Mutuo, Leasing: | F158: 2024
B159: oneri finanziari e le rettifiche di valori di attività finanziarie | E159: Proprietario 1
B160: svalutazioni delle immobilizzazioni | E160: Proprietario 2
B161: oneri straordinari | E161: Proprietario 3
B162: oneri per assicurazioni, qualora non espressamente previste da specifici obblighi normativi | E162: Leasing
B163: oneri per sanzioni, penali e risarcimenti, nonché costi sostenuti per il contenzioso ove l’impresa sia risultata soccombente
B164: costi connessi all’erogazione di liberalità
B165: costi pubblicitari e di marketing, ad esclusione di oneri che derivino da obblighi posti in capo ai concessionari
B166: spese di rappresentanza
B167: Contributi in conto esercizio
B168: costi sostenuti per il conseguimento dei target cui è stata associata (in sede di determinazione delle entrate tariffarie riferite a precedenti annualità) la valorizzazione di costi operativi incentivanti (di natura previsionale) | C168: =+IN_RC_CO_INC!E11*(-1) -> 0
B169: scostamenti già intercettati attraverso la valorizzazione (in sede di determinazione delle entrate tariffarie riferite a precedenti annualità) delle ulteriori componenti di costo di natura previsionale o di anticipazione introdotte dalla regolazione pro tempore vigente, tenuto conto della quantificazione dei pertinenti recuperi nell’ambito delle componenti a conguaglio | C169: =IN_RC_ANT!M61*(-1)+IN_RC_ANT!M50*(-1) -> 0
B171: Dati economico finanziari:
B173: poste rettificative capitale investito: | C173: 2024
B174: PRa
B175: di cui TFR
B176: di cui fondi rischi e oneri
B177: di cui fondi per il ripristino di beni di terzi

Sheet IN_BIL_Gest_25
B1: Dati di input: RICAVI, COSTI e DATI ECONOMICO FINANZIARI DEI GESTORI - ANNO 2025
B3: =_xlfn.TEXTJOIN("",TRUE,"Dati da Bilancio d'esercizio: ", IN_Anagrafica!$D$9) -> Dati da Bilancio d'esercizio:
B5: Dati di conto economico:
B6: RICAVI | C6: 2025
B7: A1) Ricavi delle vendite e delle prestazioni relative alle attività afferenti al ciclo integrato dei RU
C9: A1) Ricavi delle vendite e delle prestazioni | D9: A5) Altri ricavi e proventi
B10: ARa | C10: =+SUM(C11:C13) -> 0 | D10: =+SUM(D11:D13) -> 0 | E10: =+SUM(C10:D10) -> 0
B11: di cui per vendita di materiali a mercato | E11: =+SUM(C11:D11) -> 0
B12: di cui per vendita energia da rifiuti urbani | E12: 0
B13: di cui per attività diverse dal SGRU che utilizzano asset e risorse del ciclo integrato rifiuti urbani | E13: 0
B14: ARsc,a | E14: =+SUM(C14:D14) -> 0
B15: Totale | C15: =+C10+C14 -> 0 | D15: =+D10+D14 -> 0 | E15: =+SUM(C15:D15) -> 0
B17: COSTI B6-B7 relativi al ciclo integrato dei RU al netto delle poste rettificative | C17: 2025
B18: B6 - Costi per materie di consumo e merci (al netto di resi, abbuoni e sconti) | C18: =SUM(C25:K25) -> 0
B19: B7 - Costi per servizi | C19: =SUM(C26:K26) -> 0
B21: Si usufruisce della deroga di cui al comma 4.11 det. 1/DTAC/2025?
C23: 2025
B24: =+IF(C21="SI","COSTI al netto delle poste rettificative e al netto dei CANONI/MUTUI pagati ai proprietari","COSTI al netto delle poste rettificative e al netto dei CANONI/MUTUI/LEASING pagati ai proprietari") -> COSTI al netto delle poste rettificative e al netto dei CANONI/MUTUI/LEASING pagati ai proprietari | C24: CRTa | D24: CTSa | E24: CTRa | F24: CRDa | G24: CSLa | H24: CARCa | I24: CGGa | J24: CCDa | K24: COAL,a | L24: Acc costi di gestione post-operativa delle discariche | M24: Acc relativi ai crediti | N24: Acc per rischi e oneri previsti da normativa di settore e/o dal contratto di affidamento | O24: Acc per altri non in eccesso rispetto a norme tributarie
B25: B6 - Costi per materie di consumo e merci (al netto di resi, abbuoni e sconti)
B26: B7 - Costi per servizi | D26: =+IN_CTS_CTR_RC!G35 -> 0 | E26: =+IN_CTS_CTR_RC!G31 -> 0
B27: B8 - Costi per godimento di beni di terzi
B28: B9 - Costi del personale
B29: B11 - Variazioni delle rimanenze di materie prime, sussidiarie, di consumo e merci
B30: B14 - Oneri diversi di gestione
B31: B10d (da c. 16.2 MTR-3)
B32: B12 - Accantonamento per rischi, nella misura massima ammessa dalle leggi e prassi fiscali
B33: B13 - Altri accantonamenti
B34: totale | C34: =SUM(C25:C30) -> 0 | D34: 0 | E34: 0 | F34: 0 | G34: 0 | H34: 0 | I34: 0 | J34: 0 | K34: 0 | L34: =SUM(L31:L33) -> 0 | M34: =SUM(M31:M33) -> 0 | N34: 0 | O34: 0
B37: poste rettificative costi operativi: | C37: 2025
B38: Costi attribuibili alle attività capitalizzate
B39: poste rettificative di cui al comma 1.1 del MTR-3:
B40: accantonamenti, diversi dagli ammortamenti, operati in eccesso rispetto all’applicazione di norme tributarie, fatto salvo quanto disposto dall'articolo 16 del MTR-3 | E40: Canone, Mutuo, Leasing: | F40: 2025
B41: oneri finanziari e le rettifiche di valori di attività finanziarie | E41: Proprietario 1
B42: svalutazioni delle immobilizzazioni | E42: Proprietario 2
B43: oneri straordinari | E43: Proprietario 3
B44: oneri per assicurazioni, qualora non espressamente previste da specifici obblighi normativi | E44: Leasing
B45: oneri per sanzioni, penali e risarcimenti, nonché costi sostenuti per il contenzioso ove l’impresa sia risultata soccombente
B46: costi connessi all’erogazione di liberalità
B47: costi pubblicitari e di marketing, ad esclusione di oneri che derivino da obblighi posti in capo ai concessionari
B48: spese di rappresentanza
B49: Contributi in conto esercizio
B50: costi sostenuti per il conseguimento dei target cui è stata associata (in sede di determinazione delle entrate tariffarie riferite a precedenti annualità) la valorizzazione di costi operativi incentivanti (di natura previsionale) | C50: =+IN_RC_CO_INC!G11*(-1) -> 0
B51: scostamenti già intercettati attraverso la valorizzazione (in sede di determinazione delle entrate tariffarie riferite a precedenti annualità) delle ulteriori componenti di costo di natura previsionale o di anticipazione introdotte dalla regolazione pro tempore vigente, tenuto conto della quantificazione dei pertinenti recuperi nell’ambito delle componenti a conguaglio | C51: =+IN_RC_ANT!O61*(-1)+IN_RC_ANT!O50*(-1) -> 0
B53: Dati economico finanziari:
B55: poste rettificative capitale investito: | C55: 2025
B56: PRa
B57: di cui TFR
B58: di cui fondi rischi e oneri
B59: di cui fondi per il ripristino di beni di terzi
B62: =_xlfn.TEXTJOIN("",TRUE,"Dati da Bilancio d'esercizio: ", IN_Anagrafica!$D$10) -> Dati da Bilancio d'esercizio:
B64: Dati di conto economico:
B65: RICAVI | C65: 2025
B66: A1) Ricavi delle vendite e delle prestazioni relative alle attività afferenti al ciclo integrato dei RU
C68: A1) Ricavi delle vendite e delle prestazioni | D68: A5) Altri ricavi e proventi
B69: ARa | C69: =+SUM(C70:C72) -> 0 | D69: =+SUM(D70:D72) -> 0 | E69: =+SUM(C69:D69) -> 0
B70: di cui per vendita di materiali a mercato | E70: =+SUM(C70:D70) -> 0
B71: di cui per vendita energia da rifiuti urbani | E71: 0
B72: di cui per attività diverse dal SGRU che utilizzano asset e risorse del ciclo integrato rifiuti urbani | E72: 0
B73: ARsc,a | E73: =+SUM(C73:D73) -> 0
B74: Totale | C74: =+C69+C73 -> 0 | D74: =+D69+D73 -> 0 | E74: =+SUM(C74:D74) -> 0
B76: COSTI B6-B7 relativi al ciclo integrato dei RU al netto delle poste rettificative | C76: 2025
B77: B6 - Costi per materie di consumo e merci (al netto di resi, abbuoni e sconti) | C77: =SUM(C84:K84) -> 0
B78: B7 - Costi per servizi | C78: =SUM(C85:K85) -> 0
B80: Si usufruisce della deroga di cui al comma 4.11 det. 1/DTAC/2025?
C82: 2025
B83: =+IF(C80="SI","COSTI al netto delle poste rettificative e al netto dei CANONI/MUTUI pagati ai proprietari","COSTI al netto delle poste rettificative e al netto dei CANONI/MUTUI/LEASING pagati ai proprietari") -> COSTI al netto delle poste rettificative e al netto dei CANONI/MUTUI/LEASING pagati ai proprietari | C83: CRTa | D83: CTSa | E83: CTRa | F83: CRDa | G83: CSLa | H83: CARCa | I83: CGGa | J83: CCDa | K83: COAL,a | L83: Acc costi di gestione post-operativa delle discariche | M83: Acc relativi ai crediti | N83: Acc per rischi e oneri previsti da normativa di settore e/o dal contratto di affidamento | O83: Acc per altri non in eccesso rispetto a norme tributarie
B84: B6 - Costi per materie di consumo e merci (al netto di resi, abbuoni e sconti)
B85: B7 - Costi per servizi | D85: =+IN_CTS_CTR_RC!H35 -> 0 | E85: =+IN_CTS_CTR_RC!H31 -> 0
B86: B8 - Costi per godimento di beni di terzi
B87: B9 - Costi del personale
B88: B11 - Variazioni delle rimanenze di materie prime, sussidiarie, di consumo e merci
B89: B14 - Oneri diversi di gestione
B90: B10d (da c. 16.2 MTR-3)
B91: B12 - Accantonamento per rischi, nella misura massima ammessa dalle leggi e prassi fiscali
B92: B13 - Altri accantonamenti
B93: totale | C93: =SUM(C84:C89) -> 0 | D93: 0 | E93: 0 | F93: 0 | G93: 0 | H93: 0 | I93: 0 | J93: 0 | K93: 0 | L93: =SUM(L90:L92) -> 0 | M93: =SUM(M90:M92) -> 0 | N93: 0 | O93: 0
B96: poste rettificative costi operativi: | C96: 2025
B97: Costi attribuibili alle attività capitalizzate
B98: poste rettificative di cui al comma 1.1 del MTR-3:
B99: accantonamenti, diversi dagli ammortamenti, operati in eccesso rispetto all’applicazione di norme tributarie, fatto salvo quanto disposto dall'articolo 16 del MTR-3 | E99: Canone, Mutuo, Leasing: | F99: 2025
B100: oneri finanziari e le rettifiche di valori di attività finanziarie | E100: Proprietario 1
B101: svalutazioni delle immobilizzazioni | E101: Proprietario 2
B102: oneri straordinari | E102: Proprietario 3
B103: oneri per assicurazioni, qualora non espressamente previste da specifici obblighi normativi | E103: Leasing
B104: oneri per sanzioni, penali e risarcimenti, nonché costi sostenuti per il contenzioso ove l’impresa sia risultata soccombente
B105: costi connessi all’erogazione di liberalità
B106: costi pubblicitari e di marketing, ad esclusione di oneri che derivino da obblighi posti in capo ai concessionari
B107: spese di rappresentanza
B108: Contributi in conto esercizio
B109: costi sostenuti per il conseguimento dei target cui è stata associata (in sede di determinazione delle entrate tariffarie riferite a precedenti annualità) la valorizzazione di costi operativi incentivanti (di natura previsionale) | C109: =+IN_RC_CO_INC!H11*(-1) -> 0
B110: scostamenti già intercettati attraverso la valorizzazione (in sede di determinazione delle entrate tariffarie riferite a precedenti annualità) delle ulteriori componenti di costo di natura previsionale o di anticipazione introdotte dalla regolazione pro tempore vigente, tenuto conto della quantificazione dei pertinenti recuperi nell’ambito delle componenti a conguaglio | C110: =+IN_RC_ANT!P61*(-1)+IN_RC_ANT!P50*(-1) -> 0
B112: Dati economico finanziari:
B114: poste rettificative capitale investito: | C114: 2025
B115: PRa
B116: di cui TFR
B117: di cui fondi rischi e oneri
B118: di cui fondi per il ripristino di beni di terzi
B121: =_xlfn.TEXTJOIN("",TRUE,"Dati da Bilancio d'esercizio: ", IN_Anagrafica!$D$11) -> Dati da Bilancio d'esercizio:
B123: Dati di conto economico:
B124: RICAVI | C124: 2025
B125: A1) Ricavi delle vendite e delle prestazioni relative alle attività afferenti al ciclo integrato dei RU
C127: A1) Ricavi delle vendite e delle prestazioni | D127: A5) Altri ricavi e proventi
B128: ARa | C128: =+SUM(C129:C131) -> 0 | D128: =+SUM(D129:D131) -> 0 | E128: =+SUM(C128:D128) -> 0
B129: di cui per vendita di materiali a mercato | E129: =+SUM(C129:D129) -> 0
B130: di cui per vendita energia da rifiuti urbani | E130: 0
B131: di cui per attività diverse dal SGRU che utilizzano asset e risorse del ciclo integrato rifiuti urbani | E131: 0
B132: ARsc,a | E132: =+SUM(C132:D132) -> 0
B133: Totale | C133: =+C128+C132 -> 0 | D133: =+D128+D132 -> 0 | E133: =+SUM(C133:D133) -> 0
B135: COSTI B6-B7 relativi al ciclo integrato dei RU al netto delle poste rettificative | C135: 2025
B136: B6 - Costi per materie di consumo e merci (al netto di resi, abbuoni e sconti) | C136: =SUM(C143:K143) -> 0
B137: B7 - Costi per servizi | C137: =SUM(C144:K144) -> 0
B139: Si usufruisce della deroga di cui al comma 4.11 det. 1/DTAC/2025?
C141: 2025
B142: =+IF(C139="SI","COSTI al netto delle poste rettificative e al netto dei CANONI/MUTUI pagati ai proprietari","COSTI al netto delle poste rettificative e al netto dei CANONI/MUTUI/LEASING pagati ai proprietari") -> COSTI al netto delle poste rettificative e al netto dei CANONI/MUTUI/LEASING pagati ai proprietari | C142: CRTa | D142: CTSa | E142: CTRa | F142: CRDa | G142: CSLa | H142: CARCa | I142: CGGa | J142: CCDa | K142: COAL,a | L142: Acc costi di gestione post-operativa delle discariche | M142: Acc relativi ai crediti | N142: Acc per rischi e oneri previsti da normativa di settore e/o dal contratto di affidamento | O142: Acc per altri non in eccesso rispetto a norme tributarie
B143: B6 - Costi per materie di consumo e merci (al netto di resi, abbuoni e sconti)
B144: B7 - Costi per servizi | D144: =+IN_CTS_CTR_RC!H35 -> 0 | E144: =+IN_CTS_CTR_RC!H31 -> 0
B145: B8 - Costi per godimento di beni di terzi
B146: B9 - Costi del personale
B147: B11 - Variazioni delle rimanenze di materie prime, sussidiarie, di consumo e merci
B148: B14 - Oneri diversi di gestione
B149: B10d (da c. 16.2 MTR-3)
B150: B12 - Accantonamento per rischi, nella misura massima ammessa dalle leggi e prassi fiscali
B151: B13 - Altri accantonamenti
B152: totale | C152: =SUM(C143:C148) -> 0 | D152: 0 | E152: 0 | F152: 0 | G152: 0 | H152: 0 | I152: 0 | J152: 0 | K152: 0 | L152: =SUM(L149:L151) -> 0 | M152: =SUM(M149:M151) -> 0 | N152: =SUM(N149:N151) -> 0 | O152: =SUM(O149:O151) -> 0
B155: poste rettificative costi operativi: | C155: 2025
B156: Costi attribuibili alle attività capitalizzate
B157: poste rettificative di cui al comma 1.1 del MTR-3:
B158: accantonamenti, diversi dagli ammortamenti, operati in eccesso rispetto all’applicazione di norme tributarie, fatto salvo quanto disposto dall'articolo 16 del MTR-3 | E158: Canone, Mutuo, Leasing: | F158: 2025
B159: oneri finanziari e le rettifiche di valori di attività finanziarie | E159: Proprietario 1
B160: svalutazioni delle immobilizzazioni | E160: Proprietario 2
B161: oneri straordinari | E161: Proprietario 3
B162: oneri per assicurazioni, qualora non espressamente previste da specifici obblighi normativi | E162: Leasing
B163: oneri per sanzioni, penali e risarcimenti, nonché costi sostenuti per il contenzioso ove l’impresa sia risultata soccombente
B164: costi connessi all’erogazione di liberalità
B165: costi pubblicitari e di marketing, ad esclusione di oneri che derivino da obblighi posti in capo ai concessionari
B166: spese di rappresentanza
B167: Contributi in conto esercizio
B168: costi sostenuti per il conseguimento dei target cui è stata associata (in sede di determinazione delle entrate tariffarie riferite a precedenti annualità) la valorizzazione di costi operativi incentivanti (di natura previsionale) | C168: =+IN_RC_CO_INC!I11*(-1) -> 0
B169: scostamenti già intercettati attraverso la valorizzazione (in sede di determinazione delle entrate tariffarie riferite a precedenti annualità) delle ulteriori componenti di costo di natura previsionale o di anticipazione introdotte dalla regolazione pro tempore vigente, tenuto conto della quantificazione dei pertinenti recuperi nell’ambito delle componenti a conguaglio | C169: =IN_RC_ANT!Q61*(-1)+IN_RC_ANT!Q50*(-1) -> 0
B171: Dati economico finanziari:
B173: poste rettificative capitale investito: | C173: 2025
B174: PRa
B175: di cui TFR
B176: di cui fondi rischi e oneri
B177: di cui fondi per il ripristino di beni di terzi

Sheet IN_BIL_Com_24
B1: Dati di input: RICAVI, COSTI e DATI ECONOMICO FINANZIARI DEL COMUNE - ANNO 2024
B3: =_xlfn.TEXTJOIN("",TRUE,"Dati da Bilancio d'esercizio: ", IN_Anagrafica!$D$12) -> Dati da Bilancio d'esercizio:
B5: Dati di conto economico:
B6: RICAVI | C6: 2024
B7: A1) Ricavi delle vendite e delle prestazioni relative alle attività afferenti al ciclo integrato dei RU
C9: A1) Ricavi delle vendite e delle prestazioni | D9: A5) Altri ricavi e proventi
B10: ARa | C10: =+SUM(C11:C13) -> 0 | D10: =+SUM(D11:D13) -> 0 | E10: =+SUM(C10:D10) -> 0
B11: di cui per vendita di materiali a mercato | E11: =+SUM(C11:D11) -> 0
B12: di cui per vendita energia da rifiuti urbani | E12: 0
B13: di cui per attività diverse dal SGRU che utilizzano asset e risorse del ciclo integrato rifiuti urbani | E13: 0
B14: ARsc,a | E14: =+SUM(C14:D14) -> 0
B15: Totale | C15: =+C10+C14 -> 0 | D15: =+D10+D14 -> 0 | E15: =+SUM(C15:D15) -> 0
B17: COSTI B6-B7 relativi al ciclo integrato dei RU al netto delle poste rettificative | C17: 2024
B18: B6 - Costi per materie di consumo e merci (al netto di resi, abbuoni e sconti) | C18: =SUM(C25:K25) -> 0
B19: B7 - Costi per servizi | C19: =SUM(C26:K26) -> 0
B21: Si usufruisce della deroga di cui al comma 4.11 det. 1/DTAC/2025?
C23: 2024
B24: =+IF(C21="SI","COSTI al netto delle poste rettificative e al netto dei CANONI/MUTUI pagati ai proprietari","COSTI al netto delle poste rettificative e al netto dei CANONI/MUTUI/LEASING pagati ai proprietari") -> COSTI al netto delle poste rettificative e al netto dei CANONI/MUTUI/LEASING pagati ai proprietari | C24: CRTa | D24: CTSa | E24: CTRa | F24: CRDa | G24: CSLa | H24: CARCa | I24: CGGa | J24: CCDa | K24: COAL,a | L24: Acc costi di gestione post-operativa delle discariche | M24: Acc relativi ai crediti | N24: Acc per rischi e oneri previsti da normativa di settore e/o dal contratto di affidamento | O24: Acc per altri non in eccesso rispetto a norme tributarie
B25: B6 - Costi per materie di consumo e merci (al netto di resi, abbuoni e sconti)
B26: B7 - Costi per servizi | D26: =+IN_CTS_CTR_RC!F35 -> 0 | E26: =+IN_CTS_CTR_RC!F31 -> 0
B27: B8 - Costi per godimento di beni di terzi
B28: B9 - Costi del personale
B29: B11 - Variazioni delle rimanenze di materie prime, sussidiarie, di consumo e merci
B30: B14 - Oneri diversi di gestione
B31: B10d (da c. 16.2 MTR-3)
B32: B12 - Accantonamento per rischi, nella misura massima ammessa dalle leggi e prassi fiscali
B33: B13 - Altri accantonamenti
B34: totale | C34: =SUM(C25:C30) -> 0 | D34: 0 | E34: 0 | F34: 0 | G34: 0 | H34: 0 | I34: 0 | J34: 0 | K34: 0 | L34: =+SUM(L31:L33) -> 0 | M34: =+SUM(M31:M33) -> 0 | N34: =+SUM(N31:N33) -> 0 | O34: =+SUM(O31:O33) -> 0
B37: poste rettificative costi operativi: | C37: 2024
B38: Costi attribuibili alle attività capitalizzate
B39: poste rettificative di cui al comma 1.1 del MTR-3:
B40: accantonamenti, diversi dagli ammortamenti, operati in eccesso rispetto all’applicazione di norme tributarie, fatto salvo quanto disposto dall'articolo 16 del MTR-3 | E40: Canone, Mutuo, Leasing: | F40: 2024
B41: oneri finanziari e le rettifiche di valori di attività finanziarie | E41: Proprietario 1
B42: svalutazioni delle immobilizzazioni | E42: Proprietario 2
B43: oneri straordinari | E43: Proprietario 3
B44: oneri per assicurazioni, qualora non espressamente previste da specifici obblighi normativi | E44: Leasing
B45: oneri per sanzioni, penali e risarcimenti, nonché costi sostenuti per il contenzioso ove l’impresa sia risultata soccombente
B46: costi connessi all’erogazione di liberalità
B47: costi pubblicitari e di marketing, ad esclusione di oneri che derivino da obblighi posti in capo ai concessionari
B48: spese di rappresentanza
B49: Contributi in conto esercizio
B50: costi sostenuti per il conseguimento dei target cui è stata associata (in sede di determinazione delle entrate tariffarie riferite a precedenti annualità) la valorizzazione di costi operativi incentivanti (di natura previsionale) | C50: =+IN_RC_CO_INC!F11*(-1) -> 0
B51: scostamenti già intercettati attraverso la valorizzazione (in sede di determinazione delle entrate tariffarie riferite a precedenti annualità) delle ulteriori componenti di costo di natura previsionale o di anticipazione introdotte dalla regolazione pro tempore vigente, tenuto conto della quantificazione dei pertinenti recuperi nell’ambito delle componenti a conguaglio | C51: =+IN_RC_ANT!N61*(-1)+IN_RC_ANT!N50*(-1) -> 0
B53: Dati economico finanziari:
B55: poste rettificative capitale investito: | C55: 2024
B56: PRa
B57: di cui TFR
B58: di cui fondi rischi e oneri
B59: di cui fondi per il ripristino di beni di terzi

Sheet IN_BIL_Com_25
B1: Dati di input: RICAVI, COSTI e DATI ECONOMICO FINANZIARI DEL COMUNE - ANNO 2025
B3: =_xlfn.TEXTJOIN("",TRUE,"Dati da Bilancio d'esercizio: ", IN_Anagrafica!$D$12) -> Dati da Bilancio d'esercizio:
B5: Dati di conto economico:
B6: RICAVI | C6: 2025
B7: A1) Ricavi delle vendite e delle prestazioni relative alle attività afferenti al ciclo integrato dei RU
C9: A1) Ricavi delle vendite e delle prestazioni | D9: A5) Altri ricavi e proventi
B10: ARa | C10: =+SUM(C11:C13) -> 0 | D10: =+SUM(D11:D13) -> 0 | E10: =+SUM(C10:D10) -> 0
B11: di cui per vendita di materiali a mercato | E11: =+SUM(C11:D11) -> 0
B12: di cui per vendita energia da rifiuti urbani | E12: 0
B13: di cui per attività diverse dal SGRU che utilizzano asset e risorse del ciclo integrato rifiuti urbani | E13: 0
B14: ARsc,a | E14: =+SUM(C14:D14) -> 0
B15: Totale | C15: =+C10+C14 -> 0 | D15: =+D10+D14 -> 0 | E15: =+SUM(C15:D15) -> 0
B17: COSTI B6-B7 relativi al ciclo integrato dei RU al netto delle poste rettificative | C17: 2025
B18: B6 - Costi per materie di consumo e merci (al netto di resi, abbuoni e sconti) | C18: =SUM(C25:K25) -> 0
B19: B7 - Costi per servizi | C19: =SUM(C26:K26) -> 0
B21: Si usufruisce della deroga di cui al comma 4.11 det. 1/DTAC/2025?
C23: 2025
B24: =+IF(C21="SI","COSTI al netto delle poste rettificative e al netto dei CANONI/MUTUI pagati ai proprietari","COSTI al netto delle poste rettificative e al netto dei CANONI/MUTUI/LEASING pagati ai proprietari") -> COSTI al netto delle poste rettificative e al netto dei CANONI/MUTUI/LEASING pagati ai proprietari | C24: CRTa | D24: CTSa | E24: CTRa | F24: CRDa | G24: CSLa | H24: CARCa | I24: CGGa | J24: CCDa | K24: COAL,a | L24: Acc costi di gestione post-operativa delle discariche | M24: Acc relativi ai crediti | N24: Acc per rischi e oneri previsti da normativa di settore e/o dal contratto di affidamento | O24: Acc per altri non in eccesso rispetto a norme tributarie
B25: B6 - Costi per materie di consumo e merci (al netto di resi, abbuoni e sconti)
B26: B7 - Costi per servizi | D26: =+IN_CTS_CTR_RC!J35 -> 0 | E26: =+IN_CTS_CTR_RC!J31 -> 0
B27: B8 - Costi per godimento di beni di terzi
B28: B9 - Costi del personale
B29: B11 - Variazioni delle rimanenze di materie prime, sussidiarie, di consumo e merci
B30: B14 - Oneri diversi di gestione
B31: B10d (da c. 16.2 MTR-3)
B32: B12 - Accantonamento per rischi, nella misura massima ammessa dalle leggi e prassi fiscali
B33: B13 - Altri accantonamenti
B34: totale | C34: =SUM(C25:C30) -> 0 | D34: 0 | E34: 0 | F34: 0 | G34: 0 | H34: 0 | I34: 0 | J34: 0 | K34: 0 | L34: =+SUM(L31:L33) -> 0 | M34: =+SUM(M31:M33) -> 0 | N34: =+SUM(N31:N33) -> 0 | O34: =+SUM(O31:O33) -> 0
B37: poste rettificative costi operativi: | C37: 2025
B38: Costi attribuibili alle attività capitalizzate
B39: poste rettificative di cui al comma 1.1 del MTR-3:
B40: accantonamenti, diversi dagli ammortamenti, operati in eccesso rispetto all’applicazione di norme tributarie, fatto salvo quanto disposto dall'articolo 16 del MTR-3 | E40: Canone, Mutuo, Leasing: | F40: 2025
B41: oneri finanziari e le rettifiche di valori di attività finanziarie | E41: Proprietario 1
B42: svalutazioni delle immobilizzazioni | E42: Proprietario 2
B43: oneri straordinari | E43: Proprietario 3
B44: oneri per assicurazioni, qualora non espressamente previste da specifici obblighi normativi | E44: Leasing
B45: oneri per sanzioni, penali e risarcimenti, nonché costi sostenuti per il contenzioso ove l’impresa sia risultata soccombente
B46: costi connessi all’erogazione di liberalità
B47: costi pubblicitari e di marketing, ad esclusione di oneri che derivino da obblighi posti in capo ai concessionari
B48: spese di rappresentanza
B49: Contributi in conto esercizio
B50: costi sostenuti per il conseguimento dei target cui è stata associata (in sede di determinazione delle entrate tariffarie riferite a precedenti annualità) la valorizzazione di costi operativi incentivanti (di natura previsionale) | C50: =IN_RC_CO_INC!J11*(-1) -> 0
B51: scostamenti già intercettati attraverso la valorizzazione (in sede di determinazione delle entrate tariffarie riferite a precedenti annualità) delle ulteriori componenti di costo di natura previsionale o di anticipazione introdotte dalla regolazione pro tempore vigente, tenuto conto della quantificazione dei pertinenti recuperi nell’ambito delle componenti a conguaglio | C51: =IN_RC_ANT!R61*(-1)+IN_RC_ANT!R50*(-1) -> 0
B53: Dati economico finanziari:
B55: poste rettificative capitale investito: | C55: 2025
B56: PRa
B57: di cui TFR
B58: di cui fondi rischi e oneri
B59: di cui fondi per il ripristino di beni di terzi

Sheet IN_CTS_CTR_RC
B1: Dati di input - Conguagli CTSmin e CTRmin 2024 e 2025 (art.. 27.7 MTR-3) - Dettaglio CTS e CTR B7 di conto economico per annualità 2024 e 2025
B3: CONGUAGLIO CTSmin e CTRmin di cui all'art. 27.7 MTR-3
C5: 2024 | D5: =+C5 -> 2024 | E5: =+D5 -> 2024 | F5: =+E5 -> 2024 | G5: 2025 | H5: =+G5 -> 2025 | I5: =+H5 -> 2025 | J5: =+I5 -> 2025 | K5: 2024 | L5: =+K5 -> 2024 | M5: =+L5 -> 2024 | N5: =+M5 -> 2024 | O5: 2025 | P5: =+O5 -> 2025 | Q5: =+P5 -> 2025 | R5: =+Q5 -> 2025
C6: 2024 | G6: 2025 | K6: 2026 | O6: 2027
B7: Conguagli CTR (Cfr. 27.7) | C7: =+IN_Anagrafica!$D$9 -> 0 | D7: =+IN_Anagrafica!$D$10 -> 0 | E7: =+IN_Anagrafica!$D$11 -> 0 | F7: =+IN_Anagrafica!$D$12 -> 0 | G7: =+C7 -> 0 | H7: =+D7 -> 0 | I7: =+E7 -> 0 | J7: =+F7 -> 0 | K7: =+IN_Anagrafica!$D$9 -> 0 | L7: =+IN_Anagrafica!$D$10 -> 0 | M7: =+IN_Anagrafica!$D$11 -> 0 | N7: =+IN_Anagrafica!$D$12 -> 0 | O7: =+IN_Anagrafica!$D$9 -> 0 | P7: =+IN_Anagrafica!$D$10 -> 0 | Q7: =+IN_Anagrafica!$D$11 -> 0 | R7: =+IN_Anagrafica!$D$12 -> 0
A8: CTRmin | B8: CTRmin,riconosciuto | C8: =+SUMIFS($H$41:$H$218,$D$41:$D$218,$A8,$B$41:$B$218,C$7,$C$41:$C$218,C$5) -> 0 | D8: 0 | E8: 0 | F8: 0 | G8: 0 | H8: 0 | I8: 0 | J8: 0
B9: CTRmin
B10: (CTRmin,riconosciuto-CTRmin)/CTRmin | C10: =+IFERROR((C8-C9)/C9,0) -> 0% | D10: =+IFERROR((D8-D9)/D9,0) -> 0% | E10: 0% | F10: 0% | G10: 0% | H10: 0% | I10: 0% | J10: 0%
B11: RCCTR | K11: =+IF(ABS(C10)>0.03,C8-C9,0) -> 0 | L11: =+IF(ABS(D10)>0.03,D8-D9,0) -> 0 | M11: 0 | N11: 0 | O11: 0 | P11: 0 | Q11: 0 | R11: 0
C13: 2024 | G13: 2025 | K13: 2026 | O13: 2027
B14: Conguagli CTS (Cfr. 27.7) | C14: =+C7 -> 0 | D14: 0 | E14: 0 | F14: 0 | G14: 0 | H14: 0 | I14: 0 | J14: 0 | K14: =+IN_Anagrafica!$D$9 -> 0 | L14: =+IN_Anagrafica!$D$10 -> 0 | M14: =+IN_Anagrafica!$D$11 -> 0 | N14: =+IN_Anagrafica!$D$12 -> 0 | O14: =+IN_Anagrafica!$D$9 -> 0 | P14: =+IN_Anagrafica!$D$10 -> 0 | Q14: =+IN_Anagrafica!$D$11 -> 0 | R14: =+IN_Anagrafica!$D$12 -> 0
A15: CTSmin | B15: CTSmin,riconosciuto | C15: =+SUMIFS($H$41:$H$218,$D$41:$D$218,$A15,$B$41:$B$218,C$7,$C$41:$C$218,C$5) -> 0 | D15: 0 | E15: 0 | F15: 0 | G15: 0 | H15: 0 | I15: 0 | J15: 0
B16: CTSmin
B17: (CTSmin,riconosciuto-CTSmin)/CTSmin | C17: =+IFERROR((C15-C16)/C16,0) -> 0% | D17: =+IFERROR((D15-D16)/D16,0) -> 0% | E17: =+IFERROR((E15-E16)/E16,0) -> 0% | F17: =+IFERROR((F15-F16)/F16,0) -> 0% | G17: =+IFERROR((G15-G16)/G16,0) -> 0% | H17: =+IFERROR((H15-H16)/H16,0) -> 0% | I17: =+IFERROR((I15-I16)/I16,0) -> 0% | J17: =+IFERROR((J15-J16)/J16,0) -> 0%
B18: RCCTS | K18: =+IF(ABS(C17)>0.03,C15-C16,0) -> 0 | L18: =+IF(ABS(D17)>0.03,D15-D16,0) -> 0 | M18: 0 | N18: 0 | O18: 0 | P18: 0 | Q18: 0 | R18: 0
K20: 2026 | O20: 2027
K21: =+IN_Anagrafica!$D$9 -> 0 | L21: =+IN_Anagrafica!$D$10 -> 0 | M21: =+IN_Anagrafica!$D$11 -> 0 | N21: =+IN_Anagrafica!$D$12 -> 0 | O21: =+IN_Anagrafica!$D$9 -> 0 | P21: =+IN_Anagrafica!$D$10 -> 0 | Q21: =+IN_Anagrafica!$D$11 -> 0 | R21: =+IN_Anagrafica!$D$12 -> 0
B22: Totale RCCTR,CTS | K22: =+K11+K18 -> 0 | L22: =+L11+L18 -> 0 | M22: 0 | N22: 0 | O22: =+O11+O18 -> 0 | P22: 0 | Q22: 0 | R22: 0
B24: Dettaglio composizione CTS e CTR (Voce B7 CE)
C26: 2024 | G26: 2025
A27: Voce di bilancio | B27: Dettaglio Costi CTS e CTR 2024 - 2025 | C27: =+IN_Anagrafica!$D$9 -> 0 | D27: =+IN_Anagrafica!$D$10 -> 0 | E27: =+IN_Anagrafica!$D$11 -> 0 | F27: =+IN_Anagrafica!$D$12 -> 0 | G27: =+C27 -> 0 | H27: =+D27 -> 0 | I27: =+E27 -> 0 | J27: =+F27 -> 0
A28: B7 | B28: CTRmin | C28: =+SUMIFS($H$41:$H$218,$D$41:$D$218,$B28,$B$41:$B$218,C$27,$C$41:$C$218,C$5) -> 0 | D28: =+SUMIFS($H$41:$H$218,$D$41:$D$218,$B28,$B$41:$B$218,D$27,$C$41:$C$218,D$5) -> 0 | E28: 0 | F28: 0 | G28: 0 | H28: 0 | I28: 0 | J28: 0
A29: B7 | B29: CTRaltro | C29: =+SUMIFS($H$41:$H$218,$D$41:$D$218,$B29,$B$41:$B$218,C$27,$C$41:$C$218,C$5) -> 0 | D29: 0 | E29: 0 | F29: 0 | G29: 0 | H29: 0 | I29: 0 | J29: 0
A30: B7 | B30: Altri costi B7 - CTR
A31: B7 | B31: Totale CTR - (B7) | C31: =+SUM(C28:C30) -> 0 | D31: =+SUM(D28:D30) -> 0 | E31: 0 | F31: 0 | G31: 0 | H31: 0 | I31: 0 | J31: 0
A32: B7 | B32: CTSmin | C32: =+SUMIFS($H$41:$H$218,$D$41:$D$218,$B32,$B$41:$B$218,C$27,$C$41:$C$218,C$5) -> 0 | D32: =+SUMIFS($H$41:$H$218,$D$41:$D$218,$B32,$B$41:$B$218,D$27,$C$41:$C$218,D$5) -> 0 | E32: 0 | F32: 0 | G32: 0 | H32: 0 | I32: 0 | J32: 0
A33: B7 | B33: CTSaltro | C33: =+SUMIFS($H$41:$H$218,$D$41:$D$218,$B33,$B$41:$B$218,C$27,$C$41:$C$218,C$5) -> 0 | D33: 0 | E33: 0 | F33: 0 | G33: 0 | H33: 0 | I33: 0 | J33: 0
A34: B7 | B34: Altri costi B7 - CTS
A35: B7 | B35: Totale CTS - (B7) | C35: =+SUM(C32:C34) -> 0 | D35: =+SUM(D32:D34) -> 0 | E35: =+SUM(E32:E34) -> 0 | F35: =+SUM(F32:F34) -> 0 | G35: =+SUM(G32:G34) -> 0 | H35: =+SUM(H32:H34) -> 0 | I35: =+SUM(I32:I34) -> 0 | J35: =+SUM(J32:J34) -> 0
B37: TABELLA Dettaglio flussi verso impianti minimi o aggiuntivi e relativi corrispettivi unitari
B40: Gestore che sostiene i costi di trattamento /recupero e costi di trattamento/ smaltimento | C40: Anno [2024-2025] | D40: Tipologia di Costo (scegliere da menu a tendina) | E40: Tipologia di rifiuto (scegliere da Menu a tendina) | F40: Quantitativi conferiti all'impianto (tonnellate) | G40: Corrispettivo unitario (€/t netto IVA) Cfr. art. 27.7 MTR-3 | H40: Totale Costi | I40: Tipologia impianto di destinazione (scegliere da menu a tendina) | J40: Gestore Impianto | K40: Partita IVA Gestore Impianto | L40: Comune sede Impianto | M40: Codice ISTAT Comune - sede impianto | N40: In caso di invio a impianto intermedio, indicare impianto di destinazione finale dei flussi in uscita | O40: Comune sede dell'impianto destinazione finale dei flussi in uscita da impianti intermedi | P40: NOTE
H41: =+F41*G41 -> 0
H42: =+F42*G42 -> 0
H43: 0
H44: 0
H45: 0
H46: 0
H47: 0
H48: 0
H49: 0
H50: 0
H51: 0
H52: 0
H53: 0
H54: 0
H55: 0
H56: 0
H57: 0
H58: 0
H59: 0
H60: 0
H61: 0
H62: 0
H63: 0
H64: 0
H65: 0
H66: 0
H67: 0
H68: 0
H69: 0
H70: 0
H71: 0
H72: 0
H73: 0
H74: 0
H75: 0
H76: 0
H77: 0
H78: 0
H79: 0
H80: 0
H81: 0
H82: 0
H83: 0
H84: 0
H85: 0
H86: 0
H87: 0
H88: 0
H89: 0
H90: 0
H91: 0
H92: 0
H93: 0
H94: 0
H95: 0
H96: 0
H97: 0
H98: 0
H99: 0
H100: 0
H101: 0
H102: 0
H103: 0
H104: 0
H105: 0
H106: =+F106*G106 -> 0
H107: 0
H108: 0
H109: 0
H110: 0
H111: 0
H112: 0
H113: 0
H114: 0
H115: 0
H116: 0
H117: 0
H118: 0
H119: 0
H120: 0
H121: 0
H122: 0
H123: 0
H124: 0
H125: 0
H126: 0
H127: 0
H128: 0
H129: 0
H130: 0
H131: 0
H132: 0
H133: 0
H134: 0
H135: 0
H136: 0
H137: 0
H138: 0
H139: 0
H140: 0
H141: 0
H142: 0
H143: 0
H144: 0
H145: 0
H146: 0
H147: 0
H148: 0
H149: 0
H150: 0
H151: 0
H152: 0
H153: 0
H154: 0
H155: 0
H156: 0
H157: 0
H158: 0
H159: 0
H160: 0
H161: 0
H162: 0
H163: 0
H164: 0
H165: 0
H166: 0
H167: 0
H168: 0
H169: 0
H170: =+F170*G170 -> 0
H171: 0
H172: 0
H173: 0
H174: 0
H175: 0
H176: 0
H177: 0
H178: 0
H179: 0
H180: 0
H181: 0
H182: 0
H183: 0
H184: 0
H185: 0
H186: 0
H187: 0
H188: 0
H189: 0
H190: 0
H191: 0
H192: 0
H193: 0
H194: 0
H195: 0
H196: 0
H197: 0
H198: 0
H199: 0
H200: 0
H201: 0
H202: 0
H203: 0
H204: 0
H205: 0
H206: 0
H207: 0
H208: 0
H209: 0
... 16 more rows

Sheet IN_RC_ANT
B1: Dati di input - Controllo Costi Previsionali ANTICIPAZIONI 2024-2025
B3: Controllo costi previsionali 2024-2025
B4: Costi previsionali valorizzati nelle annualità 2024-2025
B6: Valori previsionali inseriti nel PEF | C6: 2024 | G6: 2025
B7: Costi previsionali parte variabile | C7: =+IN_Anagrafica!$D$9 -> 0 | D7: =+IN_Anagrafica!$D$10 -> 0 | E7: =+IN_Anagrafica!$D$11 -> 0 | F7: =+IN_Anagrafica!$D$12 -> 0 | G7: =+C7 -> 0 | H7: =+D7 -> 0 | I7: =+E7 -> 0 | J7: =+F7 -> 0
B8: CTS∆,expTV,a
B9: COexp,116,TV,a
B10: CQexpTV,a
B11: COANTTV,a
B14: Valori previsionali inseriti nel PEF | C14: 2024 | G14: 2025
B15: Costi previsionali parte fissa | C15: =+C$7 -> 0 | D15: 0 | E15: 0 | F15: 0 | G15: 0 | H15: 0 | I15: 0 | J15: 0
B16: COexp,116,TF,a
B17: CQexpTF,a
B18: COANTTF,a
B21: Costi effettivamente sostenuti nelle annualità 2024-2025
B23: Valori da bilancio di esercizio | C23: 2024 | G23: 2025
B24: Valori effettivamente sostenuti parte variabile | C24: =+C$7 -> 0 | D24: 0 | E24: 0 | F24: 0 | G24: 0 | H24: 0 | I24: 0 | J24: 0
B25: CTS∆TV,a
B26: CO116,TV,a
B27: CQTV,a
B28: COANTTV,a
B31: Valori da bilancio di esercizio | C31: 2024 | G31: 2025
B32: Valori effettivamente sostenuti parte fissa | C32: =+C$7 -> 0 | D32: 0 | E32: 0 | F32: 0 | G32: 0 | H32: 0 | I32: 0 | J32: 0
B33: CO116,TF,a
B34: CQTF,a
B37: Determinazione Poste Rettificative e componenti a conguaglio legate ai CTS∆ - Compilabili in fase di aggiornamento biennale
B44: Determinazione Poste Rettificative e componenti a conguaglio legate ai CO116
K46: 2026 | O46: 2027
B47: Calcolo Poste Rettificative e Componente a conguaglio CO116 | K47: =+IN_Anagrafica!$D$9 -> 0 | L47: =+IN_Anagrafica!$D$10 -> 0 | M47: =+IN_Anagrafica!$D$11 -> 0 | N47: =+IN_Anagrafica!$D$12 -> 0 | O47: =+IN_Anagrafica!$D$9 -> 0 | P47: =+IN_Anagrafica!$D$10 -> 0 | Q47: =+IN_Anagrafica!$D$11 -> 0 | R47: =+IN_Anagrafica!$D$12 -> 0
B48: Posta rettificativa legata ai CO116 TV (art. 8.3 MTR-3) | K48: =+C26*(-1) -> 0 | L48: 0 | M48: 0 | N48: 0 | O48: 0 | P48: 0 | Q48: 0 | R48: 0
B49: Posta rettificativa legata ai CO116 TF (art. 8.3 MTR-3) | K49: =+C33*(-1) -> 0 | L49: 0 | M49: 0 | N49: 0 | O49: 0 | P49: 0 | Q49: 0 | R49: 0
B50: Totale Poste Rettificative CO116 | K50: =+SUM(K48:K49) -> 0 | L50: 0 | M50: 0 | N50: 0 | O50: 0 | P50: 0 | Q50: 0 | R50: 0
B51: Componente a conguaglio - quota variabile | K51: =+(C9-C26)*(-1) -> 0 | L51: =(D9-D26)*(-1) -> 0 | M51: 0 | N51: 0 | O51: 0 | P51: 0 | Q51: 0 | R51: 0
B52: Componente a conguaglio - quota fissa | K52: =(C16-C33)*(-1) -> 0 | L52: =(D16-D33)*(-1) -> 0 | M52: =(E16-E33)*(-1) -> 0 | N52: =(F16-F33)*(-1) -> 0 | O52: =+(G16-G33)*(-1) -> 0 | P52: =(H16-H33)*(-1) -> 0 | Q52: =(I16-I33)*(-1) -> 0 | R52: =(J16-J33)*(-1) -> 0
B53: Totale Componente a conguaglio | K53: =+SUM(K51:K52) -> 0 | L53: 0 | M53: 0 | N53: 0 | O53: 0 | P53: 0 | Q53: 0 | R53: 0
B55: Determinazione Poste Rettificative e componenti a conguaglio legate ai CQ
K57: 2026 | O57: 2027
B58: Calcolo Poste Rettificative e Componente a conguaglio CQ a favore utenza | K58: =+IN_Anagrafica!$D$9 -> 0 | L58: =+IN_Anagrafica!$D$10 -> 0 | M58: =+IN_Anagrafica!$D$11 -> 0 | N58: =+IN_Anagrafica!$D$12 -> 0 | O58: =+IN_Anagrafica!$D$9 -> 0 | P58: =+IN_Anagrafica!$D$10 -> 0 | Q58: =+IN_Anagrafica!$D$11 -> 0 | R58: =+IN_Anagrafica!$D$12 -> 0
B59: Posta rettificativa legata ai CQ TV (art. 8.3 MTR-3) | K59: =+C27*(-1) -> 0 | L59: 0 | M59: 0 | N59: 0 | O59: 0 | P59: 0 | Q59: 0 | R59: 0
B60: Posta rettificativa legata ai CQ TF (art. 8.3 MTR-3) | K60: =+C34*(-1) -> 0 | L60: 0 | M60: 0 | N60: 0 | O60: 0 | P60: 0 | Q60: 0 | R60: 0
B61: Totale Poste Rettificative CQ | K61: =+SUM(K59:K60) -> 0 | L61: 0 | M61: 0 | N61: 0 | O61: 0 | P61: 0 | Q61: 0 | R61: 0
B62: Componente a conguaglio a favore Utenza - quota variabile | K62: =+IF((C10-C27)>0,(C10-C27)*(-1),0) -> 0 | L62: 0 | M62: 0 | N62: 0 | O62: 0 | P62: 0 | Q62: 0 | R62: 0
B63: Componente a conguaglio a favore Utenza - quota fissa | K63: =+IF((C17-C34)>0,(C17-C34)*(-1),0) -> 0 | L63: 0 | M63: 0 | N63: 0 | O63: 0 | P63: 0 | Q63: 0 | R63: 0
B64: Totale Componente a conguaglio | K64: =+SUM(K62:K63) -> 0 | L64: 0 | M64: 0 | N64: 0 | O64: 0 | P64: 0 | Q64: 0 | R64: 0
B66: Determinazione Poste Rettificative legate ai COANT - Compilabili in fase di aggiornamento biennale
B75: Poste rettificative da considerare nel calcolo dell'indicatore H
B77: I dati di input relativi alle singole componenti tariffarie inserite nei vari fogli IN_BIL sono già al netto delle poste rettificative di cui all'art. 8.3 MTR-3; pertanto, ai fini del calcolo dell'indicatore H di partenza, laddove siano stati valorizzati costi previsionali perl'annualità 2024, è necessario indicare la percentuale di costi attribuibili alla componente CRDsc_si che è stata scomputata come posta rettificativa. Tale valore verrà automaticamente sommato nelle celle C41 e C49 del foglio IN_calcolo H | K77: 2026
K78: =+IN_Anagrafica!$D$9 -> 0 | L78: =+IN_Anagrafica!$D$10 -> 0 | M78: =+IN_Anagrafica!$D$11 -> 0 | N78: =+IN_Anagrafica!$D$12 -> 0
B79: quota parte delle poste rettificative relative ai CO116 attribuibile a CRDsc_si (esprimere una percentuale)
B80: quota parte delle poste rettificative relative ai CQ attribuibile a CRDsc_si (esprimere una percentuale)
K83: 2026
B84: Poste rettificative relative attribuibili al CRDsc_si | K84: =+IN_Anagrafica!$D$9 -> 0 | L84: =+IN_Anagrafica!$D$10 -> 0 | M84: =+IN_Anagrafica!$D$11 -> 0 | N84: =+IN_Anagrafica!$D$12 -> 0
B85: Poste rettificative relative ai CO116 attribuibili al CRDsc_si | K85: =+K50*K79*(-1) -> 0 | L85: =+L50*L79*(-1) -> 0 | M85: =+M50*M79*(-1) -> 0 | N85: =+N50*N79*(-1) -> 0
B86: Poste rettificative relative ai CQ attribuibili al CRDsc_si | K86: =+K61*K80*(-1) -> 0 | L86: 0 | M86: 0 | N86: 0
B88: Totale poste rettificative ANT attribuibili al CRDsc_si | K88: =+K86+K85 -> 0 | L88: =+L86+L85 -> 0 | M88: =+M86+M85 -> 0 | N88: =+N86+N85 -> 0

Sheet IN_RC_CO_INC
B1: Dati di input - Controllo Costi Previsionali Incentivanti valorizzati nell'aggiornamento delle predisposizioni tariffarie 2024-2025
B4: Sintesi Poste Rettificative e Conguagli relativi ai COI per gestore ai fini della determinazione del PEF 2026-2029
C6: 2024 | D6: 2024 | E6: 2024 | F6: 2024 | G6: 2025 | H6: 2025 | I6: 2025 | J6: 2025
C7: 2026 | G7: 2027 | L7: Nota: La compilazione avviene in modo automatico, una volta compilata la Tabella presente alla riga 35
B8: Calcolo Poste Rettificative e Componente a conguaglio COI a favore utenza | C8: =+IN_Anagrafica!$D$9 -> 0 | D8: =+IN_Anagrafica!$D$10 -> 0 | E8: =+IN_Anagrafica!$D$11 -> 0 | F8: =+IN_Anagrafica!$D$12 -> 0 | G8: =+IN_Anagrafica!$D$9 -> 0 | H8: =+IN_Anagrafica!$D$10 -> 0 | I8: =+IN_Anagrafica!$D$11 -> 0 | J8: =+IN_Anagrafica!$D$12 -> 0
B9: Posta rettificativa legata ai COITV (art. 8.3 MTR-3) | C9: =+SUMIFS($L$37:$L$97,$B$37:$B$97,C$8,$C$37:$C$97,C$6) -> 0 | D9: 0 | E9: 0 | F9: 0 | G9: 0 | H9: 0 | I9: 0 | J9: 0
B10: Posta rettificativa legata ai COI TF (art. 8.3 MTR-3) | C10: =+SUMIFS($M$37:$M$97,$B$37:$B$97,C$8,$C$37:$C$97,C$6) -> 0 | D10: 0 | E10: 0 | F10: 0 | G10: 0 | H10: 0 | I10: 0 | J10: 0
B11: Totale Poste Rettificative COI | C11: =+SUM(C9:C10) -> 0 | D11: 0 | E11: 0 | F11: 0 | G11: 0 | H11: 0 | I11: 0 | J11: 0
B12: Componente a conguaglio a favore Utenza - quota variabile | C12: =+SUMIFS($O$37:$O$97,$B$37:$B$97,C$8,$C$37:$C$97,C$6) -> 0 | D12: 0 | E12: 0 | F12: 0 | G12: 0 | H12: 0 | I12: 0 | J12: 0
B13: Componente a conguaglio a favore Utenza - quota fissa | C13: =+SUMIFS($P$37:$P$97,$B$37:$B$97,C$8,$C$37:$C$97,C$6) -> 0 | D13: 0 | E13: 0 | F13: 0 | G13: 0 | H13: 0 | I13: 0 | J13: 0
B14: Totale Componente a conguaglio | C14: =+SUM(C12:C13) -> 0 | D14: 0 | E14: 0 | F14: 0 | G14: 0 | H14: 0 | I14: 0 | J14: 0
B18: Poste rettificative connesse ai COI da considerare nel calcolo dell'indicatore H
B20: I dati di input relativi alle singole componenti tariffarie inserite nei vari fogli IN_BIL sono già al netto delle poste rettificative di cui all'art. 8.3 del MTR-3; pertanto, ai fini del calcolo dell'indicatore H di partenza, laddove siano stati valorizzati costi previsionali per le annualità 2024, è necessario indicare la percentuale di costi attribuibili alla componente CRDsc_si che è stata scomputata come posta rettificativa. Tale valore verrà automaticamente sommato nelle celle C41 e C49 del foglio IN_calcolo H
C22: 2026
C23: =+IN_Anagrafica!$D$9 -> 0 | D23: =+IN_Anagrafica!$D$10 -> 0 | E23: =+IN_Anagrafica!$D$11 -> 0 | F23: =+IN_Anagrafica!$D$12 -> 0
B24: quota parte delle poste rettificative relative ai COI attribuibile a CRDsc_si (esprimere una percentuale)
C26: 2026
B27: Poste rettificative relative attribuibili al CRDsc_si | C27: =+IN_Anagrafica!$D$9 -> 0 | D27: =+IN_Anagrafica!$D$10 -> 0 | E27: =+IN_Anagrafica!$D$11 -> 0 | F27: =+IN_Anagrafica!$D$12 -> 0
B28: Totale poste rettificative legate ai Costi incentivanti attribuibili al CRDsc_si | C28: =+IN_RC_CO_INC!C24*IN_RC_CO_INC!C11*(-1) -> 0 | D28: =+IN_RC_CO_INC!D24*IN_RC_CO_INC!D11*(-1) -> 0 | E28: =+IN_RC_CO_INC!E24*IN_RC_CO_INC!E11*(-1) -> 0 | F28: =+IN_RC_CO_INC!F24*IN_RC_CO_INC!F11*(-1) -> 0
B32: Compilare la seguente tabella per COI valorizzati nelle annualità 2024 e 2025
D35: Valori previsionali inseriti nei PEF 2024-2025 agg | F35: Valori da bilancio di esercizio 2024-2025 - Costi effettivamente sostenuti | H35: Verifica del raggiungimento degli obiettivi | J35: In caso di obiettivo non raggiunto, indicare la distanza tra obiettivo fissato e obiettivo raggiunto (in % <100%) | L35: Calcolo Poste Rettificative (art. 8.3 MTR-3) da apportare ai costi riconosciuti 2024-2025 per il calcolo delle entrate tariffarie 2026-2029 | O35: Calcolo Conguagli (artt. 19 e 20 MTR-3)
B36: Gestore che ha valorizzato i COI nelle annualità 2024-2025 | C36: Anno PEF [2024-2025] | D36: COIexpTV,a | E36: COIexpTF,a | F36: COITV,a | G36: COITF,a | H36: obiettivo legato ai COITV raggiunto? (SI/NO) | I36: obiettivo legato ai COITF raggiunto? (SI/NO) | J36: Distanza obiettivo fissato e obiettivo raggiunto (in % <100% | K36: Distanza obiettivo fissato e obiettivo raggiunto (in % <100% | L36: Posta rettificativa legata ai COITV | M36: Posta rettificativa legata ai COITF | N36: Totale Poste Rettificative COI | O36: Componente a conguaglio a favore Utenza - quota variabile | P36: Componente a conguaglio a favore Utenza - quota fissa | Q36: Totale Conguaglio COI
L37: =+F37*(-1) -> 0 | M37: =+G37*(-1) -> 0 | N37: =+L37+M37 -> 0 | O37: =+IF(AND(H37="NO",D37>F37),(D37-F37)*J37*(-1),0) -> 0 | P37: =+IF(AND(I37="NO",E37>G37),(E37-G37)*K37*(-1),0) -> 0 | Q37: =+O37+P37 -> 0
L38: =+F38*(-1) -> 0 | M38: =+G38*(-1) -> 0 | N38: =+L38+M38 -> 0 | O38: =+IF(AND(H38="NO",D38>F38),(D38-F38)*J38*(-1),0) -> 0 | P38: =+IF(AND(I38="NO",E38>G38),(E38-G38)*K38*(-1),0) -> 0 | Q38: =+O38+P38 -> 0
L39: 0 | M39: 0 | N39: 0 | O39: 0 | P39: 0 | Q39: 0
L40: 0 | M40: 0 | N40: 0 | O40: 0 | P40: 0 | Q40: 0
L41: 0 | M41: 0 | N41: 0 | O41: 0 | P41: 0 | Q41: 0
L42: 0 | M42: 0 | N42: 0 | O42: 0 | P42: 0 | Q42: 0
L43: 0 | M43: 0 | N43: 0 | O43: 0 | P43: 0 | Q43: 0
L44: 0 | M44: 0 | N44: 0 | O44: 0 | P44: 0 | Q44: 0
L45: 0 | M45: 0 | N45: 0 | O45: 0 | P45: 0 | Q45: 0
L46: 0 | M46: 0 | N46: 0 | O46: 0 | P46: 0 | Q46: 0
L47: 0 | M47: 0 | N47: 0 | O47: 0 | P47: 0 | Q47: 0
L48: 0 | M48: 0 | N48: 0 | O48: 0 | P48: 0 | Q48: 0
L49: 0 | M49: 0 | N49: 0 | O49: 0 | P49: 0 | Q49: 0
L50: =+F50*(-1) -> 0 | M50: =+G50*(-1) -> 0 | N50: =+L50+M50 -> 0 | O50: =+IF(AND(H50="NO",D50>F50),(D50-F50)*J50*(-1),0) -> 0 | P50: =+IF(AND(I50="NO",E50>G50),(E50-G50)*K50*(-1),0) -> 0 | Q50: =+O50+P50 -> 0
L51: 0 | M51: 0 | N51: 0 | O51: 0 | P51: 0 | Q51: 0
L52: 0 | M52: 0 | N52: 0 | O52: 0 | P52: 0 | Q52: 0
L53: 0 | M53: 0 | N53: 0 | O53: 0 | P53: 0 | Q53: 0
L54: 0 | M54: 0 | N54: 0 | O54: 0 | P54: 0 | Q54: 0
L55: 0 | M55: 0 | N55: 0 | O55: 0 | P55: 0 | Q55: 0
L56: 0 | M56: 0 | N56: 0 | O56: 0 | P56: 0 | Q56: 0
L57: 0 | M57: 0 | N57: 0 | O57: 0 | P57: 0 | Q57: 0
L58: 0 | M58: 0 | N58: 0 | O58: 0 | P58: 0 | Q58: 0
L59: 0 | M59: 0 | N59: 0 | O59: 0 | P59: 0 | Q59: 0
L60: 0 | M60: 0 | N60: 0 | O60: 0 | P60: 0 | Q60: 0
L61: 0 | M61: 0 | N61: 0 | O61: 0 | P61: 0 | Q61: 0
L62: 0 | M62: 0 | N62: 0 | O62: 0 | P62: 0 | Q62: 0
L63: 0 | M63: 0 | N63: 0 | O63: 0 | P63: 0 | Q63: 0
L64: =+F64*(-1) -> 0 | M64: =+G64*(-1) -> 0 | N64: =+L64+M64 -> 0 | O64: =+IF(AND(H64="NO",D64>F64),(D64-F64)*J64*(-1),0) -> 0 | P64: =+IF(AND(I64="NO",E64>G64),(E64-G64)*K64*(-1),0) -> 0 | Q64: =+O64+P64 -> 0
L65: 0 | M65: 0 | N65: 0 | O65: 0 | P65: 0 | Q65: 0
L66: 0 | M66: 0 | N66: 0 | O66: 0 | P66: 0 | Q66: 0

Sheet IN_Cespiti
B1: Dati di input - immobilizzazioni
B2: Inserire la stratificazione dei cespiti fino al 2027, tenuto conto di quanto esposto nelle precedenti predisposizioni tariffarie (foglio IN_cespiti 20 e IN_cespiti 21,22,23) e di eventuali dismissioni, avvicendamenti, driverizzazioni.
B3: ATTENZIONE: Nel ricopiare i cespiti relativi alle annualità 2021, 2022, 2023 fare attenzione all'ordinamento delle colonne successive alla colonna I del foglio IN_cespiti 21,22, 23 del tool MTR-2 2024-2025 agg. | H3: TOTALE | I3: =+SUM(I8:I1048576) -> 0 | J3: =+SUM(J8:J1048576) -> 0 | K3: =+SUM(K8:K1048576) -> 0 | L3: =+SUM(L8:L1048576) -> 0 | AB3: TOTALE | AC3: =+SUM(AC8:AC1048576) -> 0 | AD3: 0 | AE3: 0 | AF3: 0 | AG3: 0 | AH3: 0 | AI3: 0 | AJ3: 0 | AL3: TOTALE | AM3: =+SUM(_xlfn._TRO_TRAILING(AM8:AM1048576)) -> 0 | AN3: =+SUM(_xlfn._TRO_TRAILING(AN8:AN1048576)) -> 0 | AO3: 0 | AP3: 0 | AQ3: 0 | AR3: 0 | AS3: 0 | AT3: 0 | AV3: TOTALE | AW3: =+SUM(_xlfn._TRO_TRAILING(AW8:AW1048576)) -> 0 | AX3: =+SUM(_xlfn._TRO_TRAILING(AX8:AX1048576)) -> 0 | AY3: 0 | AZ3: 0 | BA3: 0 | BB3: 0 | BC3: 0 | BD3: 0 | BF3: TOTALE | BG3: =+SUM(_xlfn._TRO_TRAILING(BG8:BG1048576)) -> 0 | BH3: =+SUM(_xlfn._TRO_TRAILING(BH8:BH1048576)) -> 0 | BI3: 0 | BJ3: 0 | BK3: 0 | BL3: 0 | BM3: 0 | BN3: 0 | BP3: TOTALE | BQ3: =+SUM(_xlfn._TRO_TRAILING(BQ8:BQ1048576)) -> 0 | BR3: =+SUM(_xlfn._TRO_TRAILING(BR8:BR1048576)) -> 0 | BS3: 0 | BT3: 0 | BU3: 0 | BV3: 0 | BW3: 0 | BX3: 0 | BZ3: TOTALE | CA3: =+SUM(_xlfn._TRO_TRAILING(CA8:CA1048576)) -> 0 | CB3: =+SUM(_xlfn._TRO_TRAILING(CB8:CB1048576)) -> 0 | CC3: 0 | CD3: 0 | CE3: 0 | CF3: 0 | CG3: 0 | CH3: 0 | CJ3: TOTALE | CK3: =+SUM(_xlfn._TRO_TRAILING(CK8:CK1048576)) -> 0 | CL3: =+SUM(_xlfn._TRO_TRAILING(CL8:CL1048576)) -> 0 | CM3: 0 | CN3: 0 | CO3: 0 | CP3: 0 | CQ3: 0 | CR3: 0 | CT3: TOTALE | CU3: =+SUM(_xlfn._TRO_TRAILING(CU8:CU1048576)) -> 0 | CV3: =+SUM(_xlfn._TRO_TRAILING(CV8:CV1048576)) -> 0 | CW3: 0 | CX3: 0 | CY3: 0 | CZ3: 0 | DA3: 0 | DB3: 0 | DD3: TOTALE | DE3: =+SUM(_xlfn._TRO_TRAILING(DE8:DE1048576)) -> 0 | DF3: =+SUM(_xlfn._TRO_TRAILING(DF8:DF1048576)) -> 0 | DG3: 0 | DH3: 0 | DI3: 0 | DJ3: 0 | DK3: 0 | DL3: 0 | DN3: TOTALE | DO3: =+SUM(_xlfn._TRO_TRAILING(DO8:DO1048576)) -> 0 | DP3: =+SUM(_xlfn._TRO_TRAILING(DP8:DP1048576)) -> 0 | DQ3: 0 | DR3: 0 | DS3: 0 | DT3: 0 | DU3: 0 | DV3: 0 | DX3: TOTALE | DY3: =+SUM(_xlfn._TRO_TRAILING(DY8:DY1048576)) -> 0 | DZ3: =+SUM(_xlfn._TRO_TRAILING(DZ8:DZ1048576)) -> 0 | EA3: 0 | EB3: 0 | EC3: 0 | ED3: 0 | EE3: 0 | EF3: 0 | EH3: TOTALE | EI3: =+SUM(_xlfn._TRO_TRAILING(EI8:EI1048576)) -> 0 | EJ3: 0 | EK3: 0 | EL3: 0 | EM3: 0 | EN3: 0 | EO3: 0 | EP3: 0
H4: subtotale | I4: =+SUBTOTAL(9,I8:I1048576) -> 0 | J4: =+SUBTOTAL(9,J8:J1048576) -> 0 | K4: =+SUBTOTAL(9,K8:K1048576) -> 0 | L4: =+SUBTOTAL(9,L8:L1048576) -> 0 | U4: Da compilare in caso di ulteriori variazioni della vita utile regolatoria con effetti sulle entrate tariffarie 2024 e 2025 | X4: Da compilare in caso di ulteriori variazioni della vita utile regolatoria con effetti sulle entrate tariffarie 2026 e 2027 | AB4: subtotale | AC4: =+SUBTOTAL(9,AC8:AC1048576) -> 0 | AD4: 0 | AE4: 0 | AF4: 0 | AG4: 0 | AH4: 0 | AI4: 0 | AJ4: 0 | AL4: subtotale | AM4: =+SUBTOTAL(9,AM8:AM1048576) -> 0 | AN4: =+SUBTOTAL(9,AN8:AN1048576) -> 0 | AO4: 0 | AP4: 0 | AQ4: 0 | AR4: 0 | AS4: 0 | AT4: 0 | AV4: subtotale | AW4: =+SUBTOTAL(9,AW8:AW1048576) -> 0 | AX4: =+SUBTOTAL(9,AX8:AX1048576) -> 0 | AY4: 0 | AZ4: 0 | BA4: 0 | BB4: 0 | BC4: 0 | BD4: 0 | BF4: subtotale | BG4: =+SUBTOTAL(9,BG8:BG1048576) -> 0 | BH4: =+SUBTOTAL(9,BH8:BH1048576) -> 0 | BI4: 0 | BJ4: 0 | BK4: 0 | BL4: 0 | BM4: 0 | BN4: 0 | BP4: subtotale | BQ4: =+SUBTOTAL(9,BQ8:BQ1048576) -> 0 | BR4: =+SUBTOTAL(9,BR8:BR1048576) -> 0 | BS4: 0 | BT4: 0 | BU4: 0 | BV4: 0 | BW4: 0 | BX4: 0 | BZ4: subtotale | CA4: =+SUBTOTAL(9,CA8:CA1048576) -> 0 | CB4: =+SUBTOTAL(9,CB8:CB1048576) -> 0 | CC4: 0 | CD4: 0 | CE4: 0 | CF4: 0 | CG4: 0 | CH4: 0 | CJ4: subtotale | CK4: =+SUBTOTAL(9,CK8:CK1048576) -> 0 | CL4: =+SUBTOTAL(9,CL8:CL1048576) -> 0 | CM4: 0 | CN4: 0 | CO4: 0 | CP4: 0 | CQ4: 0 | CR4: 0 | CT4: subtotale | CU4: =+SUBTOTAL(9,CU8:CU1048576) -> 0 | CV4: =+SUBTOTAL(9,CV8:CV1048576) -> 0 | CW4: 0 | CX4: 0 | CY4: 0 | CZ4: 0 | DA4: 0 | DB4: 0 | DD4: subtotale | DE4: =+SUBTOTAL(9,DE8:DE1048576) -> 0 | DF4: =+SUBTOTAL(9,DF8:DF1048576) -> 0 | DG4: 0 | DH4: 0 | DI4: 0 | DJ4: 0 | DK4: 0 | DL4: 0 | DN4: subtotale | DO4: =+SUBTOTAL(9,DO8:DO1048576) -> 0 | DP4: =+SUBTOTAL(9,DP8:DP1048576) -> 0 | DQ4: 0 | DR4: 0 | DS4: 0 | DT4: 0 | DU4: 0 | DV4: 0 | DX4: subtotale | DY4: =+SUBTOTAL(9,DY8:DY1048576) -> 0 | DZ4: =+SUBTOTAL(9,DZ8:DZ1048576) -> 0 | EA4: 0 | EB4: 0 | EC4: 0 | ED4: 0 | EE4: 0 | EF4: 0 | EH4: subtotale | EI4: =+SUBTOTAL(9,EI8:EI1048576) -> 0 | EJ4: =+SUBTOTAL(9,EJ8:EJ1048576) -> 0 | EK4: 0 | EL4: 0 | EM4: 0 | EN4: 0 | EO4: 0 | EP4: 0
AC5: 2016 | AM5: 2017 | AW5: =+AM5+1 -> 2018 | BG5: =+AW5+1 -> 2019 | BQ5: =+BG5+1 -> 2020 | CA5: =+BQ5+1 -> 2021 | CK5: =+CA5+1 -> 2022 | CU5: =+CK5+1 -> 2023 | DE5: =+CU5+1 -> 2024 | DO5: =+DE5+1 -> 2025 | DY5: =+DO5+1 -> 2026 | EI5: =+DY5+1 -> 2027
AC6: 2018 | AM6: 2019 | AW6: 2020 | BG6: 2021 | BQ6: 2022 | CA6: 2023 | CK6: 2024 | CU6: 2025 | DE6: 2026 | DO6: 2027 | DY6: 2028 | EI6: 2029
B7: Gestore | C7: Cespiti gestore/Cespiti Proprietari diversi dal gestore | D7: ID Categoria Immobilizzazione | E7: Categoria immobilizzazione | F7: ID Categoria Cespite | G7: Categoria Cespiti Specifici | H7: Anno Cespite | I7: Cic,t | J7: FACI,c,2017 | K7: CFPc,t | L7: FACFP,c,2017 | M7: Discariche Vita Utile | O7: Anno dismissioni | Q7: Vite Utili c. 15.2 MTR-2 | R7: Variazioni vite utili regolatorie (c. 15.5 e c. 15.6 MTR-2) | S7: Inserire vita utile se si ricade negli c. 15.5 e c. 15.6 MTR-2 | T7: Vite utili c. 15.5 e c. 15.6 MTR-2 | U7: Ulteriori variazioni vite utili regolatorie (c. 15.5 e c. 15.6 MTR-2) | V7: Inserire ulteriore vita utile se si ricade negli c. 15.5 e c. 15.6 MTR-2 | W7: Vite utili c. 15.5 e c. 15.6 MTR-2 | X7: Ulteriori variazioni vite utili regolatorie (c. 15.5 e c. 15.6 MTR-3) | Y7: Inserire ulteriore vita utile se si ricade negli c. 15.5 e c. 15.6 MTR-3 | Z7: Vite utili c. 15.5 e c. 15.6 MTR-3 | AB7: Deflatore | AC7: CI | AD7: FaCI | AE7: CFP | AF7: FaCFP | AG7: AmmCI | AH7: AmmCFP | AI7: Amm | AJ7: IMN | AL7: Deflatore | AM7: CI | AN7: FaCI | AO7: CFP | AP7: FaCFP | AQ7: AmmCI | AR7: AmmCFP | AS7: Amm | AT7: IMN | AV7: Deflatore | AW7: CI | AX7: FaCI | AY7: CFP | AZ7: FaCFP | BA7: AmmCI | BB7: AmmCFP | BC7: Amm | BD7: IMN | BF7: Deflatore | BG7: CI | BH7: FaCI | BI7: CFP | BJ7: FaCFP | BK7: AmmCI | BL7: AmmCFP | BM7: Amm | BN7: IMN | BP7: Deflatore | BQ7: CI | BR7: FaCI | BS7: CFP | BT7: FaCFP | BU7: AmmCI | BV7: AmmCFP | BW7: Amm | BX7: IMN | BZ7: Deflatore | CA7: CI | CB7: FaCI | CC7: CFP | CD7: FaCFP | CE7: AmmCI | CF7: AmmCFP | CG7: Amm | CH7: IMN | CJ7: Deflatore | CK7: CI | CL7: FaCI | CM7: CFP | CN7: FaCFP | CO7: AmmCI | CP7: AmmCFP | CQ7: Amm | CR7: IMN | CT7: Deflatore | CU7: CI | CV7: FaCI | CW7: CFP | CX7: FaCFP | CY7: AmmCI | CZ7: AmmCFP | DA7: Amm | DB7: IMN | DD7: Deflatore | DE7: CI | DF7: FaCI | DG7: CFP | DH7: FaCFP | DI7: AmmCI | DJ7: AmmCFP | DK7: Amm | DL7: IMN | DN7: Deflatore | DO7: CI | DP7: FaCI | DQ7: CFP | DR7: FaCFP | DS7: AmmCI | DT7: AmmCFP | DU7: Amm | DV7: IMN | DX7: Deflatore | DY7: CI | DZ7: FaCI | EA7: CFP | EB7: FaCFP | EC7: AmmCI | ED7: AmmCFP | EE7: Amm | EF7: IMN | EH7: Deflatore | EI7: CI | EJ7: FaCI | EK7: CFP | EL7: FaCFP | EM7: AmmCI | EN7: AmmCFP | EO7: Amm | EP7: IMN
D8: =++IFERROR(INDEX(Tabelle!$H$11:$H$16,MATCH(IN_Cespiti!E8,Tabelle!$I$11:$I$16,0)),"") ->  | F8: =++IFERROR(INDEX(Tabelle!$C$10:$C$44,MATCH(IN_Cespiti!G8,Tabelle!$E$10:$E$44,0)),"") ->  | Q8: =IF($D8=3,$M8,+IFERROR(VLOOKUP(CONCATENATE(D8,".",F8),Tabelle!$D$10:$F$44,3,),"")) ->  | T8: =+IF(R8="",Q8,+IF(R8=Tabelle!$B$105,IN_Cespiti!Q8,IF(OR(R8=Tabelle!$B$103,R8=Tabelle!$B$104),IN_Cespiti!S8,0))) ->  | W8: =+IF(U8="",T8,+IF(U8=Tabelle!$B$105,IN_Cespiti!T8,IF(OR(U8=Tabelle!$B$103,U8=Tabelle!$B$104),IN_Cespiti!V8,0))) ->  | Z8: =+IF(OR(X8="",X8=Tabelle!$B$105),W8,Y8) ->  | AB8: =+IFERROR(IF($H8<=2017,VLOOKUP($H8,Tabelle!$N$10:$O$58,2,FALSE),0),0) -> 0.000 | AC8: =IF(OR($O8>$AC$5,$O8=""),$I8*$AB8,0) -> 0 | AD8: =IF(OR($O8>$AC$5,$O8=""),$J8*$AB8,0) -> 0 | AE8: =IF(OR($O8>$AC$5,$O8=""),$K8*$AB8,0) -> 0 | AF8: =IF(OR($O8>$AC$5,$O8=""),$L8*$AB8,0) -> 0 | AG8: =+IFERROR(IF((AC8-AD8)>0,MIN(AC8/$Q8,AC8-AD8),0),0) -> 0 | AH8: =+IFERROR(IF((AE8-AF8)>0,MIN(AE8/$Q8,AE8-AF8),0),0) -> 0 | AI8: =AG8-AH8 -> 0 | AJ8: =IFERROR(AC8-AE8-(AD8-AF8),0) -> 0 | AL8: =+IFERROR(IF($H8<=AM$5,VLOOKUP($H8,Tabelle!$N$10:$P$58,3,FALSE),0),0) -> 0.000 | AM8: =IF(OR($O8>$AM$5,$O8=""),$I8*$AL8,0) -> 0 | AN8: =IF(OR($O8>$AM$5,$O8=""),(AD8+AG8)*Tabelle!$P$51,0) -> 0 | AO8: =IF(OR($O8>$AM$5,$O8=""),$K8*$AL8,0) -> 0 | AP8: =IF(OR($O8>$AM$5,$O8=""),(AF8+AH8)*Tabelle!$P$51,0) -> 0 | AQ8: =+IFERROR(IF((AM8-AN8)>0,MIN(AM8/$Q8,AM8-AN8),0),0) -> 0 | AR8: =+IFERROR(IF((AO8-AP8)>0,MIN(AO8/$Q8,AO8-AP8),0),0) -> 0 | AS8: =AQ8-AR8 -> 0 | AT8: =IFERROR(AM8-AO8-(AN8-AP8),0) -> 0 | AV8: =+IFERROR(IF($H8<=AW$5,VLOOKUP($H8,Tabelle!$N$10:$Q$58,4,FALSE),0),0) -> 0.000 | AW8: =IF(OR($O8>$AW$5,$O8=""),I8*$AV8,0) -> 0 | AX8: =IF(OR($O8>$AW$5,$O8=""),(AN8+AQ8)*Tabelle!$Q$52,0) -> 0 | AY8: =IF(OR($O8>$AW$5,$O8=""),K8*$AV8,0) -> 0 | AZ8: =IF(OR($O8>$AW$5,$O8=""),(AP8+AR8)*Tabelle!$Q$52,0) -> 0 | BA8: =+IFERROR(IF((AW8-AX8)>0,MIN(AW8/$Q8,AW8-AX8),0),0) -> 0 | BB8: =+IFERROR(IF((AY8-AZ8)>0,MIN(AY8/$Q8,AY8-AZ8),0),0) -> 0 | BC8: =BA8-BB8 -> 0 | BD8: =IFERROR(AW8-AY8-(AX8-AZ8),0) -> 0 | BF8: =+IFERROR(IF($H8<=BG$5,VLOOKUP($H8,Tabelle!$N$10:$R$58,5,FALSE),0),0) -> 0.000 | BG8: =IF(OR($O8>$BG$5,$O8=""),I8*$BF8,0) -> 0 | BH8: =IF(OR($O8>$BG$5,$O8=""),(AX8+BA8)*Tabelle!$R$53,0) -> 0 | BI8: =IF(OR($O8>$BG$5,$O8=""),K8*$BF8,0) -> 0 | BJ8: =IF(OR($O8>$BG$5,$O8=""),(AZ8+BB8)*Tabelle!$R$53,0) -> 0 | BK8: =+IFERROR(IF((BG8-BH8)>0,MIN(BG8/$Q8,BG8-BH8),0),0) -> 0 | BL8: =+IFERROR(IF((BI8-BJ8)>0,MIN(BI8/$Q8,BI8-BJ8),0),0) -> 0 | BM8: =BK8-BL8 -> 0 | BN8: =IFERROR(BG8-BI8-(BH8-BJ8),0) -> 0 | BP8: =+IFERROR(IF($H8<=BQ$5,VLOOKUP($H8,Tabelle!$N$10:$S$58,6,FALSE),0),0) -> 0.000 | BQ8: =IF(OR($O8>$BQ$5,$O8=""),I8*$BP8,0) -> 0 | BR8: =IF(OR($O8>$BQ$5,$O8=""),(BH8+BK8)*Tabelle!$S$54,0) -> 0 | BS8: =IF(OR($O8>$BQ$5,$O8=""),K8*$BP8,0) -> 0 | BT8: =IF(OR($O8>$BQ$5,$O8=""),(BJ8+BL8)*Tabelle!$S$54,0) -> 0 | BU8: =+IFERROR(IF((BQ8-BR8)>0,MIN(BQ8/$T8,BQ8-BR8),0),0) -> 0 | BV8: =+IFERROR(IF((BS8-BT8)>0,MIN(BS8/$T8,BS8-BT8),0),0) -> 0 | BW8: =BU8-BV8 -> 0 | BX8: =IFERROR(BQ8-BS8-(BR8-BT8),0) -> 0 | BZ8: =+IFERROR(IF($H8<=CA$5,VLOOKUP($H8,Tabelle!$N$10:$T$58,7,FALSE),0),0) -> 0.000 | CA8: =IF(OR($O8>$CA$5,$O8=""),I8*$BZ8,0) -> 0 | CB8: =IF(OR($O8>$CA$5,$O8=""),+(BR8+BU8)*Tabelle!$T$55,0) -> 0 | CC8: =IF(OR($O8>$CA$5,$O8=""),+K8*$BZ8,0) -> 0 | CD8: =IF(OR($O8>$CA$5,$O8=""),+(BT8+BV8)*Tabelle!$T$55,0) -> 0 | CE8: =+IFERROR(IF((CA8-CB8)>0,MIN(CA8/$T8,CA8-CB8),0),0) -> 0 | CF8: =+IFERROR(IF((CC8-CD8)>0,MIN(CC8/$T8,CC8-CD8),0),0) -> 0 | CG8: =CE8-CF8 -> 0 | CH8: =IFERROR(CA8-CC8-(CB8-CD8),0) -> 0 | CJ8: =+IFERROR(IF($H8<=CK$5,VLOOKUP($H8,Tabelle!$N$10:$U$58,8,FALSE),0),0) -> 0.000 | CK8: =IF(OR($O8>$CK$5,$O8=""),I8*$CJ8,0) -> 0 | CL8: =IF(OR($O8>$CK$5,$O8=""),+(CB8+CE8)*Tabelle!$U$56,0) -> 0 | CM8: =IF(OR($O8>$CK$5,$O8=""),+K8*$CJ8,0) -> 0 | CN8: =IF(OR($O8>$CK$5,$O8=""),+(CD8+CF8)*Tabelle!$U$56,0) -> 0 | CO8: =+IFERROR(IF((CK8-CL8)>0,MIN(CK8/$W8,CK8-CL8),0),0) -> 0 | CP8: =+IFERROR(IF((CM8-CN8)>0,MIN(CM8/$W8,CM8-CN8),0),0) -> 0 | CQ8: =CO8-CP8 -> 0 | CR8: =IFERROR(CK8-CM8-(CL8-CN8),0) -> 0 | CT8: =+IFERROR(IF($H8<=CU$5,VLOOKUP($H8,Tabelle!$N$10:$V$58,9,FALSE),0),0) -> 0.000 | CU8: =IF(OR($O8>CU$5,$O8=""),$I8*CT8,0) -> 0 | CV8: =IF(OR($O8>CU$5,$O8=""),(CL8+CO8)*Tabelle!$V$57,0) -> 0 | CW8: =IF(OR($O8>$CU$5,$O8=""),$K8*CT8,0) -> 0 | CX8: =IF(OR($O8>CU$5,$O8=""),(CN8+CP8)*Tabelle!$V$57,0) -> 0 | CY8: =+IFERROR(IF((CU8-CV8)>0,MIN(CU8/$W8,CU8-CV8),0),0) -> 0 | CZ8: =+IFERROR(IF((CW8-CX8)>0,MIN(CW8/$W8,CW8-CX8),0),0) -> 0 | DA8: =CY8-CZ8 -> 0 | DB8: =IFERROR(CU8-CW8-(CV8-CX8),0) -> 0 | DD8: =+IFERROR(IF($H8<=DE$5,VLOOKUP($H8,Tabelle!$N$10:$W$59,10,FALSE),0),0) -> 0.000 | DE8: =IF(OR($O8>DE$5,$O8=""),$I8*DD8,0) -> 0 | DF8: =IF(OR($O8>DE$5,$O8=""),+(CV8+CY8)*Tabelle!$W$58,0) -> 0 | DG8: =IF(OR($O8>DE$5,$O8=""),+$K8*DD8,0) -> 0 | DH8: =IF(OR($O8>DE$5,$O8=""),+(CX8+CZ8)*Tabelle!$W$58,0) -> 0 | DI8: =+IFERROR(IF((DE8-DF8)>0,MIN(DE8/$Z8,DE8-DF8),0),0) -> 0 | DJ8: =+IFERROR(IF((DG8-DH8)>0,MIN(DG8/$Z8,DG8-DH8),0),0) -> 0 | DK8: =DI8-DJ8 -> 0 | DL8: =IFERROR(DE8-DG8-(DF8-DH8),0) -> 0 | DN8: =+IFERROR(IF($H8<=DO$5,VLOOKUP($H8,Tabelle!$N$10:$X$60,11,FALSE),0),0) -> 0.000 | DO8: =IF(OR($O8>DO$5,$O8=""),$I8*DN8,0) -> 0 | DP8: =IF(OR($O8>DO$5,$O8=""),+(DF8+DI8)*Tabelle!$X$59,0) -> 0 | DQ8: =IF(OR($O8>DO$5,$O8=""),$K8*DN8,0) -> 0 | DR8: =IF(OR($O8>DO$5,$O8=""),+(DH8+DJ8)*Tabelle!$X$59,0) -> 0 | DS8: =+IFERROR(IF((DO8-DP8)>0,MIN(DO8/$Z8,DO8-DP8),0),0) -> 0 | DT8: =+IFERROR(IF((DQ8-DR8)>0,MIN(DQ8/$Z8,DQ8-DR8),0),0) -> 0 | DU8: =DS8-DT8 -> 0 | DV8: =IFERROR(DO8-DQ8-(DP8-DR8),0) -> 0 | DX8: =+IFERROR(IF($H8<=DY$5,VLOOKUP($H8,Tabelle!$N$10:$Y$61,12,FALSE),0),0) -> 0.000 | DY8: =IF(OR($O8>DY$5,$O8=""),$I8*DX8,0) -> 0 | DZ8: =IF(OR($O8>DY$5,$O8=""),+(DP8+DS8)*Tabelle!$Y$60,0) -> 0 | EA8: =IF(OR($O8>DY$5,$O8=""),$K8*DX8,0) -> 0 | EB8: =IF(OR($O8>DY$5,$O8=""),+(DR8+DT8)*Tabelle!$Y$60,0) -> 0 | EC8: =+IFERROR(IF((DY8-DZ8)>0,MIN(DY8/$Z8,DY8-DZ8),0),0) -> 0 | ED8: =+IFERROR(IF((EA8-EB8)>0,MIN(EA8/$Z8,EA8-EB8),0),0) -> 0 | EE8: =EC8-ED8 -> 0 | EF8: =IFERROR(DY8-EA8-(DZ8-EB8),0) -> 0 | EH8: =+IFERROR(IF($H8<=EI$5,VLOOKUP($H8,Tabelle!$N$10:$Z$62,13,FALSE),0),0) -> 0.000 | EI8: =IF(OR($O8>EI$5,$O8=""),$I8*EH8,0) -> 0 | EJ8: =IF(OR($O8>EI$5,$O8=""),+(DZ8+EC8)*Tabelle!$Z$61,0) -> 0 | EK8: =IF(OR($O8>EI$5,$O8=""),$K8*EH8,0) -> 0 | EL8: =IF(OR($O8>EI$5,$O8=""),+(EB8+ED8)*Tabelle!$Z$61,0) -> 0 | EM8: =+IFERROR(IF((EI8-EJ8)>0,MIN(EI8/$Z8,EI8-EJ8),0),0) -> 0 | EN8: =+IFERROR(IF((EK8-EL8)>0,MIN(EK8/$Z8,EK8-EL8),0),0) -> 0 | EO8: =EM8-EN8 -> 0 | EP8: =IFERROR(EI8-EK8-(EJ8-EL8),0) -> 0
D9: =++IFERROR(INDEX(Tabelle!$H$11:$H$16,MATCH(IN_Cespiti!E9,Tabelle!$I$11:$I$16,0)),"") ->  | F9: =++IFERROR(INDEX(Tabelle!$C$10:$C$44,MATCH(IN_Cespiti!G9,Tabelle!$E$10:$E$44,0)),"") ->  | Q9: =IF($D9=3,$M9,+IFERROR(VLOOKUP(CONCATENATE(D9,".",F9),Tabelle!$D$10:$F$44,3,),"")) ->  | T9: =+IF(R9="",Q9,+IF(R9=Tabelle!$B$105,IN_Cespiti!Q9,IF(OR(R9=Tabelle!$B$103,R9=Tabelle!$B$104),IN_Cespiti!S9,0))) ->  | W9: =+IF(U9="",T9,+IF(U9=Tabelle!$B$105,IN_Cespiti!T9,IF(OR(U9=Tabelle!$B$103,U9=Tabelle!$B$104),IN_Cespiti!V9,0))) ->  | Z9: =+IF(OR(X9="",X9=Tabelle!$B$105),W9,Y9) ->  | AB9: =+IFERROR(IF($H9<=2017,VLOOKUP($H9,Tabelle!$N$10:$O$58,2,FALSE),0),0) -> 0.000 | AC9: 0 | AD9: 0 | AE9: 0 | AF9: 0 | AG9: =+IFERROR(IF((AC9-AD9)>0,MIN(AC9/$Q9,AC9-AD9),0),0) -> 0 | AH9: =+IFERROR(IF((AE9-AF9)>0,MIN(AE9/$Q9,AE9-AF9),0),0) -> 0 | AI9: =AG9-AH9 -> 0 | AJ9: =IFERROR(AC9-AE9-(AD9-AF9),0) -> 0 | AL9: =+IFERROR(IF($H9<=AM$5,VLOOKUP($H9,Tabelle!$N$10:$P$58,3,FALSE),0),0) -> 0.000 | AM9: =IF(OR($O9>$AM$5,$O9=""),$I9*$AL9,0) -> 0 | AN9: =IF(OR($O9>$AM$5,$O9=""),(AD9+AG9)*Tabelle!$P$51,0) -> 0 | AO9: 0 | AP9: =IF(OR($O9>$AM$5,$O9=""),(AF9+AH9)*Tabelle!$P$51,0) -> 0 | AQ9: =+IFERROR(IF((AM9-AN9)>0,MIN(AM9/$Q9,AM9-AN9),0),0) -> 0 | AR9: =+IFERROR(IF((AO9-AP9)>0,MIN(AO9/$Q9,AO9-AP9),0),0) -> 0 | AS9: =AQ9-AR9 -> 0 | AT9: =IFERROR(AM9-AO9-(AN9-AP9),0) -> 0 | AV9: =+IFERROR(IF($H9<=AW$5,VLOOKUP($H9,Tabelle!$N$10:$Q$58,4,FALSE),0),0) -> 0.000 | AW9: =IF(OR($O9>$AW$5,$O9=""),I9*$AV9,0) -> 0 | AX9: =IF(OR($O9>$AW$5,$O9=""),(AN9+AQ9)*Tabelle!$Q$52,0) -> 0 | AY9: 0 | AZ9: =IF(OR($O9>$AW$5,$O9=""),(AP9+AR9)*Tabelle!$Q$52,0) -> 0 | BA9: =+IFERROR(IF((AW9-AX9)>0,MIN(AW9/$Q9,AW9-AX9),0),0) -> 0 | BB9: =+IFERROR(IF((AY9-AZ9)>0,MIN(AY9/$Q9,AY9-AZ9),0),0) -> 0 | BC9: =BA9-BB9 -> 0 | BD9: =IFERROR(AW9-AY9-(AX9-AZ9),0) -> 0 | BF9: =+IFERROR(IF($H9<=BG$5,VLOOKUP($H9,Tabelle!$N$10:$R$58,5,FALSE),0),0) -> 0.000 | BG9: =IF(OR($O9>$BG$5,$O9=""),I9*$BF9,0) -> 0 | BH9: =IF(OR($O9>$BG$5,$O9=""),(AX9+BA9)*Tabelle!$R$53,0) -> 0 | BI9: 0 | BJ9: =IF(OR($O9>$BG$5,$O9=""),(AZ9+BB9)*Tabelle!$R$53,0) -> 0 | BK9: =+IFERROR(IF((BG9-BH9)>0,MIN(BG9/$Q9,BG9-BH9),0),0) -> 0 | BL9: =+IFERROR(IF((BI9-BJ9)>0,MIN(BI9/$Q9,BI9-BJ9),0),0) -> 0 | BM9: =BK9-BL9 -> 0 | BN9: =IFERROR(BG9-BI9-(BH9-BJ9),0) -> 0 | BP9: =+IFERROR(IF($H9<=BQ$5,VLOOKUP($H9,Tabelle!$N$10:$S$58,6,FALSE),0),0) -> 0.000 | BQ9: 0 | BR9: =IF(OR($O9>$BQ$5,$O9=""),(BH9+BK9)*Tabelle!$S$54,0) -> 0 | BS9: 0 | BT9: =IF(OR($O9>$BQ$5,$O9=""),(BJ9+BL9)*Tabelle!$S$54,0) -> 0 | BU9: =+IFERROR(IF((BQ9-BR9)>0,MIN(BQ9/$T9,BQ9-BR9),0),0) -> 0 | BV9: =+IFERROR(IF((BS9-BT9)>0,MIN(BS9/$T9,BS9-BT9),0),0) -> 0 | BW9: =BU9-BV9 -> 0 | BX9: =IFERROR(BQ9-BS9-(BR9-BT9),0) -> 0 | BZ9: =+IFERROR(IF($H9<=CA$5,VLOOKUP($H9,Tabelle!$N$10:$T$58,7,FALSE),0),0) -> 0.000 | CA9: 0 | CB9: =IF(OR($O9>$CA$5,$O9=""),+(BR9+BU9)*Tabelle!$T$55,0) -> 0 | CC9: 0 | CD9: =IF(OR($O9>$CA$5,$O9=""),+(BT9+BV9)*Tabelle!$T$55,0) -> 0 | CE9: =+IFERROR(IF((CA9-CB9)>0,MIN(CA9/$T9,CA9-CB9),0),0) -> 0 | CF9: =+IFERROR(IF((CC9-CD9)>0,MIN(CC9/$T9,CC9-CD9),0),0) -> 0 | CG9: =CE9-CF9 -> 0 | CH9: 0 | CJ9: =+IFERROR(IF($H9<=CK$5,VLOOKUP($H9,Tabelle!$N$10:$U$58,8,FALSE),0),0) -> 0.000 | CK9: 0 | CL9: =IF(OR($O9>$CK$5,$O9=""),+(CB9+CE9)*Tabelle!$U$56,0) -> 0 | CM9: 0 | CN9: =IF(OR($O9>$CK$5,$O9=""),+(CD9+CF9)*Tabelle!$U$56,0) -> 0 | CO9: =+IFERROR(IF((CK9-CL9)>0,MIN(CK9/$W9,CK9-CL9),0),0) -> 0 | CP9: =+IFERROR(IF((CM9-CN9)>0,MIN(CM9/$W9,CM9-CN9),0),0) -> 0 | CQ9: =CO9-CP9 -> 0 | CR9: 0 | CT9: =+IFERROR(IF($H9<=CU$5,VLOOKUP($H9,Tabelle!$N$10:$V$58,9,FALSE),0),0) -> 0.000 | CU9: =IF(OR($O9>CU$5,$O9=""),$I9*CT9,0) -> 0 | CV9: =IF(OR($O9>CU$5,$O9=""),(CL9+CO9)*Tabelle!$V$57,0) -> 0 | CW9: =IF(OR($O9>$CU$5,$O9=""),$K9*CT9,0) -> 0 | CX9: =IF(OR($O9>CU$5,$O9=""),(CN9+CP9)*Tabelle!$V$57,0) -> 0 | CY9: =+IFERROR(IF((CU9-CV9)>0,MIN(CU9/$W9,CU9-CV9),0),0) -> 0 | CZ9: =+IFERROR(IF((CW9-CX9)>0,MIN(CW9/$W9,CW9-CX9),0),0) -> 0 | DA9: =CY9-CZ9 -> 0 | DB9: 0 | DD9: =+IFERROR(IF($H9<=DE$5,VLOOKUP($H9,Tabelle!$N$10:$W$59,10,FALSE),0),0) -> 0.000 | DE9: =IF(OR($O9>DE$5,$O9=""),$I9*DD9,0) -> 0 | DF9: =IF(OR($O9>DE$5,$O9=""),+(CV9+CY9)*Tabelle!$W$58,0) -> 0 | DG9: =IF(OR($O9>DE$5,$O9=""),+$K9*DD9,0) -> 0 | DH9: =IF(OR($O9>DE$5,$O9=""),+(CX9+CZ9)*Tabelle!$W$58,0) -> 0 | DI9: =+IFERROR(IF((DE9-DF9)>0,MIN(DE9/$Z9,DE9-DF9),0),0) -> 0 | DJ9: =+IFERROR(IF((DG9-DH9)>0,MIN(DG9/$Z9,DG9-DH9),0),0) -> 0 | DK9: =DI9-DJ9 -> 0 | DL9: 0 | DN9: =+IFERROR(IF($H9<=DO$5,VLOOKUP($H9,Tabelle!$N$10:$X$60,11,FALSE),0),0) -> 0.000 | DO9: =IF(OR($O9>DO$5,$O9=""),$I9*DN9,0) -> 0 | DP9: =IF(OR($O9>DO$5,$O9=""),+(DF9+DI9)*Tabelle!$X$59,0) -> 0 | DQ9: =IF(OR($O9>DO$5,$O9=""),$K9*DN9,0) -> 0 | DR9: =IF(OR($O9>DO$5,$O9=""),+(DH9+DJ9)*Tabelle!$X$59,0) -> 0 | DS9: =+IFERROR(IF((DO9-DP9)>0,MIN(DO9/$Z9,DO9-DP9),0),0) -> 0 | DT9: =+IFERROR(IF((DQ9-DR9)>0,MIN(DQ9/$Z9,DQ9-DR9),0),0) -> 0 | DU9: =DS9-DT9 -> 0 | DV9: 0 | DX9: =+IFERROR(IF($H9<=DY$5,VLOOKUP($H9,Tabelle!$N$10:$Y$61,12,FALSE),0),0) -> 0.000 | DY9: =IF(OR($O9>DY$5,$O9=""),$I9*DX9,0) -> 0 | DZ9: =IF(OR($O9>DY$5,$O9=""),+(DP9+DS9)*Tabelle!$Y$60,0) -> 0 | EA9: =IF(OR($O9>DY$5,$O9=""),$K9*DX9,0) -> 0 | EB9: =IF(OR($O9>DY$5,$O9=""),+(DR9+DT9)*Tabelle!$Y$60,0) -> 0 | EC9: =+IFERROR(IF((DY9-DZ9)>0,MIN(DY9/$Z9,DY9-DZ9),0),0) -> 0 | ED9: =+IFERROR(IF((EA9-EB9)>0,MIN(EA9/$Z9,EA9-EB9),0),0) -> 0 | EE9: =EC9-ED9 -> 0 | EF9: =IFERROR(DY9-EA9-(DZ9-EB9),0) -> 0 | EH9: =+IFERROR(IF($H9<=EI$5,VLOOKUP($H9,Tabelle!$N$10:$Z$62,13,FALSE),0),0) -> 0.000 | EI9: =IF(OR($O9>EI$5,$O9=""),$I9*EH9,0) -> 0 | EJ9: =IF(OR($O9>EI$5,$O9=""),+(DZ9+EC9)*Tabelle!$Z$61,0) -> 0 | EK9: =IF(OR($O9>EI$5,$O9=""),$K9*EH9,0) -> 0 | EL9: =IF(OR($O9>EI$5,$O9=""),+(EB9+ED9)*Tabelle!$Z$61,0) -> 0 | EM9: =+IFERROR(IF((EI9-EJ9)>0,MIN(EI9/$Z9,EI9-EJ9),0),0) -> 0 | EN9: =+IFERROR(IF((EK9-EL9)>0,MIN(EK9/$Z9,EK9-EL9),0),0) -> 0 | EO9: =EM9-EN9 -> 0 | EP9: 0
D10: =++IFERROR(INDEX(Tabelle!$H$11:$H$16,MATCH(IN_Cespiti!E10,Tabelle!$I$11:$I$16,0)),"") ->  | F10: =++IFERROR(INDEX(Tabelle!$C$10:$C$44,MATCH(IN_Cespiti!G10,Tabelle!$E$10:$E$44,0)),"") ->  | Q10: =IF($D10=3,$M10,+IFERROR(VLOOKUP(CONCATENATE(D10,".",F10),Tabelle!$D$10:$F$44,3,),"")) ->  | T10: =+IF(R10="",Q10,+IF(R10=Tabelle!$B$105,IN_Cespiti!Q10,IF(OR(R10=Tabelle!$B$103,R10=Tabelle!$B$104),IN_Cespiti!S10,0))) ->  | W10: =+IF(U10="",T10,+IF(U10=Tabelle!$B$105,IN_Cespiti!T10,IF(OR(U10=Tabelle!$B$103,U10=Tabelle!$B$104),IN_Cespiti!V10,0))) ->  | Z10: =+IF(OR(X10="",X10=Tabelle!$B$105),W10,Y10) ->  | AB10: =+IFERROR(IF($H10<=2017,VLOOKUP($H10,Tabelle!$N$10:$O$58,2,FALSE),0),0) -> 0.000 | AC10: 0 | AD10: 0 | AE10: 0 | AF10: 0 | AG10: 0 | AH10: 0 | AI10: 0 | AJ10: 0 | AL10: =+IFERROR(IF($H10<=AM$5,VLOOKUP($H10,Tabelle!$N$10:$P$58,3,FALSE),0),0) -> 0.000 | AM10: 0 | AN10: =IF(OR($O10>$AM$5,$O10=""),(AD10+AG10)*Tabelle!$P$51,0) -> 0 | AO10: 0 | AP10: =IF(OR($O10>$AM$5,$O10=""),(AF10+AH10)*Tabelle!$P$51,0) -> 0 | AQ10: 0 | AR10: 0 | AS10: 0 | AT10: 0 | AV10: =+IFERROR(IF($H10<=AW$5,VLOOKUP($H10,Tabelle!$N$10:$Q$58,4,FALSE),0),0) -> 0.000 | AW10: 0 | AX10: =IF(OR($O10>$AW$5,$O10=""),(AN10+AQ10)*Tabelle!$Q$52,0) -> 0 | AY10: 0 | AZ10: =IF(OR($O10>$AW$5,$O10=""),(AP10+AR10)*Tabelle!$Q$52,0) -> 0 | BA10: 0 | BB10: 0 | BC10: =BA10-BB10 -> 0 | BD10: 0 | BF10: =+IFERROR(IF($H10<=BG$5,VLOOKUP($H10,Tabelle!$N$10:$R$58,5,FALSE),0),0) -> 0.000 | BG10: 0 | BH10: =IF(OR($O10>$BG$5,$O10=""),(AX10+BA10)*Tabelle!$R$53,0) -> 0 | BI10: 0 | BJ10: =IF(OR($O10>$BG$5,$O10=""),(AZ10+BB10)*Tabelle!$R$53,0) -> 0 | BK10: =+IFERROR(IF((BG10-BH10)>0,MIN(BG10/$Q10,BG10-BH10),0),0) -> 0 | BL10: 0 | BM10: =BK10-BL10 -> 0 | BN10: 0 | BP10: =+IFERROR(IF($H10<=BQ$5,VLOOKUP($H10,Tabelle!$N$10:$S$58,6,FALSE),0),0) -> 0.000 | BQ10: 0 | BR10: =IF(OR($O10>$BQ$5,$O10=""),(BH10+BK10)*Tabelle!$S$54,0) -> 0 | BS10: 0 | BT10: =IF(OR($O10>$BQ$5,$O10=""),(BJ10+BL10)*Tabelle!$S$54,0) -> 0 | BU10: 0 | BV10: 0 | BW10: 0 | BX10: 0 | BZ10: =+IFERROR(IF($H10<=CA$5,VLOOKUP($H10,Tabelle!$N$10:$T$58,7,FALSE),0),0) -> 0.000 | CA10: 0 | CB10: =IF(OR($O10>$CA$5,$O10=""),+(BR10+BU10)*Tabelle!$T$55,0) -> 0 | CC10: 0 | CD10: =IF(OR($O10>$CA$5,$O10=""),+(BT10+BV10)*Tabelle!$T$55,0) -> 0 | CE10: 0 | CF10: 0 | CG10: 0 | CH10: 0 | CJ10: =+IFERROR(IF($H10<=CK$5,VLOOKUP($H10,Tabelle!$N$10:$U$58,8,FALSE),0),0) -> 0.000 | CK10: 0 | CL10: =IF(OR($O10>$CK$5,$O10=""),+(CB10+CE10)*Tabelle!$U$56,0) -> 0 | CM10: 0 | CN10: =IF(OR($O10>$CK$5,$O10=""),+(CD10+CF10)*Tabelle!$U$56,0) -> 0 | CO10: 0 | CP10: 0 | CQ10: 0 | CR10: 0 | CT10: =+IFERROR(IF($H10<=CU$5,VLOOKUP($H10,Tabelle!$N$10:$V$58,9,FALSE),0),0) -> 0.000 | CU10: 0 | CV10: =IF(OR($O10>CU$5,$O10=""),(CL10+CO10)*Tabelle!$V$57,0) -> 0 | CW10: 0 | CX10: =IF(OR($O10>CU$5,$O10=""),(CN10+CP10)*Tabelle!$V$57,0) -> 0 | CY10: 0 | CZ10: 0 | DA10: 0 | DB10: 0 | DD10: =+IFERROR(IF($H10<=DE$5,VLOOKUP($H10,Tabelle!$N$10:$W$59,10,FALSE),0),0) -> 0.000 | DE10: 0 | DF10: =IF(OR($O10>DE$5,$O10=""),+(CV10+CY10)*Tabelle!$W$58,0) -> 0 | DG10: 0 | DH10: =IF(OR($O10>DE$5,$O10=""),+(CX10+CZ10)*Tabelle!$W$58,0) -> 0 | DI10: 0 | DJ10: 0 | DK10: 0 | DL10: 0 | DN10: =+IFERROR(IF($H10<=DO$5,VLOOKUP($H10,Tabelle!$N$10:$X$60,11,FALSE),0),0) -> 0.000 | DO10: 0 | DP10: =IF(OR($O10>DO$5,$O10=""),+(DF10+DI10)*Tabelle!$X$59,0) -> 0 | DQ10: 0 | DR10: =IF(OR($O10>DO$5,$O10=""),+(DH10+DJ10)*Tabelle!$X$59,0) -> 0 | DS10: 0 | DT10: 0 | DU10: 0 | DV10: 0 | DX10: =+IFERROR(IF($H10<=DY$5,VLOOKUP($H10,Tabelle!$N$10:$Y$61,12,FALSE),0),0) -> 0.000 | DY10: 0 | DZ10: =IF(OR($O10>DY$5,$O10=""),+(DP10+DS10)*Tabelle!$Y$60,0) -> 0 | EA10: 0 | EB10: =IF(OR($O10>DY$5,$O10=""),+(DR10+DT10)*Tabelle!$Y$60,0) -> 0 | EC10: 0 | ED10: 0 | EE10: 0 | EF10: 0 | EH10: =+IFERROR(IF($H10<=EI$5,VLOOKUP($H10,Tabelle!$N$10:$Z$62,13,FALSE),0),0) -> 0.000 | EI10: 0 | EJ10: =IF(OR($O10>EI$5,$O10=""),+(DZ10+EC10)*Tabelle!$Z$61,0) -> 0 | EK10: 0 | EL10: =IF(OR($O10>EI$5,$O10=""),+(EB10+ED10)*Tabelle!$Z$61,0) -> 0 | EM10: 0 | EN10: 0 | EO10: 0 | EP10: 0
D11: =++IFERROR(INDEX(Tabelle!$H$11:$H$16,MATCH(IN_Cespiti!E11,Tabelle!$I$11:$I$16,0)),"") ->  | F11: =++IFERROR(INDEX(Tabelle!$C$10:$C$44,MATCH(IN_Cespiti!G11,Tabelle!$E$10:$E$44,0)),"") ->  | Q11: =IF($D11=3,$M11,+IFERROR(VLOOKUP(CONCATENATE(D11,".",F11),Tabelle!$D$10:$F$44,3,),"")) ->  | T11: =+IF(R11="",Q11,+IF(R11=Tabelle!$B$105,IN_Cespiti!Q11,IF(OR(R11=Tabelle!$B$103,R11=Tabelle!$B$104),IN_Cespiti!S11,0))) ->  | W11: =+IF(U11="",T11,+IF(U11=Tabelle!$B$105,IN_Cespiti!T11,IF(OR(U11=Tabelle!$B$103,U11=Tabelle!$B$104),IN_Cespiti!V11,0))) ->  | Z11: =+IF(OR(X11="",X11=Tabelle!$B$105),W11,Y11) ->  | AB11: =+IFERROR(IF($H11<=2017,VLOOKUP($H11,Tabelle!$N$10:$O$58,2,FALSE),0),0) -> 0.000 | AC11: 0 | AD11: 0 | AE11: 0 | AF11: 0 | AG11: 0 | AH11: 0 | AI11: 0 | AJ11: 0 | AL11: =+IFERROR(IF($H11<=AM$5,VLOOKUP($H11,Tabelle!$N$10:$P$58,3,FALSE),0),0) -> 0.000 | AM11: 0 | AN11: =IF(OR($O11>$AM$5,$O11=""),(AD11+AG11)*Tabelle!$P$51,0) -> 0 | AO11: 0 | AP11: =IF(OR($O11>$AM$5,$O11=""),(AF11+AH11)*Tabelle!$P$51,0) -> 0 | AQ11: 0 | AR11: 0 | AS11: 0 | AT11: 0 | AV11: =+IFERROR(IF($H11<=AW$5,VLOOKUP($H11,Tabelle!$N$10:$Q$58,4,FALSE),0),0) -> 0.000 | AW11: 0 | AX11: =IF(OR($O11>$AW$5,$O11=""),(AN11+AQ11)*Tabelle!$Q$52,0) -> 0 | AY11: 0 | AZ11: =IF(OR($O11>$AW$5,$O11=""),(AP11+AR11)*Tabelle!$Q$52,0) -> 0 | BA11: 0 | BB11: 0 | BC11: 0 | BD11: 0 | BF11: =+IFERROR(IF($H11<=BG$5,VLOOKUP($H11,Tabelle!$N$10:$R$58,5,FALSE),0),0) -> 0.000 | BG11: 0 | BH11: =IF(OR($O11>$BG$5,$O11=""),(AX11+BA11)*Tabelle!$R$53,0) -> 0 | BI11: 0 | BJ11: =IF(OR($O11>$BG$5,$O11=""),(AZ11+BB11)*Tabelle!$R$53,0) -> 0 | BK11: 0 | BL11: 0 | BM11: 0 | BN11: 0 | BP11: =+IFERROR(IF($H11<=BQ$5,VLOOKUP($H11,Tabelle!$N$10:$S$58,6,FALSE),0),0) -> 0.000 | BQ11: 0 | BR11: =IF(OR($O11>$BQ$5,$O11=""),(BH11+BK11)*Tabelle!$S$54,0) -> 0 | BS11: 0 | BT11: =IF(OR($O11>$BQ$5,$O11=""),(BJ11+BL11)*Tabelle!$S$54,0) -> 0 | BU11: 0 | BV11: 0 | BW11: 0 | BX11: 0 | BZ11: =+IFERROR(IF($H11<=CA$5,VLOOKUP($H11,Tabelle!$N$10:$T$58,7,FALSE),0),0) -> 0.000 | CA11: 0 | CB11: =IF(OR($O11>$CA$5,$O11=""),+(BR11+BU11)*Tabelle!$T$55,0) -> 0 | CC11: 0 | CD11: =IF(OR($O11>$CA$5,$O11=""),+(BT11+BV11)*Tabelle!$T$55,0) -> 0 | CE11: 0 | CF11: 0 | CG11: 0 | CH11: 0 | CJ11: =+IFERROR(IF($H11<=CK$5,VLOOKUP($H11,Tabelle!$N$10:$U$58,8,FALSE),0),0) -> 0.000 | CK11: 0 | CL11: =IF(OR($O11>$CK$5,$O11=""),+(CB11+CE11)*Tabelle!$U$56,0) -> 0 | CM11: 0 | CN11: =IF(OR($O11>$CK$5,$O11=""),+(CD11+CF11)*Tabelle!$U$56,0) -> 0 | CO11: 0 | CP11: 0 | CQ11: 0 | CR11: 0 | CT11: =+IFERROR(IF($H11<=CU$5,VLOOKUP($H11,Tabelle!$N$10:$V$58,9,FALSE),0),0) -> 0.000 | CU11: 0 | CV11: =IF(OR($O11>CU$5,$O11=""),(CL11+CO11)*Tabelle!$V$57,0) -> 0 | CW11: 0 | CX11: =IF(OR($O11>CU$5,$O11=""),(CN11+CP11)*Tabelle!$V$57,0) -> 0 | CY11: 0 | CZ11: 0 | DA11: 0 | DB11: 0 | DD11: =+IFERROR(IF($H11<=DE$5,VLOOKUP($H11,Tabelle!$N$10:$W$59,10,FALSE),0),0) -> 0.000 | DE11: 0 | DF11: =IF(OR($O11>DE$5,$O11=""),+(CV11+CY11)*Tabelle!$W$58,0) -> 0 | DG11: 0 | DH11: =IF(OR($O11>DE$5,$O11=""),+(CX11+CZ11)*Tabelle!$W$58,0) -> 0 | DI11: 0 | DJ11: 0 | DK11: 0 | DL11: 0 | DN11: =+IFERROR(IF($H11<=DO$5,VLOOKUP($H11,Tabelle!$N$10:$X$60,11,FALSE),0),0) -> 0.000 | DO11: 0 | DP11: =IF(OR($O11>DO$5,$O11=""),+(DF11+DI11)*Tabelle!$X$59,0) -> 0 | DQ11: 0 | DR11: =IF(OR($O11>DO$5,$O11=""),+(DH11+DJ11)*Tabelle!$X$59,0) -> 0 | DS11: 0 | DT11: 0 | DU11: 0 | DV11: 0 | DX11: =+IFERROR(IF($H11<=DY$5,VLOOKUP($H11,Tabelle!$N$10:$Y$61,12,FALSE),0),0) -> 0.000 | DY11: 0 | DZ11: =IF(OR($O11>DY$5,$O11=""),+(DP11+DS11)*Tabelle!$Y$60,0) -> 0 | EA11: 0 | EB11: =IF(OR($O11>DY$5,$O11=""),+(DR11+DT11)*Tabelle!$Y$60,0) -> 0 | EC11: 0 | ED11: 0 | EE11: 0 | EF11: 0 | EH11: =+IFERROR(IF($H11<=EI$5,VLOOKUP($H11,Tabelle!$N$10:$Z$62,13,FALSE),0),0) -> 0.000 | EI11: 0 | EJ11: =IF(OR($O11>EI$5,$O11=""),+(DZ11+EC11)*Tabelle!$Z$61,0) -> 0 | EK11: 0 | EL11: =IF(OR($O11>EI$5,$O11=""),+(EB11+ED11)*Tabelle!$Z$61,0) -> 0 | EM11: 0 | EN11: 0 | EO11: 0 | EP11: 0
D12: =++IFERROR(INDEX(Tabelle!$H$11:$H$16,MATCH(IN_Cespiti!E12,Tabelle!$I$11:$I$16,0)),"") ->  | F12: =++IFERROR(INDEX(Tabelle!$C$10:$C$44,MATCH(IN_Cespiti!G12,Tabelle!$E$10:$E$44,0)),"") ->  | Q12: =IF($D12=3,$M12,+IFERROR(VLOOKUP(CONCATENATE(D12,".",F12),Tabelle!$D$10:$F$44,3,),"")) ->  | T12: =+IF(R12="",Q12,+IF(R12=Tabelle!$B$105,IN_Cespiti!Q12,IF(OR(R12=Tabelle!$B$103,R12=Tabelle!$B$104),IN_Cespiti!S12,0))) ->  | W12: =+IF(U12="",T12,+IF(U12=Tabelle!$B$105,IN_Cespiti!T12,IF(OR(U12=Tabelle!$B$103,U12=Tabelle!$B$104),IN_Cespiti!V12,0))) ->  | Z12: =+IF(OR(X12="",X12=Tabelle!$B$105),W12,Y12) ->  | AB12: =+IFERROR(IF($H12<=2017,VLOOKUP($H12,Tabelle!$N$10:$O$58,2,FALSE),0),0) -> 0.000 | AC12: 0 | AD12: 0 | AE12: 0 | AF12: 0 | AG12: 0 | AH12: 0 | AI12: 0 | AJ12: 0 | AL12: =+IFERROR(IF($H12<=AM$5,VLOOKUP($H12,Tabelle!$N$10:$P$58,3,FALSE),0),0) -> 0.000 | AM12: 0 | AN12: =IF(OR($O12>$AM$5,$O12=""),(AD12+AG12)*Tabelle!$P$51,0) -> 0 | AO12: 0 | AP12: =IF(OR($O12>$AM$5,$O12=""),(AF12+AH12)*Tabelle!$P$51,0) -> 0 | AQ12: 0 | AR12: 0 | AS12: 0 | AT12: 0 | AV12: =+IFERROR(IF($H12<=AW$5,VLOOKUP($H12,Tabelle!$N$10:$Q$58,4,FALSE),0),0) -> 0.000 | AW12: 0 | AX12: =IF(OR($O12>$AW$5,$O12=""),(AN12+AQ12)*Tabelle!$Q$52,0) -> 0 | AY12: 0 | AZ12: =IF(OR($O12>$AW$5,$O12=""),(AP12+AR12)*Tabelle!$Q$52,0) -> 0 | BA12: 0 | BB12: 0 | BC12: 0 | BD12: 0 | BF12: =+IFERROR(IF($H12<=BG$5,VLOOKUP($H12,Tabelle!$N$10:$R$58,5,FALSE),0),0) -> 0.000 | BG12: 0 | BH12: =IF(OR($O12>$BG$5,$O12=""),(AX12+BA12)*Tabelle!$R$53,0) -> 0 | BI12: 0 | BJ12: =IF(OR($O12>$BG$5,$O12=""),(AZ12+BB12)*Tabelle!$R$53,0) -> 0 | BK12: 0 | BL12: 0 | BM12: 0 | BN12: 0 | BP12: =+IFERROR(IF($H12<=BQ$5,VLOOKUP($H12,Tabelle!$N$10:$S$58,6,FALSE),0),0) -> 0.000 | BQ12: 0 | BR12: =IF(OR($O12>$BQ$5,$O12=""),(BH12+BK12)*Tabelle!$S$54,0) -> 0 | BS12: 0 | BT12: =IF(OR($O12>$BQ$5,$O12=""),(BJ12+BL12)*Tabelle!$S$54,0) -> 0 | BU12: 0 | BV12: 0 | BW12: 0 | BX12: 0 | BZ12: =+IFERROR(IF($H12<=CA$5,VLOOKUP($H12,Tabelle!$N$10:$T$58,7,FALSE),0),0) -> 0.000 | CA12: 0 | CB12: =IF(OR($O12>$CA$5,$O12=""),+(BR12+BU12)*Tabelle!$T$55,0) -> 0 | CC12: 0 | CD12: =IF(OR($O12>$CA$5,$O12=""),+(BT12+BV12)*Tabelle!$T$55,0) -> 0 | CE12: 0 | CF12: 0 | CG12: 0 | CH12: 0 | CJ12: =+IFERROR(IF($H12<=CK$5,VLOOKUP($H12,Tabelle!$N$10:$U$58,8,FALSE),0),0) -> 0.000 | CK12: 0 | CL12: =IF(OR($O12>$CK$5,$O12=""),+(CB12+CE12)*Tabelle!$U$56,0) -> 0 | CM12: 0 | CN12: =IF(OR($O12>$CK$5,$O12=""),+(CD12+CF12)*Tabelle!$U$56,0) -> 0 | CO12: 0 | CP12: 0 | CQ12: 0 | CR12: 0 | CT12: =+IFERROR(IF($H12<=CU$5,VLOOKUP($H12,Tabelle!$N$10:$V$58,9,FALSE),0),0) -> 0.000 | CU12: 0 | CV12: =IF(OR($O12>CU$5,$O12=""),(CL12+CO12)*Tabelle!$V$57,0) -> 0 | CW12: 0 | CX12: =IF(OR($O12>CU$5,$O12=""),(CN12+CP12)*Tabelle!$V$57,0) -> 0 | CY12: 0 | CZ12: 0 | DA12: 0 | DB12: 0 | DD12: =+IFERROR(IF($H12<=DE$5,VLOOKUP($H12,Tabelle!$N$10:$W$59,10,FALSE),0),0) -> 0.000 | DE12: 0 | DF12: =IF(OR($O12>DE$5,$O12=""),+(CV12+CY12)*Tabelle!$W$58,0) -> 0 | DG12: 0 | DH12: =IF(OR($O12>DE$5,$O12=""),+(CX12+CZ12)*Tabelle!$W$58,0) -> 0 | DI12: 0 | DJ12: 0 | DK12: 0 | DL12: 0 | DN12: =+IFERROR(IF($H12<=DO$5,VLOOKUP($H12,Tabelle!$N$10:$X$60,11,FALSE),0),0) -> 0.000 | DO12: 0 | DP12: =IF(OR($O12>DO$5,$O12=""),+(DF12+DI12)*Tabelle!$X$59,0) -> 0 | DQ12: 0 | DR12: =IF(OR($O12>DO$5,$O12=""),+(DH12+DJ12)*Tabelle!$X$59,0) -> 0 | DS12: 0 | DT12: 0 | DU12: 0 | DV12: 0 | DX12: =+IFERROR(IF($H12<=DY$5,VLOOKUP($H12,Tabelle!$N$10:$Y$61,12,FALSE),0),0) -> 0.000 | DY12: 0 | DZ12: =IF(OR($O12>DY$5,$O12=""),+(DP12+DS12)*Tabelle!$Y$60,0) -> 0 | EA12: 0 | EB12: =IF(OR($O12>DY$5,$O12=""),+(DR12+DT12)*Tabelle!$Y$60,0) -> 0 | EC12: 0 | ED12: 0 | EE12: 0 | EF12: 0 | EH12: =+IFERROR(IF($H12<=EI$5,VLOOKUP($H12,Tabelle!$N$10:$Z$62,13,FALSE),0),0) -> 0.000 | EI12: 0 | EJ12: =IF(OR($O12>EI$5,$O12=""),+(DZ12+EC12)*Tabelle!$Z$61,0) -> 0 | EK12: 0 | EL12: =IF(OR($O12>EI$5,$O12=""),+(EB12+ED12)*Tabelle!$Z$61,0) -> 0 | EM12: 0 | EN12: 0 | EO12: 0 | EP12: 0
D13: =++IFERROR(INDEX(Tabelle!$H$11:$H$16,MATCH(IN_Cespiti!E13,Tabelle!$I$11:$I$16,0)),"") ->  | F13: =++IFERROR(INDEX(Tabelle!$C$10:$C$44,MATCH(IN_Cespiti!G13,Tabelle!$E$10:$E$44,0)),"") ->  | Q13: =IF($D13=3,$M13,+IFERROR(VLOOKUP(CONCATENATE(D13,".",F13),Tabelle!$D$10:$F$44,3,),"")) ->  | T13: =+IF(R13="",Q13,+IF(R13=Tabelle!$B$105,IN_Cespiti!Q13,IF(OR(R13=Tabelle!$B$103,R13=Tabelle!$B$104),IN_Cespiti!S13,0))) ->  | W13: =+IF(U13="",T13,+IF(U13=Tabelle!$B$105,IN_Cespiti!T13,IF(OR(U13=Tabelle!$B$103,U13=Tabelle!$B$104),IN_Cespiti!V13,0))) ->  | Z13: =+IF(OR(X13="",X13=Tabelle!$B$105),W13,Y13) ->  | AB13: =+IFERROR(IF($H13<=2017,VLOOKUP($H13,Tabelle!$N$10:$O$58,2,FALSE),0),0) -> 0.000 | AC13: 0 | AD13: 0 | AE13: 0 | AF13: 0 | AG13: 0 | AH13: 0 | AI13: 0 | AJ13: 0 | AL13: =+IFERROR(IF($H13<=AM$5,VLOOKUP($H13,Tabelle!$N$10:$P$58,3,FALSE),0),0) -> 0.000 | AM13: 0 | AN13: =IF(OR($O13>$AM$5,$O13=""),(AD13+AG13)*Tabelle!$P$51,0) -> 0 | AO13: 0 | AP13: =IF(OR($O13>$AM$5,$O13=""),(AF13+AH13)*Tabelle!$P$51,0) -> 0 | AQ13: 0 | AR13: 0 | AS13: 0 | AT13: 0 | AV13: =+IFERROR(IF($H13<=AW$5,VLOOKUP($H13,Tabelle!$N$10:$Q$58,4,FALSE),0),0) -> 0.000 | AW13: 0 | AX13: =IF(OR($O13>$AW$5,$O13=""),(AN13+AQ13)*Tabelle!$Q$52,0) -> 0 | AY13: 0 | AZ13: =IF(OR($O13>$AW$5,$O13=""),(AP13+AR13)*Tabelle!$Q$52,0) -> 0 | BA13: 0 | BB13: 0 | BC13: 0 | BD13: 0 | BF13: =+IFERROR(IF($H13<=BG$5,VLOOKUP($H13,Tabelle!$N$10:$R$58,5,FALSE),0),0) -> 0.000 | BG13: 0 | BH13: =IF(OR($O13>$BG$5,$O13=""),(AX13+BA13)*Tabelle!$R$53,0) -> 0 | BI13: 0 | BJ13: =IF(OR($O13>$BG$5,$O13=""),(AZ13+BB13)*Tabelle!$R$53,0) -> 0 | BK13: 0 | BL13: 0 | BM13: 0 | BN13: 0 | BP13: =+IFERROR(IF($H13<=BQ$5,VLOOKUP($H13,Tabelle!$N$10:$S$58,6,FALSE),0),0) -> 0.000 | BQ13: 0 | BR13: =IF(OR($O13>$BQ$5,$O13=""),(BH13+BK13)*Tabelle!$S$54,0) -> 0 | BS13: 0 | BT13: =IF(OR($O13>$BQ$5,$O13=""),(BJ13+BL13)*Tabelle!$S$54,0) -> 0 | BU13: 0 | BV13: 0 | BW13: 0 | BX13: 0 | BZ13: =+IFERROR(IF($H13<=CA$5,VLOOKUP($H13,Tabelle!$N$10:$T$58,7,FALSE),0),0) -> 0.000 | CA13: 0 | CB13: =IF(OR($O13>$CA$5,$O13=""),+(BR13+BU13)*Tabelle!$T$55,0) -> 0 | CC13: 0 | CD13: =IF(OR($O13>$CA$5,$O13=""),+(BT13+BV13)*Tabelle!$T$55,0) -> 0 | CE13: 0 | CF13: 0 | CG13: 0 | CH13: 0 | CJ13: =+IFERROR(IF($H13<=CK$5,VLOOKUP($H13,Tabelle!$N$10:$U$58,8,FALSE),0),0) -> 0.000 | CK13: 0 | CL13: =IF(OR($O13>$CK$5,$O13=""),+(CB13+CE13)*Tabelle!$U$56,0) -> 0 | CM13: 0 | CN13: =IF(OR($O13>$CK$5,$O13=""),+(CD13+CF13)*Tabelle!$U$56,0) -> 0 | CO13: 0 | CP13: 0 | CQ13: 0 | CR13: 0 | CT13: =+IFERROR(IF($H13<=CU$5,VLOOKUP($H13,Tabelle!$N$10:$V$58,9,FALSE),0),0) -> 0.000 | CU13: 0 | CV13: =IF(OR($O13>CU$5,$O13=""),(CL13+CO13)*Tabelle!$V$57,0) -> 0 | CW13: 0 | CX13: =IF(OR($O13>CU$5,$O13=""),(CN13+CP13)*Tabelle!$V$57,0) -> 0 | CY13: 0 | CZ13: 0 | DA13: 0 | DB13: 0 | DD13: =+IFERROR(IF($H13<=DE$5,VLOOKUP($H13,Tabelle!$N$10:$W$59,10,FALSE),0),0) -> 0.000 | DE13: 0 | DF13: =IF(OR($O13>DE$5,$O13=""),+(CV13+CY13)*Tabelle!$W$58,0) -> 0 | DG13: 0 | DH13: =IF(OR($O13>DE$5,$O13=""),+(CX13+CZ13)*Tabelle!$W$58,0) -> 0 | DI13: 0 | DJ13: 0 | DK13: 0 | DL13: 0 | DN13: =+IFERROR(IF($H13<=DO$5,VLOOKUP($H13,Tabelle!$N$10:$X$60,11,FALSE),0),0) -> 0.000 | DO13: 0 | DP13: =IF(OR($O13>DO$5,$O13=""),+(DF13+DI13)*Tabelle!$X$59,0) -> 0 | DQ13: 0 | DR13: =IF(OR($O13>DO$5,$O13=""),+(DH13+DJ13)*Tabelle!$X$59,0) -> 0 | DS13: 0 | DT13: 0 | DU13: 0 | DV13: 0 | DX13: =+IFERROR(IF($H13<=DY$5,VLOOKUP($H13,Tabelle!$N$10:$Y$61,12,FALSE),0),0) -> 0.000 | DY13: 0 | DZ13: =IF(OR($O13>DY$5,$O13=""),+(DP13+DS13)*Tabelle!$Y$60,0) -> 0 | EA13: 0 | EB13: =IF(OR($O13>DY$5,$O13=""),+(DR13+DT13)*Tabelle!$Y$60,0) -> 0 | EC13: 0 | ED13: 0 | EE13: 0 | EF13: 0 | EH13: =+IFERROR(IF($H13<=EI$5,VLOOKUP($H13,Tabelle!$N$10:$Z$62,13,FALSE),0),0) -> 0.000 | EI13: 0 | EJ13: =IF(OR($O13>EI$5,$O13=""),+(DZ13+EC13)*Tabelle!$Z$61,0) -> 0 | EK13: 0 | EL13: =IF(OR($O13>EI$5,$O13=""),+(EB13+ED13)*Tabelle!$Z$61,0) -> 0 | EM13: 0 | EN13: 0 | EO13: 0 | EP13: 0
D14: =++IFERROR(INDEX(Tabelle!$H$11:$H$16,MATCH(IN_Cespiti!E14,Tabelle!$I$11:$I$16,0)),"") ->  | F14: =++IFERROR(INDEX(Tabelle!$C$10:$C$44,MATCH(IN_Cespiti!G14,Tabelle!$E$10:$E$44,0)),"") ->  | Q14: =IF($D14=3,$M14,+IFERROR(VLOOKUP(CONCATENATE(D14,".",F14),Tabelle!$D$10:$F$44,3,),"")) ->  | T14: =+IF(R14="",Q14,+IF(R14=Tabelle!$B$105,IN_Cespiti!Q14,IF(OR(R14=Tabelle!$B$103,R14=Tabelle!$B$104),IN_Cespiti!S14,0))) ->  | W14: =+IF(U14="",T14,+IF(U14=Tabelle!$B$105,IN_Cespiti!T14,IF(OR(U14=Tabelle!$B$103,U14=Tabelle!$B$104),IN_Cespiti!V14,0))) ->  | Z14: =+IF(OR(X14="",X14=Tabelle!$B$105),W14,Y14) ->  | AB14: =+IFERROR(IF($H14<=2017,VLOOKUP($H14,Tabelle!$N$10:$O$58,2,FALSE),0),0) -> 0.000 | AC14: 0 | AD14: 0 | AE14: 0 | AF14: 0 | AG14: 0 | AH14: 0 | AI14: 0 | AJ14: 0 | AL14: =+IFERROR(IF($H14<=AM$5,VLOOKUP($H14,Tabelle!$N$10:$P$58,3,FALSE),0),0) -> 0.000 | AM14: 0 | AN14: =IF(OR($O14>$AM$5,$O14=""),(AD14+AG14)*Tabelle!$P$51,0) -> 0 | AO14: 0 | AP14: =IF(OR($O14>$AM$5,$O14=""),(AF14+AH14)*Tabelle!$P$51,0) -> 0 | AQ14: 0 | AR14: 0 | AS14: 0 | AT14: 0 | AV14: =+IFERROR(IF($H14<=AW$5,VLOOKUP($H14,Tabelle!$N$10:$Q$58,4,FALSE),0),0) -> 0.000 | AW14: 0 | AX14: =IF(OR($O14>$AW$5,$O14=""),(AN14+AQ14)*Tabelle!$Q$52,0) -> 0 | AY14: 0 | AZ14: =IF(OR($O14>$AW$5,$O14=""),(AP14+AR14)*Tabelle!$Q$52,0) -> 0 | BA14: 0 | BB14: 0 | BC14: 0 | BD14: 0 | BF14: =+IFERROR(IF($H14<=BG$5,VLOOKUP($H14,Tabelle!$N$10:$R$58,5,FALSE),0),0) -> 0.000 | BG14: 0 | BH14: =IF(OR($O14>$BG$5,$O14=""),(AX14+BA14)*Tabelle!$R$53,0) -> 0 | BI14: 0 | BJ14: =IF(OR($O14>$BG$5,$O14=""),(AZ14+BB14)*Tabelle!$R$53,0) -> 0 | BK14: 0 | BL14: 0 | BM14: 0 | BN14: 0 | BP14: =+IFERROR(IF($H14<=BQ$5,VLOOKUP($H14,Tabelle!$N$10:$S$58,6,FALSE),0),0) -> 0.000 | BQ14: 0 | BR14: =IF(OR($O14>$BQ$5,$O14=""),(BH14+BK14)*Tabelle!$S$54,0) -> 0 | BS14: 0 | BT14: =IF(OR($O14>$BQ$5,$O14=""),(BJ14+BL14)*Tabelle!$S$54,0) -> 0 | BU14: 0 | BV14: 0 | BW14: 0 | BX14: 0 | BZ14: =+IFERROR(IF($H14<=CA$5,VLOOKUP($H14,Tabelle!$N$10:$T$58,7,FALSE),0),0) -> 0.000 | CA14: 0 | CB14: =IF(OR($O14>$CA$5,$O14=""),+(BR14+BU14)*Tabelle!$T$55,0) -> 0 | CC14: 0 | CD14: =IF(OR($O14>$CA$5,$O14=""),+(BT14+BV14)*Tabelle!$T$55,0) -> 0 | CE14: 0 | CF14: 0 | CG14: 0 | CH14: 0 | CJ14: =+IFERROR(IF($H14<=CK$5,VLOOKUP($H14,Tabelle!$N$10:$U$58,8,FALSE),0),0) -> 0.000 | CK14: 0 | CL14: =IF(OR($O14>$CK$5,$O14=""),+(CB14+CE14)*Tabelle!$U$56,0) -> 0 | CM14: 0 | CN14: =IF(OR($O14>$CK$5,$O14=""),+(CD14+CF14)*Tabelle!$U$56,0) -> 0 | CO14: 0 | CP14: 0 | CQ14: 0 | CR14: 0 | CT14: =+IFERROR(IF($H14<=CU$5,VLOOKUP($H14,Tabelle!$N$10:$V$58,9,FALSE),0),0) -> 0.000 | CU14: 0 | CV14: =IF(OR($O14>CU$5,$O14=""),(CL14+CO14)*Tabelle!$V$57,0) -> 0 | CW14: 0 | CX14: =IF(OR($O14>CU$5,$O14=""),(CN14+CP14)*Tabelle!$V$57,0) -> 0 | CY14: 0 | CZ14: 0 | DA14: 0 | DB14: 0 | DD14: =+IFERROR(IF($H14<=DE$5,VLOOKUP($H14,Tabelle!$N$10:$W$59,10,FALSE),0),0) -> 0.000 | DE14: 0 | DF14: =IF(OR($O14>DE$5,$O14=""),+(CV14+CY14)*Tabelle!$W$58,0) -> 0 | DG14: 0 | DH14: =IF(OR($O14>DE$5,$O14=""),+(CX14+CZ14)*Tabelle!$W$58,0) -> 0 | DI14: 0 | DJ14: 0 | DK14: 0 | DL14: 0 | DN14: =+IFERROR(IF($H14<=DO$5,VLOOKUP($H14,Tabelle!$N$10:$X$60,11,FALSE),0),0) -> 0.000 | DO14: 0 | DP14: =IF(OR($O14>DO$5,$O14=""),+(DF14+DI14)*Tabelle!$X$59,0) -> 0 | DQ14: 0 | DR14: =IF(OR($O14>DO$5,$O14=""),+(DH14+DJ14)*Tabelle!$X$59,0) -> 0 | DS14: 0 | DT14: 0 | DU14: 0 | DV14: 0 | DX14: =+IFERROR(IF($H14<=DY$5,VLOOKUP($H14,Tabelle!$N$10:$Y$61,12,FALSE),0),0) -> 0.000 | DY14: 0 | DZ14: =IF(OR($O14>DY$5,$O14=""),+(DP14+DS14)*Tabelle!$Y$60,0) -> 0 | EA14: 0 | EB14: =IF(OR($O14>DY$5,$O14=""),+(DR14+DT14)*Tabelle!$Y$60,0) -> 0 | EC14: 0 | ED14: 0 | EE14: 0 | EF14: 0 | EH14: =+IFERROR(IF($H14<=EI$5,VLOOKUP($H14,Tabelle!$N$10:$Z$62,13,FALSE),0),0) -> 0.000 | EI14: 0 | EJ14: =IF(OR($O14>EI$5,$O14=""),+(DZ14+EC14)*Tabelle!$Z$61,0) -> 0 | EK14: 0 | EL14: =IF(OR($O14>EI$5,$O14=""),+(EB14+ED14)*Tabelle!$Z$61,0) -> 0 | EM14: 0 | EN14: 0 | EO14: 0 | EP14: 0
D15: =++IFERROR(INDEX(Tabelle!$H$11:$H$16,MATCH(IN_Cespiti!E15,Tabelle!$I$11:$I$16,0)),"") ->  | F15: =++IFERROR(INDEX(Tabelle!$C$10:$C$44,MATCH(IN_Cespiti!G15,Tabelle!$E$10:$E$44,0)),"") ->  | Q15: =IF($D15=3,$M15,+IFERROR(VLOOKUP(CONCATENATE(D15,".",F15),Tabelle!$D$10:$F$44,3,),"")) ->  | T15: =+IF(R15="",Q15,+IF(R15=Tabelle!$B$105,IN_Cespiti!Q15,IF(OR(R15=Tabelle!$B$103,R15=Tabelle!$B$104),IN_Cespiti!S15,0))) ->  | W15: =+IF(U15="",T15,+IF(U15=Tabelle!$B$105,IN_Cespiti!T15,IF(OR(U15=Tabelle!$B$103,U15=Tabelle!$B$104),IN_Cespiti!V15,0))) ->  | Z15: =+IF(OR(X15="",X15=Tabelle!$B$105),W15,Y15) ->  | AB15: =+IFERROR(IF($H15<=2017,VLOOKUP($H15,Tabelle!$N$10:$O$58,2,FALSE),0),0) -> 0.000 | AC15: 0 | AD15: 0 | AE15: 0 | AF15: 0 | AG15: 0 | AH15: 0 | AI15: 0 | AJ15: 0 | AL15: =+IFERROR(IF($H15<=AM$5,VLOOKUP($H15,Tabelle!$N$10:$P$58,3,FALSE),0),0) -> 0.000 | AM15: 0 | AN15: =IF(OR($O15>$AM$5,$O15=""),(AD15+AG15)*Tabelle!$P$51,0) -> 0 | AO15: 0 | AP15: =IF(OR($O15>$AM$5,$O15=""),(AF15+AH15)*Tabelle!$P$51,0) -> 0 | AQ15: 0 | AR15: 0 | AS15: 0 | AT15: 0 | AV15: =+IFERROR(IF($H15<=AW$5,VLOOKUP($H15,Tabelle!$N$10:$Q$58,4,FALSE),0),0) -> 0.000 | AW15: 0 | AX15: =IF(OR($O15>$AW$5,$O15=""),(AN15+AQ15)*Tabelle!$Q$52,0) -> 0 | AY15: 0 | AZ15: =IF(OR($O15>$AW$5,$O15=""),(AP15+AR15)*Tabelle!$Q$52,0) -> 0 | BA15: 0 | BB15: 0 | BC15: 0 | BD15: 0 | BF15: =+IFERROR(IF($H15<=BG$5,VLOOKUP($H15,Tabelle!$N$10:$R$58,5,FALSE),0),0) -> 0.000 | BG15: 0 | BH15: =IF(OR($O15>$BG$5,$O15=""),(AX15+BA15)*Tabelle!$R$53,0) -> 0 | BI15: 0 | BJ15: =IF(OR($O15>$BG$5,$O15=""),(AZ15+BB15)*Tabelle!$R$53,0) -> 0 | BK15: 0 | BL15: 0 | BM15: 0 | BN15: 0 | BP15: =+IFERROR(IF($H15<=BQ$5,VLOOKUP($H15,Tabelle!$N$10:$S$58,6,FALSE),0),0) -> 0.000 | BQ15: 0 | BR15: =IF(OR($O15>$BQ$5,$O15=""),(BH15+BK15)*Tabelle!$S$54,0) -> 0 | BS15: 0 | BT15: =IF(OR($O15>$BQ$5,$O15=""),(BJ15+BL15)*Tabelle!$S$54,0) -> 0 | BU15: 0 | BV15: 0 | BW15: 0 | BX15: 0 | BZ15: =+IFERROR(IF($H15<=CA$5,VLOOKUP($H15,Tabelle!$N$10:$T$58,7,FALSE),0),0) -> 0.000 | CA15: 0 | CB15: =IF(OR($O15>$CA$5,$O15=""),+(BR15+BU15)*Tabelle!$T$55,0) -> 0 | CC15: 0 | CD15: =IF(OR($O15>$CA$5,$O15=""),+(BT15+BV15)*Tabelle!$T$55,0) -> 0 | CE15: 0 | CF15: 0 | CG15: 0 | CH15: 0 | CJ15: =+IFERROR(IF($H15<=CK$5,VLOOKUP($H15,Tabelle!$N$10:$U$58,8,FALSE),0),0) -> 0.000 | CK15: 0 | CL15: =IF(OR($O15>$CK$5,$O15=""),+(CB15+CE15)*Tabelle!$U$56,0) -> 0 | CM15: 0 | CN15: =IF(OR($O15>$CK$5,$O15=""),+(CD15+CF15)*Tabelle!$U$56,0) -> 0 | CO15: 0 | CP15: 0 | CQ15: 0 | CR15: 0 | CT15: =+IFERROR(IF($H15<=CU$5,VLOOKUP($H15,Tabelle!$N$10:$V$58,9,FALSE),0),0) -> 0.000 | CU15: 0 | CV15: =IF(OR($O15>CU$5,$O15=""),(CL15+CO15)*Tabelle!$V$57,0) -> 0 | CW15: 0 | CX15: =IF(OR($O15>CU$5,$O15=""),(CN15+CP15)*Tabelle!$V$57,0) -> 0 | CY15: 0 | CZ15: 0 | DA15: 0 | DB15: 0 | DD15: =+IFERROR(IF($H15<=DE$5,VLOOKUP($H15,Tabelle!$N$10:$W$59,10,FALSE),0),0) -> 0.000 | DE15: 0 | DF15: =IF(OR($O15>DE$5,$O15=""),+(CV15+CY15)*Tabelle!$W$58,0) -> 0 | DG15: 0 | DH15: =IF(OR($O15>DE$5,$O15=""),+(CX15+CZ15)*Tabelle!$W$58,0) -> 0 | DI15: 0 | DJ15: 0 | DK15: 0 | DL15: 0 | DN15: =+IFERROR(IF($H15<=DO$5,VLOOKUP($H15,Tabelle!$N$10:$X$60,11,FALSE),0),0) -> 0.000 | DO15: 0 | DP15: =IF(OR($O15>DO$5,$O15=""),+(DF15+DI15)*Tabelle!$X$59,0) -> 0 | DQ15: 0 | DR15: =IF(OR($O15>DO$5,$O15=""),+(DH15+DJ15)*Tabelle!$X$59,0) -> 0 | DS15: 0 | DT15: 0 | DU15: 0 | DV15: 0 | DX15: =+IFERROR(IF($H15<=DY$5,VLOOKUP($H15,Tabelle!$N$10:$Y$61,12,FALSE),0),0) -> 0.000 | DY15: 0 | DZ15: =IF(OR($O15>DY$5,$O15=""),+(DP15+DS15)*Tabelle!$Y$60,0) -> 0 | EA15: 0 | EB15: =IF(OR($O15>DY$5,$O15=""),+(DR15+DT15)*Tabelle!$Y$60,0) -> 0 | EC15: 0 | ED15: 0 | EE15: 0 | EF15: 0 | EH15: =+IFERROR(IF($H15<=EI$5,VLOOKUP($H15,Tabelle!$N$10:$Z$62,13,FALSE),0),0) -> 0.000 | EI15: 0 | EJ15: =IF(OR($O15>EI$5,$O15=""),+(DZ15+EC15)*Tabelle!$Z$61,0) -> 0 | EK15: 0 | EL15: =IF(OR($O15>EI$5,$O15=""),+(EB15+ED15)*Tabelle!$Z$61,0) -> 0 | EM15: 0 | EN15: 0 | EO15: 0 | EP15: 0
D16: =++IFERROR(INDEX(Tabelle!$H$11:$H$16,MATCH(IN_Cespiti!E16,Tabelle!$I$11:$I$16,0)),"") ->  | F16: =++IFERROR(INDEX(Tabelle!$C$10:$C$44,MATCH(IN_Cespiti!G16,Tabelle!$E$10:$E$44,0)),"") ->  | Q16: =IF($D16=3,$M16,+IFERROR(VLOOKUP(CONCATENATE(D16,".",F16),Tabelle!$D$10:$F$44,3,),"")) ->  | T16: =+IF(R16="",Q16,+IF(R16=Tabelle!$B$105,IN_Cespiti!Q16,IF(OR(R16=Tabelle!$B$103,R16=Tabelle!$B$104),IN_Cespiti!S16,0))) ->  | W16: =+IF(U16="",T16,+IF(U16=Tabelle!$B$105,IN_Cespiti!T16,IF(OR(U16=Tabelle!$B$103,U16=Tabelle!$B$104),IN_Cespiti!V16,0))) ->  | Z16: =+IF(OR(X16="",X16=Tabelle!$B$105),W16,Y16) ->  | AB16: =+IFERROR(IF($H16<=2017,VLOOKUP($H16,Tabelle!$N$10:$O$58,2,FALSE),0),0) -> 0.000 | AC16: 0 | AD16: 0 | AE16: 0 | AF16: 0 | AG16: 0 | AH16: 0 | AI16: 0 | AJ16: 0 | AL16: =+IFERROR(IF($H16<=AM$5,VLOOKUP($H16,Tabelle!$N$10:$P$58,3,FALSE),0),0) -> 0.000 | AM16: 0 | AN16: =IF(OR($O16>$AM$5,$O16=""),(AD16+AG16)*Tabelle!$P$51,0) -> 0 | AO16: 0 | AP16: =IF(OR($O16>$AM$5,$O16=""),(AF16+AH16)*Tabelle!$P$51,0) -> 0 | AQ16: 0 | AR16: 0 | AS16: 0 | AT16: 0 | AV16: =+IFERROR(IF($H16<=AW$5,VLOOKUP($H16,Tabelle!$N$10:$Q$58,4,FALSE),0),0) -> 0.000 | AW16: 0 | AX16: =IF(OR($O16>$AW$5,$O16=""),(AN16+AQ16)*Tabelle!$Q$52,0) -> 0 | AY16: 0 | AZ16: =IF(OR($O16>$AW$5,$O16=""),(AP16+AR16)*Tabelle!$Q$52,0) -> 0 | BA16: 0 | BB16: 0 | BC16: 0 | BD16: 0 | BF16: =+IFERROR(IF($H16<=BG$5,VLOOKUP($H16,Tabelle!$N$10:$R$58,5,FALSE),0),0) -> 0.000 | BG16: 0 | BH16: =IF(OR($O16>$BG$5,$O16=""),(AX16+BA16)*Tabelle!$R$53,0) -> 0 | BI16: 0 | BJ16: =IF(OR($O16>$BG$5,$O16=""),(AZ16+BB16)*Tabelle!$R$53,0) -> 0 | BK16: 0 | BL16: 0 | BM16: 0 | BN16: 0 | BP16: =+IFERROR(IF($H16<=BQ$5,VLOOKUP($H16,Tabelle!$N$10:$S$58,6,FALSE),0),0) -> 0.000 | BQ16: 0 | BR16: =IF(OR($O16>$BQ$5,$O16=""),(BH16+BK16)*Tabelle!$S$54,0) -> 0 | BS16: 0 | BT16: =IF(OR($O16>$BQ$5,$O16=""),(BJ16+BL16)*Tabelle!$S$54,0) -> 0 | BU16: 0 | BV16: 0 | BW16: 0 | BX16: 0 | BZ16: =+IFERROR(IF($H16<=CA$5,VLOOKUP($H16,Tabelle!$N$10:$T$58,7,FALSE),0),0) -> 0.000 | CA16: 0 | CB16: =IF(OR($O16>$CA$5,$O16=""),+(BR16+BU16)*Tabelle!$T$55,0) -> 0 | CC16: 0 | CD16: =IF(OR($O16>$CA$5,$O16=""),+(BT16+BV16)*Tabelle!$T$55,0) -> 0 | CE16: 0 | CF16: 0 | CG16: 0 | CH16: 0 | CJ16: =+IFERROR(IF($H16<=CK$5,VLOOKUP($H16,Tabelle!$N$10:$U$58,8,FALSE),0),0) -> 0.000 | CK16: 0 | CL16: =IF(OR($O16>$CK$5,$O16=""),+(CB16+CE16)*Tabelle!$U$56,0) -> 0 | CM16: 0 | CN16: =IF(OR($O16>$CK$5,$O16=""),+(CD16+CF16)*Tabelle!$U$56,0) -> 0 | CO16: 0 | CP16: 0 | CQ16: 0 | CR16: 0 | CT16: =+IFERROR(IF($H16<=CU$5,VLOOKUP($H16,Tabelle!$N$10:$V$58,9,FALSE),0),0) -> 0.000 | CU16: 0 | CV16: =IF(OR($O16>CU$5,$O16=""),(CL16+CO16)*Tabelle!$V$57,0) -> 0 | CW16: 0 | CX16: =IF(OR($O16>CU$5,$O16=""),(CN16+CP16)*Tabelle!$V$57,0) -> 0 | CY16: 0 | CZ16: 0 | DA16: 0 | DB16: 0 | DD16: =+IFERROR(IF($H16<=DE$5,VLOOKUP($H16,Tabelle!$N$10:$W$59,10,FALSE),0),0) -> 0.000 | DE16: 0 | DF16: =IF(OR($O16>DE$5,$O16=""),+(CV16+CY16)*Tabelle!$W$58,0) -> 0 | DG16: 0 | DH16: =IF(OR($O16>DE$5,$O16=""),+(CX16+CZ16)*Tabelle!$W$58,0) -> 0 | DI16: 0 | DJ16: 0 | DK16: 0 | DL16: 0 | DN16: =+IFERROR(IF($H16<=DO$5,VLOOKUP($H16,Tabelle!$N$10:$X$60,11,FALSE),0),0) -> 0.000 | DO16: 0 | DP16: =IF(OR($O16>DO$5,$O16=""),+(DF16+DI16)*Tabelle!$X$59,0) -> 0 | DQ16: 0 | DR16: =IF(OR($O16>DO$5,$O16=""),+(DH16+DJ16)*Tabelle!$X$59,0) -> 0 | DS16: 0 | DT16: 0 | DU16: 0 | DV16: 0 | DX16: =+IFERROR(IF($H16<=DY$5,VLOOKUP($H16,Tabelle!$N$10:$Y$61,12,FALSE),0),0) -> 0.000 | DY16: 0 | DZ16: =IF(OR($O16>DY$5,$O16=""),+(DP16+DS16)*Tabelle!$Y$60,0) -> 0 | EA16: 0 | EB16: =IF(OR($O16>DY$5,$O16=""),+(DR16+DT16)*Tabelle!$Y$60,0) -> 0 | EC16: 0 | ED16: 0 | EE16: 0 | EF16: 0 | EH16: =+IFERROR(IF($H16<=EI$5,VLOOKUP($H16,Tabelle!$N$10:$Z$62,13,FALSE),0),0) -> 0.000 | EI16: 0 | EJ16: =IF(OR($O16>EI$5,$O16=""),+(DZ16+EC16)*Tabelle!$Z$61,0) -> 0 | EK16: 0 | EL16: =IF(OR($O16>EI$5,$O16=""),+(EB16+ED16)*Tabelle!$Z$61,0) -> 0 | EM16: 0 | EN16: 0 | EO16: 0 | EP16: 0
D17: =++IFERROR(INDEX(Tabelle!$H$11:$H$16,MATCH(IN_Cespiti!E17,Tabelle!$I$11:$I$16,0)),"") ->  | F17: =++IFERROR(INDEX(Tabelle!$C$10:$C$44,MATCH(IN_Cespiti!G17,Tabelle!$E$10:$E$44,0)),"") ->  | Q17: =IF($D17=3,$M17,+IFERROR(VLOOKUP(CONCATENATE(D17,".",F17),Tabelle!$D$10:$F$44,3,),"")) ->  | T17: =+IF(R17="",Q17,+IF(R17=Tabelle!$B$105,IN_Cespiti!Q17,IF(OR(R17=Tabelle!$B$103,R17=Tabelle!$B$104),IN_Cespiti!S17,0))) ->  | W17: =+IF(U17="",T17,+IF(U17=Tabelle!$B$105,IN_Cespiti!T17,IF(OR(U17=Tabelle!$B$103,U17=Tabelle!$B$104),IN_Cespiti!V17,0))) ->  | Z17: =+IF(OR(X17="",X17=Tabelle!$B$105),W17,Y17) ->  | AB17: =+IFERROR(IF($H17<=2017,VLOOKUP($H17,Tabelle!$N$10:$O$58,2,FALSE),0),0) -> 0.000 | AC17: 0 | AD17: 0 | AE17: 0 | AF17: 0 | AG17: 0 | AH17: 0 | AI17: 0 | AJ17: 0 | AL17: =+IFERROR(IF($H17<=AM$5,VLOOKUP($H17,Tabelle!$N$10:$P$58,3,FALSE),0),0) -> 0.000 | AM17: 0 | AN17: =IF(OR($O17>$AM$5,$O17=""),(AD17+AG17)*Tabelle!$P$51,0) -> 0 | AO17: 0 | AP17: =IF(OR($O17>$AM$5,$O17=""),(AF17+AH17)*Tabelle!$P$51,0) -> 0 | AQ17: 0 | AR17: 0 | AS17: 0 | AT17: 0 | AV17: =+IFERROR(IF($H17<=AW$5,VLOOKUP($H17,Tabelle!$N$10:$Q$58,4,FALSE),0),0) -> 0.000 | AW17: 0 | AX17: =IF(OR($O17>$AW$5,$O17=""),(AN17+AQ17)*Tabelle!$Q$52,0) -> 0 | AY17: 0 | AZ17: =IF(OR($O17>$AW$5,$O17=""),(AP17+AR17)*Tabelle!$Q$52,0) -> 0 | BA17: 0 | BB17: 0 | BC17: 0 | BD17: 0 | BF17: =+IFERROR(IF($H17<=BG$5,VLOOKUP($H17,Tabelle!$N$10:$R$58,5,FALSE),0),0) -> 0.000 | BG17: 0 | BH17: =IF(OR($O17>$BG$5,$O17=""),(AX17+BA17)*Tabelle!$R$53,0) -> 0 | BI17: 0 | BJ17: =IF(OR($O17>$BG$5,$O17=""),(AZ17+BB17)*Tabelle!$R$53,0) -> 0 | BK17: 0 | BL17: 0 | BM17: 0 | BN17: 0 | BP17: =+IFERROR(IF($H17<=BQ$5,VLOOKUP($H17,Tabelle!$N$10:$S$58,6,FALSE),0),0) -> 0.000 | BQ17: 0 | BR17: =IF(OR($O17>$BQ$5,$O17=""),(BH17+BK17)*Tabelle!$S$54,0) -> 0 | BS17: 0 | BT17: =IF(OR($O17>$BQ$5,$O17=""),(BJ17+BL17)*Tabelle!$S$54,0) -> 0 | BU17: 0 | BV17: 0 | BW17: 0 | BX17: 0 | BZ17: =+IFERROR(IF($H17<=CA$5,VLOOKUP($H17,Tabelle!$N$10:$T$58,7,FALSE),0),0) -> 0.000 | CA17: 0 | CB17: =IF(OR($O17>$CA$5,$O17=""),+(BR17+BU17)*Tabelle!$T$55,0) -> 0 | CC17: 0 | CD17: =IF(OR($O17>$CA$5,$O17=""),+(BT17+BV17)*Tabelle!$T$55,0) -> 0 | CE17: 0 | CF17: 0 | CG17: 0 | CH17: 0 | CJ17: =+IFERROR(IF($H17<=CK$5,VLOOKUP($H17,Tabelle!$N$10:$U$58,8,FALSE),0),0) -> 0.000 | CK17: 0 | CL17: =IF(OR($O17>$CK$5,$O17=""),+(CB17+CE17)*Tabelle!$U$56,0) -> 0 | CM17: 0 | CN17: =IF(OR($O17>$CK$5,$O17=""),+(CD17+CF17)*Tabelle!$U$56,0) -> 0 | CO17: 0 | CP17: 0 | CQ17: 0 | CR17: 0 | CT17: =+IFERROR(IF($H17<=CU$5,VLOOKUP($H17,Tabelle!$N$10:$V$58,9,FALSE),0),0) -> 0.000 | CU17: 0 | CV17: =IF(OR($O17>CU$5,$O17=""),(CL17+CO17)*Tabelle!$V$57,0) -> 0 | CW17: 0 | CX17: =IF(OR($O17>CU$5,$O17=""),(CN17+CP17)*Tabelle!$V$57,0) -> 0 | CY17: 0 | CZ17: 0 | DA17: 0 | DB17: 0 | DD17: =+IFERROR(IF($H17<=DE$5,VLOOKUP($H17,Tabelle!$N$10:$W$59,10,FALSE),0),0) -> 0.000 | DE17: 0 | DF17: =IF(OR($O17>DE$5,$O17=""),+(CV17+CY17)*Tabelle!$W$58,0) -> 0 | DG17: 0 | DH17: =IF(OR($O17>DE$5,$O17=""),+(CX17+CZ17)*Tabelle!$W$58,0) -> 0 | DI17: 0 | DJ17: 0 | DK17: 0 | DL17: 0 | DN17: =+IFERROR(IF($H17<=DO$5,VLOOKUP($H17,Tabelle!$N$10:$X$60,11,FALSE),0),0) -> 0.000 | DO17: 0 | DP17: =IF(OR($O17>DO$5,$O17=""),+(DF17+DI17)*Tabelle!$X$59,0) -> 0 | DQ17: 0 | DR17: =IF(OR($O17>DO$5,$O17=""),+(DH17+DJ17)*Tabelle!$X$59,0) -> 0 | DS17: 0 | DT17: 0 | DU17: 0 | DV17: 0 | DX17: =+IFERROR(IF($H17<=DY$5,VLOOKUP($H17,Tabelle!$N$10:$Y$61,12,FALSE),0),0) -> 0.000 | DY17: 0 | DZ17: =IF(OR($O17>DY$5,$O17=""),+(DP17+DS17)*Tabelle!$Y$60,0) -> 0 | EA17: 0 | EB17: =IF(OR($O17>DY$5,$O17=""),+(DR17+DT17)*Tabelle!$Y$60,0) -> 0 | EC17: 0 | ED17: 0 | EE17: 0 | EF17: 0 | EH17: =+IFERROR(IF($H17<=EI$5,VLOOKUP($H17,Tabelle!$N$10:$Z$62,13,FALSE),0),0) -> 0.000 | EI17: 0 | EJ17: =IF(OR($O17>EI$5,$O17=""),+(DZ17+EC17)*Tabelle!$Z$61,0) -> 0 | EK17: 0 | EL17: =IF(OR($O17>EI$5,$O17=""),+(EB17+ED17)*Tabelle!$Z$61,0) -> 0 | EM17: 0 | EN17: 0 | EO17: 0 | EP17: 0
D18: =++IFERROR(INDEX(Tabelle!$H$11:$H$16,MATCH(IN_Cespiti!E18,Tabelle!$I$11:$I$16,0)),"") ->  | F18: =++IFERROR(INDEX(Tabelle!$C$10:$C$44,MATCH(IN_Cespiti!G18,Tabelle!$E$10:$E$44,0)),"") ->  | Q18: =IF($D18=3,$M18,+IFERROR(VLOOKUP(CONCATENATE(D18,".",F18),Tabelle!$D$10:$F$44,3,),"")) ->  | T18: =+IF(R18="",Q18,+IF(R18=Tabelle!$B$105,IN_Cespiti!Q18,IF(OR(R18=Tabelle!$B$103,R18=Tabelle!$B$104),IN_Cespiti!S18,0))) ->  | W18: =+IF(U18="",T18,+IF(U18=Tabelle!$B$105,IN_Cespiti!T18,IF(OR(U18=Tabelle!$B$103,U18=Tabelle!$B$104),IN_Cespiti!V18,0))) ->  | Z18: =+IF(OR(X18="",X18=Tabelle!$B$105),W18,Y18) ->  | AB18: =+IFERROR(IF($H18<=2017,VLOOKUP($H18,Tabelle!$N$10:$O$58,2,FALSE),0),0) -> 0.000 | AC18: 0 | AD18: 0 | AE18: 0 | AF18: 0 | AG18: 0 | AH18: 0 | AI18: 0 | AJ18: 0 | AL18: =+IFERROR(IF($H18<=AM$5,VLOOKUP($H18,Tabelle!$N$10:$P$58,3,FALSE),0),0) -> 0.000 | AM18: 0 | AN18: =IF(OR($O18>$AM$5,$O18=""),(AD18+AG18)*Tabelle!$P$51,0) -> 0 | AO18: 0 | AP18: =IF(OR($O18>$AM$5,$O18=""),(AF18+AH18)*Tabelle!$P$51,0) -> 0 | AQ18: 0 | AR18: 0 | AS18: 0 | AT18: 0 | AV18: =+IFERROR(IF($H18<=AW$5,VLOOKUP($H18,Tabelle!$N$10:$Q$58,4,FALSE),0),0) -> 0.000 | AW18: 0 | AX18: =IF(OR($O18>$AW$5,$O18=""),(AN18+AQ18)*Tabelle!$Q$52,0) -> 0 | AY18: 0 | AZ18: =IF(OR($O18>$AW$5,$O18=""),(AP18+AR18)*Tabelle!$Q$52,0) -> 0 | BA18: 0 | BB18: 0 | BC18: 0 | BD18: 0 | BF18: =+IFERROR(IF($H18<=BG$5,VLOOKUP($H18,Tabelle!$N$10:$R$58,5,FALSE),0),0) -> 0.000 | BG18: 0 | BH18: =IF(OR($O18>$BG$5,$O18=""),(AX18+BA18)*Tabelle!$R$53,0) -> 0 | BI18: 0 | BJ18: =IF(OR($O18>$BG$5,$O18=""),(AZ18+BB18)*Tabelle!$R$53,0) -> 0 | BK18: 0 | BL18: 0 | BM18: 0 | BN18: 0 | BP18: =+IFERROR(IF($H18<=BQ$5,VLOOKUP($H18,Tabelle!$N$10:$S$58,6,FALSE),0),0) -> 0.000 | BQ18: 0 | BR18: =IF(OR($O18>$BQ$5,$O18=""),(BH18+BK18)*Tabelle!$S$54,0) -> 0 | BS18: 0 | BT18: =IF(OR($O18>$BQ$5,$O18=""),(BJ18+BL18)*Tabelle!$S$54,0) -> 0 | BU18: 0 | BV18: 0 | BW18: 0 | BX18: 0 | BZ18: =+IFERROR(IF($H18<=CA$5,VLOOKUP($H18,Tabelle!$N$10:$T$58,7,FALSE),0),0) -> 0.000 | CA18: 0 | CB18: =IF(OR($O18>$CA$5,$O18=""),+(BR18+BU18)*Tabelle!$T$55,0) -> 0 | CC18: 0 | CD18: =IF(OR($O18>$CA$5,$O18=""),+(BT18+BV18)*Tabelle!$T$55,0) -> 0 | CE18: 0 | CF18: 0 | CG18: 0 | CH18: 0 | CJ18: =+IFERROR(IF($H18<=CK$5,VLOOKUP($H18,Tabelle!$N$10:$U$58,8,FALSE),0),0) -> 0.000 | CK18: 0 | CL18: =IF(OR($O18>$CK$5,$O18=""),+(CB18+CE18)*Tabelle!$U$56,0) -> 0 | CM18: 0 | CN18: =IF(OR($O18>$CK$5,$O18=""),+(CD18+CF18)*Tabelle!$U$56,0) -> 0 | CO18: 0 | CP18: 0 | CQ18: 0 | CR18: 0 | CT18: =+IFERROR(IF($H18<=CU$5,VLOOKUP($H18,Tabelle!$N$10:$V$58,9,FALSE),0),0) -> 0.000 | CU18: 0 | CV18: =IF(OR($O18>CU$5,$O18=""),(CL18+CO18)*Tabelle!$V$57,0) -> 0 | CW18: 0 | CX18: =IF(OR($O18>CU$5,$O18=""),(CN18+CP18)*Tabelle!$V$57,0) -> 0 | CY18: 0 | CZ18: 0 | DA18: 0 | DB18: 0 | DD18: =+IFERROR(IF($H18<=DE$5,VLOOKUP($H18,Tabelle!$N$10:$W$59,10,FALSE),0),0) -> 0.000 | DE18: 0 | DF18: =IF(OR($O18>DE$5,$O18=""),+(CV18+CY18)*Tabelle!$W$58,0) -> 0 | DG18: 0 | DH18: =IF(OR($O18>DE$5,$O18=""),+(CX18+CZ18)*Tabelle!$W$58,0) -> 0 | DI18: 0 | DJ18: 0 | DK18: 0 | DL18: 0 | DN18: =+IFERROR(IF($H18<=DO$5,VLOOKUP($H18,Tabelle!$N$10:$X$60,11,FALSE),0),0) -> 0.000 | DO18: 0 | DP18: =IF(OR($O18>DO$5,$O18=""),+(DF18+DI18)*Tabelle!$X$59,0) -> 0 | DQ18: 0 | DR18: =IF(OR($O18>DO$5,$O18=""),+(DH18+DJ18)*Tabelle!$X$59,0) -> 0 | DS18: 0 | DT18: 0 | DU18: 0 | DV18: 0 | DX18: =+IFERROR(IF($H18<=DY$5,VLOOKUP($H18,Tabelle!$N$10:$Y$61,12,FALSE),0),0) -> 0.000 | DY18: 0 | DZ18: =IF(OR($O18>DY$5,$O18=""),+(DP18+DS18)*Tabelle!$Y$60,0) -> 0 | EA18: 0 | EB18: =IF(OR($O18>DY$5,$O18=""),+(DR18+DT18)*Tabelle!$Y$60,0) -> 0 | EC18: 0 | ED18: 0 | EE18: 0 | EF18: 0 | EH18: =+IFERROR(IF($H18<=EI$5,VLOOKUP($H18,Tabelle!$N$10:$Z$62,13,FALSE),0),0) -> 0.000 | EI18: 0 | EJ18: =IF(OR($O18>EI$5,$O18=""),+(DZ18+EC18)*Tabelle!$Z$61,0) -> 0 | EK18: 0 | EL18: =IF(OR($O18>EI$5,$O18=""),+(EB18+ED18)*Tabelle!$Z$61,0) -> 0 | EM18: 0 | EN18: 0 | EO18: 0 | EP18: 0
D19: =++IFERROR(INDEX(Tabelle!$H$11:$H$16,MATCH(IN_Cespiti!E19,Tabelle!$I$11:$I$16,0)),"") ->  | F19: =++IFERROR(INDEX(Tabelle!$C$10:$C$44,MATCH(IN_Cespiti!G19,Tabelle!$E$10:$E$44,0)),"") ->  | Q19: =IF($D19=3,$M19,+IFERROR(VLOOKUP(CONCATENATE(D19,".",F19),Tabelle!$D$10:$F$44,3,),"")) ->  | T19: =+IF(R19="",Q19,+IF(R19=Tabelle!$B$105,IN_Cespiti!Q19,IF(OR(R19=Tabelle!$B$103,R19=Tabelle!$B$104),IN_Cespiti!S19,0))) ->  | W19: =+IF(U19="",T19,+IF(U19=Tabelle!$B$105,IN_Cespiti!T19,IF(OR(U19=Tabelle!$B$103,U19=Tabelle!$B$104),IN_Cespiti!V19,0))) ->  | Z19: =+IF(OR(X19="",X19=Tabelle!$B$105),W19,Y19) ->  | AB19: =+IFERROR(IF($H19<=2017,VLOOKUP($H19,Tabelle!$N$10:$O$58,2,FALSE),0),0) -> 0.000 | AC19: 0 | AD19: 0 | AE19: 0 | AF19: 0 | AG19: 0 | AH19: 0 | AI19: 0 | AJ19: 0 | AL19: =+IFERROR(IF($H19<=AM$5,VLOOKUP($H19,Tabelle!$N$10:$P$58,3,FALSE),0),0) -> 0.000 | AM19: 0 | AN19: =IF(OR($O19>$AM$5,$O19=""),(AD19+AG19)*Tabelle!$P$51,0) -> 0 | AO19: 0 | AP19: =IF(OR($O19>$AM$5,$O19=""),(AF19+AH19)*Tabelle!$P$51,0) -> 0 | AQ19: 0 | AR19: 0 | AS19: 0 | AT19: 0 | AV19: =+IFERROR(IF($H19<=AW$5,VLOOKUP($H19,Tabelle!$N$10:$Q$58,4,FALSE),0),0) -> 0.000 | AW19: 0 | AX19: =IF(OR($O19>$AW$5,$O19=""),(AN19+AQ19)*Tabelle!$Q$52,0) -> 0 | AY19: 0 | AZ19: =IF(OR($O19>$AW$5,$O19=""),(AP19+AR19)*Tabelle!$Q$52,0) -> 0 | BA19: 0 | BB19: 0 | BC19: 0 | BD19: 0 | BF19: =+IFERROR(IF($H19<=BG$5,VLOOKUP($H19,Tabelle!$N$10:$R$58,5,FALSE),0),0) -> 0.000 | BG19: 0 | BH19: =IF(OR($O19>$BG$5,$O19=""),(AX19+BA19)*Tabelle!$R$53,0) -> 0 | BI19: 0 | BJ19: =IF(OR($O19>$BG$5,$O19=""),(AZ19+BB19)*Tabelle!$R$53,0) -> 0 | BK19: 0 | BL19: 0 | BM19: 0 | BN19: 0 | BP19: =+IFERROR(IF($H19<=BQ$5,VLOOKUP($H19,Tabelle!$N$10:$S$58,6,FALSE),0),0) -> 0.000 | BQ19: 0 | BR19: =IF(OR($O19>$BQ$5,$O19=""),(BH19+BK19)*Tabelle!$S$54,0) -> 0 | BS19: 0 | BT19: =IF(OR($O19>$BQ$5,$O19=""),(BJ19+BL19)*Tabelle!$S$54,0) -> 0 | BU19: 0 | BV19: 0 | BW19: 0 | BX19: 0 | BZ19: =+IFERROR(IF($H19<=CA$5,VLOOKUP($H19,Tabelle!$N$10:$T$58,7,FALSE),0),0) -> 0.000 | CA19: 0 | CB19: =IF(OR($O19>$CA$5,$O19=""),+(BR19+BU19)*Tabelle!$T$55,0) -> 0 | CC19: 0 | CD19: =IF(OR($O19>$CA$5,$O19=""),+(BT19+BV19)*Tabelle!$T$55,0) -> 0 | CE19: 0 | CF19: 0 | CG19: 0 | CH19: 0 | CJ19: =+IFERROR(IF($H19<=CK$5,VLOOKUP($H19,Tabelle!$N$10:$U$58,8,FALSE),0),0) -> 0.000 | CK19: 0 | CL19: =IF(OR($O19>$CK$5,$O19=""),+(CB19+CE19)*Tabelle!$U$56,0) -> 0 | CM19: 0 | CN19: =IF(OR($O19>$CK$5,$O19=""),+(CD19+CF19)*Tabelle!$U$56,0) -> 0 | CO19: 0 | CP19: 0 | CQ19: 0 | CR19: 0 | CT19: =+IFERROR(IF($H19<=CU$5,VLOOKUP($H19,Tabelle!$N$10:$V$58,9,FALSE),0),0) -> 0.000 | CU19: 0 | CV19: =IF(OR($O19>CU$5,$O19=""),(CL19+CO19)*Tabelle!$V$57,0) -> 0 | CW19: 0 | CX19: =IF(OR($O19>CU$5,$O19=""),(CN19+CP19)*Tabelle!$V$57,0) -> 0 | CY19: 0 | CZ19: 0 | DA19: 0 | DB19: 0 | DD19: =+IFERROR(IF($H19<=DE$5,VLOOKUP($H19,Tabelle!$N$10:$W$59,10,FALSE),0),0) -> 0.000 | DE19: 0 | DF19: =IF(OR($O19>DE$5,$O19=""),+(CV19+CY19)*Tabelle!$W$58,0) -> 0 | DG19: 0 | DH19: =IF(OR($O19>DE$5,$O19=""),+(CX19+CZ19)*Tabelle!$W$58,0) -> 0 | DI19: 0 | DJ19: 0 | DK19: 0 | DL19: 0 | DN19: =+IFERROR(IF($H19<=DO$5,VLOOKUP($H19,Tabelle!$N$10:$X$60,11,FALSE),0),0) -> 0.000 | DO19: 0 | DP19: =IF(OR($O19>DO$5,$O19=""),+(DF19+DI19)*Tabelle!$X$59,0) -> 0 | DQ19: 0 | DR19: =IF(OR($O19>DO$5,$O19=""),+(DH19+DJ19)*Tabelle!$X$59,0) -> 0 | DS19: 0 | DT19: 0 | DU19: 0 | DV19: 0 | DX19: =+IFERROR(IF($H19<=DY$5,VLOOKUP($H19,Tabelle!$N$10:$Y$61,12,FALSE),0),0) -> 0.000 | DY19: 0 | DZ19: =IF(OR($O19>DY$5,$O19=""),+(DP19+DS19)*Tabelle!$Y$60,0) -> 0 | EA19: 0 | EB19: =IF(OR($O19>DY$5,$O19=""),+(DR19+DT19)*Tabelle!$Y$60,0) -> 0 | EC19: 0 | ED19: 0 | EE19: 0 | EF19: 0 | EH19: =+IFERROR(IF($H19<=EI$5,VLOOKUP($H19,Tabelle!$N$10:$Z$62,13,FALSE),0),0) -> 0.000 | EI19: 0 | EJ19: =IF(OR($O19>EI$5,$O19=""),+(DZ19+EC19)*Tabelle!$Z$61,0) -> 0 | EK19: 0 | EL19: =IF(OR($O19>EI$5,$O19=""),+(EB19+ED19)*Tabelle!$Z$61,0) -> 0 | EM19: 0 | EN19: 0 | EO19: 0 | EP19: 0
D20: =++IFERROR(INDEX(Tabelle!$H$11:$H$16,MATCH(IN_Cespiti!E20,Tabelle!$I$11:$I$16,0)),"") ->  | F20: =++IFERROR(INDEX(Tabelle!$C$10:$C$44,MATCH(IN_Cespiti!G20,Tabelle!$E$10:$E$44,0)),"") ->  | Q20: =IF($D20=3,$M20,+IFERROR(VLOOKUP(CONCATENATE(D20,".",F20),Tabelle!$D$10:$F$44,3,),"")) ->  | T20: =+IF(R20="",Q20,+IF(R20=Tabelle!$B$105,IN_Cespiti!Q20,IF(OR(R20=Tabelle!$B$103,R20=Tabelle!$B$104),IN_Cespiti!S20,0))) ->  | W20: =+IF(U20="",T20,+IF(U20=Tabelle!$B$105,IN_Cespiti!T20,IF(OR(U20=Tabelle!$B$103,U20=Tabelle!$B$104),IN_Cespiti!V20,0))) ->  | Z20: =+IF(OR(X20="",X20=Tabelle!$B$105),W20,Y20) ->  | AB20: =+IFERROR(IF($H20<=2017,VLOOKUP($H20,Tabelle!$N$10:$O$58,2,FALSE),0),0) -> 0.000 | AC20: 0 | AD20: 0 | AE20: 0 | AF20: 0 | AG20: 0 | AH20: 0 | AI20: 0 | AJ20: 0 | AL20: =+IFERROR(IF($H20<=AM$5,VLOOKUP($H20,Tabelle!$N$10:$P$58,3,FALSE),0),0) -> 0.000 | AM20: 0 | AN20: =IF(OR($O20>$AM$5,$O20=""),(AD20+AG20)*Tabelle!$P$51,0) -> 0 | AO20: 0 | AP20: =IF(OR($O20>$AM$5,$O20=""),(AF20+AH20)*Tabelle!$P$51,0) -> 0 | AQ20: 0 | AR20: 0 | AS20: 0 | AT20: 0 | AV20: =+IFERROR(IF($H20<=AW$5,VLOOKUP($H20,Tabelle!$N$10:$Q$58,4,FALSE),0),0) -> 0.000 | AW20: 0 | AX20: =IF(OR($O20>$AW$5,$O20=""),(AN20+AQ20)*Tabelle!$Q$52,0) -> 0 | AY20: 0 | AZ20: =IF(OR($O20>$AW$5,$O20=""),(AP20+AR20)*Tabelle!$Q$52,0) -> 0 | BA20: 0 | BB20: 0 | BC20: 0 | BD20: 0 | BF20: =+IFERROR(IF($H20<=BG$5,VLOOKUP($H20,Tabelle!$N$10:$R$58,5,FALSE),0),0) -> 0.000 | BG20: 0 | BH20: =IF(OR($O20>$BG$5,$O20=""),(AX20+BA20)*Tabelle!$R$53,0) -> 0 | BI20: 0 | BJ20: =IF(OR($O20>$BG$5,$O20=""),(AZ20+BB20)*Tabelle!$R$53,0) -> 0 | BK20: 0 | BL20: 0 | BM20: 0 | BN20: 0 | BP20: =+IFERROR(IF($H20<=BQ$5,VLOOKUP($H20,Tabelle!$N$10:$S$58,6,FALSE),0),0) -> 0.000 | BQ20: 0 | BR20: =IF(OR($O20>$BQ$5,$O20=""),(BH20+BK20)*Tabelle!$S$54,0) -> 0 | BS20: 0 | BT20: =IF(OR($O20>$BQ$5,$O20=""),(BJ20+BL20)*Tabelle!$S$54,0) -> 0 | BU20: 0 | BV20: 0 | BW20: 0 | BX20: 0 | BZ20: =+IFERROR(IF($H20<=CA$5,VLOOKUP($H20,Tabelle!$N$10:$T$58,7,FALSE),0),0) -> 0.000 | CA20: 0 | CB20: =IF(OR($O20>$CA$5,$O20=""),+(BR20+BU20)*Tabelle!$T$55,0) -> 0 | CC20: 0 | CD20: =IF(OR($O20>$CA$5,$O20=""),+(BT20+BV20)*Tabelle!$T$55,0) -> 0 | CE20: 0 | CF20: 0 | CG20: 0 | CH20: 0 | CJ20: =+IFERROR(IF($H20<=CK$5,VLOOKUP($H20,Tabelle!$N$10:$U$58,8,FALSE),0),0) -> 0.000 | CK20: 0 | CL20: =IF(OR($O20>$CK$5,$O20=""),+(CB20+CE20)*Tabelle!$U$56,0) -> 0 | CM20: 0 | CN20: =IF(OR($O20>$CK$5,$O20=""),+(CD20+CF20)*Tabelle!$U$56,0) -> 0 | CO20: 0 | CP20: 0 | CQ20: 0 | CR20: 0 | CT20: =+IFERROR(IF($H20<=CU$5,VLOOKUP($H20,Tabelle!$N$10:$V$58,9,FALSE),0),0) -> 0.000 | CU20: 0 | CV20: =IF(OR($O20>CU$5,$O20=""),(CL20+CO20)*Tabelle!$V$57,0) -> 0 | CW20: 0 | CX20: =IF(OR($O20>CU$5,$O20=""),(CN20+CP20)*Tabelle!$V$57,0) -> 0 | CY20: 0 | CZ20: 0 | DA20: 0 | DB20: 0 | DD20: =+IFERROR(IF($H20<=DE$5,VLOOKUP($H20,Tabelle!$N$10:$W$59,10,FALSE),0),0) -> 0.000 | DE20: 0 | DF20: =IF(OR($O20>DE$5,$O20=""),+(CV20+CY20)*Tabelle!$W$58,0) -> 0 | DG20: 0 | DH20: =IF(OR($O20>DE$5,$O20=""),+(CX20+CZ20)*Tabelle!$W$58,0) -> 0 | DI20: 0 | DJ20: 0 | DK20: 0 | DL20: 0 | DN20: =+IFERROR(IF($H20<=DO$5,VLOOKUP($H20,Tabelle!$N$10:$X$60,11,FALSE),0),0) -> 0.000 | DO20: 0 | DP20: =IF(OR($O20>DO$5,$O20=""),+(DF20+DI20)*Tabelle!$X$59,0) -> 0 | DQ20: 0 | DR20: =IF(OR($O20>DO$5,$O20=""),+(DH20+DJ20)*Tabelle!$X$59,0) -> 0 | DS20: 0 | DT20: 0 | DU20: 0 | DV20: 0 | DX20: =+IFERROR(IF($H20<=DY$5,VLOOKUP($H20,Tabelle!$N$10:$Y$61,12,FALSE),0),0) -> 0.000 | DY20: 0 | DZ20: =IF(OR($O20>DY$5,$O20=""),+(DP20+DS20)*Tabelle!$Y$60,0) -> 0 | EA20: 0 | EB20: =IF(OR($O20>DY$5,$O20=""),+(DR20+DT20)*Tabelle!$Y$60,0) -> 0 | EC20: 0 | ED20: 0 | EE20: 0 | EF20: 0 | EH20: =+IFERROR(IF($H20<=EI$5,VLOOKUP($H20,Tabelle!$N$10:$Z$62,13,FALSE),0),0) -> 0.000 | EI20: 0 | EJ20: =IF(OR($O20>EI$5,$O20=""),+(DZ20+EC20)*Tabelle!$Z$61,0) -> 0 | EK20: 0 | EL20: =IF(OR($O20>EI$5,$O20=""),+(EB20+ED20)*Tabelle!$Z$61,0) -> 0 | EM20: 0 | EN20: 0 | EO20: 0 | EP20: 0
D21: =++IFERROR(INDEX(Tabelle!$H$11:$H$16,MATCH(IN_Cespiti!E21,Tabelle!$I$11:$I$16,0)),"") ->  | F21: =++IFERROR(INDEX(Tabelle!$C$10:$C$44,MATCH(IN_Cespiti!G21,Tabelle!$E$10:$E$44,0)),"") ->  | Q21: =IF($D21=3,$M21,+IFERROR(VLOOKUP(CONCATENATE(D21,".",F21),Tabelle!$D$10:$F$44,3,),"")) ->  | T21: =+IF(R21="",Q21,+IF(R21=Tabelle!$B$105,IN_Cespiti!Q21,IF(OR(R21=Tabelle!$B$103,R21=Tabelle!$B$104),IN_Cespiti!S21,0))) ->  | W21: =+IF(U21="",T21,+IF(U21=Tabelle!$B$105,IN_Cespiti!T21,IF(OR(U21=Tabelle!$B$103,U21=Tabelle!$B$104),IN_Cespiti!V21,0))) ->  | Z21: =+IF(OR(X21="",X21=Tabelle!$B$105),W21,Y21) ->  | AB21: =+IFERROR(IF($H21<=2017,VLOOKUP($H21,Tabelle!$N$10:$O$58,2,FALSE),0),0) -> 0.000 | AC21: 0 | AD21: 0 | AE21: 0 | AF21: 0 | AG21: 0 | AH21: 0 | AI21: 0 | AJ21: 0 | AL21: =+IFERROR(IF($H21<=AM$5,VLOOKUP($H21,Tabelle!$N$10:$P$58,3,FALSE),0),0) -> 0.000 | AM21: 0 | AN21: =IF(OR($O21>$AM$5,$O21=""),(AD21+AG21)*Tabelle!$P$51,0) -> 0 | AO21: 0 | AP21: =IF(OR($O21>$AM$5,$O21=""),(AF21+AH21)*Tabelle!$P$51,0) -> 0 | AQ21: 0 | AR21: 0 | AS21: 0 | AT21: 0 | AV21: =+IFERROR(IF($H21<=AW$5,VLOOKUP($H21,Tabelle!$N$10:$Q$58,4,FALSE),0),0) -> 0.000 | AW21: 0 | AX21: =IF(OR($O21>$AW$5,$O21=""),(AN21+AQ21)*Tabelle!$Q$52,0) -> 0 | AY21: 0 | AZ21: =IF(OR($O21>$AW$5,$O21=""),(AP21+AR21)*Tabelle!$Q$52,0) -> 0 | BA21: 0 | BB21: 0 | BC21: 0 | BD21: 0 | BF21: =+IFERROR(IF($H21<=BG$5,VLOOKUP($H21,Tabelle!$N$10:$R$58,5,FALSE),0),0) -> 0.000 | BG21: 0 | BH21: =IF(OR($O21>$BG$5,$O21=""),(AX21+BA21)*Tabelle!$R$53,0) -> 0 | BI21: 0 | BJ21: =IF(OR($O21>$BG$5,$O21=""),(AZ21+BB21)*Tabelle!$R$53,0) -> 0 | BK21: 0 | BL21: 0 | BM21: 0 | BN21: 0 | BP21: =+IFERROR(IF($H21<=BQ$5,VLOOKUP($H21,Tabelle!$N$10:$S$58,6,FALSE),0),0) -> 0.000 | BQ21: 0 | BR21: =IF(OR($O21>$BQ$5,$O21=""),(BH21+BK21)*Tabelle!$S$54,0) -> 0 | BS21: 0 | BT21: =IF(OR($O21>$BQ$5,$O21=""),(BJ21+BL21)*Tabelle!$S$54,0) -> 0 | BU21: 0 | BV21: 0 | BW21: 0 | BX21: 0 | BZ21: =+IFERROR(IF($H21<=CA$5,VLOOKUP($H21,Tabelle!$N$10:$T$58,7,FALSE),0),0) -> 0.000 | CA21: 0 | CB21: =IF(OR($O21>$CA$5,$O21=""),+(BR21+BU21)*Tabelle!$T$55,0) -> 0 | CC21: 0 | CD21: =IF(OR($O21>$CA$5,$O21=""),+(BT21+BV21)*Tabelle!$T$55,0) -> 0 | CE21: 0 | CF21: 0 | CG21: 0 | CH21: 0 | CJ21: =+IFERROR(IF($H21<=CK$5,VLOOKUP($H21,Tabelle!$N$10:$U$58,8,FALSE),0),0) -> 0.000 | CK21: 0 | CL21: =IF(OR($O21>$CK$5,$O21=""),+(CB21+CE21)*Tabelle!$U$56,0) -> 0 | CM21: 0 | CN21: =IF(OR($O21>$CK$5,$O21=""),+(CD21+CF21)*Tabelle!$U$56,0) -> 0 | CO21: 0 | CP21: 0 | CQ21: 0 | CR21: 0 | CT21: =+IFERROR(IF($H21<=CU$5,VLOOKUP($H21,Tabelle!$N$10:$V$58,9,FALSE),0),0) -> 0.000 | CU21: 0 | CV21: =IF(OR($O21>CU$5,$O21=""),(CL21+CO21)*Tabelle!$V$57,0) -> 0 | CW21: 0 | CX21: =IF(OR($O21>CU$5,$O21=""),(CN21+CP21)*Tabelle!$V$57,0) -> 0 | CY21: 0 | CZ21: 0 | DA21: 0 | DB21: 0 | DD21: =+IFERROR(IF($H21<=DE$5,VLOOKUP($H21,Tabelle!$N$10:$W$59,10,FALSE),0),0) -> 0.000 | DE21: 0 | DF21: =IF(OR($O21>DE$5,$O21=""),+(CV21+CY21)*Tabelle!$W$58,0) -> 0 | DG21: 0 | DH21: =IF(OR($O21>DE$5,$O21=""),+(CX21+CZ21)*Tabelle!$W$58,0) -> 0 | DI21: 0 | DJ21: 0 | DK21: 0 | DL21: 0 | DN21: =+IFERROR(IF($H21<=DO$5,VLOOKUP($H21,Tabelle!$N$10:$X$60,11,FALSE),0),0) -> 0.000 | DO21: 0 | DP21: =IF(OR($O21>DO$5,$O21=""),+(DF21+DI21)*Tabelle!$X$59,0) -> 0 | DQ21: 0 | DR21: =IF(OR($O21>DO$5,$O21=""),+(DH21+DJ21)*Tabelle!$X$59,0) -> 0 | DS21: 0 | DT21: 0 | DU21: 0 | DV21: 0 | DX21: =+IFERROR(IF($H21<=DY$5,VLOOKUP($H21,Tabelle!$N$10:$Y$61,12,FALSE),0),0) -> 0.000 | DY21: 0 | DZ21: =IF(OR($O21>DY$5,$O21=""),+(DP21+DS21)*Tabelle!$Y$60,0) -> 0 | EA21: 0 | EB21: =IF(OR($O21>DY$5,$O21=""),+(DR21+DT21)*Tabelle!$Y$60,0) -> 0 | EC21: 0 | ED21: 0 | EE21: 0 | EF21: 0 | EH21: =+IFERROR(IF($H21<=EI$5,VLOOKUP($H21,Tabelle!$N$10:$Z$62,13,FALSE),0),0) -> 0.000 | EI21: 0 | EJ21: =IF(OR($O21>EI$5,$O21=""),+(DZ21+EC21)*Tabelle!$Z$61,0) -> 0 | EK21: 0 | EL21: =IF(OR($O21>EI$5,$O21=""),+(EB21+ED21)*Tabelle!$Z$61,0) -> 0 | EM21: 0 | EN21: 0 | EO21: 0 | EP21: 0
D22: =++IFERROR(INDEX(Tabelle!$H$11:$H$16,MATCH(IN_Cespiti!E22,Tabelle!$I$11:$I$16,0)),"") ->  | F22: =++IFERROR(INDEX(Tabelle!$C$10:$C$44,MATCH(IN_Cespiti!G22,Tabelle!$E$10:$E$44,0)),"") ->  | Q22: =IF($D22=3,$M22,+IFERROR(VLOOKUP(CONCATENATE(D22,".",F22),Tabelle!$D$10:$F$44,3,),"")) ->  | T22: =+IF(R22="",Q22,+IF(R22=Tabelle!$B$105,IN_Cespiti!Q22,IF(OR(R22=Tabelle!$B$103,R22=Tabelle!$B$104),IN_Cespiti!S22,0))) ->  | W22: =+IF(U22="",T22,+IF(U22=Tabelle!$B$105,IN_Cespiti!T22,IF(OR(U22=Tabelle!$B$103,U22=Tabelle!$B$104),IN_Cespiti!V22,0))) ->  | Z22: =+IF(OR(X22="",X22=Tabelle!$B$105),W22,Y22) ->  | AB22: =+IFERROR(IF($H22<=2017,VLOOKUP($H22,Tabelle!$N$10:$O$58,2,FALSE),0),0) -> 0.000 | AC22: 0 | AD22: 0 | AE22: 0 | AF22: 0 | AG22: 0 | AH22: 0 | AI22: 0 | AJ22: 0 | AL22: =+IFERROR(IF($H22<=AM$5,VLOOKUP($H22,Tabelle!$N$10:$P$58,3,FALSE),0),0) -> 0.000 | AM22: 0 | AN22: =IF(OR($O22>$AM$5,$O22=""),(AD22+AG22)*Tabelle!$P$51,0) -> 0 | AO22: 0 | AP22: =IF(OR($O22>$AM$5,$O22=""),(AF22+AH22)*Tabelle!$P$51,0) -> 0 | AQ22: 0 | AR22: 0 | AS22: 0 | AT22: 0 | AV22: =+IFERROR(IF($H22<=AW$5,VLOOKUP($H22,Tabelle!$N$10:$Q$58,4,FALSE),0),0) -> 0.000 | AW22: 0 | AX22: =IF(OR($O22>$AW$5,$O22=""),(AN22+AQ22)*Tabelle!$Q$52,0) -> 0 | AY22: 0 | AZ22: =IF(OR($O22>$AW$5,$O22=""),(AP22+AR22)*Tabelle!$Q$52,0) -> 0 | BA22: 0 | BB22: 0 | BC22: 0 | BD22: 0 | BF22: =+IFERROR(IF($H22<=BG$5,VLOOKUP($H22,Tabelle!$N$10:$R$58,5,FALSE),0),0) -> 0.000 | BG22: 0 | BH22: =IF(OR($O22>$BG$5,$O22=""),(AX22+BA22)*Tabelle!$R$53,0) -> 0 | BI22: 0 | BJ22: =IF(OR($O22>$BG$5,$O22=""),(AZ22+BB22)*Tabelle!$R$53,0) -> 0 | BK22: 0 | BL22: 0 | BM22: 0 | BN22: 0 | BP22: =+IFERROR(IF($H22<=BQ$5,VLOOKUP($H22,Tabelle!$N$10:$S$58,6,FALSE),0),0) -> 0.000 | BQ22: 0 | BR22: =IF(OR($O22>$BQ$5,$O22=""),(BH22+BK22)*Tabelle!$S$54,0) -> 0 | BS22: 0 | BT22: =IF(OR($O22>$BQ$5,$O22=""),(BJ22+BL22)*Tabelle!$S$54,0) -> 0 | BU22: 0 | BV22: 0 | BW22: 0 | BX22: 0 | BZ22: =+IFERROR(IF($H22<=CA$5,VLOOKUP($H22,Tabelle!$N$10:$T$58,7,FALSE),0),0) -> 0.000 | CA22: 0 | CB22: =IF(OR($O22>$CA$5,$O22=""),+(BR22+BU22)*Tabelle!$T$55,0) -> 0 | CC22: 0 | CD22: =IF(OR($O22>$CA$5,$O22=""),+(BT22+BV22)*Tabelle!$T$55,0) -> 0 | CE22: 0 | CF22: 0 | CG22: 0 | CH22: 0 | CJ22: =+IFERROR(IF($H22<=CK$5,VLOOKUP($H22,Tabelle!$N$10:$U$58,8,FALSE),0),0) -> 0.000 | CK22: 0 | CL22: =IF(OR($O22>$CK$5,$O22=""),+(CB22+CE22)*Tabelle!$U$56,0) -> 0 | CM22: 0 | CN22: =IF(OR($O22>$CK$5,$O22=""),+(CD22+CF22)*Tabelle!$U$56,0) -> 0 | CO22: 0 | CP22: 0 | CQ22: 0 | CR22: 0 | CT22: =+IFERROR(IF($H22<=CU$5,VLOOKUP($H22,Tabelle!$N$10:$V$58,9,FALSE),0),0) -> 0.000 | CU22: 0 | CV22: =IF(OR($O22>CU$5,$O22=""),(CL22+CO22)*Tabelle!$V$57,0) -> 0 | CW22: 0 | CX22: =IF(OR($O22>CU$5,$O22=""),(CN22+CP22)*Tabelle!$V$57,0) -> 0 | CY22: 0 | CZ22: 0 | DA22: 0 | DB22: 0 | DD22: =+IFERROR(IF($H22<=DE$5,VLOOKUP($H22,Tabelle!$N$10:$W$59,10,FALSE),0),0) -> 0.000 | DE22: 0 | DF22: =IF(OR($O22>DE$5,$O22=""),+(CV22+CY22)*Tabelle!$W$58,0) -> 0 | DG22: 0 | DH22: =IF(OR($O22>DE$5,$O22=""),+(CX22+CZ22)*Tabelle!$W$58,0) -> 0 | DI22: 0 | DJ22: 0 | DK22: 0 | DL22: 0 | DN22: =+IFERROR(IF($H22<=DO$5,VLOOKUP($H22,Tabelle!$N$10:$X$60,11,FALSE),0),0) -> 0.000 | DO22: 0 | DP22: =IF(OR($O22>DO$5,$O22=""),+(DF22+DI22)*Tabelle!$X$59,0) -> 0 | DQ22: 0 | DR22: =IF(OR($O22>DO$5,$O22=""),+(DH22+DJ22)*Tabelle!$X$59,0) -> 0 | DS22: 0 | DT22: 0 | DU22: 0 | DV22: 0 | DX22: =+IFERROR(IF($H22<=DY$5,VLOOKUP($H22,Tabelle!$N$10:$Y$61,12,FALSE),0),0) -> 0.000 | DY22: 0 | DZ22: =IF(OR($O22>DY$5,$O22=""),+(DP22+DS22)*Tabelle!$Y$60,0) -> 0 | EA22: 0 | EB22: =IF(OR($O22>DY$5,$O22=""),+(DR22+DT22)*Tabelle!$Y$60,0) -> 0 | EC22: 0 | ED22: 0 | EE22: 0 | EF22: 0 | EH22: =+IFERROR(IF($H22<=EI$5,VLOOKUP($H22,Tabelle!$N$10:$Z$62,13,FALSE),0),0) -> 0.000 | EI22: 0 | EJ22: =IF(OR($O22>EI$5,$O22=""),+(DZ22+EC22)*Tabelle!$Z$61,0) -> 0 | EK22: 0 | EL22: =IF(OR($O22>EI$5,$O22=""),+(EB22+ED22)*Tabelle!$Z$61,0) -> 0 | EM22: 0 | EN22: 0 | EO22: 0 | EP22: 0
D23: =++IFERROR(INDEX(Tabelle!$H$11:$H$16,MATCH(IN_Cespiti!E23,Tabelle!$I$11:$I$16,0)),"") ->  | F23: =++IFERROR(INDEX(Tabelle!$C$10:$C$44,MATCH(IN_Cespiti!G23,Tabelle!$E$10:$E$44,0)),"") ->  | Q23: =IF($D23=3,$M23,+IFERROR(VLOOKUP(CONCATENATE(D23,".",F23),Tabelle!$D$10:$F$44,3,),"")) ->  | T23: =+IF(R23="",Q23,+IF(R23=Tabelle!$B$105,IN_Cespiti!Q23,IF(OR(R23=Tabelle!$B$103,R23=Tabelle!$B$104),IN_Cespiti!S23,0))) ->  | W23: =+IF(U23="",T23,+IF(U23=Tabelle!$B$105,IN_Cespiti!T23,IF(OR(U23=Tabelle!$B$103,U23=Tabelle!$B$104),IN_Cespiti!V23,0))) ->  | Z23: =+IF(OR(X23="",X23=Tabelle!$B$105),W23,Y23) ->  | AB23: =+IFERROR(IF($H23<=2017,VLOOKUP($H23,Tabelle!$N$10:$O$58,2,FALSE),0),0) -> 0.000 | AC23: 0 | AD23: 0 | AE23: 0 | AF23: 0 | AG23: 0 | AH23: 0 | AI23: 0 | AJ23: 0 | AL23: =+IFERROR(IF($H23<=AM$5,VLOOKUP($H23,Tabelle!$N$10:$P$58,3,FALSE),0),0) -> 0.000 | AM23: 0 | AN23: =IF(OR($O23>$AM$5,$O23=""),(AD23+AG23)*Tabelle!$P$51,0) -> 0 | AO23: 0 | AP23: =IF(OR($O23>$AM$5,$O23=""),(AF23+AH23)*Tabelle!$P$51,0) -> 0 | AQ23: 0 | AR23: 0 | AS23: 0 | AT23: 0 | AV23: =+IFERROR(IF($H23<=AW$5,VLOOKUP($H23,Tabelle!$N$10:$Q$58,4,FALSE),0),0) -> 0.000 | AW23: 0 | AX23: =IF(OR($O23>$AW$5,$O23=""),(AN23+AQ23)*Tabelle!$Q$52,0) -> 0 | AY23: 0 | AZ23: =IF(OR($O23>$AW$5,$O23=""),(AP23+AR23)*Tabelle!$Q$52,0) -> 0 | BA23: 0 | BB23: 0 | BC23: 0 | BD23: 0 | BF23: =+IFERROR(IF($H23<=BG$5,VLOOKUP($H23,Tabelle!$N$10:$R$58,5,FALSE),0),0) -> 0.000 | BG23: 0 | BH23: =IF(OR($O23>$BG$5,$O23=""),(AX23+BA23)*Tabelle!$R$53,0) -> 0 | BI23: 0 | BJ23: =IF(OR($O23>$BG$5,$O23=""),(AZ23+BB23)*Tabelle!$R$53,0) -> 0 | BK23: 0 | BL23: 0 | BM23: 0 | BN23: 0 | BP23: =+IFERROR(IF($H23<=BQ$5,VLOOKUP($H23,Tabelle!$N$10:$S$58,6,FALSE),0),0) -> 0.000 | BQ23: 0 | BR23: =IF(OR($O23>$BQ$5,$O23=""),(BH23+BK23)*Tabelle!$S$54,0) -> 0 | BS23: 0 | BT23: =IF(OR($O23>$BQ$5,$O23=""),(BJ23+BL23)*Tabelle!$S$54,0) -> 0 | BU23: 0 | BV23: 0 | BW23: 0 | BX23: 0 | BZ23: =+IFERROR(IF($H23<=CA$5,VLOOKUP($H23,Tabelle!$N$10:$T$58,7,FALSE),0),0) -> 0.000 | CA23: 0 | CB23: =IF(OR($O23>$CA$5,$O23=""),+(BR23+BU23)*Tabelle!$T$55,0) -> 0 | CC23: 0 | CD23: =IF(OR($O23>$CA$5,$O23=""),+(BT23+BV23)*Tabelle!$T$55,0) -> 0 | CE23: 0 | CF23: 0 | CG23: 0 | CH23: 0 | CJ23: =+IFERROR(IF($H23<=CK$5,VLOOKUP($H23,Tabelle!$N$10:$U$58,8,FALSE),0),0) -> 0.000 | CK23: 0 | CL23: =IF(OR($O23>$CK$5,$O23=""),+(CB23+CE23)*Tabelle!$U$56,0) -> 0 | CM23: 0 | CN23: =IF(OR($O23>$CK$5,$O23=""),+(CD23+CF23)*Tabelle!$U$56,0) -> 0 | CO23: 0 | CP23: 0 | CQ23: 0 | CR23: 0 | CT23: =+IFERROR(IF($H23<=CU$5,VLOOKUP($H23,Tabelle!$N$10:$V$58,9,FALSE),0),0) -> 0.000 | CU23: 0 | CV23: =IF(OR($O23>CU$5,$O23=""),(CL23+CO23)*Tabelle!$V$57,0) -> 0 | CW23: 0 | CX23: =IF(OR($O23>CU$5,$O23=""),(CN23+CP23)*Tabelle!$V$57,0) -> 0 | CY23: 0 | CZ23: 0 | DA23: 0 | DB23: 0 | DD23: =+IFERROR(IF($H23<=DE$5,VLOOKUP($H23,Tabelle!$N$10:$W$59,10,FALSE),0),0) -> 0.000 | DE23: 0 | DF23: =IF(OR($O23>DE$5,$O23=""),+(CV23+CY23)*Tabelle!$W$58,0) -> 0 | DG23: 0 | DH23: =IF(OR($O23>DE$5,$O23=""),+(CX23+CZ23)*Tabelle!$W$58,0) -> 0 | DI23: 0 | DJ23: 0 | DK23: 0 | DL23: 0 | DN23: =+IFERROR(IF($H23<=DO$5,VLOOKUP($H23,Tabelle!$N$10:$X$60,11,FALSE),0),0) -> 0.000 | DO23: 0 | DP23: =IF(OR($O23>DO$5,$O23=""),+(DF23+DI23)*Tabelle!$X$59,0) -> 0 | DQ23: 0 | DR23: =IF(OR($O23>DO$5,$O23=""),+(DH23+DJ23)*Tabelle!$X$59,0) -> 0 | DS23: 0 | DT23: 0 | DU23: 0 | DV23: 0 | DX23: =+IFERROR(IF($H23<=DY$5,VLOOKUP($H23,Tabelle!$N$10:$Y$61,12,FALSE),0),0) -> 0.000 | DY23: 0 | DZ23: =IF(OR($O23>DY$5,$O23=""),+(DP23+DS23)*Tabelle!$Y$60,0) -> 0 | EA23: 0 | EB23: =IF(OR($O23>DY$5,$O23=""),+(DR23+DT23)*Tabelle!$Y$60,0) -> 0 | EC23: 0 | ED23: 0 | EE23: 0 | EF23: 0 | EH23: =+IFERROR(IF($H23<=EI$5,VLOOKUP($H23,Tabelle!$N$10:$Z$62,13,FALSE),0),0) -> 0.000 | EI23: 0 | EJ23: =IF(OR($O23>EI$5,$O23=""),+(DZ23+EC23)*Tabelle!$Z$61,0) -> 0 | EK23: 0 | EL23: =IF(OR($O23>EI$5,$O23=""),+(EB23+ED23)*Tabelle!$Z$61,0) -> 0 | EM23: 0 | EN23: 0 | EO23: 0 | EP23: 0
D24: =++IFERROR(INDEX(Tabelle!$H$11:$H$16,MATCH(IN_Cespiti!E24,Tabelle!$I$11:$I$16,0)),"") ->  | F24: =++IFERROR(INDEX(Tabelle!$C$10:$C$44,MATCH(IN_Cespiti!G24,Tabelle!$E$10:$E$44,0)),"") ->  | Q24: =IF($D24=3,$M24,+IFERROR(VLOOKUP(CONCATENATE(D24,".",F24),Tabelle!$D$10:$F$44,3,),"")) ->  | T24: =+IF(R24="",Q24,+IF(R24=Tabelle!$B$105,IN_Cespiti!Q24,IF(OR(R24=Tabelle!$B$103,R24=Tabelle!$B$104),IN_Cespiti!S24,0))) ->  | W24: =+IF(U24="",T24,+IF(U24=Tabelle!$B$105,IN_Cespiti!T24,IF(OR(U24=Tabelle!$B$103,U24=Tabelle!$B$104),IN_Cespiti!V24,0))) ->  | Z24: =+IF(OR(X24="",X24=Tabelle!$B$105),W24,Y24) ->  | AB24: =+IFERROR(IF($H24<=2017,VLOOKUP($H24,Tabelle!$N$10:$O$58,2,FALSE),0),0) -> 0.000 | AC24: 0 | AD24: 0 | AE24: 0 | AF24: 0 | AG24: 0 | AH24: 0 | AI24: 0 | AJ24: 0 | AL24: =+IFERROR(IF($H24<=AM$5,VLOOKUP($H24,Tabelle!$N$10:$P$58,3,FALSE),0),0) -> 0.000 | AM24: 0 | AN24: =IF(OR($O24>$AM$5,$O24=""),(AD24+AG24)*Tabelle!$P$51,0) -> 0 | AO24: 0 | AP24: =IF(OR($O24>$AM$5,$O24=""),(AF24+AH24)*Tabelle!$P$51,0) -> 0 | AQ24: 0 | AR24: 0 | AS24: 0 | AT24: 0 | AV24: =+IFERROR(IF($H24<=AW$5,VLOOKUP($H24,Tabelle!$N$10:$Q$58,4,FALSE),0),0) -> 0.000 | AW24: 0 | AX24: =IF(OR($O24>$AW$5,$O24=""),(AN24+AQ24)*Tabelle!$Q$52,0) -> 0 | AY24: 0 | AZ24: =IF(OR($O24>$AW$5,$O24=""),(AP24+AR24)*Tabelle!$Q$52,0) -> 0 | BA24: 0 | BB24: 0 | BC24: 0 | BD24: 0 | BF24: =+IFERROR(IF($H24<=BG$5,VLOOKUP($H24,Tabelle!$N$10:$R$58,5,FALSE),0),0) -> 0.000 | BG24: 0 | BH24: =IF(OR($O24>$BG$5,$O24=""),(AX24+BA24)*Tabelle!$R$53,0) -> 0 | BI24: 0 | BJ24: =IF(OR($O24>$BG$5,$O24=""),(AZ24+BB24)*Tabelle!$R$53,0) -> 0 | BK24: 0 | BL24: 0 | BM24: 0 | BN24: 0 | BP24: =+IFERROR(IF($H24<=BQ$5,VLOOKUP($H24,Tabelle!$N$10:$S$58,6,FALSE),0),0) -> 0.000 | BQ24: 0 | BR24: =IF(OR($O24>$BQ$5,$O24=""),(BH24+BK24)*Tabelle!$S$54,0) -> 0 | BS24: 0 | BT24: =IF(OR($O24>$BQ$5,$O24=""),(BJ24+BL24)*Tabelle!$S$54,0) -> 0 | BU24: 0 | BV24: 0 | BW24: 0 | BX24: 0 | BZ24: =+IFERROR(IF($H24<=CA$5,VLOOKUP($H24,Tabelle!$N$10:$T$58,7,FALSE),0),0) -> 0.000 | CA24: 0 | CB24: =IF(OR($O24>$CA$5,$O24=""),+(BR24+BU24)*Tabelle!$T$55,0) -> 0 | CC24: 0 | CD24: =IF(OR($O24>$CA$5,$O24=""),+(BT24+BV24)*Tabelle!$T$55,0) -> 0 | CE24: 0 | CF24: 0 | CG24: 0 | CH24: 0 | CJ24: =+IFERROR(IF($H24<=CK$5,VLOOKUP($H24,Tabelle!$N$10:$U$58,8,FALSE),0),0) -> 0.000 | CK24: 0 | CL24: =IF(OR($O24>$CK$5,$O24=""),+(CB24+CE24)*Tabelle!$U$56,0) -> 0 | CM24: 0 | CN24: =IF(OR($O24>$CK$5,$O24=""),+(CD24+CF24)*Tabelle!$U$56,0) -> 0 | CO24: 0 | CP24: 0 | CQ24: 0 | CR24: 0 | CT24: =+IFERROR(IF($H24<=CU$5,VLOOKUP($H24,Tabelle!$N$10:$V$58,9,FALSE),0),0) -> 0.000 | CU24: 0 | CV24: =IF(OR($O24>CU$5,$O24=""),(CL24+CO24)*Tabelle!$V$57,0) -> 0 | CW24: 0 | CX24: =IF(OR($O24>CU$5,$O24=""),(CN24+CP24)*Tabelle!$V$57,0) -> 0 | CY24: 0 | CZ24: 0 | DA24: 0 | DB24: 0 | DD24: =+IFERROR(IF($H24<=DE$5,VLOOKUP($H24,Tabelle!$N$10:$W$59,10,FALSE),0),0) -> 0.000 | DE24: 0 | DF24: =IF(OR($O24>DE$5,$O24=""),+(CV24+CY24)*Tabelle!$W$58,0) -> 0 | DG24: 0 | DH24: =IF(OR($O24>DE$5,$O24=""),+(CX24+CZ24)*Tabelle!$W$58,0) -> 0 | DI24: 0 | DJ24: 0 | DK24: 0 | DL24: 0 | DN24: =+IFERROR(IF($H24<=DO$5,VLOOKUP($H24,Tabelle!$N$10:$X$60,11,FALSE),0),0) -> 0.000 | DO24: 0 | DP24: =IF(OR($O24>DO$5,$O24=""),+(DF24+DI24)*Tabelle!$X$59,0) -> 0 | DQ24: 0 | DR24: =IF(OR($O24>DO$5,$O24=""),+(DH24+DJ24)*Tabelle!$X$59,0) -> 0 | DS24: 0 | DT24: 0 | DU24: 0 | DV24: 0 | DX24: =+IFERROR(IF($H24<=DY$5,VLOOKUP($H24,Tabelle!$N$10:$Y$61,12,FALSE),0),0) -> 0.000 | DY24: 0 | DZ24: =IF(OR($O24>DY$5,$O24=""),+(DP24+DS24)*Tabelle!$Y$60,0) -> 0 | EA24: 0 | EB24: =IF(OR($O24>DY$5,$O24=""),+(DR24+DT24)*Tabelle!$Y$60,0) -> 0 | EC24: 0 | ED24: 0 | EE24: 0 | EF24: 0 | EH24: =+IFERROR(IF($H24<=EI$5,VLOOKUP($H24,Tabelle!$N$10:$Z$62,13,FALSE),0),0) -> 0.000 | EI24: 0 | EJ24: =IF(OR($O24>EI$5,$O24=""),+(DZ24+EC24)*Tabelle!$Z$61,0) -> 0 | EK24: 0 | EL24: =IF(OR($O24>EI$5,$O24=""),+(EB24+ED24)*Tabelle!$Z$61,0) -> 0 | EM24: 0 | EN24: 0 | EO24: 0 | EP24: 0
D25: =++IFERROR(INDEX(Tabelle!$H$11:$H$16,MATCH(IN_Cespiti!E25,Tabelle!$I$11:$I$16,0)),"") ->  | F25: =++IFERROR(INDEX(Tabelle!$C$10:$C$44,MATCH(IN_Cespiti!G25,Tabelle!$E$10:$E$44,0)),"") ->  | Q25: =IF($D25=3,$M25,+IFERROR(VLOOKUP(CONCATENATE(D25,".",F25),Tabelle!$D$10:$F$44,3,),"")) ->  | T25: =+IF(R25="",Q25,+IF(R25=Tabelle!$B$105,IN_Cespiti!Q25,IF(OR(R25=Tabelle!$B$103,R25=Tabelle!$B$104),IN_Cespiti!S25,0))) ->  | W25: =+IF(U25="",T25,+IF(U25=Tabelle!$B$105,IN_Cespiti!T25,IF(OR(U25=Tabelle!$B$103,U25=Tabelle!$B$104),IN_Cespiti!V25,0))) ->  | Z25: =+IF(OR(X25="",X25=Tabelle!$B$105),W25,Y25) ->  | AB25: =+IFERROR(IF($H25<=2017,VLOOKUP($H25,Tabelle!$N$10:$O$58,2,FALSE),0),0) -> 0.000 | AC25: 0 | AD25: 0 | AE25: 0 | AF25: 0 | AG25: 0 | AH25: 0 | AI25: 0 | AJ25: 0 | AL25: =+IFERROR(IF($H25<=AM$5,VLOOKUP($H25,Tabelle!$N$10:$P$58,3,FALSE),0),0) -> 0.000 | AM25: 0 | AN25: =IF(OR($O25>$AM$5,$O25=""),(AD25+AG25)*Tabelle!$P$51,0) -> 0 | AO25: 0 | AP25: =IF(OR($O25>$AM$5,$O25=""),(AF25+AH25)*Tabelle!$P$51,0) -> 0 | AQ25: 0 | AR25: 0 | AS25: 0 | AT25: 0 | AV25: =+IFERROR(IF($H25<=AW$5,VLOOKUP($H25,Tabelle!$N$10:$Q$58,4,FALSE),0),0) -> 0.000 | AW25: 0 | AX25: =IF(OR($O25>$AW$5,$O25=""),(AN25+AQ25)*Tabelle!$Q$52,0) -> 0 | AY25: 0 | AZ25: =IF(OR($O25>$AW$5,$O25=""),(AP25+AR25)*Tabelle!$Q$52,0) -> 0 | BA25: 0 | BB25: 0 | BC25: 0 | BD25: 0 | BF25: =+IFERROR(IF($H25<=BG$5,VLOOKUP($H25,Tabelle!$N$10:$R$58,5,FALSE),0),0) -> 0.000 | BG25: 0 | BH25: =IF(OR($O25>$BG$5,$O25=""),(AX25+BA25)*Tabelle!$R$53,0) -> 0 | BI25: 0 | BJ25: =IF(OR($O25>$BG$5,$O25=""),(AZ25+BB25)*Tabelle!$R$53,0) -> 0 | BK25: 0 | BL25: 0 | BM25: 0 | BN25: 0 | BP25: =+IFERROR(IF($H25<=BQ$5,VLOOKUP($H25,Tabelle!$N$10:$S$58,6,FALSE),0),0) -> 0.000 | BQ25: 0 | BR25: =IF(OR($O25>$BQ$5,$O25=""),(BH25+BK25)*Tabelle!$S$54,0) -> 0 | BS25: 0 | BT25: =IF(OR($O25>$BQ$5,$O25=""),(BJ25+BL25)*Tabelle!$S$54,0) -> 0 | BU25: 0 | BV25: 0 | BW25: 0 | BX25: 0 | BZ25: =+IFERROR(IF($H25<=CA$5,VLOOKUP($H25,Tabelle!$N$10:$T$58,7,FALSE),0),0) -> 0.000 | CA25: 0 | CB25: =IF(OR($O25>$CA$5,$O25=""),+(BR25+BU25)*Tabelle!$T$55,0) -> 0 | CC25: 0 | CD25: =IF(OR($O25>$CA$5,$O25=""),+(BT25+BV25)*Tabelle!$T$55,0) -> 0 | CE25: 0 | CF25: 0 | CG25: 0 | CH25: 0 | CJ25: =+IFERROR(IF($H25<=CK$5,VLOOKUP($H25,Tabelle!$N$10:$U$58,8,FALSE),0),0) -> 0.000 | CK25: 0 | CL25: =IF(OR($O25>$CK$5,$O25=""),+(CB25+CE25)*Tabelle!$U$56,0) -> 0 | CM25: 0 | CN25: =IF(OR($O25>$CK$5,$O25=""),+(CD25+CF25)*Tabelle!$U$56,0) -> 0 | CO25: 0 | CP25: 0 | CQ25: 0 | CR25: 0 | CT25: =+IFERROR(IF($H25<=CU$5,VLOOKUP($H25,Tabelle!$N$10:$V$58,9,FALSE),0),0) -> 0.000 | CU25: 0 | CV25: =IF(OR($O25>CU$5,$O25=""),(CL25+CO25)*Tabelle!$V$57,0) -> 0 | CW25: 0 | CX25: =IF(OR($O25>CU$5,$O25=""),(CN25+CP25)*Tabelle!$V$57,0) -> 0 | CY25: 0 | CZ25: 0 | DA25: 0 | DB25: 0 | DD25: =+IFERROR(IF($H25<=DE$5,VLOOKUP($H25,Tabelle!$N$10:$W$59,10,FALSE),0),0) -> 0.000 | DE25: 0 | DF25: =IF(OR($O25>DE$5,$O25=""),+(CV25+CY25)*Tabelle!$W$58,0) -> 0 | DG25: 0 | DH25: =IF(OR($O25>DE$5,$O25=""),+(CX25+CZ25)*Tabelle!$W$58,0) -> 0 | DI25: 0 | DJ25: 0 | DK25: 0 | DL25: 0 | DN25: =+IFERROR(IF($H25<=DO$5,VLOOKUP($H25,Tabelle!$N$10:$X$60,11,FALSE),0),0) -> 0.000 | DO25: 0 | DP25: =IF(OR($O25>DO$5,$O25=""),+(DF25+DI25)*Tabelle!$X$59,0) -> 0 | DQ25: 0 | DR25: =IF(OR($O25>DO$5,$O25=""),+(DH25+DJ25)*Tabelle!$X$59,0) -> 0 | DS25: 0 | DT25: 0 | DU25: 0 | DV25: 0 | DX25: =+IFERROR(IF($H25<=DY$5,VLOOKUP($H25,Tabelle!$N$10:$Y$61,12,FALSE),0),0) -> 0.000 | DY25: 0 | DZ25: =IF(OR($O25>DY$5,$O25=""),+(DP25+DS25)*Tabelle!$Y$60,0) -> 0 | EA25: 0 | EB25: =IF(OR($O25>DY$5,$O25=""),+(DR25+DT25)*Tabelle!$Y$60,0) -> 0 | EC25: 0 | ED25: 0 | EE25: 0 | EF25: 0 | EH25: =+IFERROR(IF($H25<=EI$5,VLOOKUP($H25,Tabelle!$N$10:$Z$62,13,FALSE),0),0) -> 0.000 | EI25: 0 | EJ25: =IF(OR($O25>EI$5,$O25=""),+(DZ25+EC25)*Tabelle!$Z$61,0) -> 0 | EK25: 0 | EL25: =IF(OR($O25>EI$5,$O25=""),+(EB25+ED25)*Tabelle!$Z$61,0) -> 0 | EM25: 0 | EN25: 0 | EO25: 0 | EP25: 0
D26: =++IFERROR(INDEX(Tabelle!$H$11:$H$16,MATCH(IN_Cespiti!E26,Tabelle!$I$11:$I$16,0)),"") ->  | F26: =++IFERROR(INDEX(Tabelle!$C$10:$C$44,MATCH(IN_Cespiti!G26,Tabelle!$E$10:$E$44,0)),"") ->  | Q26: =IF($D26=3,$M26,+IFERROR(VLOOKUP(CONCATENATE(D26,".",F26),Tabelle!$D$10:$F$44,3,),"")) ->  | T26: =+IF(R26="",Q26,+IF(R26=Tabelle!$B$105,IN_Cespiti!Q26,IF(OR(R26=Tabelle!$B$103,R26=Tabelle!$B$104),IN_Cespiti!S26,0))) ->  | W26: =+IF(U26="",T26,+IF(U26=Tabelle!$B$105,IN_Cespiti!T26,IF(OR(U26=Tabelle!$B$103,U26=Tabelle!$B$104),IN_Cespiti!V26,0))) ->  | Z26: =+IF(OR(X26="",X26=Tabelle!$B$105),W26,Y26) ->  | AB26: =+IFERROR(IF($H26<=2017,VLOOKUP($H26,Tabelle!$N$10:$O$58,2,FALSE),0),0) -> 0.000 | AC26: 0 | AD26: 0 | AE26: 0 | AF26: 0 | AG26: 0 | AH26: 0 | AI26: 0 | AJ26: 0 | AL26: =+IFERROR(IF($H26<=AM$5,VLOOKUP($H26,Tabelle!$N$10:$P$58,3,FALSE),0),0) -> 0.000 | AM26: 0 | AN26: =IF(OR($O26>$AM$5,$O26=""),(AD26+AG26)*Tabelle!$P$51,0) -> 0 | AO26: 0 | AP26: =IF(OR($O26>$AM$5,$O26=""),(AF26+AH26)*Tabelle!$P$51,0) -> 0 | AQ26: 0 | AR26: 0 | AS26: 0 | AT26: 0 | AV26: =+IFERROR(IF($H26<=AW$5,VLOOKUP($H26,Tabelle!$N$10:$Q$58,4,FALSE),0),0) -> 0.000 | AW26: 0 | AX26: =IF(OR($O26>$AW$5,$O26=""),(AN26+AQ26)*Tabelle!$Q$52,0) -> 0 | AY26: 0 | AZ26: =IF(OR($O26>$AW$5,$O26=""),(AP26+AR26)*Tabelle!$Q$52,0) -> 0 | BA26: 0 | BB26: 0 | BC26: 0 | BD26: 0 | BF26: =+IFERROR(IF($H26<=BG$5,VLOOKUP($H26,Tabelle!$N$10:$R$58,5,FALSE),0),0) -> 0.000 | BG26: 0 | BH26: =IF(OR($O26>$BG$5,$O26=""),(AX26+BA26)*Tabelle!$R$53,0) -> 0 | BI26: 0 | BJ26: =IF(OR($O26>$BG$5,$O26=""),(AZ26+BB26)*Tabelle!$R$53,0) -> 0 | BK26: 0 | BL26: 0 | BM26: 0 | BN26: 0 | BP26: =+IFERROR(IF($H26<=BQ$5,VLOOKUP($H26,Tabelle!$N$10:$S$58,6,FALSE),0),0) -> 0.000 | BQ26: 0 | BR26: =IF(OR($O26>$BQ$5,$O26=""),(BH26+BK26)*Tabelle!$S$54,0) -> 0 | BS26: 0 | BT26: =IF(OR($O26>$BQ$5,$O26=""),(BJ26+BL26)*Tabelle!$S$54,0) -> 0 | BU26: 0 | BV26: 0 | BW26: 0 | BX26: 0 | BZ26: =+IFERROR(IF($H26<=CA$5,VLOOKUP($H26,Tabelle!$N$10:$T$58,7,FALSE),0),0) -> 0.000 | CA26: 0 | CB26: =IF(OR($O26>$CA$5,$O26=""),+(BR26+BU26)*Tabelle!$T$55,0) -> 0 | CC26: 0 | CD26: =IF(OR($O26>$CA$5,$O26=""),+(BT26+BV26)*Tabelle!$T$55,0) -> 0 | CE26: 0 | CF26: 0 | CG26: 0 | CH26: 0 | CJ26: =+IFERROR(IF($H26<=CK$5,VLOOKUP($H26,Tabelle!$N$10:$U$58,8,FALSE),0),0) -> 0.000 | CK26: 0 | CL26: =IF(OR($O26>$CK$5,$O26=""),+(CB26+CE26)*Tabelle!$U$56,0) -> 0 | CM26: 0 | CN26: =IF(OR($O26>$CK$5,$O26=""),+(CD26+CF26)*Tabelle!$U$56,0) -> 0 | CO26: 0 | CP26: 0 | CQ26: 0 | CR26: 0 | CT26: =+IFERROR(IF($H26<=CU$5,VLOOKUP($H26,Tabelle!$N$10:$V$58,9,FALSE),0),0) -> 0.000 | CU26: 0 | CV26: =IF(OR($O26>CU$5,$O26=""),(CL26+CO26)*Tabelle!$V$57,0) -> 0 | CW26: 0 | CX26: =IF(OR($O26>CU$5,$O26=""),(CN26+CP26)*Tabelle!$V$57,0) -> 0 | CY26: 0 | CZ26: 0 | DA26: 0 | DB26: 0 | DD26: =+IFERROR(IF($H26<=DE$5,VLOOKUP($H26,Tabelle!$N$10:$W$59,10,FALSE),0),0) -> 0.000 | DE26: 0 | DF26: =IF(OR($O26>DE$5,$O26=""),+(CV26+CY26)*Tabelle!$W$58,0) -> 0 | DG26: 0 | DH26: =IF(OR($O26>DE$5,$O26=""),+(CX26+CZ26)*Tabelle!$W$58,0) -> 0 | DI26: 0 | DJ26: 0 | DK26: 0 | DL26: 0 | DN26: =+IFERROR(IF($H26<=DO$5,VLOOKUP($H26,Tabelle!$N$10:$X$60,11,FALSE),0),0) -> 0.000 | DO26: 0 | DP26: =IF(OR($O26>DO$5,$O26=""),+(DF26+DI26)*Tabelle!$X$59,0) -> 0 | DQ26: 0 | DR26: =IF(OR($O26>DO$5,$O26=""),+(DH26+DJ26)*Tabelle!$X$59,0) -> 0 | DS26: 0 | DT26: 0 | DU26: 0 | DV26: 0 | DX26: =+IFERROR(IF($H26<=DY$5,VLOOKUP($H26,Tabelle!$N$10:$Y$61,12,FALSE),0),0) -> 0.000 | DY26: 0 | DZ26: =IF(OR($O26>DY$5,$O26=""),+(DP26+DS26)*Tabelle!$Y$60,0) -> 0 | EA26: 0 | EB26: =IF(OR($O26>DY$5,$O26=""),+(DR26+DT26)*Tabelle!$Y$60,0) -> 0 | EC26: 0 | ED26: 0 | EE26: 0 | EF26: 0 | EH26: =+IFERROR(IF($H26<=EI$5,VLOOKUP($H26,Tabelle!$N$10:$Z$62,13,FALSE),0),0) -> 0.000 | EI26: 0 | EJ26: =IF(OR($O26>EI$5,$O26=""),+(DZ26+EC26)*Tabelle!$Z$61,0) -> 0 | EK26: 0 | EL26: =IF(OR($O26>EI$5,$O26=""),+(EB26+ED26)*Tabelle!$Z$61,0) -> 0 | EM26: 0 | EN26: 0 | EO26: 0 | EP26: 0
D27: =++IFERROR(INDEX(Tabelle!$H$11:$H$16,MATCH(IN_Cespiti!E27,Tabelle!$I$11:$I$16,0)),"") ->  | F27: =++IFERROR(INDEX(Tabelle!$C$10:$C$44,MATCH(IN_Cespiti!G27,Tabelle!$E$10:$E$44,0)),"") ->  | Q27: =IF($D27=3,$M27,+IFERROR(VLOOKUP(CONCATENATE(D27,".",F27),Tabelle!$D$10:$F$44,3,),"")) ->  | T27: =+IF(R27="",Q27,+IF(R27=Tabelle!$B$105,IN_Cespiti!Q27,IF(OR(R27=Tabelle!$B$103,R27=Tabelle!$B$104),IN_Cespiti!S27,0))) ->  | W27: =+IF(U27="",T27,+IF(U27=Tabelle!$B$105,IN_Cespiti!T27,IF(OR(U27=Tabelle!$B$103,U27=Tabelle!$B$104),IN_Cespiti!V27,0))) ->  | Z27: =+IF(OR(X27="",X27=Tabelle!$B$105),W27,Y27) ->  | AB27: =+IFERROR(IF($H27<=2017,VLOOKUP($H27,Tabelle!$N$10:$O$58,2,FALSE),0),0) -> 0.000 | AC27: 0 | AD27: 0 | AE27: 0 | AF27: 0 | AG27: 0 | AH27: 0 | AI27: 0 | AJ27: 0 | AL27: =+IFERROR(IF($H27<=AM$5,VLOOKUP($H27,Tabelle!$N$10:$P$58,3,FALSE),0),0) -> 0.000 | AM27: 0 | AN27: =IF(OR($O27>$AM$5,$O27=""),(AD27+AG27)*Tabelle!$P$51,0) -> 0 | AO27: 0 | AP27: =IF(OR($O27>$AM$5,$O27=""),(AF27+AH27)*Tabelle!$P$51,0) -> 0 | AQ27: 0 | AR27: 0 | AS27: 0 | AT27: 0 | AV27: =+IFERROR(IF($H27<=AW$5,VLOOKUP($H27,Tabelle!$N$10:$Q$58,4,FALSE),0),0) -> 0.000 | AW27: 0 | AX27: =IF(OR($O27>$AW$5,$O27=""),(AN27+AQ27)*Tabelle!$Q$52,0) -> 0 | AY27: 0 | AZ27: =IF(OR($O27>$AW$5,$O27=""),(AP27+AR27)*Tabelle!$Q$52,0) -> 0 | BA27: 0 | BB27: 0 | BC27: 0 | BD27: 0 | BF27: =+IFERROR(IF($H27<=BG$5,VLOOKUP($H27,Tabelle!$N$10:$R$58,5,FALSE),0),0) -> 0.000 | BG27: 0 | BH27: =IF(OR($O27>$BG$5,$O27=""),(AX27+BA27)*Tabelle!$R$53,0) -> 0 | BI27: 0 | BJ27: =IF(OR($O27>$BG$5,$O27=""),(AZ27+BB27)*Tabelle!$R$53,0) -> 0 | BK27: 0 | BL27: 0 | BM27: 0 | BN27: 0 | BP27: =+IFERROR(IF($H27<=BQ$5,VLOOKUP($H27,Tabelle!$N$10:$S$58,6,FALSE),0),0) -> 0.000 | BQ27: 0 | BR27: =IF(OR($O27>$BQ$5,$O27=""),(BH27+BK27)*Tabelle!$S$54,0) -> 0 | BS27: 0 | BT27: =IF(OR($O27>$BQ$5,$O27=""),(BJ27+BL27)*Tabelle!$S$54,0) -> 0 | BU27: 0 | BV27: 0 | BW27: 0 | BX27: 0 | BZ27: =+IFERROR(IF($H27<=CA$5,VLOOKUP($H27,Tabelle!$N$10:$T$58,7,FALSE),0),0) -> 0.000 | CA27: 0 | CB27: =IF(OR($O27>$CA$5,$O27=""),+(BR27+BU27)*Tabelle!$T$55,0) -> 0 | CC27: 0 | CD27: =IF(OR($O27>$CA$5,$O27=""),+(BT27+BV27)*Tabelle!$T$55,0) -> 0 | CE27: 0 | CF27: 0 | CG27: 0 | CH27: 0 | CJ27: =+IFERROR(IF($H27<=CK$5,VLOOKUP($H27,Tabelle!$N$10:$U$58,8,FALSE),0),0) -> 0.000 | CK27: 0 | CL27: =IF(OR($O27>$CK$5,$O27=""),+(CB27+CE27)*Tabelle!$U$56,0) -> 0 | CM27: 0 | CN27: =IF(OR($O27>$CK$5,$O27=""),+(CD27+CF27)*Tabelle!$U$56,0) -> 0 | CO27: 0 | CP27: 0 | CQ27: 0 | CR27: 0 | CT27: =+IFERROR(IF($H27<=CU$5,VLOOKUP($H27,Tabelle!$N$10:$V$58,9,FALSE),0),0) -> 0.000 | CU27: 0 | CV27: =IF(OR($O27>CU$5,$O27=""),(CL27+CO27)*Tabelle!$V$57,0) -> 0 | CW27: 0 | CX27: =IF(OR($O27>CU$5,$O27=""),(CN27+CP27)*Tabelle!$V$57,0) -> 0 | CY27: 0 | CZ27: 0 | DA27: 0 | DB27: 0 | DD27: =+IFERROR(IF($H27<=DE$5,VLOOKUP($H27,Tabelle!$N$10:$W$59,10,FALSE),0),0) -> 0.000 | DE27: 0 | DF27: =IF(OR($O27>DE$5,$O27=""),+(CV27+CY27)*Tabelle!$W$58,0) -> 0 | DG27: 0 | DH27: =IF(OR($O27>DE$5,$O27=""),+(CX27+CZ27)*Tabelle!$W$58,0) -> 0 | DI27: 0 | DJ27: 0 | DK27: 0 | DL27: 0 | DN27: =+IFERROR(IF($H27<=DO$5,VLOOKUP($H27,Tabelle!$N$10:$X$60,11,FALSE),0),0) -> 0.000 | DO27: 0 | DP27: =IF(OR($O27>DO$5,$O27=""),+(DF27+DI27)*Tabelle!$X$59,0) -> 0 | DQ27: 0 | DR27: =IF(OR($O27>DO$5,$O27=""),+(DH27+DJ27)*Tabelle!$X$59,0) -> 0 | DS27: 0 | DT27: 0 | DU27: 0 | DV27: 0 | DX27: =+IFERROR(IF($H27<=DY$5,VLOOKUP($H27,Tabelle!$N$10:$Y$61,12,FALSE),0),0) -> 0.000 | DY27: 0 | DZ27: =IF(OR($O27>DY$5,$O27=""),+(DP27+DS27)*Tabelle!$Y$60,0) -> 0 | EA27: 0 | EB27: =IF(OR($O27>DY$5,$O27=""),+(DR27+DT27)*Tabelle!$Y$60,0) -> 0 | EC27: 0 | ED27: 0 | EE27: 0 | EF27: 0 | EH27: =+IFERROR(IF($H27<=EI$5,VLOOKUP($H27,Tabelle!$N$10:$Z$62,13,FALSE),0),0) -> 0.000 | EI27: 0 | EJ27: =IF(OR($O27>EI$5,$O27=""),+(DZ27+EC27)*Tabelle!$Z$61,0) -> 0 | EK27: 0 | EL27: =IF(OR($O27>EI$5,$O27=""),+(EB27+ED27)*Tabelle!$Z$61,0) -> 0 | EM27: 0 | EN27: 0 | EO27: 0 | EP27: 0
D28: =++IFERROR(INDEX(Tabelle!$H$11:$H$16,MATCH(IN_Cespiti!E28,Tabelle!$I$11:$I$16,0)),"") ->  | F28: =++IFERROR(INDEX(Tabelle!$C$10:$C$44,MATCH(IN_Cespiti!G28,Tabelle!$E$10:$E$44,0)),"") ->  | Q28: =IF($D28=3,$M28,+IFERROR(VLOOKUP(CONCATENATE(D28,".",F28),Tabelle!$D$10:$F$44,3,),"")) ->  | T28: =+IF(R28="",Q28,+IF(R28=Tabelle!$B$105,IN_Cespiti!Q28,IF(OR(R28=Tabelle!$B$103,R28=Tabelle!$B$104),IN_Cespiti!S28,0))) ->  | W28: =+IF(U28="",T28,+IF(U28=Tabelle!$B$105,IN_Cespiti!T28,IF(OR(U28=Tabelle!$B$103,U28=Tabelle!$B$104),IN_Cespiti!V28,0))) ->  | Z28: =+IF(OR(X28="",X28=Tabelle!$B$105),W28,Y28) ->  | AB28: =+IFERROR(IF($H28<=2017,VLOOKUP($H28,Tabelle!$N$10:$O$58,2,FALSE),0),0) -> 0.000 | AC28: 0 | AD28: 0 | AE28: 0 | AF28: 0 | AG28: 0 | AH28: 0 | AI28: 0 | AJ28: 0 | AL28: =+IFERROR(IF($H28<=AM$5,VLOOKUP($H28,Tabelle!$N$10:$P$58,3,FALSE),0),0) -> 0.000 | AM28: 0 | AN28: =IF(OR($O28>$AM$5,$O28=""),(AD28+AG28)*Tabelle!$P$51,0) -> 0 | AO28: 0 | AP28: =IF(OR($O28>$AM$5,$O28=""),(AF28+AH28)*Tabelle!$P$51,0) -> 0 | AQ28: 0 | AR28: 0 | AS28: 0 | AT28: 0 | AV28: =+IFERROR(IF($H28<=AW$5,VLOOKUP($H28,Tabelle!$N$10:$Q$58,4,FALSE),0),0) -> 0.000 | AW28: 0 | AX28: =IF(OR($O28>$AW$5,$O28=""),(AN28+AQ28)*Tabelle!$Q$52,0) -> 0 | AY28: 0 | AZ28: =IF(OR($O28>$AW$5,$O28=""),(AP28+AR28)*Tabelle!$Q$52,0) -> 0 | BA28: 0 | BB28: 0 | BC28: 0 | BD28: 0 | BF28: =+IFERROR(IF($H28<=BG$5,VLOOKUP($H28,Tabelle!$N$10:$R$58,5,FALSE),0),0) -> 0.000 | BG28: 0 | BH28: =IF(OR($O28>$BG$5,$O28=""),(AX28+BA28)*Tabelle!$R$53,0) -> 0 | BI28: 0 | BJ28: =IF(OR($O28>$BG$5,$O28=""),(AZ28+BB28)*Tabelle!$R$53,0) -> 0 | BK28: 0 | BL28: 0 | BM28: 0 | BN28: 0 | BP28: =+IFERROR(IF($H28<=BQ$5,VLOOKUP($H28,Tabelle!$N$10:$S$58,6,FALSE),0),0) -> 0.000 | BQ28: 0 | BR28: =IF(OR($O28>$BQ$5,$O28=""),(BH28+BK28)*Tabelle!$S$54,0) -> 0 | BS28: 0 | BT28: =IF(OR($O28>$BQ$5,$O28=""),(BJ28+BL28)*Tabelle!$S$54,0) -> 0 | BU28: 0 | BV28: 0 | BW28: 0 | BX28: 0 | BZ28: =+IFERROR(IF($H28<=CA$5,VLOOKUP($H28,Tabelle!$N$10:$T$58,7,FALSE),0),0) -> 0.000 | CA28: 0 | CB28: =IF(OR($O28>$CA$5,$O28=""),+(BR28+BU28)*Tabelle!$T$55,0) -> 0 | CC28: 0 | CD28: =IF(OR($O28>$CA$5,$O28=""),+(BT28+BV28)*Tabelle!$T$55,0) -> 0 | CE28: 0 | CF28: 0 | CG28: 0 | CH28: 0 | CJ28: =+IFERROR(IF($H28<=CK$5,VLOOKUP($H28,Tabelle!$N$10:$U$58,8,FALSE),0),0) -> 0.000 | CK28: 0 | CL28: =IF(OR($O28>$CK$5,$O28=""),+(CB28+CE28)*Tabelle!$U$56,0) -> 0 | CM28: 0 | CN28: =IF(OR($O28>$CK$5,$O28=""),+(CD28+CF28)*Tabelle!$U$56,0) -> 0 | CO28: 0 | CP28: 0 | CQ28: 0 | CR28: 0 | CT28: =+IFERROR(IF($H28<=CU$5,VLOOKUP($H28,Tabelle!$N$10:$V$58,9,FALSE),0),0) -> 0.000 | CU28: 0 | CV28: =IF(OR($O28>CU$5,$O28=""),(CL28+CO28)*Tabelle!$V$57,0) -> 0 | CW28: 0 | CX28: =IF(OR($O28>CU$5,$O28=""),(CN28+CP28)*Tabelle!$V$57,0) -> 0 | CY28: 0 | CZ28: 0 | DA28: 0 | DB28: 0 | DD28: =+IFERROR(IF($H28<=DE$5,VLOOKUP($H28,Tabelle!$N$10:$W$59,10,FALSE),0),0) -> 0.000 | DE28: 0 | DF28: =IF(OR($O28>DE$5,$O28=""),+(CV28+CY28)*Tabelle!$W$58,0) -> 0 | DG28: 0 | DH28: =IF(OR($O28>DE$5,$O28=""),+(CX28+CZ28)*Tabelle!$W$58,0) -> 0 | DI28: 0 | DJ28: 0 | DK28: 0 | DL28: 0 | DN28: =+IFERROR(IF($H28<=DO$5,VLOOKUP($H28,Tabelle!$N$10:$X$60,11,FALSE),0),0) -> 0.000 | DO28: 0 | DP28: =IF(OR($O28>DO$5,$O28=""),+(DF28+DI28)*Tabelle!$X$59,0) -> 0 | DQ28: 0 | DR28: =IF(OR($O28>DO$5,$O28=""),+(DH28+DJ28)*Tabelle!$X$59,0) -> 0 | DS28: 0 | DT28: 0 | DU28: 0 | DV28: 0 | DX28: =+IFERROR(IF($H28<=DY$5,VLOOKUP($H28,Tabelle!$N$10:$Y$61,12,FALSE),0),0) -> 0.000 | DY28: 0 | DZ28: =IF(OR($O28>DY$5,$O28=""),+(DP28+DS28)*Tabelle!$Y$60,0) -> 0 | EA28: 0 | EB28: =IF(OR($O28>DY$5,$O28=""),+(DR28+DT28)*Tabelle!$Y$60,0) -> 0 | EC28: 0 | ED28: 0 | EE28: 0 | EF28: 0 | EH28: =+IFERROR(IF($H28<=EI$5,VLOOKUP($H28,Tabelle!$N$10:$Z$62,13,FALSE),0),0) -> 0.000 | EI28: 0 | EJ28: =IF(OR($O28>EI$5,$O28=""),+(DZ28+EC28)*Tabelle!$Z$61,0) -> 0 | EK28: 0 | EL28: =IF(OR($O28>EI$5,$O28=""),+(EB28+ED28)*Tabelle!$Z$61,0) -> 0 | EM28: 0 | EN28: 0 | EO28: 0 | EP28: 0
D29: =++IFERROR(INDEX(Tabelle!$H$11:$H$16,MATCH(IN_Cespiti!E29,Tabelle!$I$11:$I$16,0)),"") ->  | F29: =++IFERROR(INDEX(Tabelle!$C$10:$C$44,MATCH(IN_Cespiti!G29,Tabelle!$E$10:$E$44,0)),"") ->  | Q29: =IF($D29=3,$M29,+IFERROR(VLOOKUP(CONCATENATE(D29,".",F29),Tabelle!$D$10:$F$44,3,),"")) ->  | T29: =+IF(R29="",Q29,+IF(R29=Tabelle!$B$105,IN_Cespiti!Q29,IF(OR(R29=Tabelle!$B$103,R29=Tabelle!$B$104),IN_Cespiti!S29,0))) ->  | W29: =+IF(U29="",T29,+IF(U29=Tabelle!$B$105,IN_Cespiti!T29,IF(OR(U29=Tabelle!$B$103,U29=Tabelle!$B$104),IN_Cespiti!V29,0))) ->  | Z29: =+IF(OR(X29="",X29=Tabelle!$B$105),W29,Y29) ->  | AB29: =+IFERROR(IF($H29<=2017,VLOOKUP($H29,Tabelle!$N$10:$O$58,2,FALSE),0),0) -> 0.000 | AC29: 0 | AD29: 0 | AE29: 0 | AF29: 0 | AG29: 0 | AH29: 0 | AI29: 0 | AJ29: 0 | AL29: =+IFERROR(IF($H29<=AM$5,VLOOKUP($H29,Tabelle!$N$10:$P$58,3,FALSE),0),0) -> 0.000 | AM29: 0 | AN29: =IF(OR($O29>$AM$5,$O29=""),(AD29+AG29)*Tabelle!$P$51,0) -> 0 | AO29: 0 | AP29: =IF(OR($O29>$AM$5,$O29=""),(AF29+AH29)*Tabelle!$P$51,0) -> 0 | AQ29: 0 | AR29: 0 | AS29: 0 | AT29: 0 | AV29: =+IFERROR(IF($H29<=AW$5,VLOOKUP($H29,Tabelle!$N$10:$Q$58,4,FALSE),0),0) -> 0.000 | AW29: 0 | AX29: =IF(OR($O29>$AW$5,$O29=""),(AN29+AQ29)*Tabelle!$Q$52,0) -> 0 | AY29: 0 | AZ29: =IF(OR($O29>$AW$5,$O29=""),(AP29+AR29)*Tabelle!$Q$52,0) -> 0 | BA29: 0 | BB29: 0 | BC29: 0 | BD29: 0 | BF29: =+IFERROR(IF($H29<=BG$5,VLOOKUP($H29,Tabelle!$N$10:$R$58,5,FALSE),0),0) -> 0.000 | BG29: 0 | BH29: =IF(OR($O29>$BG$5,$O29=""),(AX29+BA29)*Tabelle!$R$53,0) -> 0 | BI29: 0 | BJ29: =IF(OR($O29>$BG$5,$O29=""),(AZ29+BB29)*Tabelle!$R$53,0) -> 0 | BK29: 0 | BL29: 0 | BM29: 0 | BN29: 0 | BP29: =+IFERROR(IF($H29<=BQ$5,VLOOKUP($H29,Tabelle!$N$10:$S$58,6,FALSE),0),0) -> 0.000 | BQ29: 0 | BR29: =IF(OR($O29>$BQ$5,$O29=""),(BH29+BK29)*Tabelle!$S$54,0) -> 0 | BS29: 0 | BT29: =IF(OR($O29>$BQ$5,$O29=""),(BJ29+BL29)*Tabelle!$S$54,0) -> 0 | BU29: 0 | BV29: 0 | BW29: 0 | BX29: 0 | BZ29: =+IFERROR(IF($H29<=CA$5,VLOOKUP($H29,Tabelle!$N$10:$T$58,7,FALSE),0),0) -> 0.000 | CA29: 0 | CB29: =IF(OR($O29>$CA$5,$O29=""),+(BR29+BU29)*Tabelle!$T$55,0) -> 0 | CC29: 0 | CD29: =IF(OR($O29>$CA$5,$O29=""),+(BT29+BV29)*Tabelle!$T$55,0) -> 0 | CE29: 0 | CF29: 0 | CG29: 0 | CH29: 0 | CJ29: =+IFERROR(IF($H29<=CK$5,VLOOKUP($H29,Tabelle!$N$10:$U$58,8,FALSE),0),0) -> 0.000 | CK29: 0 | CL29: =IF(OR($O29>$CK$5,$O29=""),+(CB29+CE29)*Tabelle!$U$56,0) -> 0 | CM29: 0 | CN29: =IF(OR($O29>$CK$5,$O29=""),+(CD29+CF29)*Tabelle!$U$56,0) -> 0 | CO29: 0 | CP29: 0 | CQ29: 0 | CR29: 0 | CT29: =+IFERROR(IF($H29<=CU$5,VLOOKUP($H29,Tabelle!$N$10:$V$58,9,FALSE),0),0) -> 0.000 | CU29: 0 | CV29: =IF(OR($O29>CU$5,$O29=""),(CL29+CO29)*Tabelle!$V$57,0) -> 0 | CW29: 0 | CX29: =IF(OR($O29>CU$5,$O29=""),(CN29+CP29)*Tabelle!$V$57,0) -> 0 | CY29: 0 | CZ29: 0 | DA29: 0 | DB29: 0 | DD29: =+IFERROR(IF($H29<=DE$5,VLOOKUP($H29,Tabelle!$N$10:$W$59,10,FALSE),0),0) -> 0.000 | DE29: 0 | DF29: =IF(OR($O29>DE$5,$O29=""),+(CV29+CY29)*Tabelle!$W$58,0) -> 0 | DG29: 0 | DH29: =IF(OR($O29>DE$5,$O29=""),+(CX29+CZ29)*Tabelle!$W$58,0) -> 0 | DI29: 0 | DJ29: 0 | DK29: 0 | DL29: 0 | DN29: =+IFERROR(IF($H29<=DO$5,VLOOKUP($H29,Tabelle!$N$10:$X$60,11,FALSE),0),0) -> 0.000 | DO29: 0 | DP29: =IF(OR($O29>DO$5,$O29=""),+(DF29+DI29)*Tabelle!$X$59,0) -> 0 | DQ29: 0 | DR29: =IF(OR($O29>DO$5,$O29=""),+(DH29+DJ29)*Tabelle!$X$59,0) -> 0 | DS29: 0 | DT29: 0 | DU29: 0 | DV29: 0 | DX29: =+IFERROR(IF($H29<=DY$5,VLOOKUP($H29,Tabelle!$N$10:$Y$61,12,FALSE),0),0) -> 0.000 | DY29: 0 | DZ29: =IF(OR($O29>DY$5,$O29=""),+(DP29+DS29)*Tabelle!$Y$60,0) -> 0 | EA29: 0 | EB29: =IF(OR($O29>DY$5,$O29=""),+(DR29+DT29)*Tabelle!$Y$60,0) -> 0 | EC29: 0 | ED29: 0 | EE29: 0 | EF29: 0 | EH29: =+IFERROR(IF($H29<=EI$5,VLOOKUP($H29,Tabelle!$N$10:$Z$62,13,FALSE),0),0) -> 0.000 | EI29: 0 | EJ29: =IF(OR($O29>EI$5,$O29=""),+(DZ29+EC29)*Tabelle!$Z$61,0) -> 0 | EK29: 0 | EL29: =IF(OR($O29>EI$5,$O29=""),+(EB29+ED29)*Tabelle!$Z$61,0) -> 0 | EM29: 0 | EN29: 0 | EO29: 0 | EP29: 0
D30: =++IFERROR(INDEX(Tabelle!$H$11:$H$16,MATCH(IN_Cespiti!E30,Tabelle!$I$11:$I$16,0)),"") ->  | F30: =++IFERROR(INDEX(Tabelle!$C$10:$C$44,MATCH(IN_Cespiti!G30,Tabelle!$E$10:$E$44,0)),"") ->  | Q30: =IF($D30=3,$M30,+IFERROR(VLOOKUP(CONCATENATE(D30,".",F30),Tabelle!$D$10:$F$44,3,),"")) ->  | T30: =+IF(R30="",Q30,+IF(R30=Tabelle!$B$105,IN_Cespiti!Q30,IF(OR(R30=Tabelle!$B$103,R30=Tabelle!$B$104),IN_Cespiti!S30,0))) ->  | W30: =+IF(U30="",T30,+IF(U30=Tabelle!$B$105,IN_Cespiti!T30,IF(OR(U30=Tabelle!$B$103,U30=Tabelle!$B$104),IN_Cespiti!V30,0))) ->  | Z30: =+IF(OR(X30="",X30=Tabelle!$B$105),W30,Y30) ->  | AB30: =+IFERROR(IF($H30<=2017,VLOOKUP($H30,Tabelle!$N$10:$O$58,2,FALSE),0),0) -> 0.000 | AC30: 0 | AD30: 0 | AE30: 0 | AF30: 0 | AG30: 0 | AH30: 0 | AI30: 0 | AJ30: 0 | AL30: =+IFERROR(IF($H30<=AM$5,VLOOKUP($H30,Tabelle!$N$10:$P$58,3,FALSE),0),0) -> 0.000 | AM30: 0 | AN30: =IF(OR($O30>$AM$5,$O30=""),(AD30+AG30)*Tabelle!$P$51,0) -> 0 | AO30: 0 | AP30: =IF(OR($O30>$AM$5,$O30=""),(AF30+AH30)*Tabelle!$P$51,0) -> 0 | AQ30: 0 | AR30: 0 | AS30: 0 | AT30: 0 | AV30: =+IFERROR(IF($H30<=AW$5,VLOOKUP($H30,Tabelle!$N$10:$Q$58,4,FALSE),0),0) -> 0.000 | AW30: 0 | AX30: =IF(OR($O30>$AW$5,$O30=""),(AN30+AQ30)*Tabelle!$Q$52,0) -> 0 | AY30: 0 | AZ30: =IF(OR($O30>$AW$5,$O30=""),(AP30+AR30)*Tabelle!$Q$52,0) -> 0 | BA30: 0 | BB30: 0 | BC30: 0 | BD30: 0 | BF30: =+IFERROR(IF($H30<=BG$5,VLOOKUP($H30,Tabelle!$N$10:$R$58,5,FALSE),0),0) -> 0.000 | BG30: 0 | BH30: =IF(OR($O30>$BG$5,$O30=""),(AX30+BA30)*Tabelle!$R$53,0) -> 0 | BI30: 0 | BJ30: =IF(OR($O30>$BG$5,$O30=""),(AZ30+BB30)*Tabelle!$R$53,0) -> 0 | BK30: 0 | BL30: 0 | BM30: 0 | BN30: 0 | BP30: =+IFERROR(IF($H30<=BQ$5,VLOOKUP($H30,Tabelle!$N$10:$S$58,6,FALSE),0),0) -> 0.000 | BQ30: 0 | BR30: =IF(OR($O30>$BQ$5,$O30=""),(BH30+BK30)*Tabelle!$S$54,0) -> 0 | BS30: 0 | BT30: =IF(OR($O30>$BQ$5,$O30=""),(BJ30+BL30)*Tabelle!$S$54,0) -> 0 | BU30: 0 | BV30: 0 | BW30: 0 | BX30: 0 | BZ30: =+IFERROR(IF($H30<=CA$5,VLOOKUP($H30,Tabelle!$N$10:$T$58,7,FALSE),0),0) -> 0.000 | CA30: 0 | CB30: =IF(OR($O30>$CA$5,$O30=""),+(BR30+BU30)*Tabelle!$T$55,0) -> 0 | CC30: 0 | CD30: =IF(OR($O30>$CA$5,$O30=""),+(BT30+BV30)*Tabelle!$T$55,0) -> 0 | CE30: 0 | CF30: 0 | CG30: 0 | CH30: 0 | CJ30: =+IFERROR(IF($H30<=CK$5,VLOOKUP($H30,Tabelle!$N$10:$U$58,8,FALSE),0),0) -> 0.000 | CK30: 0 | CL30: =IF(OR($O30>$CK$5,$O30=""),+(CB30+CE30)*Tabelle!$U$56,0) -> 0 | CM30: 0 | CN30: =IF(OR($O30>$CK$5,$O30=""),+(CD30+CF30)*Tabelle!$U$56,0) -> 0 | CO30: 0 | CP30: 0 | CQ30: 0 | CR30: 0 | CT30: =+IFERROR(IF($H30<=CU$5,VLOOKUP($H30,Tabelle!$N$10:$V$58,9,FALSE),0),0) -> 0.000 | CU30: 0 | CV30: =IF(OR($O30>CU$5,$O30=""),(CL30+CO30)*Tabelle!$V$57,0) -> 0 | CW30: 0 | CX30: =IF(OR($O30>CU$5,$O30=""),(CN30+CP30)*Tabelle!$V$57,0) -> 0 | CY30: 0 | CZ30: 0 | DA30: 0 | DB30: 0 | DD30: =+IFERROR(IF($H30<=DE$5,VLOOKUP($H30,Tabelle!$N$10:$W$59,10,FALSE),0),0) -> 0.000 | DE30: 0 | DF30: =IF(OR($O30>DE$5,$O30=""),+(CV30+CY30)*Tabelle!$W$58,0) -> 0 | DG30: 0 | DH30: =IF(OR($O30>DE$5,$O30=""),+(CX30+CZ30)*Tabelle!$W$58,0) -> 0 | DI30: 0 | DJ30: 0 | DK30: 0 | DL30: 0 | DN30: =+IFERROR(IF($H30<=DO$5,VLOOKUP($H30,Tabelle!$N$10:$X$60,11,FALSE),0),0) -> 0.000 | DO30: 0 | DP30: =IF(OR($O30>DO$5,$O30=""),+(DF30+DI30)*Tabelle!$X$59,0) -> 0 | DQ30: 0 | DR30: =IF(OR($O30>DO$5,$O30=""),+(DH30+DJ30)*Tabelle!$X$59,0) -> 0 | DS30: 0 | DT30: 0 | DU30: 0 | DV30: 0 | DX30: =+IFERROR(IF($H30<=DY$5,VLOOKUP($H30,Tabelle!$N$10:$Y$61,12,FALSE),0),0) -> 0.000 | DY30: 0 | DZ30: =IF(OR($O30>DY$5,$O30=""),+(DP30+DS30)*Tabelle!$Y$60,0) -> 0 | EA30: 0 | EB30: =IF(OR($O30>DY$5,$O30=""),+(DR30+DT30)*Tabelle!$Y$60,0) -> 0 | EC30: 0 | ED30: 0 | EE30: 0 | EF30: 0 | EH30: =+IFERROR(IF($H30<=EI$5,VLOOKUP($H30,Tabelle!$N$10:$Z$62,13,FALSE),0),0) -> 0.000 | EI30: 0 | EJ30: =IF(OR($O30>EI$5,$O30=""),+(DZ30+EC30)*Tabelle!$Z$61,0) -> 0 | EK30: 0 | EL30: =IF(OR($O30>EI$5,$O30=""),+(EB30+ED30)*Tabelle!$Z$61,0) -> 0 | EM30: 0 | EN30: 0 | EO30: 0 | EP30: 0
D31: =++IFERROR(INDEX(Tabelle!$H$11:$H$16,MATCH(IN_Cespiti!E31,Tabelle!$I$11:$I$16,0)),"") ->  | F31: =++IFERROR(INDEX(Tabelle!$C$10:$C$44,MATCH(IN_Cespiti!G31,Tabelle!$E$10:$E$44,0)),"") ->  | Q31: =IF($D31=3,$M31,+IFERROR(VLOOKUP(CONCATENATE(D31,".",F31),Tabelle!$D$10:$F$44,3,),"")) ->  | T31: =+IF(R31="",Q31,+IF(R31=Tabelle!$B$105,IN_Cespiti!Q31,IF(OR(R31=Tabelle!$B$103,R31=Tabelle!$B$104),IN_Cespiti!S31,0))) ->  | W31: =+IF(U31="",T31,+IF(U31=Tabelle!$B$105,IN_Cespiti!T31,IF(OR(U31=Tabelle!$B$103,U31=Tabelle!$B$104),IN_Cespiti!V31,0))) ->  | Z31: =+IF(OR(X31="",X31=Tabelle!$B$105),W31,Y31) ->  | AB31: =+IFERROR(IF($H31<=2017,VLOOKUP($H31,Tabelle!$N$10:$O$58,2,FALSE),0),0) -> 0.000 | AC31: 0 | AD31: 0 | AE31: 0 | AF31: 0 | AG31: 0 | AH31: 0 | AI31: 0 | AJ31: 0 | AL31: =+IFERROR(IF($H31<=AM$5,VLOOKUP($H31,Tabelle!$N$10:$P$58,3,FALSE),0),0) -> 0.000 | AM31: 0 | AN31: =IF(OR($O31>$AM$5,$O31=""),(AD31+AG31)*Tabelle!$P$51,0) -> 0 | AO31: 0 | AP31: =IF(OR($O31>$AM$5,$O31=""),(AF31+AH31)*Tabelle!$P$51,0) -> 0 | AQ31: 0 | AR31: 0 | AS31: 0 | AT31: 0 | AV31: =+IFERROR(IF($H31<=AW$5,VLOOKUP($H31,Tabelle!$N$10:$Q$58,4,FALSE),0),0) -> 0.000 | AW31: 0 | AX31: =IF(OR($O31>$AW$5,$O31=""),(AN31+AQ31)*Tabelle!$Q$52,0) -> 0 | AY31: 0 | AZ31: =IF(OR($O31>$AW$5,$O31=""),(AP31+AR31)*Tabelle!$Q$52,0) -> 0 | BA31: 0 | BB31: 0 | BC31: 0 | BD31: 0 | BF31: =+IFERROR(IF($H31<=BG$5,VLOOKUP($H31,Tabelle!$N$10:$R$58,5,FALSE),0),0) -> 0.000 | BG31: 0 | BH31: =IF(OR($O31>$BG$5,$O31=""),(AX31+BA31)*Tabelle!$R$53,0) -> 0 | BI31: 0 | BJ31: =IF(OR($O31>$BG$5,$O31=""),(AZ31+BB31)*Tabelle!$R$53,0) -> 0 | BK31: 0 | BL31: 0 | BM31: 0 | BN31: 0 | BP31: =+IFERROR(IF($H31<=BQ$5,VLOOKUP($H31,Tabelle!$N$10:$S$58,6,FALSE),0),0) -> 0.000 | BQ31: 0 | BR31: =IF(OR($O31>$BQ$5,$O31=""),(BH31+BK31)*Tabelle!$S$54,0) -> 0 | BS31: 0 | BT31: =IF(OR($O31>$BQ$5,$O31=""),(BJ31+BL31)*Tabelle!$S$54,0) -> 0 | BU31: 0 | BV31: 0 | BW31: 0 | BX31: 0 | BZ31: =+IFERROR(IF($H31<=CA$5,VLOOKUP($H31,Tabelle!$N$10:$T$58,7,FALSE),0),0) -> 0.000 | CA31: 0 | CB31: =IF(OR($O31>$CA$5,$O31=""),+(BR31+BU31)*Tabelle!$T$55,0) -> 0 | CC31: 0 | CD31: =IF(OR($O31>$CA$5,$O31=""),+(BT31+BV31)*Tabelle!$T$55,0) -> 0 | CE31: 0 | CF31: 0 | CG31: 0 | CH31: 0 | CJ31: =+IFERROR(IF($H31<=CK$5,VLOOKUP($H31,Tabelle!$N$10:$U$58,8,FALSE),0),0) -> 0.000 | CK31: 0 | CL31: =IF(OR($O31>$CK$5,$O31=""),+(CB31+CE31)*Tabelle!$U$56,0) -> 0 | CM31: 0 | CN31: =IF(OR($O31>$CK$5,$O31=""),+(CD31+CF31)*Tabelle!$U$56,0) -> 0 | CO31: 0 | CP31: 0 | CQ31: 0 | CR31: 0 | CT31: =+IFERROR(IF($H31<=CU$5,VLOOKUP($H31,Tabelle!$N$10:$V$58,9,FALSE),0),0) -> 0.000 | CU31: 0 | CV31: =IF(OR($O31>CU$5,$O31=""),(CL31+CO31)*Tabelle!$V$57,0) -> 0 | CW31: 0 | CX31: =IF(OR($O31>CU$5,$O31=""),(CN31+CP31)*Tabelle!$V$57,0) -> 0 | CY31: 0 | CZ31: 0 | DA31: 0 | DB31: 0 | DD31: =+IFERROR(IF($H31<=DE$5,VLOOKUP($H31,Tabelle!$N$10:$W$59,10,FALSE),0),0) -> 0.000 | DE31: 0 | DF31: =IF(OR($O31>DE$5,$O31=""),+(CV31+CY31)*Tabelle!$W$58,0) -> 0 | DG31: 0 | DH31: =IF(OR($O31>DE$5,$O31=""),+(CX31+CZ31)*Tabelle!$W$58,0) -> 0 | DI31: 0 | DJ31: 0 | DK31: 0 | DL31: 0 | DN31: =+IFERROR(IF($H31<=DO$5,VLOOKUP($H31,Tabelle!$N$10:$X$60,11,FALSE),0),0) -> 0.000 | DO31: 0 | DP31: =IF(OR($O31>DO$5,$O31=""),+(DF31+DI31)*Tabelle!$X$59,0) -> 0 | DQ31: 0 | DR31: =IF(OR($O31>DO$5,$O31=""),+(DH31+DJ31)*Tabelle!$X$59,0) -> 0 | DS31: 0 | DT31: 0 | DU31: 0 | DV31: 0 | DX31: =+IFERROR(IF($H31<=DY$5,VLOOKUP($H31,Tabelle!$N$10:$Y$61,12,FALSE),0),0) -> 0.000 | DY31: 0 | DZ31: =IF(OR($O31>DY$5,$O31=""),+(DP31+DS31)*Tabelle!$Y$60,0) -> 0 | EA31: 0 | EB31: =IF(OR($O31>DY$5,$O31=""),+(DR31+DT31)*Tabelle!$Y$60,0) -> 0 | EC31: 0 | ED31: 0 | EE31: 0 | EF31: 0 | EH31: =+IFERROR(IF($H31<=EI$5,VLOOKUP($H31,Tabelle!$N$10:$Z$62,13,FALSE),0),0) -> 0.000 | EI31: 0 | EJ31: =IF(OR($O31>EI$5,$O31=""),+(DZ31+EC31)*Tabelle!$Z$61,0) -> 0 | EK31: 0 | EL31: =IF(OR($O31>EI$5,$O31=""),+(EB31+ED31)*Tabelle!$Z$61,0) -> 0 | EM31: 0 | EN31: 0 | EO31: 0 | EP31: 0
D32: =++IFERROR(INDEX(Tabelle!$H$11:$H$16,MATCH(IN_Cespiti!E32,Tabelle!$I$11:$I$16,0)),"") ->  | F32: =++IFERROR(INDEX(Tabelle!$C$10:$C$44,MATCH(IN_Cespiti!G32,Tabelle!$E$10:$E$44,0)),"") ->  | Q32: =IF($D32=3,$M32,+IFERROR(VLOOKUP(CONCATENATE(D32,".",F32),Tabelle!$D$10:$F$44,3,),"")) ->  | T32: =+IF(R32="",Q32,+IF(R32=Tabelle!$B$105,IN_Cespiti!Q32,IF(OR(R32=Tabelle!$B$103,R32=Tabelle!$B$104),IN_Cespiti!S32,0))) ->  | W32: =+IF(U32="",T32,+IF(U32=Tabelle!$B$105,IN_Cespiti!T32,IF(OR(U32=Tabelle!$B$103,U32=Tabelle!$B$104),IN_Cespiti!V32,0))) ->  | Z32: =+IF(OR(X32="",X32=Tabelle!$B$105),W32,Y32) ->  | AB32: =+IFERROR(IF($H32<=2017,VLOOKUP($H32,Tabelle!$N$10:$O$58,2,FALSE),0),0) -> 0.000 | AC32: 0 | AD32: 0 | AE32: 0 | AF32: 0 | AG32: 0 | AH32: 0 | AI32: 0 | AJ32: 0 | AL32: =+IFERROR(IF($H32<=AM$5,VLOOKUP($H32,Tabelle!$N$10:$P$58,3,FALSE),0),0) -> 0.000 | AM32: 0 | AN32: =IF(OR($O32>$AM$5,$O32=""),(AD32+AG32)*Tabelle!$P$51,0) -> 0 | AO32: 0 | AP32: =IF(OR($O32>$AM$5,$O32=""),(AF32+AH32)*Tabelle!$P$51,0) -> 0 | AQ32: 0 | AR32: 0 | AS32: 0 | AT32: 0 | AV32: =+IFERROR(IF($H32<=AW$5,VLOOKUP($H32,Tabelle!$N$10:$Q$58,4,FALSE),0),0) -> 0.000 | AW32: 0 | AX32: =IF(OR($O32>$AW$5,$O32=""),(AN32+AQ32)*Tabelle!$Q$52,0) -> 0 | AY32: 0 | AZ32: =IF(OR($O32>$AW$5,$O32=""),(AP32+AR32)*Tabelle!$Q$52,0) -> 0 | BA32: 0 | BB32: 0 | BC32: 0 | BD32: 0 | BF32: =+IFERROR(IF($H32<=BG$5,VLOOKUP($H32,Tabelle!$N$10:$R$58,5,FALSE),0),0) -> 0.000 | BG32: 0 | BH32: =IF(OR($O32>$BG$5,$O32=""),(AX32+BA32)*Tabelle!$R$53,0) -> 0 | BI32: 0 | BJ32: =IF(OR($O32>$BG$5,$O32=""),(AZ32+BB32)*Tabelle!$R$53,0) -> 0 | BK32: 0 | BL32: 0 | BM32: 0 | BN32: 0 | BP32: =+IFERROR(IF($H32<=BQ$5,VLOOKUP($H32,Tabelle!$N$10:$S$58,6,FALSE),0),0) -> 0.000 | BQ32: 0 | BR32: =IF(OR($O32>$BQ$5,$O32=""),(BH32+BK32)*Tabelle!$S$54,0) -> 0 | BS32: 0 | BT32: =IF(OR($O32>$BQ$5,$O32=""),(BJ32+BL32)*Tabelle!$S$54,0) -> 0 | BU32: 0 | BV32: 0 | BW32: 0 | BX32: 0 | BZ32: =+IFERROR(IF($H32<=CA$5,VLOOKUP($H32,Tabelle!$N$10:$T$58,7,FALSE),0),0) -> 0.000 | CA32: 0 | CB32: =IF(OR($O32>$CA$5,$O32=""),+(BR32+BU32)*Tabelle!$T$55,0) -> 0 | CC32: 0 | CD32: =IF(OR($O32>$CA$5,$O32=""),+(BT32+BV32)*Tabelle!$T$55,0) -> 0 | CE32: 0 | CF32: 0 | CG32: 0 | CH32: 0 | CJ32: =+IFERROR(IF($H32<=CK$5,VLOOKUP($H32,Tabelle!$N$10:$U$58,8,FALSE),0),0) -> 0.000 | CK32: 0 | CL32: =IF(OR($O32>$CK$5,$O32=""),+(CB32+CE32)*Tabelle!$U$56,0) -> 0 | CM32: 0 | CN32: =IF(OR($O32>$CK$5,$O32=""),+(CD32+CF32)*Tabelle!$U$56,0) -> 0 | CO32: 0 | CP32: 0 | CQ32: 0 | CR32: 0 | CT32: =+IFERROR(IF($H32<=CU$5,VLOOKUP($H32,Tabelle!$N$10:$V$58,9,FALSE),0),0) -> 0.000 | CU32: 0 | CV32: =IF(OR($O32>CU$5,$O32=""),(CL32+CO32)*Tabelle!$V$57,0) -> 0 | CW32: 0 | CX32: =IF(OR($O32>CU$5,$O32=""),(CN32+CP32)*Tabelle!$V$57,0) -> 0 | CY32: 0 | CZ32: 0 | DA32: 0 | DB32: 0 | DD32: =+IFERROR(IF($H32<=DE$5,VLOOKUP($H32,Tabelle!$N$10:$W$59,10,FALSE),0),0) -> 0.000 | DE32: 0 | DF32: =IF(OR($O32>DE$5,$O32=""),+(CV32+CY32)*Tabelle!$W$58,0) -> 0 | DG32: 0 | DH32: =IF(OR($O32>DE$5,$O32=""),+(CX32+CZ32)*Tabelle!$W$58,0) -> 0 | DI32: 0 | DJ32: 0 | DK32: 0 | DL32: 0 | DN32: =+IFERROR(IF($H32<=DO$5,VLOOKUP($H32,Tabelle!$N$10:$X$60,11,FALSE),0),0) -> 0.000 | DO32: 0 | DP32: =IF(OR($O32>DO$5,$O32=""),+(DF32+DI32)*Tabelle!$X$59,0) -> 0 | DQ32: 0 | DR32: =IF(OR($O32>DO$5,$O32=""),+(DH32+DJ32)*Tabelle!$X$59,0) -> 0 | DS32: 0 | DT32: 0 | DU32: 0 | DV32: 0 | DX32: =+IFERROR(IF($H32<=DY$5,VLOOKUP($H32,Tabelle!$N$10:$Y$61,12,FALSE),0),0) -> 0.000 | DY32: 0 | DZ32: =IF(OR($O32>DY$5,$O32=""),+(DP32+DS32)*Tabelle!$Y$60,0) -> 0 | EA32: 0 | EB32: =IF(OR($O32>DY$5,$O32=""),+(DR32+DT32)*Tabelle!$Y$60,0) -> 0 | EC32: 0 | ED32: 0 | EE32: 0 | EF32: 0 | EH32: =+IFERROR(IF($H32<=EI$5,VLOOKUP($H32,Tabelle!$N$10:$Z$62,13,FALSE),0),0) -> 0.000 | EI32: 0 | EJ32: =IF(OR($O32>EI$5,$O32=""),+(DZ32+EC32)*Tabelle!$Z$61,0) -> 0 | EK32: 0 | EL32: =IF(OR($O32>EI$5,$O32=""),+(EB32+ED32)*Tabelle!$Z$61,0) -> 0 | EM32: 0 | EN32: 0 | EO32: 0 | EP32: 0
D33: =++IFERROR(INDEX(Tabelle!$H$11:$H$16,MATCH(IN_Cespiti!E33,Tabelle!$I$11:$I$16,0)),"") ->  | F33: =++IFERROR(INDEX(Tabelle!$C$10:$C$44,MATCH(IN_Cespiti!G33,Tabelle!$E$10:$E$44,0)),"") ->  | Q33: =IF($D33=3,$M33,+IFERROR(VLOOKUP(CONCATENATE(D33,".",F33),Tabelle!$D$10:$F$44,3,),"")) ->  | T33: =+IF(R33="",Q33,+IF(R33=Tabelle!$B$105,IN_Cespiti!Q33,IF(OR(R33=Tabelle!$B$103,R33=Tabelle!$B$104),IN_Cespiti!S33,0))) ->  | W33: =+IF(U33="",T33,+IF(U33=Tabelle!$B$105,IN_Cespiti!T33,IF(OR(U33=Tabelle!$B$103,U33=Tabelle!$B$104),IN_Cespiti!V33,0))) ->  | Z33: =+IF(OR(X33="",X33=Tabelle!$B$105),W33,Y33) ->  | AB33: =+IFERROR(IF($H33<=2017,VLOOKUP($H33,Tabelle!$N$10:$O$58,2,FALSE),0),0) -> 0.000 | AC33: 0 | AD33: 0 | AE33: 0 | AF33: 0 | AG33: 0 | AH33: 0 | AI33: 0 | AJ33: 0 | AL33: =+IFERROR(IF($H33<=AM$5,VLOOKUP($H33,Tabelle!$N$10:$P$58,3,FALSE),0),0) -> 0.000 | AM33: 0 | AN33: =IF(OR($O33>$AM$5,$O33=""),(AD33+AG33)*Tabelle!$P$51,0) -> 0 | AO33: 0 | AP33: =IF(OR($O33>$AM$5,$O33=""),(AF33+AH33)*Tabelle!$P$51,0) -> 0 | AQ33: 0 | AR33: 0 | AS33: 0 | AT33: 0 | AV33: =+IFERROR(IF($H33<=AW$5,VLOOKUP($H33,Tabelle!$N$10:$Q$58,4,FALSE),0),0) -> 0.000 | AW33: 0 | AX33: =IF(OR($O33>$AW$5,$O33=""),(AN33+AQ33)*Tabelle!$Q$52,0) -> 0 | AY33: 0 | AZ33: =IF(OR($O33>$AW$5,$O33=""),(AP33+AR33)*Tabelle!$Q$52,0) -> 0 | BA33: 0 | BB33: 0 | BC33: 0 | BD33: 0 | BF33: =+IFERROR(IF($H33<=BG$5,VLOOKUP($H33,Tabelle!$N$10:$R$58,5,FALSE),0),0) -> 0.000 | BG33: 0 | BH33: =IF(OR($O33>$BG$5,$O33=""),(AX33+BA33)*Tabelle!$R$53,0) -> 0 | BI33: 0 | BJ33: =IF(OR($O33>$BG$5,$O33=""),(AZ33+BB33)*Tabelle!$R$53,0) -> 0 | BK33: 0 | BL33: 0 | BM33: 0 | BN33: 0 | BP33: =+IFERROR(IF($H33<=BQ$5,VLOOKUP($H33,Tabelle!$N$10:$S$58,6,FALSE),0),0) -> 0.000 | BQ33: 0 | BR33: =IF(OR($O33>$BQ$5,$O33=""),(BH33+BK33)*Tabelle!$S$54,0) -> 0 | BS33: 0 | BT33: =IF(OR($O33>$BQ$5,$O33=""),(BJ33+BL33)*Tabelle!$S$54,0) -> 0 | BU33: 0 | BV33: 0 | BW33: 0 | BX33: 0 | BZ33: =+IFERROR(IF($H33<=CA$5,VLOOKUP($H33,Tabelle!$N$10:$T$58,7,FALSE),0),0) -> 0.000 | CA33: 0 | CB33: =IF(OR($O33>$CA$5,$O33=""),+(BR33+BU33)*Tabelle!$T$55,0) -> 0 | CC33: 0 | CD33: =IF(OR($O33>$CA$5,$O33=""),+(BT33+BV33)*Tabelle!$T$55,0) -> 0 | CE33: 0 | CF33: 0 | CG33: 0 | CH33: 0 | CJ33: =+IFERROR(IF($H33<=CK$5,VLOOKUP($H33,Tabelle!$N$10:$U$58,8,FALSE),0),0) -> 0.000 | CK33: 0 | CL33: =IF(OR($O33>$CK$5,$O33=""),+(CB33+CE33)*Tabelle!$U$56,0) -> 0 | CM33: 0 | CN33: =IF(OR($O33>$CK$5,$O33=""),+(CD33+CF33)*Tabelle!$U$56,0) -> 0 | CO33: 0 | CP33: 0 | CQ33: 0 | CR33: 0 | CT33: =+IFERROR(IF($H33<=CU$5,VLOOKUP($H33,Tabelle!$N$10:$V$58,9,FALSE),0),0) -> 0.000 | CU33: 0 | CV33: =IF(OR($O33>CU$5,$O33=""),(CL33+CO33)*Tabelle!$V$57,0) -> 0 | CW33: 0 | CX33: =IF(OR($O33>CU$5,$O33=""),(CN33+CP33)*Tabelle!$V$57,0) -> 0 | CY33: 0 | CZ33: 0 | DA33: 0 | DB33: 0 | DD33: =+IFERROR(IF($H33<=DE$5,VLOOKUP($H33,Tabelle!$N$10:$W$59,10,FALSE),0),0) -> 0.000 | DE33: 0 | DF33: =IF(OR($O33>DE$5,$O33=""),+(CV33+CY33)*Tabelle!$W$58,0) -> 0 | DG33: 0 | DH33: =IF(OR($O33>DE$5,$O33=""),+(CX33+CZ33)*Tabelle!$W$58,0) -> 0 | DI33: 0 | DJ33: 0 | DK33: 0 | DL33: 0 | DN33: =+IFERROR(IF($H33<=DO$5,VLOOKUP($H33,Tabelle!$N$10:$X$60,11,FALSE),0),0) -> 0.000 | DO33: 0 | DP33: =IF(OR($O33>DO$5,$O33=""),+(DF33+DI33)*Tabelle!$X$59,0) -> 0 | DQ33: 0 | DR33: =IF(OR($O33>DO$5,$O33=""),+(DH33+DJ33)*Tabelle!$X$59,0) -> 0 | DS33: 0 | DT33: 0 | DU33: 0 | DV33: 0 | DX33: =+IFERROR(IF($H33<=DY$5,VLOOKUP($H33,Tabelle!$N$10:$Y$61,12,FALSE),0),0) -> 0.000 | DY33: 0 | DZ33: =IF(OR($O33>DY$5,$O33=""),+(DP33+DS33)*Tabelle!$Y$60,0) -> 0 | EA33: 0 | EB33: =IF(OR($O33>DY$5,$O33=""),+(DR33+DT33)*Tabelle!$Y$60,0) -> 0 | EC33: 0 | ED33: 0 | EE33: 0 | EF33: 0 | EH33: =+IFERROR(IF($H33<=EI$5,VLOOKUP($H33,Tabelle!$N$10:$Z$62,13,FALSE),0),0) -> 0.000 | EI33: 0 | EJ33: =IF(OR($O33>EI$5,$O33=""),+(DZ33+EC33)*Tabelle!$Z$61,0) -> 0 | EK33: 0 | EL33: =IF(OR($O33>EI$5,$O33=""),+(EB33+ED33)*Tabelle!$Z$61,0) -> 0 | EM33: 0 | EN33: 0 | EO33: 0 | EP33: 0
D34: =++IFERROR(INDEX(Tabelle!$H$11:$H$16,MATCH(IN_Cespiti!E34,Tabelle!$I$11:$I$16,0)),"") ->  | F34: =++IFERROR(INDEX(Tabelle!$C$10:$C$44,MATCH(IN_Cespiti!G34,Tabelle!$E$10:$E$44,0)),"") ->  | Q34: =IF($D34=3,$M34,+IFERROR(VLOOKUP(CONCATENATE(D34,".",F34),Tabelle!$D$10:$F$44,3,),"")) ->  | T34: =+IF(R34="",Q34,+IF(R34=Tabelle!$B$105,IN_Cespiti!Q34,IF(OR(R34=Tabelle!$B$103,R34=Tabelle!$B$104),IN_Cespiti!S34,0))) ->  | W34: =+IF(U34="",T34,+IF(U34=Tabelle!$B$105,IN_Cespiti!T34,IF(OR(U34=Tabelle!$B$103,U34=Tabelle!$B$104),IN_Cespiti!V34,0))) ->  | Z34: =+IF(OR(X34="",X34=Tabelle!$B$105),W34,Y34) ->  | AB34: =+IFERROR(IF($H34<=2017,VLOOKUP($H34,Tabelle!$N$10:$O$58,2,FALSE),0),0) -> 0.000 | AC34: 0 | AD34: 0 | AE34: 0 | AF34: 0 | AG34: 0 | AH34: 0 | AI34: 0 | AJ34: 0 | AL34: =+IFERROR(IF($H34<=AM$5,VLOOKUP($H34,Tabelle!$N$10:$P$58,3,FALSE),0),0) -> 0.000 | AM34: 0 | AN34: =IF(OR($O34>$AM$5,$O34=""),(AD34+AG34)*Tabelle!$P$51,0) -> 0 | AO34: 0 | AP34: =IF(OR($O34>$AM$5,$O34=""),(AF34+AH34)*Tabelle!$P$51,0) -> 0 | AQ34: 0 | AR34: 0 | AS34: 0 | AT34: 0 | AV34: =+IFERROR(IF($H34<=AW$5,VLOOKUP($H34,Tabelle!$N$10:$Q$58,4,FALSE),0),0) -> 0.000 | AW34: 0 | AX34: =IF(OR($O34>$AW$5,$O34=""),(AN34+AQ34)*Tabelle!$Q$52,0) -> 0 | AY34: 0 | AZ34: =IF(OR($O34>$AW$5,$O34=""),(AP34+AR34)*Tabelle!$Q$52,0) -> 0 | BA34: 0 | BB34: 0 | BC34: 0 | BD34: 0 | BF34: =+IFERROR(IF($H34<=BG$5,VLOOKUP($H34,Tabelle!$N$10:$R$58,5,FALSE),0),0) -> 0.000 | BG34: 0 | BH34: =IF(OR($O34>$BG$5,$O34=""),(AX34+BA34)*Tabelle!$R$53,0) -> 0 | BI34: 0 | BJ34: =IF(OR($O34>$BG$5,$O34=""),(AZ34+BB34)*Tabelle!$R$53,0) -> 0 | BK34: 0 | BL34: 0 | BM34: 0 | BN34: 0 | BP34: =+IFERROR(IF($H34<=BQ$5,VLOOKUP($H34,Tabelle!$N$10:$S$58,6,FALSE),0),0) -> 0.000 | BQ34: 0 | BR34: =IF(OR($O34>$BQ$5,$O34=""),(BH34+BK34)*Tabelle!$S$54,0) -> 0 | BS34: 0 | BT34: =IF(OR($O34>$BQ$5,$O34=""),(BJ34+BL34)*Tabelle!$S$54,0) -> 0 | BU34: 0 | BV34: 0 | BW34: 0 | BX34: 0 | BZ34: =+IFERROR(IF($H34<=CA$5,VLOOKUP($H34,Tabelle!$N$10:$T$58,7,FALSE),0),0) -> 0.000 | CA34: 0 | CB34: =IF(OR($O34>$CA$5,$O34=""),+(BR34+BU34)*Tabelle!$T$55,0) -> 0 | CC34: 0 | CD34: =IF(OR($O34>$CA$5,$O34=""),+(BT34+BV34)*Tabelle!$T$55,0) -> 0 | CE34: 0 | CF34: 0 | CG34: 0 | CH34: 0 | CJ34: =+IFERROR(IF($H34<=CK$5,VLOOKUP($H34,Tabelle!$N$10:$U$58,8,FALSE),0),0) -> 0.000 | CK34: 0 | CL34: =IF(OR($O34>$CK$5,$O34=""),+(CB34+CE34)*Tabelle!$U$56,0) -> 0 | CM34: 0 | CN34: =IF(OR($O34>$CK$5,$O34=""),+(CD34+CF34)*Tabelle!$U$56,0) -> 0 | CO34: 0 | CP34: 0 | CQ34: 0 | CR34: 0 | CT34: =+IFERROR(IF($H34<=CU$5,VLOOKUP($H34,Tabelle!$N$10:$V$58,9,FALSE),0),0) -> 0.000 | CU34: 0 | CV34: =IF(OR($O34>CU$5,$O34=""),(CL34+CO34)*Tabelle!$V$57,0) -> 0 | CW34: 0 | CX34: =IF(OR($O34>CU$5,$O34=""),(CN34+CP34)*Tabelle!$V$57,0) -> 0 | CY34: 0 | CZ34: 0 | DA34: 0 | DB34: 0 | DD34: =+IFERROR(IF($H34<=DE$5,VLOOKUP($H34,Tabelle!$N$10:$W$59,10,FALSE),0),0) -> 0.000 | DE34: 0 | DF34: =IF(OR($O34>DE$5,$O34=""),+(CV34+CY34)*Tabelle!$W$58,0) -> 0 | DG34: 0 | DH34: =IF(OR($O34>DE$5,$O34=""),+(CX34+CZ34)*Tabelle!$W$58,0) -> 0 | DI34: 0 | DJ34: 0 | DK34: 0 | DL34: 0 | DN34: =+IFERROR(IF($H34<=DO$5,VLOOKUP($H34,Tabelle!$N$10:$X$60,11,FALSE),0),0) -> 0.000 | DO34: 0 | DP34: =IF(OR($O34>DO$5,$O34=""),+(DF34+DI34)*Tabelle!$X$59,0) -> 0 | DQ34: 0 | DR34: =IF(OR($O34>DO$5,$O34=""),+(DH34+DJ34)*Tabelle!$X$59,0) -> 0 | DS34: 0 | DT34: 0 | DU34: 0 | DV34: 0 | DX34: =+IFERROR(IF($H34<=DY$5,VLOOKUP($H34,Tabelle!$N$10:$Y$61,12,FALSE),0),0) -> 0.000 | DY34: 0 | DZ34: =IF(OR($O34>DY$5,$O34=""),+(DP34+DS34)*Tabelle!$Y$60,0) -> 0 | EA34: 0 | EB34: =IF(OR($O34>DY$5,$O34=""),+(DR34+DT34)*Tabelle!$Y$60,0) -> 0 | EC34: 0 | ED34: 0 | EE34: 0 | EF34: 0 | EH34: =+IFERROR(IF($H34<=EI$5,VLOOKUP($H34,Tabelle!$N$10:$Z$62,13,FALSE),0),0) -> 0.000 | EI34: 0 | EJ34: =IF(OR($O34>EI$5,$O34=""),+(DZ34+EC34)*Tabelle!$Z$61,0) -> 0 | EK34: 0 | EL34: =IF(OR($O34>EI$5,$O34=""),+(EB34+ED34)*Tabelle!$Z$61,0) -> 0 | EM34: 0 | EN34: 0 | EO34: 0 | EP34: 0
D35: =++IFERROR(INDEX(Tabelle!$H$11:$H$16,MATCH(IN_Cespiti!E35,Tabelle!$I$11:$I$16,0)),"") ->  | F35: =++IFERROR(INDEX(Tabelle!$C$10:$C$44,MATCH(IN_Cespiti!G35,Tabelle!$E$10:$E$44,0)),"") ->  | Q35: =IF($D35=3,$M35,+IFERROR(VLOOKUP(CONCATENATE(D35,".",F35),Tabelle!$D$10:$F$44,3,),"")) ->  | T35: =+IF(R35="",Q35,+IF(R35=Tabelle!$B$105,IN_Cespiti!Q35,IF(OR(R35=Tabelle!$B$103,R35=Tabelle!$B$104),IN_Cespiti!S35,0))) ->  | W35: =+IF(U35="",T35,+IF(U35=Tabelle!$B$105,IN_Cespiti!T35,IF(OR(U35=Tabelle!$B$103,U35=Tabelle!$B$104),IN_Cespiti!V35,0))) ->  | Z35: =+IF(OR(X35="",X35=Tabelle!$B$105),W35,Y35) ->  | AB35: =+IFERROR(IF($H35<=2017,VLOOKUP($H35,Tabelle!$N$10:$O$58,2,FALSE),0),0) -> 0.000 | AC35: 0 | AD35: 0 | AE35: 0 | AF35: 0 | AG35: 0 | AH35: 0 | AI35: 0 | AJ35: 0 | AL35: =+IFERROR(IF($H35<=AM$5,VLOOKUP($H35,Tabelle!$N$10:$P$58,3,FALSE),0),0) -> 0.000 | AM35: 0 | AN35: =IF(OR($O35>$AM$5,$O35=""),(AD35+AG35)*Tabelle!$P$51,0) -> 0 | AO35: 0 | AP35: =IF(OR($O35>$AM$5,$O35=""),(AF35+AH35)*Tabelle!$P$51,0) -> 0 | AQ35: 0 | AR35: 0 | AS35: 0 | AT35: 0 | AV35: =+IFERROR(IF($H35<=AW$5,VLOOKUP($H35,Tabelle!$N$10:$Q$58,4,FALSE),0),0) -> 0.000 | AW35: 0 | AX35: =IF(OR($O35>$AW$5,$O35=""),(AN35+AQ35)*Tabelle!$Q$52,0) -> 0 | AY35: 0 | AZ35: =IF(OR($O35>$AW$5,$O35=""),(AP35+AR35)*Tabelle!$Q$52,0) -> 0 | BA35: 0 | BB35: 0 | BC35: 0 | BD35: 0 | BF35: =+IFERROR(IF($H35<=BG$5,VLOOKUP($H35,Tabelle!$N$10:$R$58,5,FALSE),0),0) -> 0.000 | BG35: 0 | BH35: =IF(OR($O35>$BG$5,$O35=""),(AX35+BA35)*Tabelle!$R$53,0) -> 0 | BI35: 0 | BJ35: =IF(OR($O35>$BG$5,$O35=""),(AZ35+BB35)*Tabelle!$R$53,0) -> 0 | BK35: 0 | BL35: 0 | BM35: 0 | BN35: 0 | BP35: =+IFERROR(IF($H35<=BQ$5,VLOOKUP($H35,Tabelle!$N$10:$S$58,6,FALSE),0),0) -> 0.000 | BQ35: 0 | BR35: =IF(OR($O35>$BQ$5,$O35=""),(BH35+BK35)*Tabelle!$S$54,0) -> 0 | BS35: 0 | BT35: =IF(OR($O35>$BQ$5,$O35=""),(BJ35+BL35)*Tabelle!$S$54,0) -> 0 | BU35: 0 | BV35: 0 | BW35: 0 | BX35: 0 | BZ35: =+IFERROR(IF($H35<=CA$5,VLOOKUP($H35,Tabelle!$N$10:$T$58,7,FALSE),0),0) -> 0.000 | CA35: 0 | CB35: =IF(OR($O35>$CA$5,$O35=""),+(BR35+BU35)*Tabelle!$T$55,0) -> 0 | CC35: 0 | CD35: =IF(OR($O35>$CA$5,$O35=""),+(BT35+BV35)*Tabelle!$T$55,0) -> 0 | CE35: 0 | CF35: 0 | CG35: 0 | CH35: 0 | CJ35: =+IFERROR(IF($H35<=CK$5,VLOOKUP($H35,Tabelle!$N$10:$U$58,8,FALSE),0),0) -> 0.000 | CK35: 0 | CL35: =IF(OR($O35>$CK$5,$O35=""),+(CB35+CE35)*Tabelle!$U$56,0) -> 0 | CM35: 0 | CN35: =IF(OR($O35>$CK$5,$O35=""),+(CD35+CF35)*Tabelle!$U$56,0) -> 0 | CO35: 0 | CP35: 0 | CQ35: 0 | CR35: 0 | CT35: =+IFERROR(IF($H35<=CU$5,VLOOKUP($H35,Tabelle!$N$10:$V$58,9,FALSE),0),0) -> 0.000 | CU35: 0 | CV35: =IF(OR($O35>CU$5,$O35=""),(CL35+CO35)*Tabelle!$V$57,0) -> 0 | CW35: 0 | CX35: =IF(OR($O35>CU$5,$O35=""),(CN35+CP35)*Tabelle!$V$57,0) -> 0 | CY35: 0 | CZ35: 0 | DA35: 0 | DB35: 0 | DD35: =+IFERROR(IF($H35<=DE$5,VLOOKUP($H35,Tabelle!$N$10:$W$59,10,FALSE),0),0) -> 0.000 | DE35: 0 | DF35: =IF(OR($O35>DE$5,$O35=""),+(CV35+CY35)*Tabelle!$W$58,0) -> 0 | DG35: 0 | DH35: =IF(OR($O35>DE$5,$O35=""),+(CX35+CZ35)*Tabelle!$W$58,0) -> 0 | DI35: 0 | DJ35: 0 | DK35: 0 | DL35: 0 | DN35: =+IFERROR(IF($H35<=DO$5,VLOOKUP($H35,Tabelle!$N$10:$X$60,11,FALSE),0),0) -> 0.000 | DO35: 0 | DP35: =IF(OR($O35>DO$5,$O35=""),+(DF35+DI35)*Tabelle!$X$59,0) -> 0 | DQ35: 0 | DR35: =IF(OR($O35>DO$5,$O35=""),+(DH35+DJ35)*Tabelle!$X$59,0) -> 0 | DS35: 0 | DT35: 0 | DU35: 0 | DV35: 0 | DX35: =+IFERROR(IF($H35<=DY$5,VLOOKUP($H35,Tabelle!$N$10:$Y$61,12,FALSE),0),0) -> 0.000 | DY35: 0 | DZ35: =IF(OR($O35>DY$5,$O35=""),+(DP35+DS35)*Tabelle!$Y$60,0) -> 0 | EA35: 0 | EB35: =IF(OR($O35>DY$5,$O35=""),+(DR35+DT35)*Tabelle!$Y$60,0) -> 0 | EC35: 0 | ED35: 0 | EE35: 0 | EF35: 0 | EH35: =+IFERROR(IF($H35<=EI$5,VLOOKUP($H35,Tabelle!$N$10:$Z$62,13,FALSE),0),0) -> 0.000 | EI35: 0 | EJ35: =IF(OR($O35>EI$5,$O35=""),+(DZ35+EC35)*Tabelle!$Z$61,0) -> 0 | EK35: 0 | EL35: =IF(OR($O35>EI$5,$O35=""),+(EB35+ED35)*Tabelle!$Z$61,0) -> 0 | EM35: 0 | EN35: 0 | EO35: 0 | EP35: 0
D36: =++IFERROR(INDEX(Tabelle!$H$11:$H$16,MATCH(IN_Cespiti!E36,Tabelle!$I$11:$I$16,0)),"") ->  | F36: =++IFERROR(INDEX(Tabelle!$C$10:$C$44,MATCH(IN_Cespiti!G36,Tabelle!$E$10:$E$44,0)),"") ->  | Q36: =IF($D36=3,$M36,+IFERROR(VLOOKUP(CONCATENATE(D36,".",F36),Tabelle!$D$10:$F$44,3,),"")) ->  | T36: =+IF(R36="",Q36,+IF(R36=Tabelle!$B$105,IN_Cespiti!Q36,IF(OR(R36=Tabelle!$B$103,R36=Tabelle!$B$104),IN_Cespiti!S36,0))) ->  | W36: =+IF(U36="",T36,+IF(U36=Tabelle!$B$105,IN_Cespiti!T36,IF(OR(U36=Tabelle!$B$103,U36=Tabelle!$B$104),IN_Cespiti!V36,0))) ->  | Z36: =+IF(OR(X36="",X36=Tabelle!$B$105),W36,Y36) ->  | AB36: =+IFERROR(IF($H36<=2017,VLOOKUP($H36,Tabelle!$N$10:$O$58,2,FALSE),0),0) -> 0.000 | AC36: 0 | AD36: 0 | AE36: 0 | AF36: 0 | AG36: 0 | AH36: 0 | AI36: 0 | AJ36: 0 | AL36: =+IFERROR(IF($H36<=AM$5,VLOOKUP($H36,Tabelle!$N$10:$P$58,3,FALSE),0),0) -> 0.000 | AM36: 0 | AN36: =IF(OR($O36>$AM$5,$O36=""),(AD36+AG36)*Tabelle!$P$51,0) -> 0 | AO36: 0 | AP36: =IF(OR($O36>$AM$5,$O36=""),(AF36+AH36)*Tabelle!$P$51,0) -> 0 | AQ36: 0 | AR36: 0 | AS36: 0 | AT36: 0 | AV36: =+IFERROR(IF($H36<=AW$5,VLOOKUP($H36,Tabelle!$N$10:$Q$58,4,FALSE),0),0) -> 0.000 | AW36: 0 | AX36: =IF(OR($O36>$AW$5,$O36=""),(AN36+AQ36)*Tabelle!$Q$52,0) -> 0 | AY36: 0 | AZ36: =IF(OR($O36>$AW$5,$O36=""),(AP36+AR36)*Tabelle!$Q$52,0) -> 0 | BA36: 0 | BB36: 0 | BC36: 0 | BD36: 0 | BF36: =+IFERROR(IF($H36<=BG$5,VLOOKUP($H36,Tabelle!$N$10:$R$58,5,FALSE),0),0) -> 0.000 | BG36: 0 | BH36: =IF(OR($O36>$BG$5,$O36=""),(AX36+BA36)*Tabelle!$R$53,0) -> 0 | BI36: 0 | BJ36: =IF(OR($O36>$BG$5,$O36=""),(AZ36+BB36)*Tabelle!$R$53,0) -> 0 | BK36: 0 | BL36: 0 | BM36: 0 | BN36: 0 | BP36: =+IFERROR(IF($H36<=BQ$5,VLOOKUP($H36,Tabelle!$N$10:$S$58,6,FALSE),0),0) -> 0.000 | BQ36: 0 | BR36: =IF(OR($O36>$BQ$5,$O36=""),(BH36+BK36)*Tabelle!$S$54,0) -> 0 | BS36: 0 | BT36: =IF(OR($O36>$BQ$5,$O36=""),(BJ36+BL36)*Tabelle!$S$54,0) -> 0 | BU36: 0 | BV36: 0 | BW36: 0 | BX36: 0 | BZ36: =+IFERROR(IF($H36<=CA$5,VLOOKUP($H36,Tabelle!$N$10:$T$58,7,FALSE),0),0) -> 0.000 | CA36: 0 | CB36: =IF(OR($O36>$CA$5,$O36=""),+(BR36+BU36)*Tabelle!$T$55,0) -> 0 | CC36: 0 | CD36: =IF(OR($O36>$CA$5,$O36=""),+(BT36+BV36)*Tabelle!$T$55,0) -> 0 | CE36: 0 | CF36: 0 | CG36: 0 | CH36: 0 | CJ36: =+IFERROR(IF($H36<=CK$5,VLOOKUP($H36,Tabelle!$N$10:$U$58,8,FALSE),0),0) -> 0.000 | CK36: 0 | CL36: =IF(OR($O36>$CK$5,$O36=""),+(CB36+CE36)*Tabelle!$U$56,0) -> 0 | CM36: 0 | CN36: =IF(OR($O36>$CK$5,$O36=""),+(CD36+CF36)*Tabelle!$U$56,0) -> 0 | CO36: 0 | CP36: 0 | CQ36: 0 | CR36: 0 | CT36: =+IFERROR(IF($H36<=CU$5,VLOOKUP($H36,Tabelle!$N$10:$V$58,9,FALSE),0),0) -> 0.000 | CU36: 0 | CV36: =IF(OR($O36>CU$5,$O36=""),(CL36+CO36)*Tabelle!$V$57,0) -> 0 | CW36: 0 | CX36: =IF(OR($O36>CU$5,$O36=""),(CN36+CP36)*Tabelle!$V$57,0) -> 0 | CY36: 0 | CZ36: 0 | DA36: 0 | DB36: 0 | DD36: =+IFERROR(IF($H36<=DE$5,VLOOKUP($H36,Tabelle!$N$10:$W$59,10,FALSE),0),0) -> 0.000 | DE36: 0 | DF36: =IF(OR($O36>DE$5,$O36=""),+(CV36+CY36)*Tabelle!$W$58,0) -> 0 | DG36: 0 | DH36: =IF(OR($O36>DE$5,$O36=""),+(CX36+CZ36)*Tabelle!$W$58,0) -> 0 | DI36: 0 | DJ36: 0 | DK36: 0 | DL36: 0 | DN36: =+IFERROR(IF($H36<=DO$5,VLOOKUP($H36,Tabelle!$N$10:$X$60,11,FALSE),0),0) -> 0.000 | DO36: 0 | DP36: =IF(OR($O36>DO$5,$O36=""),+(DF36+DI36)*Tabelle!$X$59,0) -> 0 | DQ36: 0 | DR36: =IF(OR($O36>DO$5,$O36=""),+(DH36+DJ36)*Tabelle!$X$59,0) -> 0 | DS36: 0 | DT36: 0 | DU36: 0 | DV36: 0 | DX36: =+IFERROR(IF($H36<=DY$5,VLOOKUP($H36,Tabelle!$N$10:$Y$61,12,FALSE),0),0) -> 0.000 | DY36: 0 | DZ36: =IF(OR($O36>DY$5,$O36=""),+(DP36+DS36)*Tabelle!$Y$60,0) -> 0 | EA36: 0 | EB36: =IF(OR($O36>DY$5,$O36=""),+(DR36+DT36)*Tabelle!$Y$60,0) -> 0 | EC36: 0 | ED36: 0 | EE36: 0 | EF36: 0 | EH36: =+IFERROR(IF($H36<=EI$5,VLOOKUP($H36,Tabelle!$N$10:$Z$62,13,FALSE),0),0) -> 0.000 | EI36: 0 | EJ36: =IF(OR($O36>EI$5,$O36=""),+(DZ36+EC36)*Tabelle!$Z$61,0) -> 0 | EK36: 0 | EL36: =IF(OR($O36>EI$5,$O36=""),+(EB36+ED36)*Tabelle!$Z$61,0) -> 0 | EM36: 0 | EN36: 0 | EO36: 0 | EP36: 0
D37: =++IFERROR(INDEX(Tabelle!$H$11:$H$16,MATCH(IN_Cespiti!E37,Tabelle!$I$11:$I$16,0)),"") ->  | F37: =++IFERROR(INDEX(Tabelle!$C$10:$C$44,MATCH(IN_Cespiti!G37,Tabelle!$E$10:$E$44,0)),"") ->  | Q37: =IF($D37=3,$M37,+IFERROR(VLOOKUP(CONCATENATE(D37,".",F37),Tabelle!$D$10:$F$44,3,),"")) ->  | T37: =+IF(R37="",Q37,+IF(R37=Tabelle!$B$105,IN_Cespiti!Q37,IF(OR(R37=Tabelle!$B$103,R37=Tabelle!$B$104),IN_Cespiti!S37,0))) ->  | W37: =+IF(U37="",T37,+IF(U37=Tabelle!$B$105,IN_Cespiti!T37,IF(OR(U37=Tabelle!$B$103,U37=Tabelle!$B$104),IN_Cespiti!V37,0))) ->  | Z37: =+IF(OR(X37="",X37=Tabelle!$B$105),W37,Y37) ->  | AB37: =+IFERROR(IF($H37<=2017,VLOOKUP($H37,Tabelle!$N$10:$O$58,2,FALSE),0),0) -> 0.000 | AC37: 0 | AD37: 0 | AE37: 0 | AF37: 0 | AG37: 0 | AH37: 0 | AI37: 0 | AJ37: 0 | AL37: =+IFERROR(IF($H37<=AM$5,VLOOKUP($H37,Tabelle!$N$10:$P$58,3,FALSE),0),0) -> 0.000 | AM37: 0 | AN37: =IF(OR($O37>$AM$5,$O37=""),(AD37+AG37)*Tabelle!$P$51,0) -> 0 | AO37: 0 | AP37: =IF(OR($O37>$AM$5,$O37=""),(AF37+AH37)*Tabelle!$P$51,0) -> 0 | AQ37: 0 | AR37: 0 | AS37: 0 | AT37: 0 | AV37: =+IFERROR(IF($H37<=AW$5,VLOOKUP($H37,Tabelle!$N$10:$Q$58,4,FALSE),0),0) -> 0.000 | AW37: 0 | AX37: =IF(OR($O37>$AW$5,$O37=""),(AN37+AQ37)*Tabelle!$Q$52,0) -> 0 | AY37: 0 | AZ37: =IF(OR($O37>$AW$5,$O37=""),(AP37+AR37)*Tabelle!$Q$52,0) -> 0 | BA37: 0 | BB37: 0 | BC37: 0 | BD37: 0 | BF37: =+IFERROR(IF($H37<=BG$5,VLOOKUP($H37,Tabelle!$N$10:$R$58,5,FALSE),0),0) -> 0.000 | BG37: 0 | BH37: =IF(OR($O37>$BG$5,$O37=""),(AX37+BA37)*Tabelle!$R$53,0) -> 0 | BI37: 0 | BJ37: =IF(OR($O37>$BG$5,$O37=""),(AZ37+BB37)*Tabelle!$R$53,0) -> 0 | BK37: 0 | BL37: 0 | BM37: 0 | BN37: 0 | BP37: =+IFERROR(IF($H37<=BQ$5,VLOOKUP($H37,Tabelle!$N$10:$S$58,6,FALSE),0),0) -> 0.000 | BQ37: 0 | BR37: =IF(OR($O37>$BQ$5,$O37=""),(BH37+BK37)*Tabelle!$S$54,0) -> 0 | BS37: 0 | BT37: =IF(OR($O37>$BQ$5,$O37=""),(BJ37+BL37)*Tabelle!$S$54,0) -> 0 | BU37: 0 | BV37: 0 | BW37: 0 | BX37: 0 | BZ37: =+IFERROR(IF($H37<=CA$5,VLOOKUP($H37,Tabelle!$N$10:$T$58,7,FALSE),0),0) -> 0.000 | CA37: 0 | CB37: =IF(OR($O37>$CA$5,$O37=""),+(BR37+BU37)*Tabelle!$T$55,0) -> 0 | CC37: 0 | CD37: =IF(OR($O37>$CA$5,$O37=""),+(BT37+BV37)*Tabelle!$T$55,0) -> 0 | CE37: 0 | CF37: 0 | CG37: 0 | CH37: 0 | CJ37: =+IFERROR(IF($H37<=CK$5,VLOOKUP($H37,Tabelle!$N$10:$U$58,8,FALSE),0),0) -> 0.000 | CK37: 0 | CL37: =IF(OR($O37>$CK$5,$O37=""),+(CB37+CE37)*Tabelle!$U$56,0) -> 0 | CM37: 0 | CN37: =IF(OR($O37>$CK$5,$O37=""),+(CD37+CF37)*Tabelle!$U$56,0) -> 0 | CO37: 0 | CP37: 0 | CQ37: 0 | CR37: 0 | CT37: =+IFERROR(IF($H37<=CU$5,VLOOKUP($H37,Tabelle!$N$10:$V$58,9,FALSE),0),0) -> 0.000 | CU37: 0 | CV37: =IF(OR($O37>CU$5,$O37=""),(CL37+CO37)*Tabelle!$V$57,0) -> 0 | CW37: 0 | CX37: =IF(OR($O37>CU$5,$O37=""),(CN37+CP37)*Tabelle!$V$57,0) -> 0 | CY37: 0 | CZ37: 0 | DA37: 0 | DB37: 0 | DD37: =+IFERROR(IF($H37<=DE$5,VLOOKUP($H37,Tabelle!$N$10:$W$59,10,FALSE),0),0) -> 0.000 | DE37: 0 | DF37: =IF(OR($O37>DE$5,$O37=""),+(CV37+CY37)*Tabelle!$W$58,0) -> 0 | DG37: 0 | DH37: =IF(OR($O37>DE$5,$O37=""),+(CX37+CZ37)*Tabelle!$W$58,0) -> 0 | DI37: 0 | DJ37: 0 | DK37: 0 | DL37: 0 | DN37: =+IFERROR(IF($H37<=DO$5,VLOOKUP($H37,Tabelle!$N$10:$X$60,11,FALSE),0),0) -> 0.000 | DO37: 0 | DP37: =IF(OR($O37>DO$5,$O37=""),+(DF37+DI37)*Tabelle!$X$59,0) -> 0 | DQ37: 0 | DR37: =IF(OR($O37>DO$5,$O37=""),+(DH37+DJ37)*Tabelle!$X$59,0) -> 0 | DS37: 0 | DT37: 0 | DU37: 0 | DV37: 0 | DX37: =+IFERROR(IF($H37<=DY$5,VLOOKUP($H37,Tabelle!$N$10:$Y$61,12,FALSE),0),0) -> 0.000 | DY37: 0 | DZ37: =IF(OR($O37>DY$5,$O37=""),+(DP37+DS37)*Tabelle!$Y$60,0) -> 0 | EA37: 0 | EB37: =IF(OR($O37>DY$5,$O37=""),+(DR37+DT37)*Tabelle!$Y$60,0) -> 0 | EC37: 0 | ED37: 0 | EE37: 0 | EF37: 0 | EH37: =+IFERROR(IF($H37<=EI$5,VLOOKUP($H37,Tabelle!$N$10:$Z$62,13,FALSE),0),0) -> 0.000 | EI37: 0 | EJ37: =IF(OR($O37>EI$5,$O37=""),+(DZ37+EC37)*Tabelle!$Z$61,0) -> 0 | EK37: 0 | EL37: =IF(OR($O37>EI$5,$O37=""),+(EB37+ED37)*Tabelle!$Z$61,0) -> 0 | EM37: 0 | EN37: 0 | EO37: 0 | EP37: 0
D38: =++IFERROR(INDEX(Tabelle!$H$11:$H$16,MATCH(IN_Cespiti!E38,Tabelle!$I$11:$I$16,0)),"") ->  | F38: =++IFERROR(INDEX(Tabelle!$C$10:$C$44,MATCH(IN_Cespiti!G38,Tabelle!$E$10:$E$44,0)),"") ->  | Q38: =IF($D38=3,$M38,+IFERROR(VLOOKUP(CONCATENATE(D38,".",F38),Tabelle!$D$10:$F$44,3,),"")) ->  | T38: =+IF(R38="",Q38,+IF(R38=Tabelle!$B$105,IN_Cespiti!Q38,IF(OR(R38=Tabelle!$B$103,R38=Tabelle!$B$104),IN_Cespiti!S38,0))) ->  | W38: =+IF(U38="",T38,+IF(U38=Tabelle!$B$105,IN_Cespiti!T38,IF(OR(U38=Tabelle!$B$103,U38=Tabelle!$B$104),IN_Cespiti!V38,0))) ->  | Z38: =+IF(OR(X38="",X38=Tabelle!$B$105),W38,Y38) ->  | AB38: =+IFERROR(IF($H38<=2017,VLOOKUP($H38,Tabelle!$N$10:$O$58,2,FALSE),0),0) -> 0.000 | AC38: 0 | AD38: 0 | AE38: 0 | AF38: 0 | AG38: 0 | AH38: 0 | AI38: 0 | AJ38: 0 | AL38: =+IFERROR(IF($H38<=AM$5,VLOOKUP($H38,Tabelle!$N$10:$P$58,3,FALSE),0),0) -> 0.000 | AM38: 0 | AN38: =IF(OR($O38>$AM$5,$O38=""),(AD38+AG38)*Tabelle!$P$51,0) -> 0 | AO38: 0 | AP38: =IF(OR($O38>$AM$5,$O38=""),(AF38+AH38)*Tabelle!$P$51,0) -> 0 | AQ38: 0 | AR38: 0 | AS38: 0 | AT38: 0 | AV38: =+IFERROR(IF($H38<=AW$5,VLOOKUP($H38,Tabelle!$N$10:$Q$58,4,FALSE),0),0) -> 0.000 | AW38: 0 | AX38: =IF(OR($O38>$AW$5,$O38=""),(AN38+AQ38)*Tabelle!$Q$52,0) -> 0 | AY38: 0 | AZ38: =IF(OR($O38>$AW$5,$O38=""),(AP38+AR38)*Tabelle!$Q$52,0) -> 0 | BA38: 0 | BB38: 0 | BC38: 0 | BD38: 0 | BF38: =+IFERROR(IF($H38<=BG$5,VLOOKUP($H38,Tabelle!$N$10:$R$58,5,FALSE),0),0) -> 0.000 | BG38: 0 | BH38: =IF(OR($O38>$BG$5,$O38=""),(AX38+BA38)*Tabelle!$R$53,0) -> 0 | BI38: 0 | BJ38: =IF(OR($O38>$BG$5,$O38=""),(AZ38+BB38)*Tabelle!$R$53,0) -> 0 | BK38: 0 | BL38: 0 | BM38: 0 | BN38: 0 | BP38: =+IFERROR(IF($H38<=BQ$5,VLOOKUP($H38,Tabelle!$N$10:$S$58,6,FALSE),0),0) -> 0.000 | BQ38: 0 | BR38: =IF(OR($O38>$BQ$5,$O38=""),(BH38+BK38)*Tabelle!$S$54,0) -> 0 | BS38: 0 | BT38: =IF(OR($O38>$BQ$5,$O38=""),(BJ38+BL38)*Tabelle!$S$54,0) -> 0 | BU38: 0 | BV38: 0 | BW38: 0 | BX38: 0 | BZ38: =+IFERROR(IF($H38<=CA$5,VLOOKUP($H38,Tabelle!$N$10:$T$58,7,FALSE),0),0) -> 0.000 | CA38: 0 | CB38: =IF(OR($O38>$CA$5,$O38=""),+(BR38+BU38)*Tabelle!$T$55,0) -> 0 | CC38: 0 | CD38: =IF(OR($O38>$CA$5,$O38=""),+(BT38+BV38)*Tabelle!$T$55,0) -> 0 | CE38: 0 | CF38: 0 | CG38: 0 | CH38: 0 | CJ38: =+IFERROR(IF($H38<=CK$5,VLOOKUP($H38,Tabelle!$N$10:$U$58,8,FALSE),0),0) -> 0.000 | CK38: 0 | CL38: =IF(OR($O38>$CK$5,$O38=""),+(CB38+CE38)*Tabelle!$U$56,0) -> 0 | CM38: 0 | CN38: =IF(OR($O38>$CK$5,$O38=""),+(CD38+CF38)*Tabelle!$U$56,0) -> 0 | CO38: 0 | CP38: 0 | CQ38: 0 | CR38: 0 | CT38: =+IFERROR(IF($H38<=CU$5,VLOOKUP($H38,Tabelle!$N$10:$V$58,9,FALSE),0),0) -> 0.000 | CU38: 0 | CV38: =IF(OR($O38>CU$5,$O38=""),(CL38+CO38)*Tabelle!$V$57,0) -> 0 | CW38: 0 | CX38: =IF(OR($O38>CU$5,$O38=""),(CN38+CP38)*Tabelle!$V$57,0) -> 0 | CY38: 0 | CZ38: 0 | DA38: 0 | DB38: 0 | DD38: =+IFERROR(IF($H38<=DE$5,VLOOKUP($H38,Tabelle!$N$10:$W$59,10,FALSE),0),0) -> 0.000 | DE38: 0 | DF38: =IF(OR($O38>DE$5,$O38=""),+(CV38+CY38)*Tabelle!$W$58,0) -> 0 | DG38: 0 | DH38: =IF(OR($O38>DE$5,$O38=""),+(CX38+CZ38)*Tabelle!$W$58,0) -> 0 | DI38: 0 | DJ38: 0 | DK38: 0 | DL38: 0 | DN38: =+IFERROR(IF($H38<=DO$5,VLOOKUP($H38,Tabelle!$N$10:$X$60,11,FALSE),0),0) -> 0.000 | DO38: 0 | DP38: =IF(OR($O38>DO$5,$O38=""),+(DF38+DI38)*Tabelle!$X$59,0) -> 0 | DQ38: 0 | DR38: =IF(OR($O38>DO$5,$O38=""),+(DH38+DJ38)*Tabelle!$X$59,0) -> 0 | DS38: 0 | DT38: 0 | DU38: 0 | DV38: 0 | DX38: =+IFERROR(IF($H38<=DY$5,VLOOKUP($H38,Tabelle!$N$10:$Y$61,12,FALSE),0),0) -> 0.000 | DY38: 0 | DZ38: =IF(OR($O38>DY$5,$O38=""),+(DP38+DS38)*Tabelle!$Y$60,0) -> 0 | EA38: 0 | EB38: =IF(OR($O38>DY$5,$O38=""),+(DR38+DT38)*Tabelle!$Y$60,0) -> 0 | EC38: 0 | ED38: 0 | EE38: 0 | EF38: 0 | EH38: =+IFERROR(IF($H38<=EI$5,VLOOKUP($H38,Tabelle!$N$10:$Z$62,13,FALSE),0),0) -> 0.000 | EI38: 0 | EJ38: =IF(OR($O38>EI$5,$O38=""),+(DZ38+EC38)*Tabelle!$Z$61,0) -> 0 | EK38: 0 | EL38: =IF(OR($O38>EI$5,$O38=""),+(EB38+ED38)*Tabelle!$Z$61,0) -> 0 | EM38: 0 | EN38: 0 | EO38: 0 | EP38: 0
D39: =++IFERROR(INDEX(Tabelle!$H$11:$H$16,MATCH(IN_Cespiti!E39,Tabelle!$I$11:$I$16,0)),"") ->  | F39: =++IFERROR(INDEX(Tabelle!$C$10:$C$44,MATCH(IN_Cespiti!G39,Tabelle!$E$10:$E$44,0)),"") ->  | Q39: =IF($D39=3,$M39,+IFERROR(VLOOKUP(CONCATENATE(D39,".",F39),Tabelle!$D$10:$F$44,3,),"")) ->  | T39: =+IF(R39="",Q39,+IF(R39=Tabelle!$B$105,IN_Cespiti!Q39,IF(OR(R39=Tabelle!$B$103,R39=Tabelle!$B$104),IN_Cespiti!S39,0))) ->  | W39: =+IF(U39="",T39,+IF(U39=Tabelle!$B$105,IN_Cespiti!T39,IF(OR(U39=Tabelle!$B$103,U39=Tabelle!$B$104),IN_Cespiti!V39,0))) ->  | Z39: =+IF(OR(X39="",X39=Tabelle!$B$105),W39,Y39) ->  | AB39: =+IFERROR(IF($H39<=2017,VLOOKUP($H39,Tabelle!$N$10:$O$58,2,FALSE),0),0) -> 0.000 | AC39: 0 | AD39: 0 | AE39: 0 | AF39: 0 | AG39: 0 | AH39: 0 | AI39: 0 | AJ39: 0 | AL39: =+IFERROR(IF($H39<=AM$5,VLOOKUP($H39,Tabelle!$N$10:$P$58,3,FALSE),0),0) -> 0.000 | AM39: 0 | AN39: =IF(OR($O39>$AM$5,$O39=""),(AD39+AG39)*Tabelle!$P$51,0) -> 0 | AO39: 0 | AP39: =IF(OR($O39>$AM$5,$O39=""),(AF39+AH39)*Tabelle!$P$51,0) -> 0 | AQ39: 0 | AR39: 0 | AS39: 0 | AT39: 0 | AV39: =+IFERROR(IF($H39<=AW$5,VLOOKUP($H39,Tabelle!$N$10:$Q$58,4,FALSE),0),0) -> 0.000 | AW39: 0 | AX39: =IF(OR($O39>$AW$5,$O39=""),(AN39+AQ39)*Tabelle!$Q$52,0) -> 0 | AY39: 0 | AZ39: =IF(OR($O39>$AW$5,$O39=""),(AP39+AR39)*Tabelle!$Q$52,0) -> 0 | BA39: 0 | BB39: 0 | BC39: 0 | BD39: 0 | BF39: =+IFERROR(IF($H39<=BG$5,VLOOKUP($H39,Tabelle!$N$10:$R$58,5,FALSE),0),0) -> 0.000 | BG39: 0 | BH39: =IF(OR($O39>$BG$5,$O39=""),(AX39+BA39)*Tabelle!$R$53,0) -> 0 | BI39: 0 | BJ39: =IF(OR($O39>$BG$5,$O39=""),(AZ39+BB39)*Tabelle!$R$53,0) -> 0 | BK39: 0 | BL39: 0 | BM39: 0 | BN39: 0 | BP39: =+IFERROR(IF($H39<=BQ$5,VLOOKUP($H39,Tabelle!$N$10:$S$58,6,FALSE),0),0) -> 0.000 | BQ39: 0 | BR39: =IF(OR($O39>$BQ$5,$O39=""),(BH39+BK39)*Tabelle!$S$54,0) -> 0 | BS39: 0 | BT39: =IF(OR($O39>$BQ$5,$O39=""),(BJ39+BL39)*Tabelle!$S$54,0) -> 0 | BU39: 0 | BV39: 0 | BW39: 0 | BX39: 0 | BZ39: =+IFERROR(IF($H39<=CA$5,VLOOKUP($H39,Tabelle!$N$10:$T$58,7,FALSE),0),0) -> 0.000 | CA39: 0 | CB39: =IF(OR($O39>$CA$5,$O39=""),+(BR39+BU39)*Tabelle!$T$55,0) -> 0 | CC39: 0 | CD39: =IF(OR($O39>$CA$5,$O39=""),+(BT39+BV39)*Tabelle!$T$55,0) -> 0 | CE39: 0 | CF39: 0 | CG39: 0 | CH39: 0 | CJ39: =+IFERROR(IF($H39<=CK$5,VLOOKUP($H39,Tabelle!$N$10:$U$58,8,FALSE),0),0) -> 0.000 | CK39: 0 | CL39: =IF(OR($O39>$CK$5,$O39=""),+(CB39+CE39)*Tabelle!$U$56,0) -> 0 | CM39: 0 | CN39: =IF(OR($O39>$CK$5,$O39=""),+(CD39+CF39)*Tabelle!$U$56,0) -> 0 | CO39: 0 | CP39: 0 | CQ39: 0 | CR39: 0 | CT39: =+IFERROR(IF($H39<=CU$5,VLOOKUP($H39,Tabelle!$N$10:$V$58,9,FALSE),0),0) -> 0.000 | CU39: 0 | CV39: =IF(OR($O39>CU$5,$O39=""),(CL39+CO39)*Tabelle!$V$57,0) -> 0 | CW39: 0 | CX39: =IF(OR($O39>CU$5,$O39=""),(CN39+CP39)*Tabelle!$V$57,0) -> 0 | CY39: 0 | CZ39: 0 | DA39: 0 | DB39: 0 | DD39: =+IFERROR(IF($H39<=DE$5,VLOOKUP($H39,Tabelle!$N$10:$W$59,10,FALSE),0),0) -> 0.000 | DE39: 0 | DF39: =IF(OR($O39>DE$5,$O39=""),+(CV39+CY39)*Tabelle!$W$58,0) -> 0 | DG39: 0 | DH39: =IF(OR($O39>DE$5,$O39=""),+(CX39+CZ39)*Tabelle!$W$58,0) -> 0 | DI39: 0 | DJ39: 0 | DK39: 0 | DL39: 0 | DN39: =+IFERROR(IF($H39<=DO$5,VLOOKUP($H39,Tabelle!$N$10:$X$60,11,FALSE),0),0) -> 0.000 | DO39: 0 | DP39: =IF(OR($O39>DO$5,$O39=""),+(DF39+DI39)*Tabelle!$X$59,0) -> 0 | DQ39: 0 | DR39: =IF(OR($O39>DO$5,$O39=""),+(DH39+DJ39)*Tabelle!$X$59,0) -> 0 | DS39: 0 | DT39: 0 | DU39: 0 | DV39: 0 | DX39: =+IFERROR(IF($H39<=DY$5,VLOOKUP($H39,Tabelle!$N$10:$Y$61,12,FALSE),0),0) -> 0.000 | DY39: 0 | DZ39: =IF(OR($O39>DY$5,$O39=""),+(DP39+DS39)*Tabelle!$Y$60,0) -> 0 | EA39: 0 | EB39: =IF(OR($O39>DY$5,$O39=""),+(DR39+DT39)*Tabelle!$Y$60,0) -> 0 | EC39: 0 | ED39: 0 | EE39: 0 | EF39: 0 | EH39: =+IFERROR(IF($H39<=EI$5,VLOOKUP($H39,Tabelle!$N$10:$Z$62,13,FALSE),0),0) -> 0.000 | EI39: 0 | EJ39: =IF(OR($O39>EI$5,$O39=""),+(DZ39+EC39)*Tabelle!$Z$61,0) -> 0 | EK39: 0 | EL39: =IF(OR($O39>EI$5,$O39=""),+(EB39+ED39)*Tabelle!$Z$61,0) -> 0 | EM39: 0 | EN39: 0 | EO39: 0 | EP39: 0
D40: =++IFERROR(INDEX(Tabelle!$H$11:$H$16,MATCH(IN_Cespiti!E40,Tabelle!$I$11:$I$16,0)),"") ->  | F40: =++IFERROR(INDEX(Tabelle!$C$10:$C$44,MATCH(IN_Cespiti!G40,Tabelle!$E$10:$E$44,0)),"") ->  | Q40: =IF($D40=3,$M40,+IFERROR(VLOOKUP(CONCATENATE(D40,".",F40),Tabelle!$D$10:$F$44,3,),"")) ->  | T40: =+IF(R40="",Q40,+IF(R40=Tabelle!$B$105,IN_Cespiti!Q40,IF(OR(R40=Tabelle!$B$103,R40=Tabelle!$B$104),IN_Cespiti!S40,0))) ->  | W40: =+IF(U40="",T40,+IF(U40=Tabelle!$B$105,IN_Cespiti!T40,IF(OR(U40=Tabelle!$B$103,U40=Tabelle!$B$104),IN_Cespiti!V40,0))) ->  | Z40: =+IF(OR(X40="",X40=Tabelle!$B$105),W40,Y40) ->  | AB40: =+IFERROR(IF($H40<=2017,VLOOKUP($H40,Tabelle!$N$10:$O$58,2,FALSE),0),0) -> 0.000 | AC40: 0 | AD40: 0 | AE40: 0 | AF40: 0 | AG40: 0 | AH40: 0 | AI40: 0 | AJ40: 0 | AL40: =+IFERROR(IF($H40<=AM$5,VLOOKUP($H40,Tabelle!$N$10:$P$58,3,FALSE),0),0) -> 0.000 | AM40: 0 | AN40: =IF(OR($O40>$AM$5,$O40=""),(AD40+AG40)*Tabelle!$P$51,0) -> 0 | AO40: 0 | AP40: =IF(OR($O40>$AM$5,$O40=""),(AF40+AH40)*Tabelle!$P$51,0) -> 0 | AQ40: 0 | AR40: 0 | AS40: 0 | AT40: 0 | AV40: =+IFERROR(IF($H40<=AW$5,VLOOKUP($H40,Tabelle!$N$10:$Q$58,4,FALSE),0),0) -> 0.000 | AW40: 0 | AX40: =IF(OR($O40>$AW$5,$O40=""),(AN40+AQ40)*Tabelle!$Q$52,0) -> 0 | AY40: 0 | AZ40: =IF(OR($O40>$AW$5,$O40=""),(AP40+AR40)*Tabelle!$Q$52,0) -> 0 | BA40: 0 | BB40: 0 | BC40: 0 | BD40: 0 | BF40: =+IFERROR(IF($H40<=BG$5,VLOOKUP($H40,Tabelle!$N$10:$R$58,5,FALSE),0),0) -> 0.000 | BG40: 0 | BH40: =IF(OR($O40>$BG$5,$O40=""),(AX40+BA40)*Tabelle!$R$53,0) -> 0 | BI40: 0 | BJ40: =IF(OR($O40>$BG$5,$O40=""),(AZ40+BB40)*Tabelle!$R$53,0) -> 0 | BK40: 0 | BL40: 0 | BM40: 0 | BN40: 0 | BP40: =+IFERROR(IF($H40<=BQ$5,VLOOKUP($H40,Tabelle!$N$10:$S$58,6,FALSE),0),0) -> 0.000 | BQ40: 0 | BR40: =IF(OR($O40>$BQ$5,$O40=""),(BH40+BK40)*Tabelle!$S$54,0) -> 0 | BS40: 0 | BT40: =IF(OR($O40>$BQ$5,$O40=""),(BJ40+BL40)*Tabelle!$S$54,0) -> 0 | BU40: 0 | BV40: 0 | BW40: 0 | BX40: 0 | BZ40: =+IFERROR(IF($H40<=CA$5,VLOOKUP($H40,Tabelle!$N$10:$T$58,7,FALSE),0),0) -> 0.000 | CA40: 0 | CB40: =IF(OR($O40>$CA$5,$O40=""),+(BR40+BU40)*Tabelle!$T$55,0) -> 0 | CC40: 0 | CD40: =IF(OR($O40>$CA$5,$O40=""),+(BT40+BV40)*Tabelle!$T$55,0) -> 0 | CE40: 0 | CF40: 0 | CG40: 0 | CH40: 0 | CJ40: =+IFERROR(IF($H40<=CK$5,VLOOKUP($H40,Tabelle!$N$10:$U$58,8,FALSE),0),0) -> 0.000 | CK40: 0 | CL40: =IF(OR($O40>$CK$5,$O40=""),+(CB40+CE40)*Tabelle!$U$56,0) -> 0 | CM40: 0 | CN40: =IF(OR($O40>$CK$5,$O40=""),+(CD40+CF40)*Tabelle!$U$56,0) -> 0 | CO40: 0 | CP40: 0 | CQ40: 0 | CR40: 0 | CT40: =+IFERROR(IF($H40<=CU$5,VLOOKUP($H40,Tabelle!$N$10:$V$58,9,FALSE),0),0) -> 0.000 | CU40: 0 | CV40: =IF(OR($O40>CU$5,$O40=""),(CL40+CO40)*Tabelle!$V$57,0) -> 0 | CW40: 0 | CX40: =IF(OR($O40>CU$5,$O40=""),(CN40+CP40)*Tabelle!$V$57,0) -> 0 | CY40: 0 | CZ40: 0 | DA40: 0 | DB40: 0 | DD40: =+IFERROR(IF($H40<=DE$5,VLOOKUP($H40,Tabelle!$N$10:$W$59,10,FALSE),0),0) -> 0.000 | DE40: 0 | DF40: =IF(OR($O40>DE$5,$O40=""),+(CV40+CY40)*Tabelle!$W$58,0) -> 0 | DG40: 0 | DH40: =IF(OR($O40>DE$5,$O40=""),+(CX40+CZ40)*Tabelle!$W$58,0) -> 0 | DI40: 0 | DJ40: 0 | DK40: 0 | DL40: 0 | DN40: =+IFERROR(IF($H40<=DO$5,VLOOKUP($H40,Tabelle!$N$10:$X$60,11,FALSE),0),0) -> 0.000 | DO40: 0 | DP40: =IF(OR($O40>DO$5,$O40=""),+(DF40+DI40)*Tabelle!$X$59,0) -> 0 | DQ40: 0 | DR40: =IF(OR($O40>DO$5,$O40=""),+(DH40+DJ40)*Tabelle!$X$59,0) -> 0 | DS40: 0 | DT40: 0 | DU40: 0 | DV40: 0 | DX40: =+IFERROR(IF($H40<=DY$5,VLOOKUP($H40,Tabelle!$N$10:$Y$61,12,FALSE),0),0) -> 0.000 | DY40: 0 | DZ40: =IF(OR($O40>DY$5,$O40=""),+(DP40+DS40)*Tabelle!$Y$60,0) -> 0 | EA40: 0 | EB40: =IF(OR($O40>DY$5,$O40=""),+(DR40+DT40)*Tabelle!$Y$60,0) -> 0 | EC40: 0 | ED40: 0 | EE40: 0 | EF40: 0 | EH40: =+IFERROR(IF($H40<=EI$5,VLOOKUP($H40,Tabelle!$N$10:$Z$62,13,FALSE),0),0) -> 0.000 | EI40: 0 | EJ40: =IF(OR($O40>EI$5,$O40=""),+(DZ40+EC40)*Tabelle!$Z$61,0) -> 0 | EK40: 0 | EL40: =IF(OR($O40>EI$5,$O40=""),+(EB40+ED40)*Tabelle!$Z$61,0) -> 0 | EM40: 0 | EN40: 0 | EO40: 0 | EP40: 0
D41: =++IFERROR(INDEX(Tabelle!$H$11:$H$16,MATCH(IN_Cespiti!E41,Tabelle!$I$11:$I$16,0)),"") ->  | F41: =++IFERROR(INDEX(Tabelle!$C$10:$C$44,MATCH(IN_Cespiti!G41,Tabelle!$E$10:$E$44,0)),"") ->  | Q41: =IF($D41=3,$M41,+IFERROR(VLOOKUP(CONCATENATE(D41,".",F41),Tabelle!$D$10:$F$44,3,),"")) ->  | T41: =+IF(R41="",Q41,+IF(R41=Tabelle!$B$105,IN_Cespiti!Q41,IF(OR(R41=Tabelle!$B$103,R41=Tabelle!$B$104),IN_Cespiti!S41,0))) ->  | W41: =+IF(U41="",T41,+IF(U41=Tabelle!$B$105,IN_Cespiti!T41,IF(OR(U41=Tabelle!$B$103,U41=Tabelle!$B$104),IN_Cespiti!V41,0))) ->  | Z41: =+IF(OR(X41="",X41=Tabelle!$B$105),W41,Y41) ->  | AB41: =+IFERROR(IF($H41<=2017,VLOOKUP($H41,Tabelle!$N$10:$O$58,2,FALSE),0),0) -> 0.000 | AC41: 0 | AD41: 0 | AE41: 0 | AF41: 0 | AG41: 0 | AH41: 0 | AI41: 0 | AJ41: 0 | AL41: =+IFERROR(IF($H41<=AM$5,VLOOKUP($H41,Tabelle!$N$10:$P$58,3,FALSE),0),0) -> 0.000 | AM41: 0 | AN41: =IF(OR($O41>$AM$5,$O41=""),(AD41+AG41)*Tabelle!$P$51,0) -> 0 | AO41: 0 | AP41: =IF(OR($O41>$AM$5,$O41=""),(AF41+AH41)*Tabelle!$P$51,0) -> 0 | AQ41: 0 | AR41: 0 | AS41: 0 | AT41: 0 | AV41: =+IFERROR(IF($H41<=AW$5,VLOOKUP($H41,Tabelle!$N$10:$Q$58,4,FALSE),0),0) -> 0.000 | AW41: 0 | AX41: =IF(OR($O41>$AW$5,$O41=""),(AN41+AQ41)*Tabelle!$Q$52,0) -> 0 | AY41: 0 | AZ41: =IF(OR($O41>$AW$5,$O41=""),(AP41+AR41)*Tabelle!$Q$52,0) -> 0 | BA41: 0 | BB41: 0 | BC41: 0 | BD41: 0 | BF41: =+IFERROR(IF($H41<=BG$5,VLOOKUP($H41,Tabelle!$N$10:$R$58,5,FALSE),0),0) -> 0.000 | BG41: 0 | BH41: =IF(OR($O41>$BG$5,$O41=""),(AX41+BA41)*Tabelle!$R$53,0) -> 0 | BI41: 0 | BJ41: =IF(OR($O41>$BG$5,$O41=""),(AZ41+BB41)*Tabelle!$R$53,0) -> 0 | BK41: 0 | BL41: 0 | BM41: 0 | BN41: 0 | BP41: =+IFERROR(IF($H41<=BQ$5,VLOOKUP($H41,Tabelle!$N$10:$S$58,6,FALSE),0),0) -> 0.000 | BQ41: 0 | BR41: =IF(OR($O41>$BQ$5,$O41=""),(BH41+BK41)*Tabelle!$S$54,0) -> 0 | BS41: 0 | BT41: =IF(OR($O41>$BQ$5,$O41=""),(BJ41+BL41)*Tabelle!$S$54,0) -> 0 | BU41: 0 | BV41: 0 | BW41: 0 | BX41: 0 | BZ41: =+IFERROR(IF($H41<=CA$5,VLOOKUP($H41,Tabelle!$N$10:$T$58,7,FALSE),0),0) -> 0.000 | CA41: 0 | CB41: =IF(OR($O41>$CA$5,$O41=""),+(BR41+BU41)*Tabelle!$T$55,0) -> 0 | CC41: 0 | CD41: =IF(OR($O41>$CA$5,$O41=""),+(BT41+BV41)*Tabelle!$T$55,0) -> 0 | CE41: 0 | CF41: 0 | CG41: 0 | CH41: 0 | CJ41: =+IFERROR(IF($H41<=CK$5,VLOOKUP($H41,Tabelle!$N$10:$U$58,8,FALSE),0),0) -> 0.000 | CK41: 0 | CL41: =IF(OR($O41>$CK$5,$O41=""),+(CB41+CE41)*Tabelle!$U$56,0) -> 0 | CM41: 0 | CN41: =IF(OR($O41>$CK$5,$O41=""),+(CD41+CF41)*Tabelle!$U$56,0) -> 0 | CO41: 0 | CP41: 0 | CQ41: 0 | CR41: 0 | CT41: =+IFERROR(IF($H41<=CU$5,VLOOKUP($H41,Tabelle!$N$10:$V$58,9,FALSE),0),0) -> 0.000 | CU41: 0 | CV41: =IF(OR($O41>CU$5,$O41=""),(CL41+CO41)*Tabelle!$V$57,0) -> 0 | CW41: 0 | CX41: =IF(OR($O41>CU$5,$O41=""),(CN41+CP41)*Tabelle!$V$57,0) -> 0 | CY41: 0 | CZ41: 0 | DA41: 0 | DB41: 0 | DD41: =+IFERROR(IF($H41<=DE$5,VLOOKUP($H41,Tabelle!$N$10:$W$59,10,FALSE),0),0) -> 0.000 | DE41: 0 | DF41: =IF(OR($O41>DE$5,$O41=""),+(CV41+CY41)*Tabelle!$W$58,0) -> 0 | DG41: 0 | DH41: =IF(OR($O41>DE$5,$O41=""),+(CX41+CZ41)*Tabelle!$W$58,0) -> 0 | DI41: 0 | DJ41: 0 | DK41: 0 | DL41: 0 | DN41: =+IFERROR(IF($H41<=DO$5,VLOOKUP($H41,Tabelle!$N$10:$X$60,11,FALSE),0),0) -> 0.000 | DO41: 0 | DP41: =IF(OR($O41>DO$5,$O41=""),+(DF41+DI41)*Tabelle!$X$59,0) -> 0 | DQ41: 0 | DR41: =IF(OR($O41>DO$5,$O41=""),+(DH41+DJ41)*Tabelle!$X$59,0) -> 0 | DS41: 0 | DT41: 0 | DU41: 0 | DV41: 0 | DX41: =+IFERROR(IF($H41<=DY$5,VLOOKUP($H41,Tabelle!$N$10:$Y$61,12,FALSE),0),0) -> 0.000 | DY41: 0 | DZ41: =IF(OR($O41>DY$5,$O41=""),+(DP41+DS41)*Tabelle!$Y$60,0) -> 0 | EA41: 0 | EB41: =IF(OR($O41>DY$5,$O41=""),+(DR41+DT41)*Tabelle!$Y$60,0) -> 0 | EC41: 0 | ED41: 0 | EE41: 0 | EF41: 0 | EH41: =+IFERROR(IF($H41<=EI$5,VLOOKUP($H41,Tabelle!$N$10:$Z$62,13,FALSE),0),0) -> 0.000 | EI41: 0 | EJ41: =IF(OR($O41>EI$5,$O41=""),+(DZ41+EC41)*Tabelle!$Z$61,0) -> 0 | EK41: 0 | EL41: =IF(OR($O41>EI$5,$O41=""),+(EB41+ED41)*Tabelle!$Z$61,0) -> 0 | EM41: 0 | EN41: 0 | EO41: 0 | EP41: 0
D42: =++IFERROR(INDEX(Tabelle!$H$11:$H$16,MATCH(IN_Cespiti!E42,Tabelle!$I$11:$I$16,0)),"") ->  | F42: =++IFERROR(INDEX(Tabelle!$C$10:$C$44,MATCH(IN_Cespiti!G42,Tabelle!$E$10:$E$44,0)),"") ->  | Q42: =IF($D42=3,$M42,+IFERROR(VLOOKUP(CONCATENATE(D42,".",F42),Tabelle!$D$10:$F$44,3,),"")) ->  | T42: =+IF(R42="",Q42,+IF(R42=Tabelle!$B$105,IN_Cespiti!Q42,IF(OR(R42=Tabelle!$B$103,R42=Tabelle!$B$104),IN_Cespiti!S42,0))) ->  | W42: =+IF(U42="",T42,+IF(U42=Tabelle!$B$105,IN_Cespiti!T42,IF(OR(U42=Tabelle!$B$103,U42=Tabelle!$B$104),IN_Cespiti!V42,0))) ->  | Z42: =+IF(OR(X42="",X42=Tabelle!$B$105),W42,Y42) ->  | AB42: =+IFERROR(IF($H42<=2017,VLOOKUP($H42,Tabelle!$N$10:$O$58,2,FALSE),0),0) -> 0.000 | AC42: 0 | AD42: 0 | AE42: 0 | AF42: 0 | AG42: 0 | AH42: 0 | AI42: 0 | AJ42: 0 | AL42: =+IFERROR(IF($H42<=AM$5,VLOOKUP($H42,Tabelle!$N$10:$P$58,3,FALSE),0),0) -> 0.000 | AM42: 0 | AN42: =IF(OR($O42>$AM$5,$O42=""),(AD42+AG42)*Tabelle!$P$51,0) -> 0 | AO42: 0 | AP42: =IF(OR($O42>$AM$5,$O42=""),(AF42+AH42)*Tabelle!$P$51,0) -> 0 | AQ42: 0 | AR42: 0 | AS42: 0 | AT42: 0 | AV42: =+IFERROR(IF($H42<=AW$5,VLOOKUP($H42,Tabelle!$N$10:$Q$58,4,FALSE),0),0) -> 0.000 | AW42: 0 | AX42: =IF(OR($O42>$AW$5,$O42=""),(AN42+AQ42)*Tabelle!$Q$52,0) -> 0 | AY42: 0 | AZ42: =IF(OR($O42>$AW$5,$O42=""),(AP42+AR42)*Tabelle!$Q$52,0) -> 0 | BA42: 0 | BB42: 0 | BC42: 0 | BD42: 0 | BF42: =+IFERROR(IF($H42<=BG$5,VLOOKUP($H42,Tabelle!$N$10:$R$58,5,FALSE),0),0) -> 0.000 | BG42: 0 | BH42: =IF(OR($O42>$BG$5,$O42=""),(AX42+BA42)*Tabelle!$R$53,0) -> 0 | BI42: 0 | BJ42: =IF(OR($O42>$BG$5,$O42=""),(AZ42+BB42)*Tabelle!$R$53,0) -> 0 | BK42: 0 | BL42: 0 | BM42: 0 | BN42: 0 | BP42: =+IFERROR(IF($H42<=BQ$5,VLOOKUP($H42,Tabelle!$N$10:$S$58,6,FALSE),0),0) -> 0.000 | BQ42: 0 | BR42: =IF(OR($O42>$BQ$5,$O42=""),(BH42+BK42)*Tabelle!$S$54,0) -> 0 | BS42: 0 | BT42: =IF(OR($O42>$BQ$5,$O42=""),(BJ42+BL42)*Tabelle!$S$54,0) -> 0 | BU42: 0 | BV42: 0 | BW42: 0 | BX42: 0 | BZ42: =+IFERROR(IF($H42<=CA$5,VLOOKUP($H42,Tabelle!$N$10:$T$58,7,FALSE),0),0) -> 0.000 | CA42: 0 | CB42: =IF(OR($O42>$CA$5,$O42=""),+(BR42+BU42)*Tabelle!$T$55,0) -> 0 | CC42: 0 | CD42: =IF(OR($O42>$CA$5,$O42=""),+(BT42+BV42)*Tabelle!$T$55,0) -> 0 | CE42: 0 | CF42: 0 | CG42: 0 | CH42: 0 | CJ42: =+IFERROR(IF($H42<=CK$5,VLOOKUP($H42,Tabelle!$N$10:$U$58,8,FALSE),0),0) -> 0.000 | CK42: 0 | CL42: =IF(OR($O42>$CK$5,$O42=""),+(CB42+CE42)*Tabelle!$U$56,0) -> 0 | CM42: 0 | CN42: =IF(OR($O42>$CK$5,$O42=""),+(CD42+CF42)*Tabelle!$U$56,0) -> 0 | CO42: 0 | CP42: 0 | CQ42: 0 | CR42: 0 | CT42: =+IFERROR(IF($H42<=CU$5,VLOOKUP($H42,Tabelle!$N$10:$V$58,9,FALSE),0),0) -> 0.000 | CU42: 0 | CV42: =IF(OR($O42>CU$5,$O42=""),(CL42+CO42)*Tabelle!$V$57,0) -> 0 | CW42: 0 | CX42: =IF(OR($O42>CU$5,$O42=""),(CN42+CP42)*Tabelle!$V$57,0) -> 0 | CY42: 0 | CZ42: 0 | DA42: 0 | DB42: 0 | DD42: =+IFERROR(IF($H42<=DE$5,VLOOKUP($H42,Tabelle!$N$10:$W$59,10,FALSE),0),0) -> 0.000 | DE42: 0 | DF42: =IF(OR($O42>DE$5,$O42=""),+(CV42+CY42)*Tabelle!$W$58,0) -> 0 | DG42: 0 | DH42: =IF(OR($O42>DE$5,$O42=""),+(CX42+CZ42)*Tabelle!$W$58,0) -> 0 | DI42: 0 | DJ42: 0 | DK42: 0 | DL42: 0 | DN42: =+IFERROR(IF($H42<=DO$5,VLOOKUP($H42,Tabelle!$N$10:$X$60,11,FALSE),0),0) -> 0.000 | DO42: 0 | DP42: =IF(OR($O42>DO$5,$O42=""),+(DF42+DI42)*Tabelle!$X$59,0) -> 0 | DQ42: 0 | DR42: =IF(OR($O42>DO$5,$O42=""),+(DH42+DJ42)*Tabelle!$X$59,0) -> 0 | DS42: 0 | DT42: 0 | DU42: 0 | DV42: 0 | DX42: =+IFERROR(IF($H42<=DY$5,VLOOKUP($H42,Tabelle!$N$10:$Y$61,12,FALSE),0),0) -> 0.000 | DY42: 0 | DZ42: =IF(OR($O42>DY$5,$O42=""),+(DP42+DS42)*Tabelle!$Y$60,0) -> 0 | EA42: 0 | EB42: =IF(OR($O42>DY$5,$O42=""),+(DR42+DT42)*Tabelle!$Y$60,0) -> 0 | EC42: 0 | ED42: 0 | EE42: 0 | EF42: 0 | EH42: =+IFERROR(IF($H42<=EI$5,VLOOKUP($H42,Tabelle!$N$10:$Z$62,13,FALSE),0),0) -> 0.000 | EI42: 0 | EJ42: =IF(OR($O42>EI$5,$O42=""),+(DZ42+EC42)*Tabelle!$Z$61,0) -> 0 | EK42: 0 | EL42: =IF(OR($O42>EI$5,$O42=""),+(EB42+ED42)*Tabelle!$Z$61,0) -> 0 | EM42: 0 | EN42: 0 | EO42: 0 | EP42: 0
D43: =++IFERROR(INDEX(Tabelle!$H$11:$H$16,MATCH(IN_Cespiti!E43,Tabelle!$I$11:$I$16,0)),"") ->  | F43: =++IFERROR(INDEX(Tabelle!$C$10:$C$44,MATCH(IN_Cespiti!G43,Tabelle!$E$10:$E$44,0)),"") ->  | Q43: =IF($D43=3,$M43,+IFERROR(VLOOKUP(CONCATENATE(D43,".",F43),Tabelle!$D$10:$F$44,3,),"")) ->  | T43: =+IF(R43="",Q43,+IF(R43=Tabelle!$B$105,IN_Cespiti!Q43,IF(OR(R43=Tabelle!$B$103,R43=Tabelle!$B$104),IN_Cespiti!S43,0))) ->  | W43: =+IF(U43="",T43,+IF(U43=Tabelle!$B$105,IN_Cespiti!T43,IF(OR(U43=Tabelle!$B$103,U43=Tabelle!$B$104),IN_Cespiti!V43,0))) ->  | Z43: =+IF(OR(X43="",X43=Tabelle!$B$105),W43,Y43) ->  | AB43: =+IFERROR(IF($H43<=2017,VLOOKUP($H43,Tabelle!$N$10:$O$58,2,FALSE),0),0) -> 0.000 | AC43: 0 | AD43: 0 | AE43: 0 | AF43: 0 | AG43: 0 | AH43: 0 | AI43: 0 | AJ43: 0 | AL43: =+IFERROR(IF($H43<=AM$5,VLOOKUP($H43,Tabelle!$N$10:$P$58,3,FALSE),0),0) -> 0.000 | AM43: 0 | AN43: =IF(OR($O43>$AM$5,$O43=""),(AD43+AG43)*Tabelle!$P$51,0) -> 0 | AO43: 0 | AP43: =IF(OR($O43>$AM$5,$O43=""),(AF43+AH43)*Tabelle!$P$51,0) -> 0 | AQ43: 0 | AR43: 0 | AS43: 0 | AT43: 0 | AV43: =+IFERROR(IF($H43<=AW$5,VLOOKUP($H43,Tabelle!$N$10:$Q$58,4,FALSE),0),0) -> 0.000 | AW43: 0 | AX43: =IF(OR($O43>$AW$5,$O43=""),(AN43+AQ43)*Tabelle!$Q$52,0) -> 0 | AY43: 0 | AZ43: =IF(OR($O43>$AW$5,$O43=""),(AP43+AR43)*Tabelle!$Q$52,0) -> 0 | BA43: 0 | BB43: 0 | BC43: 0 | BD43: 0 | BF43: =+IFERROR(IF($H43<=BG$5,VLOOKUP($H43,Tabelle!$N$10:$R$58,5,FALSE),0),0) -> 0.000 | BG43: 0 | BH43: =IF(OR($O43>$BG$5,$O43=""),(AX43+BA43)*Tabelle!$R$53,0) -> 0 | BI43: 0 | BJ43: =IF(OR($O43>$BG$5,$O43=""),(AZ43+BB43)*Tabelle!$R$53,0) -> 0 | BK43: 0 | BL43: 0 | BM43: 0 | BN43: 0 | BP43: =+IFERROR(IF($H43<=BQ$5,VLOOKUP($H43,Tabelle!$N$10:$S$58,6,FALSE),0),0) -> 0.000 | BQ43: 0 | BR43: =IF(OR($O43>$BQ$5,$O43=""),(BH43+BK43)*Tabelle!$S$54,0) -> 0 | BS43: 0 | BT43: =IF(OR($O43>$BQ$5,$O43=""),(BJ43+BL43)*Tabelle!$S$54,0) -> 0 | BU43: 0 | BV43: 0 | BW43: 0 | BX43: 0 | BZ43: =+IFERROR(IF($H43<=CA$5,VLOOKUP($H43,Tabelle!$N$10:$T$58,7,FALSE),0),0) -> 0.000 | CA43: 0 | CB43: =IF(OR($O43>$CA$5,$O43=""),+(BR43+BU43)*Tabelle!$T$55,0) -> 0 | CC43: 0 | CD43: =IF(OR($O43>$CA$5,$O43=""),+(BT43+BV43)*Tabelle!$T$55,0) -> 0 | CE43: 0 | CF43: 0 | CG43: 0 | CH43: 0 | CJ43: =+IFERROR(IF($H43<=CK$5,VLOOKUP($H43,Tabelle!$N$10:$U$58,8,FALSE),0),0) -> 0.000 | CK43: 0 | CL43: =IF(OR($O43>$CK$5,$O43=""),+(CB43+CE43)*Tabelle!$U$56,0) -> 0 | CM43: 0 | CN43: =IF(OR($O43>$CK$5,$O43=""),+(CD43+CF43)*Tabelle!$U$56,0) -> 0 | CO43: 0 | CP43: 0 | CQ43: 0 | CR43: 0 | CT43: =+IFERROR(IF($H43<=CU$5,VLOOKUP($H43,Tabelle!$N$10:$V$58,9,FALSE),0),0) -> 0.000 | CU43: 0 | CV43: =IF(OR($O43>CU$5,$O43=""),(CL43+CO43)*Tabelle!$V$57,0) -> 0 | CW43: 0 | CX43: =IF(OR($O43>CU$5,$O43=""),(CN43+CP43)*Tabelle!$V$57,0) -> 0 | CY43: 0 | CZ43: 0 | DA43: 0 | DB43: 0 | DD43: =+IFERROR(IF($H43<=DE$5,VLOOKUP($H43,Tabelle!$N$10:$W$59,10,FALSE),0),0) -> 0.000 | DE43: 0 | DF43: =IF(OR($O43>DE$5,$O43=""),+(CV43+CY43)*Tabelle!$W$58,0) -> 0 | DG43: 0 | DH43: =IF(OR($O43>DE$5,$O43=""),+(CX43+CZ43)*Tabelle!$W$58,0) -> 0 | DI43: 0 | DJ43: 0 | DK43: 0 | DL43: 0 | DN43: =+IFERROR(IF($H43<=DO$5,VLOOKUP($H43,Tabelle!$N$10:$X$60,11,FALSE),0),0) -> 0.000 | DO43: 0 | DP43: =IF(OR($O43>DO$5,$O43=""),+(DF43+DI43)*Tabelle!$X$59,0) -> 0 | DQ43: 0 | DR43: =IF(OR($O43>DO$5,$O43=""),+(DH43+DJ43)*Tabelle!$X$59,0) -> 0 | DS43: 0 | DT43: 0 | DU43: 0 | DV43: 0 | DX43: =+IFERROR(IF($H43<=DY$5,VLOOKUP($H43,Tabelle!$N$10:$Y$61,12,FALSE),0),0) -> 0.000 | DY43: 0 | DZ43: =IF(OR($O43>DY$5,$O43=""),+(DP43+DS43)*Tabelle!$Y$60,0) -> 0 | EA43: 0 | EB43: =IF(OR($O43>DY$5,$O43=""),+(DR43+DT43)*Tabelle!$Y$60,0) -> 0 | EC43: 0 | ED43: 0 | EE43: 0 | EF43: 0 | EH43: =+IFERROR(IF($H43<=EI$5,VLOOKUP($H43,Tabelle!$N$10:$Z$62,13,FALSE),0),0) -> 0.000 | EI43: 0 | EJ43: =IF(OR($O43>EI$5,$O43=""),+(DZ43+EC43)*Tabelle!$Z$61,0) -> 0 | EK43: 0 | EL43: =IF(OR($O43>EI$5,$O43=""),+(EB43+ED43)*Tabelle!$Z$61,0) -> 0 | EM43: 0 | EN43: 0 | EO43: 0 | EP43: 0
D44: =++IFERROR(INDEX(Tabelle!$H$11:$H$16,MATCH(IN_Cespiti!E44,Tabelle!$I$11:$I$16,0)),"") ->  | F44: =++IFERROR(INDEX(Tabelle!$C$10:$C$44,MATCH(IN_Cespiti!G44,Tabelle!$E$10:$E$44,0)),"") ->  | Q44: =IF($D44=3,$M44,+IFERROR(VLOOKUP(CONCATENATE(D44,".",F44),Tabelle!$D$10:$F$44,3,),"")) ->  | T44: =+IF(R44="",Q44,+IF(R44=Tabelle!$B$105,IN_Cespiti!Q44,IF(OR(R44=Tabelle!$B$103,R44=Tabelle!$B$104),IN_Cespiti!S44,0))) ->  | W44: =+IF(U44="",T44,+IF(U44=Tabelle!$B$105,IN_Cespiti!T44,IF(OR(U44=Tabelle!$B$103,U44=Tabelle!$B$104),IN_Cespiti!V44,0))) ->  | Z44: =+IF(OR(X44="",X44=Tabelle!$B$105),W44,Y44) ->  | AB44: =+IFERROR(IF($H44<=2017,VLOOKUP($H44,Tabelle!$N$10:$O$58,2,FALSE),0),0) -> 0.000 | AC44: 0 | AD44: 0 | AE44: 0 | AF44: 0 | AG44: 0 | AH44: 0 | AI44: 0 | AJ44: 0 | AL44: =+IFERROR(IF($H44<=AM$5,VLOOKUP($H44,Tabelle!$N$10:$P$58,3,FALSE),0),0) -> 0.000 | AM44: 0 | AN44: =IF(OR($O44>$AM$5,$O44=""),(AD44+AG44)*Tabelle!$P$51,0) -> 0 | AO44: 0 | AP44: =IF(OR($O44>$AM$5,$O44=""),(AF44+AH44)*Tabelle!$P$51,0) -> 0 | AQ44: 0 | AR44: 0 | AS44: 0 | AT44: 0 | AV44: =+IFERROR(IF($H44<=AW$5,VLOOKUP($H44,Tabelle!$N$10:$Q$58,4,FALSE),0),0) -> 0.000 | AW44: 0 | AX44: =IF(OR($O44>$AW$5,$O44=""),(AN44+AQ44)*Tabelle!$Q$52,0) -> 0 | AY44: 0 | AZ44: =IF(OR($O44>$AW$5,$O44=""),(AP44+AR44)*Tabelle!$Q$52,0) -> 0 | BA44: 0 | BB44: 0 | BC44: 0 | BD44: 0 | BF44: =+IFERROR(IF($H44<=BG$5,VLOOKUP($H44,Tabelle!$N$10:$R$58,5,FALSE),0),0) -> 0.000 | BG44: 0 | BH44: =IF(OR($O44>$BG$5,$O44=""),(AX44+BA44)*Tabelle!$R$53,0) -> 0 | BI44: 0 | BJ44: =IF(OR($O44>$BG$5,$O44=""),(AZ44+BB44)*Tabelle!$R$53,0) -> 0 | BK44: 0 | BL44: 0 | BM44: 0 | BN44: 0 | BP44: =+IFERROR(IF($H44<=BQ$5,VLOOKUP($H44,Tabelle!$N$10:$S$58,6,FALSE),0),0) -> 0.000 | BQ44: 0 | BR44: =IF(OR($O44>$BQ$5,$O44=""),(BH44+BK44)*Tabelle!$S$54,0) -> 0 | BS44: 0 | BT44: =IF(OR($O44>$BQ$5,$O44=""),(BJ44+BL44)*Tabelle!$S$54,0) -> 0 | BU44: 0 | BV44: 0 | BW44: 0 | BX44: 0 | BZ44: =+IFERROR(IF($H44<=CA$5,VLOOKUP($H44,Tabelle!$N$10:$T$58,7,FALSE),0),0) -> 0.000 | CA44: 0 | CB44: =IF(OR($O44>$CA$5,$O44=""),+(BR44+BU44)*Tabelle!$T$55,0) -> 0 | CC44: 0 | CD44: =IF(OR($O44>$CA$5,$O44=""),+(BT44+BV44)*Tabelle!$T$55,0) -> 0 | CE44: 0 | CF44: 0 | CG44: 0 | CH44: 0 | CJ44: =+IFERROR(IF($H44<=CK$5,VLOOKUP($H44,Tabelle!$N$10:$U$58,8,FALSE),0),0) -> 0.000 | CK44: 0 | CL44: =IF(OR($O44>$CK$5,$O44=""),+(CB44+CE44)*Tabelle!$U$56,0) -> 0 | CM44: 0 | CN44: =IF(OR($O44>$CK$5,$O44=""),+(CD44+CF44)*Tabelle!$U$56,0) -> 0 | CO44: 0 | CP44: 0 | CQ44: 0 | CR44: 0 | CT44: =+IFERROR(IF($H44<=CU$5,VLOOKUP($H44,Tabelle!$N$10:$V$58,9,FALSE),0),0) -> 0.000 | CU44: 0 | CV44: =IF(OR($O44>CU$5,$O44=""),(CL44+CO44)*Tabelle!$V$57,0) -> 0 | CW44: 0 | CX44: =IF(OR($O44>CU$5,$O44=""),(CN44+CP44)*Tabelle!$V$57,0) -> 0 | CY44: 0 | CZ44: 0 | DA44: 0 | DB44: 0 | DD44: =+IFERROR(IF($H44<=DE$5,VLOOKUP($H44,Tabelle!$N$10:$W$59,10,FALSE),0),0) -> 0.000 | DE44: 0 | DF44: =IF(OR($O44>DE$5,$O44=""),+(CV44+CY44)*Tabelle!$W$58,0) -> 0 | DG44: 0 | DH44: =IF(OR($O44>DE$5,$O44=""),+(CX44+CZ44)*Tabelle!$W$58,0) -> 0 | DI44: 0 | DJ44: 0 | DK44: 0 | DL44: 0 | DN44: =+IFERROR(IF($H44<=DO$5,VLOOKUP($H44,Tabelle!$N$10:$X$60,11,FALSE),0),0) -> 0.000 | DO44: 0 | DP44: =IF(OR($O44>DO$5,$O44=""),+(DF44+DI44)*Tabelle!$X$59,0) -> 0 | DQ44: 0 | DR44: =IF(OR($O44>DO$5,$O44=""),+(DH44+DJ44)*Tabelle!$X$59,0) -> 0 | DS44: 0 | DT44: 0 | DU44: 0 | DV44: 0 | DX44: =+IFERROR(IF($H44<=DY$5,VLOOKUP($H44,Tabelle!$N$10:$Y$61,12,FALSE),0),0) -> 0.000 | DY44: 0 | DZ44: =IF(OR($O44>DY$5,$O44=""),+(DP44+DS44)*Tabelle!$Y$60,0) -> 0 | EA44: 0 | EB44: =IF(OR($O44>DY$5,$O44=""),+(DR44+DT44)*Tabelle!$Y$60,0) -> 0 | EC44: 0 | ED44: 0 | EE44: 0 | EF44: 0 | EH44: =+IFERROR(IF($H44<=EI$5,VLOOKUP($H44,Tabelle!$N$10:$Z$62,13,FALSE),0),0) -> 0.000 | EI44: 0 | EJ44: =IF(OR($O44>EI$5,$O44=""),+(DZ44+EC44)*Tabelle!$Z$61,0) -> 0 | EK44: 0 | EL44: =IF(OR($O44>EI$5,$O44=""),+(EB44+ED44)*Tabelle!$Z$61,0) -> 0 | EM44: 0 | EN44: 0 | EO44: 0 | EP44: 0
D45: =++IFERROR(INDEX(Tabelle!$H$11:$H$16,MATCH(IN_Cespiti!E45,Tabelle!$I$11:$I$16,0)),"") ->  | F45: =++IFERROR(INDEX(Tabelle!$C$10:$C$44,MATCH(IN_Cespiti!G45,Tabelle!$E$10:$E$44,0)),"") ->  | Q45: =IF($D45=3,$M45,+IFERROR(VLOOKUP(CONCATENATE(D45,".",F45),Tabelle!$D$10:$F$44,3,),"")) ->  | T45: =+IF(R45="",Q45,+IF(R45=Tabelle!$B$105,IN_Cespiti!Q45,IF(OR(R45=Tabelle!$B$103,R45=Tabelle!$B$104),IN_Cespiti!S45,0))) ->  | W45: =+IF(U45="",T45,+IF(U45=Tabelle!$B$105,IN_Cespiti!T45,IF(OR(U45=Tabelle!$B$103,U45=Tabelle!$B$104),IN_Cespiti!V45,0))) ->  | Z45: =+IF(OR(X45="",X45=Tabelle!$B$105),W45,Y45) ->  | AB45: =+IFERROR(IF($H45<=2017,VLOOKUP($H45,Tabelle!$N$10:$O$58,2,FALSE),0),0) -> 0.000 | AC45: 0 | AD45: 0 | AE45: 0 | AF45: 0 | AG45: 0 | AH45: 0 | AI45: 0 | AJ45: 0 | AL45: =+IFERROR(IF($H45<=AM$5,VLOOKUP($H45,Tabelle!$N$10:$P$58,3,FALSE),0),0) -> 0.000 | AM45: 0 | AN45: =IF(OR($O45>$AM$5,$O45=""),(AD45+AG45)*Tabelle!$P$51,0) -> 0 | AO45: 0 | AP45: =IF(OR($O45>$AM$5,$O45=""),(AF45+AH45)*Tabelle!$P$51,0) -> 0 | AQ45: 0 | AR45: 0 | AS45: 0 | AT45: 0 | AV45: =+IFERROR(IF($H45<=AW$5,VLOOKUP($H45,Tabelle!$N$10:$Q$58,4,FALSE),0),0) -> 0.000 | AW45: 0 | AX45: =IF(OR($O45>$AW$5,$O45=""),(AN45+AQ45)*Tabelle!$Q$52,0) -> 0 | AY45: 0 | AZ45: =IF(OR($O45>$AW$5,$O45=""),(AP45+AR45)*Tabelle!$Q$52,0) -> 0 | BA45: 0 | BB45: 0 | BC45: 0 | BD45: 0 | BF45: =+IFERROR(IF($H45<=BG$5,VLOOKUP($H45,Tabelle!$N$10:$R$58,5,FALSE),0),0) -> 0.000 | BG45: 0 | BH45: =IF(OR($O45>$BG$5,$O45=""),(AX45+BA45)*Tabelle!$R$53,0) -> 0 | BI45: 0 | BJ45: =IF(OR($O45>$BG$5,$O45=""),(AZ45+BB45)*Tabelle!$R$53,0) -> 0 | BK45: 0 | BL45: 0 | BM45: 0 | BN45: 0 | BP45: =+IFERROR(IF($H45<=BQ$5,VLOOKUP($H45,Tabelle!$N$10:$S$58,6,FALSE),0),0) -> 0.000 | BQ45: 0 | BR45: =IF(OR($O45>$BQ$5,$O45=""),(BH45+BK45)*Tabelle!$S$54,0) -> 0 | BS45: 0 | BT45: =IF(OR($O45>$BQ$5,$O45=""),(BJ45+BL45)*Tabelle!$S$54,0) -> 0 | BU45: 0 | BV45: 0 | BW45: 0 | BX45: 0 | BZ45: =+IFERROR(IF($H45<=CA$5,VLOOKUP($H45,Tabelle!$N$10:$T$58,7,FALSE),0),0) -> 0.000 | CA45: 0 | CB45: =IF(OR($O45>$CA$5,$O45=""),+(BR45+BU45)*Tabelle!$T$55,0) -> 0 | CC45: 0 | CD45: =IF(OR($O45>$CA$5,$O45=""),+(BT45+BV45)*Tabelle!$T$55,0) -> 0 | CE45: 0 | CF45: 0 | CG45: 0 | CH45: 0 | CJ45: =+IFERROR(IF($H45<=CK$5,VLOOKUP($H45,Tabelle!$N$10:$U$58,8,FALSE),0),0) -> 0.000 | CK45: 0 | CL45: =IF(OR($O45>$CK$5,$O45=""),+(CB45+CE45)*Tabelle!$U$56,0) -> 0 | CM45: 0 | CN45: =IF(OR($O45>$CK$5,$O45=""),+(CD45+CF45)*Tabelle!$U$56,0) -> 0 | CO45: 0 | CP45: 0 | CQ45: 0 | CR45: 0 | CT45: =+IFERROR(IF($H45<=CU$5,VLOOKUP($H45,Tabelle!$N$10:$V$58,9,FALSE),0),0) -> 0.000 | CU45: 0 | CV45: =IF(OR($O45>CU$5,$O45=""),(CL45+CO45)*Tabelle!$V$57,0) -> 0 | CW45: 0 | CX45: =IF(OR($O45>CU$5,$O45=""),(CN45+CP45)*Tabelle!$V$57,0) -> 0 | CY45: 0 | CZ45: 0 | DA45: 0 | DB45: 0 | DD45: =+IFERROR(IF($H45<=DE$5,VLOOKUP($H45,Tabelle!$N$10:$W$59,10,FALSE),0),0) -> 0.000 | DE45: 0 | DF45: =IF(OR($O45>DE$5,$O45=""),+(CV45+CY45)*Tabelle!$W$58,0) -> 0 | DG45: 0 | DH45: =IF(OR($O45>DE$5,$O45=""),+(CX45+CZ45)*Tabelle!$W$58,0) -> 0 | DI45: 0 | DJ45: 0 | DK45: 0 | DL45: 0 | DN45: =+IFERROR(IF($H45<=DO$5,VLOOKUP($H45,Tabelle!$N$10:$X$60,11,FALSE),0),0) -> 0.000 | DO45: 0 | DP45: =IF(OR($O45>DO$5,$O45=""),+(DF45+DI45)*Tabelle!$X$59,0) -> 0 | DQ45: 0 | DR45: =IF(OR($O45>DO$5,$O45=""),+(DH45+DJ45)*Tabelle!$X$59,0) -> 0 | DS45: 0 | DT45: 0 | DU45: 0 | DV45: 0 | DX45: =+IFERROR(IF($H45<=DY$5,VLOOKUP($H45,Tabelle!$N$10:$Y$61,12,FALSE),0),0) -> 0.000 | DY45: 0 | DZ45: =IF(OR($O45>DY$5,$O45=""),+(DP45+DS45)*Tabelle!$Y$60,0) -> 0 | EA45: 0 | EB45: =IF(OR($O45>DY$5,$O45=""),+(DR45+DT45)*Tabelle!$Y$60,0) -> 0 | EC45: 0 | ED45: 0 | EE45: 0 | EF45: 0 | EH45: =+IFERROR(IF($H45<=EI$5,VLOOKUP($H45,Tabelle!$N$10:$Z$62,13,FALSE),0),0) -> 0.000 | EI45: 0 | EJ45: =IF(OR($O45>EI$5,$O45=""),+(DZ45+EC45)*Tabelle!$Z$61,0) -> 0 | EK45: 0 | EL45: =IF(OR($O45>EI$5,$O45=""),+(EB45+ED45)*Tabelle!$Z$61,0) -> 0 | EM45: 0 | EN45: 0 | EO45: 0 | EP45: 0
D46: =++IFERROR(INDEX(Tabelle!$H$11:$H$16,MATCH(IN_Cespiti!E46,Tabelle!$I$11:$I$16,0)),"") ->  | F46: =++IFERROR(INDEX(Tabelle!$C$10:$C$44,MATCH(IN_Cespiti!G46,Tabelle!$E$10:$E$44,0)),"") ->  | Q46: =IF($D46=3,$M46,+IFERROR(VLOOKUP(CONCATENATE(D46,".",F46),Tabelle!$D$10:$F$44,3,),"")) ->  | T46: =+IF(R46="",Q46,+IF(R46=Tabelle!$B$105,IN_Cespiti!Q46,IF(OR(R46=Tabelle!$B$103,R46=Tabelle!$B$104),IN_Cespiti!S46,0))) ->  | W46: =+IF(U46="",T46,+IF(U46=Tabelle!$B$105,IN_Cespiti!T46,IF(OR(U46=Tabelle!$B$103,U46=Tabelle!$B$104),IN_Cespiti!V46,0))) ->  | Z46: =+IF(OR(X46="",X46=Tabelle!$B$105),W46,Y46) ->  | AB46: =+IFERROR(IF($H46<=2017,VLOOKUP($H46,Tabelle!$N$10:$O$58,2,FALSE),0),0) -> 0.000 | AC46: 0 | AD46: 0 | AE46: 0 | AF46: 0 | AG46: 0 | AH46: 0 | AI46: 0 | AJ46: 0 | AL46: =+IFERROR(IF($H46<=AM$5,VLOOKUP($H46,Tabelle!$N$10:$P$58,3,FALSE),0),0) -> 0.000 | AM46: 0 | AN46: =IF(OR($O46>$AM$5,$O46=""),(AD46+AG46)*Tabelle!$P$51,0) -> 0 | AO46: 0 | AP46: =IF(OR($O46>$AM$5,$O46=""),(AF46+AH46)*Tabelle!$P$51,0) -> 0 | AQ46: 0 | AR46: 0 | AS46: 0 | AT46: 0 | AV46: =+IFERROR(IF($H46<=AW$5,VLOOKUP($H46,Tabelle!$N$10:$Q$58,4,FALSE),0),0) -> 0.000 | AW46: 0 | AX46: =IF(OR($O46>$AW$5,$O46=""),(AN46+AQ46)*Tabelle!$Q$52,0) -> 0 | AY46: 0 | AZ46: =IF(OR($O46>$AW$5,$O46=""),(AP46+AR46)*Tabelle!$Q$52,0) -> 0 | BA46: 0 | BB46: 0 | BC46: 0 | BD46: 0 | BF46: =+IFERROR(IF($H46<=BG$5,VLOOKUP($H46,Tabelle!$N$10:$R$58,5,FALSE),0),0) -> 0.000 | BG46: 0 | BH46: =IF(OR($O46>$BG$5,$O46=""),(AX46+BA46)*Tabelle!$R$53,0) -> 0 | BI46: 0 | BJ46: =IF(OR($O46>$BG$5,$O46=""),(AZ46+BB46)*Tabelle!$R$53,0) -> 0 | BK46: 0 | BL46: 0 | BM46: 0 | BN46: 0 | BP46: =+IFERROR(IF($H46<=BQ$5,VLOOKUP($H46,Tabelle!$N$10:$S$58,6,FALSE),0),0) -> 0.000 | BQ46: 0 | BR46: =IF(OR($O46>$BQ$5,$O46=""),(BH46+BK46)*Tabelle!$S$54,0) -> 0 | BS46: 0 | BT46: =IF(OR($O46>$BQ$5,$O46=""),(BJ46+BL46)*Tabelle!$S$54,0) -> 0 | BU46: 0 | BV46: 0 | BW46: 0 | BX46: 0 | BZ46: =+IFERROR(IF($H46<=CA$5,VLOOKUP($H46,Tabelle!$N$10:$T$58,7,FALSE),0),0) -> 0.000 | CA46: 0 | CB46: =IF(OR($O46>$CA$5,$O46=""),+(BR46+BU46)*Tabelle!$T$55,0) -> 0 | CC46: 0 | CD46: =IF(OR($O46>$CA$5,$O46=""),+(BT46+BV46)*Tabelle!$T$55,0) -> 0 | CE46: 0 | CF46: 0 | CG46: 0 | CH46: 0 | CJ46: =+IFERROR(IF($H46<=CK$5,VLOOKUP($H46,Tabelle!$N$10:$U$58,8,FALSE),0),0) -> 0.000 | CK46: 0 | CL46: =IF(OR($O46>$CK$5,$O46=""),+(CB46+CE46)*Tabelle!$U$56,0) -> 0 | CM46: 0 | CN46: =IF(OR($O46>$CK$5,$O46=""),+(CD46+CF46)*Tabelle!$U$56,0) -> 0 | CO46: 0 | CP46: 0 | CQ46: 0 | CR46: 0 | CT46: =+IFERROR(IF($H46<=CU$5,VLOOKUP($H46,Tabelle!$N$10:$V$58,9,FALSE),0),0) -> 0.000 | CU46: 0 | CV46: =IF(OR($O46>CU$5,$O46=""),(CL46+CO46)*Tabelle!$V$57,0) -> 0 | CW46: 0 | CX46: =IF(OR($O46>CU$5,$O46=""),(CN46+CP46)*Tabelle!$V$57,0) -> 0 | CY46: 0 | CZ46: 0 | DA46: 0 | DB46: 0 | DD46: =+IFERROR(IF($H46<=DE$5,VLOOKUP($H46,Tabelle!$N$10:$W$59,10,FALSE),0),0) -> 0.000 | DE46: 0 | DF46: =IF(OR($O46>DE$5,$O46=""),+(CV46+CY46)*Tabelle!$W$58,0) -> 0 | DG46: 0 | DH46: =IF(OR($O46>DE$5,$O46=""),+(CX46+CZ46)*Tabelle!$W$58,0) -> 0 | DI46: 0 | DJ46: 0 | DK46: 0 | DL46: 0 | DN46: =+IFERROR(IF($H46<=DO$5,VLOOKUP($H46,Tabelle!$N$10:$X$60,11,FALSE),0),0) -> 0.000 | DO46: 0 | DP46: =IF(OR($O46>DO$5,$O46=""),+(DF46+DI46)*Tabelle!$X$59,0) -> 0 | DQ46: 0 | DR46: =IF(OR($O46>DO$5,$O46=""),+(DH46+DJ46)*Tabelle!$X$59,0) -> 0 | DS46: 0 | DT46: 0 | DU46: 0 | DV46: 0 | DX46: =+IFERROR(IF($H46<=DY$5,VLOOKUP($H46,Tabelle!$N$10:$Y$61,12,FALSE),0),0) -> 0.000 | DY46: 0 | DZ46: =IF(OR($O46>DY$5,$O46=""),+(DP46+DS46)*Tabelle!$Y$60,0) -> 0 | EA46: 0 | EB46: =IF(OR($O46>DY$5,$O46=""),+(DR46+DT46)*Tabelle!$Y$60,0) -> 0 | EC46: 0 | ED46: 0 | EE46: 0 | EF46: 0 | EH46: =+IFERROR(IF($H46<=EI$5,VLOOKUP($H46,Tabelle!$N$10:$Z$62,13,FALSE),0),0) -> 0.000 | EI46: 0 | EJ46: =IF(OR($O46>EI$5,$O46=""),+(DZ46+EC46)*Tabelle!$Z$61,0) -> 0 | EK46: 0 | EL46: =IF(OR($O46>EI$5,$O46=""),+(EB46+ED46)*Tabelle!$Z$61,0) -> 0 | EM46: 0 | EN46: 0 | EO46: 0 | EP46: 0
D47: =++IFERROR(INDEX(Tabelle!$H$11:$H$16,MATCH(IN_Cespiti!E47,Tabelle!$I$11:$I$16,0)),"") ->  | F47: =++IFERROR(INDEX(Tabelle!$C$10:$C$44,MATCH(IN_Cespiti!G47,Tabelle!$E$10:$E$44,0)),"") ->  | Q47: =IF($D47=3,$M47,+IFERROR(VLOOKUP(CONCATENATE(D47,".",F47),Tabelle!$D$10:$F$44,3,),"")) ->  | T47: =+IF(R47="",Q47,+IF(R47=Tabelle!$B$105,IN_Cespiti!Q47,IF(OR(R47=Tabelle!$B$103,R47=Tabelle!$B$104),IN_Cespiti!S47,0))) ->  | W47: =+IF(U47="",T47,+IF(U47=Tabelle!$B$105,IN_Cespiti!T47,IF(OR(U47=Tabelle!$B$103,U47=Tabelle!$B$104),IN_Cespiti!V47,0))) ->  | Z47: =+IF(OR(X47="",X47=Tabelle!$B$105),W47,Y47) ->  | AB47: =+IFERROR(IF($H47<=2017,VLOOKUP($H47,Tabelle!$N$10:$O$58,2,FALSE),0),0) -> 0.000 | AC47: 0 | AD47: 0 | AE47: 0 | AF47: 0 | AG47: 0 | AH47: 0 | AI47: 0 | AJ47: 0 | AL47: =+IFERROR(IF($H47<=AM$5,VLOOKUP($H47,Tabelle!$N$10:$P$58,3,FALSE),0),0) -> 0.000 | AM47: 0 | AN47: =IF(OR($O47>$AM$5,$O47=""),(AD47+AG47)*Tabelle!$P$51,0) -> 0 | AO47: 0 | AP47: =IF(OR($O47>$AM$5,$O47=""),(AF47+AH47)*Tabelle!$P$51,0) -> 0 | AQ47: 0 | AR47: 0 | AS47: 0 | AT47: 0 | AV47: =+IFERROR(IF($H47<=AW$5,VLOOKUP($H47,Tabelle!$N$10:$Q$58,4,FALSE),0),0) -> 0.000 | AW47: 0 | AX47: =IF(OR($O47>$AW$5,$O47=""),(AN47+AQ47)*Tabelle!$Q$52,0) -> 0 | AY47: 0 | AZ47: =IF(OR($O47>$AW$5,$O47=""),(AP47+AR47)*Tabelle!$Q$52,0) -> 0 | BA47: 0 | BB47: 0 | BC47: 0 | BD47: 0 | BF47: =+IFERROR(IF($H47<=BG$5,VLOOKUP($H47,Tabelle!$N$10:$R$58,5,FALSE),0),0) -> 0.000 | BG47: 0 | BH47: =IF(OR($O47>$BG$5,$O47=""),(AX47+BA47)*Tabelle!$R$53,0) -> 0 | BI47: 0 | BJ47: =IF(OR($O47>$BG$5,$O47=""),(AZ47+BB47)*Tabelle!$R$53,0) -> 0 | BK47: 0 | BL47: 0 | BM47: 0 | BN47: 0 | BP47: =+IFERROR(IF($H47<=BQ$5,VLOOKUP($H47,Tabelle!$N$10:$S$58,6,FALSE),0),0) -> 0.000 | BQ47: 0 | BR47: =IF(OR($O47>$BQ$5,$O47=""),(BH47+BK47)*Tabelle!$S$54,0) -> 0 | BS47: 0 | BT47: =IF(OR($O47>$BQ$5,$O47=""),(BJ47+BL47)*Tabelle!$S$54,0) -> 0 | BU47: 0 | BV47: 0 | BW47: 0 | BX47: 0 | BZ47: =+IFERROR(IF($H47<=CA$5,VLOOKUP($H47,Tabelle!$N$10:$T$58,7,FALSE),0),0) -> 0.000 | CA47: 0 | CB47: =IF(OR($O47>$CA$5,$O47=""),+(BR47+BU47)*Tabelle!$T$55,0) -> 0 | CC47: 0 | CD47: =IF(OR($O47>$CA$5,$O47=""),+(BT47+BV47)*Tabelle!$T$55,0) -> 0 | CE47: 0 | CF47: 0 | CG47: 0 | CH47: 0 | CJ47: =+IFERROR(IF($H47<=CK$5,VLOOKUP($H47,Tabelle!$N$10:$U$58,8,FALSE),0),0) -> 0.000 | CK47: 0 | CL47: =IF(OR($O47>$CK$5,$O47=""),+(CB47+CE47)*Tabelle!$U$56,0) -> 0 | CM47: 0 | CN47: =IF(OR($O47>$CK$5,$O47=""),+(CD47+CF47)*Tabelle!$U$56,0) -> 0 | CO47: 0 | CP47: 0 | CQ47: 0 | CR47: 0 | CT47: =+IFERROR(IF($H47<=CU$5,VLOOKUP($H47,Tabelle!$N$10:$V$58,9,FALSE),0),0) -> 0.000 | CU47: 0 | CV47: =IF(OR($O47>CU$5,$O47=""),(CL47+CO47)*Tabelle!$V$57,0) -> 0 | CW47: 0 | CX47: =IF(OR($O47>CU$5,$O47=""),(CN47+CP47)*Tabelle!$V$57,0) -> 0 | CY47: 0 | CZ47: 0 | DA47: 0 | DB47: 0 | DD47: =+IFERROR(IF($H47<=DE$5,VLOOKUP($H47,Tabelle!$N$10:$W$59,10,FALSE),0),0) -> 0.000 | DE47: 0 | DF47: =IF(OR($O47>DE$5,$O47=""),+(CV47+CY47)*Tabelle!$W$58,0) -> 0 | DG47: 0 | DH47: =IF(OR($O47>DE$5,$O47=""),+(CX47+CZ47)*Tabelle!$W$58,0) -> 0 | DI47: 0 | DJ47: 0 | DK47: 0 | DL47: 0 | DN47: =+IFERROR(IF($H47<=DO$5,VLOOKUP($H47,Tabelle!$N$10:$X$60,11,FALSE),0),0) -> 0.000 | DO47: 0 | DP47: =IF(OR($O47>DO$5,$O47=""),+(DF47+DI47)*Tabelle!$X$59,0) -> 0 | DQ47: 0 | DR47: =IF(OR($O47>DO$5,$O47=""),+(DH47+DJ47)*Tabelle!$X$59,0) -> 0 | DS47: 0 | DT47: 0 | DU47: 0 | DV47: 0 | DX47: =+IFERROR(IF($H47<=DY$5,VLOOKUP($H47,Tabelle!$N$10:$Y$61,12,FALSE),0),0) -> 0.000 | DY47: 0 | DZ47: =IF(OR($O47>DY$5,$O47=""),+(DP47+DS47)*Tabelle!$Y$60,0) -> 0 | EA47: 0 | EB47: =IF(OR($O47>DY$5,$O47=""),+(DR47+DT47)*Tabelle!$Y$60,0) -> 0 | EC47: 0 | ED47: 0 | EE47: 0 | EF47: 0 | EH47: =+IFERROR(IF($H47<=EI$5,VLOOKUP($H47,Tabelle!$N$10:$Z$62,13,FALSE),0),0) -> 0.000 | EI47: 0 | EJ47: =IF(OR($O47>EI$5,$O47=""),+(DZ47+EC47)*Tabelle!$Z$61,0) -> 0 | EK47: 0 | EL47: =IF(OR($O47>EI$5,$O47=""),+(EB47+ED47)*Tabelle!$Z$61,0) -> 0 | EM47: 0 | EN47: 0 | EO47: 0 | EP47: 0
D48: =++IFERROR(INDEX(Tabelle!$H$11:$H$16,MATCH(IN_Cespiti!E48,Tabelle!$I$11:$I$16,0)),"") ->  | F48: =++IFERROR(INDEX(Tabelle!$C$10:$C$44,MATCH(IN_Cespiti!G48,Tabelle!$E$10:$E$44,0)),"") ->  | Q48: =IF($D48=3,$M48,+IFERROR(VLOOKUP(CONCATENATE(D48,".",F48),Tabelle!$D$10:$F$44,3,),"")) ->  | T48: =+IF(R48="",Q48,+IF(R48=Tabelle!$B$105,IN_Cespiti!Q48,IF(OR(R48=Tabelle!$B$103,R48=Tabelle!$B$104),IN_Cespiti!S48,0))) ->  | W48: =+IF(U48="",T48,+IF(U48=Tabelle!$B$105,IN_Cespiti!T48,IF(OR(U48=Tabelle!$B$103,U48=Tabelle!$B$104),IN_Cespiti!V48,0))) ->  | Z48: =+IF(OR(X48="",X48=Tabelle!$B$105),W48,Y48) ->  | AB48: =+IFERROR(IF($H48<=2017,VLOOKUP($H48,Tabelle!$N$10:$O$58,2,FALSE),0),0) -> 0.000 | AC48: 0 | AD48: 0 | AE48: 0 | AF48: 0 | AG48: 0 | AH48: 0 | AI48: 0 | AJ48: 0 | AL48: =+IFERROR(IF($H48<=AM$5,VLOOKUP($H48,Tabelle!$N$10:$P$58,3,FALSE),0),0) -> 0.000 | AM48: 0 | AN48: =IF(OR($O48>$AM$5,$O48=""),(AD48+AG48)*Tabelle!$P$51,0) -> 0 | AO48: 0 | AP48: =IF(OR($O48>$AM$5,$O48=""),(AF48+AH48)*Tabelle!$P$51,0) -> 0 | AQ48: 0 | AR48: 0 | AS48: 0 | AT48: 0 | AV48: =+IFERROR(IF($H48<=AW$5,VLOOKUP($H48,Tabelle!$N$10:$Q$58,4,FALSE),0),0) -> 0.000 | AW48: 0 | AX48: =IF(OR($O48>$AW$5,$O48=""),(AN48+AQ48)*Tabelle!$Q$52,0) -> 0 | AY48: 0 | AZ48: =IF(OR($O48>$AW$5,$O48=""),(AP48+AR48)*Tabelle!$Q$52,0) -> 0 | BA48: 0 | BB48: 0 | BC48: 0 | BD48: 0 | BF48: =+IFERROR(IF($H48<=BG$5,VLOOKUP($H48,Tabelle!$N$10:$R$58,5,FALSE),0),0) -> 0.000 | BG48: 0 | BH48: =IF(OR($O48>$BG$5,$O48=""),(AX48+BA48)*Tabelle!$R$53,0) -> 0 | BI48: 0 | BJ48: =IF(OR($O48>$BG$5,$O48=""),(AZ48+BB48)*Tabelle!$R$53,0) -> 0 | BK48: 0 | BL48: 0 | BM48: 0 | BN48: 0 | BP48: =+IFERROR(IF($H48<=BQ$5,VLOOKUP($H48,Tabelle!$N$10:$S$58,6,FALSE),0),0) -> 0.000 | BQ48: 0 | BR48: =IF(OR($O48>$BQ$5,$O48=""),(BH48+BK48)*Tabelle!$S$54,0) -> 0 | BS48: 0 | BT48: =IF(OR($O48>$BQ$5,$O48=""),(BJ48+BL48)*Tabelle!$S$54,0) -> 0 | BU48: 0 | BV48: 0 | BW48: 0 | BX48: 0 | BZ48: =+IFERROR(IF($H48<=CA$5,VLOOKUP($H48,Tabelle!$N$10:$T$58,7,FALSE),0),0) -> 0.000 | CA48: 0 | CB48: =IF(OR($O48>$CA$5,$O48=""),+(BR48+BU48)*Tabelle!$T$55,0) -> 0 | CC48: 0 | CD48: =IF(OR($O48>$CA$5,$O48=""),+(BT48+BV48)*Tabelle!$T$55,0) -> 0 | CE48: 0 | CF48: 0 | CG48: 0 | CH48: 0 | CJ48: =+IFERROR(IF($H48<=CK$5,VLOOKUP($H48,Tabelle!$N$10:$U$58,8,FALSE),0),0) -> 0.000 | CK48: 0 | CL48: =IF(OR($O48>$CK$5,$O48=""),+(CB48+CE48)*Tabelle!$U$56,0) -> 0 | CM48: 0 | CN48: =IF(OR($O48>$CK$5,$O48=""),+(CD48+CF48)*Tabelle!$U$56,0) -> 0 | CO48: 0 | CP48: 0 | CQ48: 0 | CR48: 0 | CT48: =+IFERROR(IF($H48<=CU$5,VLOOKUP($H48,Tabelle!$N$10:$V$58,9,FALSE),0),0) -> 0.000 | CU48: 0 | CV48: =IF(OR($O48>CU$5,$O48=""),(CL48+CO48)*Tabelle!$V$57,0) -> 0 | CW48: 0 | CX48: =IF(OR($O48>CU$5,$O48=""),(CN48+CP48)*Tabelle!$V$57,0) -> 0 | CY48: 0 | CZ48: 0 | DA48: 0 | DB48: 0 | DD48: =+IFERROR(IF($H48<=DE$5,VLOOKUP($H48,Tabelle!$N$10:$W$59,10,FALSE),0),0) -> 0.000 | DE48: 0 | DF48: =IF(OR($O48>DE$5,$O48=""),+(CV48+CY48)*Tabelle!$W$58,0) -> 0 | DG48: 0 | DH48: =IF(OR($O48>DE$5,$O48=""),+(CX48+CZ48)*Tabelle!$W$58,0) -> 0 | DI48: 0 | DJ48: 0 | DK48: 0 | DL48: 0 | DN48: =+IFERROR(IF($H48<=DO$5,VLOOKUP($H48,Tabelle!$N$10:$X$60,11,FALSE),0),0) -> 0.000 | DO48: 0 | DP48: =IF(OR($O48>DO$5,$O48=""),+(DF48+DI48)*Tabelle!$X$59,0) -> 0 | DQ48: 0 | DR48: =IF(OR($O48>DO$5,$O48=""),+(DH48+DJ48)*Tabelle!$X$59,0) -> 0 | DS48: 0 | DT48: 0 | DU48: 0 | DV48: 0 | DX48: =+IFERROR(IF($H48<=DY$5,VLOOKUP($H48,Tabelle!$N$10:$Y$61,12,FALSE),0),0) -> 0.000 | DY48: 0 | DZ48: =IF(OR($O48>DY$5,$O48=""),+(DP48+DS48)*Tabelle!$Y$60,0) -> 0 | EA48: 0 | EB48: =IF(OR($O48>DY$5,$O48=""),+(DR48+DT48)*Tabelle!$Y$60,0) -> 0 | EC48: 0 | ED48: 0 | EE48: 0 | EF48: 0 | EH48: =+IFERROR(IF($H48<=EI$5,VLOOKUP($H48,Tabelle!$N$10:$Z$62,13,FALSE),0),0) -> 0.000 | EI48: 0 | EJ48: =IF(OR($O48>EI$5,$O48=""),+(DZ48+EC48)*Tabelle!$Z$61,0) -> 0 | EK48: 0 | EL48: =IF(OR($O48>EI$5,$O48=""),+(EB48+ED48)*Tabelle!$Z$61,0) -> 0 | EM48: 0 | EN48: 0 | EO48: 0 | EP48: 0
D49: =++IFERROR(INDEX(Tabelle!$H$11:$H$16,MATCH(IN_Cespiti!E49,Tabelle!$I$11:$I$16,0)),"") ->  | F49: =++IFERROR(INDEX(Tabelle!$C$10:$C$44,MATCH(IN_Cespiti!G49,Tabelle!$E$10:$E$44,0)),"") ->  | Q49: =IF($D49=3,$M49,+IFERROR(VLOOKUP(CONCATENATE(D49,".",F49),Tabelle!$D$10:$F$44,3,),"")) ->  | T49: =+IF(R49="",Q49,+IF(R49=Tabelle!$B$105,IN_Cespiti!Q49,IF(OR(R49=Tabelle!$B$103,R49=Tabelle!$B$104),IN_Cespiti!S49,0))) ->  | W49: =+IF(U49="",T49,+IF(U49=Tabelle!$B$105,IN_Cespiti!T49,IF(OR(U49=Tabelle!$B$103,U49=Tabelle!$B$104),IN_Cespiti!V49,0))) ->  | Z49: =+IF(OR(X49="",X49=Tabelle!$B$105),W49,Y49) ->  | AB49: =+IFERROR(IF($H49<=2017,VLOOKUP($H49,Tabelle!$N$10:$O$58,2,FALSE),0),0) -> 0.000 | AC49: 0 | AD49: 0 | AE49: 0 | AF49: 0 | AG49: 0 | AH49: 0 | AI49: 0 | AJ49: 0 | AL49: =+IFERROR(IF($H49<=AM$5,VLOOKUP($H49,Tabelle!$N$10:$P$58,3,FALSE),0),0) -> 0.000 | AM49: 0 | AN49: =IF(OR($O49>$AM$5,$O49=""),(AD49+AG49)*Tabelle!$P$51,0) -> 0 | AO49: 0 | AP49: =IF(OR($O49>$AM$5,$O49=""),(AF49+AH49)*Tabelle!$P$51,0) -> 0 | AQ49: 0 | AR49: 0 | AS49: 0 | AT49: 0 | AV49: =+IFERROR(IF($H49<=AW$5,VLOOKUP($H49,Tabelle!$N$10:$Q$58,4,FALSE),0),0) -> 0.000 | AW49: 0 | AX49: =IF(OR($O49>$AW$5,$O49=""),(AN49+AQ49)*Tabelle!$Q$52,0) -> 0 | AY49: 0 | AZ49: =IF(OR($O49>$AW$5,$O49=""),(AP49+AR49)*Tabelle!$Q$52,0) -> 0 | BA49: 0 | BB49: 0 | BC49: 0 | BD49: 0 | BF49: =+IFERROR(IF($H49<=BG$5,VLOOKUP($H49,Tabelle!$N$10:$R$58,5,FALSE),0),0) -> 0.000 | BG49: 0 | BH49: =IF(OR($O49>$BG$5,$O49=""),(AX49+BA49)*Tabelle!$R$53,0) -> 0 | BI49: 0 | BJ49: =IF(OR($O49>$BG$5,$O49=""),(AZ49+BB49)*Tabelle!$R$53,0) -> 0 | BK49: 0 | BL49: 0 | BM49: 0 | BN49: 0 | BP49: =+IFERROR(IF($H49<=BQ$5,VLOOKUP($H49,Tabelle!$N$10:$S$58,6,FALSE),0),0) -> 0.000 | BQ49: 0 | BR49: =IF(OR($O49>$BQ$5,$O49=""),(BH49+BK49)*Tabelle!$S$54,0) -> 0 | BS49: 0 | BT49: =IF(OR($O49>$BQ$5,$O49=""),(BJ49+BL49)*Tabelle!$S$54,0) -> 0 | BU49: 0 | BV49: 0 | BW49: 0 | BX49: 0 | BZ49: =+IFERROR(IF($H49<=CA$5,VLOOKUP($H49,Tabelle!$N$10:$T$58,7,FALSE),0),0) -> 0.000 | CA49: 0 | CB49: =IF(OR($O49>$CA$5,$O49=""),+(BR49+BU49)*Tabelle!$T$55,0) -> 0 | CC49: 0 | CD49: =IF(OR($O49>$CA$5,$O49=""),+(BT49+BV49)*Tabelle!$T$55,0) -> 0 | CE49: 0 | CF49: 0 | CG49: 0 | CH49: 0 | CJ49: =+IFERROR(IF($H49<=CK$5,VLOOKUP($H49,Tabelle!$N$10:$U$58,8,FALSE),0),0) -> 0.000 | CK49: 0 | CL49: =IF(OR($O49>$CK$5,$O49=""),+(CB49+CE49)*Tabelle!$U$56,0) -> 0 | CM49: 0 | CN49: =IF(OR($O49>$CK$5,$O49=""),+(CD49+CF49)*Tabelle!$U$56,0) -> 0 | CO49: 0 | CP49: 0 | CQ49: 0 | CR49: 0 | CT49: =+IFERROR(IF($H49<=CU$5,VLOOKUP($H49,Tabelle!$N$10:$V$58,9,FALSE),0),0) -> 0.000 | CU49: 0 | CV49: =IF(OR($O49>CU$5,$O49=""),(CL49+CO49)*Tabelle!$V$57,0) -> 0 | CW49: 0 | CX49: =IF(OR($O49>CU$5,$O49=""),(CN49+CP49)*Tabelle!$V$57,0) -> 0 | CY49: 0 | CZ49: 0 | DA49: 0 | DB49: 0 | DD49: =+IFERROR(IF($H49<=DE$5,VLOOKUP($H49,Tabelle!$N$10:$W$59,10,FALSE),0),0) -> 0.000 | DE49: 0 | DF49: =IF(OR($O49>DE$5,$O49=""),+(CV49+CY49)*Tabelle!$W$58,0) -> 0 | DG49: 0 | DH49: =IF(OR($O49>DE$5,$O49=""),+(CX49+CZ49)*Tabelle!$W$58,0) -> 0 | DI49: 0 | DJ49: 0 | DK49: 0 | DL49: 0 | DN49: =+IFERROR(IF($H49<=DO$5,VLOOKUP($H49,Tabelle!$N$10:$X$60,11,FALSE),0),0) -> 0.000 | DO49: 0 | DP49: =IF(OR($O49>DO$5,$O49=""),+(DF49+DI49)*Tabelle!$X$59,0) -> 0 | DQ49: 0 | DR49: =IF(OR($O49>DO$5,$O49=""),+(DH49+DJ49)*Tabelle!$X$59,0) -> 0 | DS49: 0 | DT49: 0 | DU49: 0 | DV49: 0 | DX49: =+IFERROR(IF($H49<=DY$5,VLOOKUP($H49,Tabelle!$N$10:$Y$61,12,FALSE),0),0) -> 0.000 | DY49: 0 | DZ49: =IF(OR($O49>DY$5,$O49=""),+(DP49+DS49)*Tabelle!$Y$60,0) -> 0 | EA49: 0 | EB49: =IF(OR($O49>DY$5,$O49=""),+(DR49+DT49)*Tabelle!$Y$60,0) -> 0 | EC49: 0 | ED49: 0 | EE49: 0 | EF49: 0 | EH49: =+IFERROR(IF($H49<=EI$5,VLOOKUP($H49,Tabelle!$N$10:$Z$62,13,FALSE),0),0) -> 0.000 | EI49: 0 | EJ49: =IF(OR($O49>EI$5,$O49=""),+(DZ49+EC49)*Tabelle!$Z$61,0) -> 0 | EK49: 0 | EL49: =IF(OR($O49>EI$5,$O49=""),+(EB49+ED49)*Tabelle!$Z$61,0) -> 0 | EM49: 0 | EN49: 0 | EO49: 0 | EP49: 0
D50: =++IFERROR(INDEX(Tabelle!$H$11:$H$16,MATCH(IN_Cespiti!E50,Tabelle!$I$11:$I$16,0)),"") ->  | F50: =++IFERROR(INDEX(Tabelle!$C$10:$C$44,MATCH(IN_Cespiti!G50,Tabelle!$E$10:$E$44,0)),"") ->  | Q50: =IF($D50=3,$M50,+IFERROR(VLOOKUP(CONCATENATE(D50,".",F50),Tabelle!$D$10:$F$44,3,),"")) ->  | T50: =+IF(R50="",Q50,+IF(R50=Tabelle!$B$105,IN_Cespiti!Q50,IF(OR(R50=Tabelle!$B$103,R50=Tabelle!$B$104),IN_Cespiti!S50,0))) ->  | W50: =+IF(U50="",T50,+IF(U50=Tabelle!$B$105,IN_Cespiti!T50,IF(OR(U50=Tabelle!$B$103,U50=Tabelle!$B$104),IN_Cespiti!V50,0))) ->  | Z50: =+IF(OR(X50="",X50=Tabelle!$B$105),W50,Y50) ->  | AB50: =+IFERROR(IF($H50<=2017,VLOOKUP($H50,Tabelle!$N$10:$O$58,2,FALSE),0),0) -> 0.000 | AC50: 0 | AD50: 0 | AE50: 0 | AF50: 0 | AG50: 0 | AH50: 0 | AI50: 0 | AJ50: 0 | AL50: =+IFERROR(IF($H50<=AM$5,VLOOKUP($H50,Tabelle!$N$10:$P$58,3,FALSE),0),0) -> 0.000 | AM50: 0 | AN50: =IF(OR($O50>$AM$5,$O50=""),(AD50+AG50)*Tabelle!$P$51,0) -> 0 | AO50: 0 | AP50: =IF(OR($O50>$AM$5,$O50=""),(AF50+AH50)*Tabelle!$P$51,0) -> 0 | AQ50: 0 | AR50: 0 | AS50: 0 | AT50: 0 | AV50: =+IFERROR(IF($H50<=AW$5,VLOOKUP($H50,Tabelle!$N$10:$Q$58,4,FALSE),0),0) -> 0.000 | AW50: 0 | AX50: =IF(OR($O50>$AW$5,$O50=""),(AN50+AQ50)*Tabelle!$Q$52,0) -> 0 | AY50: 0 | AZ50: =IF(OR($O50>$AW$5,$O50=""),(AP50+AR50)*Tabelle!$Q$52,0) -> 0 | BA50: 0 | BB50: 0 | BC50: 0 | BD50: 0 | BF50: =+IFERROR(IF($H50<=BG$5,VLOOKUP($H50,Tabelle!$N$10:$R$58,5,FALSE),0),0) -> 0.000 | BG50: 0 | BH50: =IF(OR($O50>$BG$5,$O50=""),(AX50+BA50)*Tabelle!$R$53,0) -> 0 | BI50: 0 | BJ50: =IF(OR($O50>$BG$5,$O50=""),(AZ50+BB50)*Tabelle!$R$53,0) -> 0 | BK50: 0 | BL50: 0 | BM50: 0 | BN50: 0 | BP50: =+IFERROR(IF($H50<=BQ$5,VLOOKUP($H50,Tabelle!$N$10:$S$58,6,FALSE),0),0) -> 0.000 | BQ50: 0 | BR50: =IF(OR($O50>$BQ$5,$O50=""),(BH50+BK50)*Tabelle!$S$54,0) -> 0 | BS50: 0 | BT50: =IF(OR($O50>$BQ$5,$O50=""),(BJ50+BL50)*Tabelle!$S$54,0) -> 0 | BU50: 0 | BV50: 0 | BW50: 0 | BX50: 0 | BZ50: =+IFERROR(IF($H50<=CA$5,VLOOKUP($H50,Tabelle!$N$10:$T$58,7,FALSE),0),0) -> 0.000 | CA50: 0 | CB50: =IF(OR($O50>$CA$5,$O50=""),+(BR50+BU50)*Tabelle!$T$55,0) -> 0 | CC50: 0 | CD50: =IF(OR($O50>$CA$5,$O50=""),+(BT50+BV50)*Tabelle!$T$55,0) -> 0 | CE50: 0 | CF50: 0 | CG50: 0 | CH50: 0 | CJ50: =+IFERROR(IF($H50<=CK$5,VLOOKUP($H50,Tabelle!$N$10:$U$58,8,FALSE),0),0) -> 0.000 | CK50: 0 | CL50: =IF(OR($O50>$CK$5,$O50=""),+(CB50+CE50)*Tabelle!$U$56,0) -> 0 | CM50: 0 | CN50: =IF(OR($O50>$CK$5,$O50=""),+(CD50+CF50)*Tabelle!$U$56,0) -> 0 | CO50: 0 | CP50: 0 | CQ50: 0 | CR50: 0 | CT50: =+IFERROR(IF($H50<=CU$5,VLOOKUP($H50,Tabelle!$N$10:$V$58,9,FALSE),0),0) -> 0.000 | CU50: 0 | CV50: =IF(OR($O50>CU$5,$O50=""),(CL50+CO50)*Tabelle!$V$57,0) -> 0 | CW50: 0 | CX50: =IF(OR($O50>CU$5,$O50=""),(CN50+CP50)*Tabelle!$V$57,0) -> 0 | CY50: 0 | CZ50: 0 | DA50: 0 | DB50: 0 | DD50: =+IFERROR(IF($H50<=DE$5,VLOOKUP($H50,Tabelle!$N$10:$W$59,10,FALSE),0),0) -> 0.000 | DE50: 0 | DF50: =IF(OR($O50>DE$5,$O50=""),+(CV50+CY50)*Tabelle!$W$58,0) -> 0 | DG50: 0 | DH50: =IF(OR($O50>DE$5,$O50=""),+(CX50+CZ50)*Tabelle!$W$58,0) -> 0 | DI50: 0 | DJ50: 0 | DK50: 0 | DL50: 0 | DN50: =+IFERROR(IF($H50<=DO$5,VLOOKUP($H50,Tabelle!$N$10:$X$60,11,FALSE),0),0) -> 0.000 | DO50: 0 | DP50: =IF(OR($O50>DO$5,$O50=""),+(DF50+DI50)*Tabelle!$X$59,0) -> 0 | DQ50: 0 | DR50: =IF(OR($O50>DO$5,$O50=""),+(DH50+DJ50)*Tabelle!$X$59,0) -> 0 | DS50: 0 | DT50: 0 | DU50: 0 | DV50: 0 | DX50: =+IFERROR(IF($H50<=DY$5,VLOOKUP($H50,Tabelle!$N$10:$Y$61,12,FALSE),0),0) -> 0.000 | DY50: 0 | DZ50: =IF(OR($O50>DY$5,$O50=""),+(DP50+DS50)*Tabelle!$Y$60,0) -> 0 | EA50: 0 | EB50: =IF(OR($O50>DY$5,$O50=""),+(DR50+DT50)*Tabelle!$Y$60,0) -> 0 | EC50: 0 | ED50: 0 | EE50: 0 | EF50: 0 | EH50: =+IFERROR(IF($H50<=EI$5,VLOOKUP($H50,Tabelle!$N$10:$Z$62,13,FALSE),0),0) -> 0.000 | EI50: 0 | EJ50: =IF(OR($O50>EI$5,$O50=""),+(DZ50+EC50)*Tabelle!$Z$61,0) -> 0 | EK50: 0 | EL50: =IF(OR($O50>EI$5,$O50=""),+(EB50+ED50)*Tabelle!$Z$61,0) -> 0 | EM50: 0 | EN50: 0 | EO50: 0 | EP50: 0
D51: =++IFERROR(INDEX(Tabelle!$H$11:$H$16,MATCH(IN_Cespiti!E51,Tabelle!$I$11:$I$16,0)),"") ->  | F51: =++IFERROR(INDEX(Tabelle!$C$10:$C$44,MATCH(IN_Cespiti!G51,Tabelle!$E$10:$E$44,0)),"") ->  | Q51: =IF($D51=3,$M51,+IFERROR(VLOOKUP(CONCATENATE(D51,".",F51),Tabelle!$D$10:$F$44,3,),"")) ->  | T51: =+IF(R51="",Q51,+IF(R51=Tabelle!$B$105,IN_Cespiti!Q51,IF(OR(R51=Tabelle!$B$103,R51=Tabelle!$B$104),IN_Cespiti!S51,0))) ->  | W51: =+IF(U51="",T51,+IF(U51=Tabelle!$B$105,IN_Cespiti!T51,IF(OR(U51=Tabelle!$B$103,U51=Tabelle!$B$104),IN_Cespiti!V51,0))) ->  | Z51: =+IF(OR(X51="",X51=Tabelle!$B$105),W51,Y51) ->  | AB51: =+IFERROR(IF($H51<=2017,VLOOKUP($H51,Tabelle!$N$10:$O$58,2,FALSE),0),0) -> 0.000 | AC51: 0 | AD51: 0 | AE51: 0 | AF51: 0 | AG51: 0 | AH51: 0 | AI51: 0 | AJ51: 0 | AL51: =+IFERROR(IF($H51<=AM$5,VLOOKUP($H51,Tabelle!$N$10:$P$58,3,FALSE),0),0) -> 0.000 | AM51: 0 | AN51: =IF(OR($O51>$AM$5,$O51=""),(AD51+AG51)*Tabelle!$P$51,0) -> 0 | AO51: 0 | AP51: =IF(OR($O51>$AM$5,$O51=""),(AF51+AH51)*Tabelle!$P$51,0) -> 0 | AQ51: 0 | AR51: 0 | AS51: 0 | AT51: 0 | AV51: =+IFERROR(IF($H51<=AW$5,VLOOKUP($H51,Tabelle!$N$10:$Q$58,4,FALSE),0),0) -> 0.000 | AW51: 0 | AX51: =IF(OR($O51>$AW$5,$O51=""),(AN51+AQ51)*Tabelle!$Q$52,0) -> 0 | AY51: 0 | AZ51: =IF(OR($O51>$AW$5,$O51=""),(AP51+AR51)*Tabelle!$Q$52,0) -> 0 | BA51: 0 | BB51: 0 | BC51: 0 | BD51: 0 | BF51: =+IFERROR(IF($H51<=BG$5,VLOOKUP($H51,Tabelle!$N$10:$R$58,5,FALSE),0),0) -> 0.000 | BG51: 0 | BH51: =IF(OR($O51>$BG$5,$O51=""),(AX51+BA51)*Tabelle!$R$53,0) -> 0 | BI51: 0 | BJ51: =IF(OR($O51>$BG$5,$O51=""),(AZ51+BB51)*Tabelle!$R$53,0) -> 0 | BK51: 0 | BL51: 0 | BM51: 0 | BN51: 0 | BP51: =+IFERROR(IF($H51<=BQ$5,VLOOKUP($H51,Tabelle!$N$10:$S$58,6,FALSE),0),0) -> 0.000 | BQ51: 0 | BR51: =IF(OR($O51>$BQ$5,$O51=""),(BH51+BK51)*Tabelle!$S$54,0) -> 0 | BS51: 0 | BT51: =IF(OR($O51>$BQ$5,$O51=""),(BJ51+BL51)*Tabelle!$S$54,0) -> 0 | BU51: 0 | BV51: 0 | BW51: 0 | BX51: 0 | BZ51: =+IFERROR(IF($H51<=CA$5,VLOOKUP($H51,Tabelle!$N$10:$T$58,7,FALSE),0),0) -> 0.000 | CA51: 0 | CB51: =IF(OR($O51>$CA$5,$O51=""),+(BR51+BU51)*Tabelle!$T$55,0) -> 0 | CC51: 0 | CD51: =IF(OR($O51>$CA$5,$O51=""),+(BT51+BV51)*Tabelle!$T$55,0) -> 0 | CE51: 0 | CF51: 0 | CG51: 0 | CH51: 0 | CJ51: =+IFERROR(IF($H51<=CK$5,VLOOKUP($H51,Tabelle!$N$10:$U$58,8,FALSE),0),0) -> 0.000 | CK51: 0 | CL51: =IF(OR($O51>$CK$5,$O51=""),+(CB51+CE51)*Tabelle!$U$56,0) -> 0 | CM51: 0 | CN51: =IF(OR($O51>$CK$5,$O51=""),+(CD51+CF51)*Tabelle!$U$56,0) -> 0 | CO51: 0 | CP51: 0 | CQ51: 0 | CR51: 0 | CT51: =+IFERROR(IF($H51<=CU$5,VLOOKUP($H51,Tabelle!$N$10:$V$58,9,FALSE),0),0) -> 0.000 | CU51: 0 | CV51: =IF(OR($O51>CU$5,$O51=""),(CL51+CO51)*Tabelle!$V$57,0) -> 0 | CW51: 0 | CX51: =IF(OR($O51>CU$5,$O51=""),(CN51+CP51)*Tabelle!$V$57,0) -> 0 | CY51: 0 | CZ51: 0 | DA51: 0 | DB51: 0 | DD51: =+IFERROR(IF($H51<=DE$5,VLOOKUP($H51,Tabelle!$N$10:$W$59,10,FALSE),0),0) -> 0.000 | DE51: 0 | DF51: =IF(OR($O51>DE$5,$O51=""),+(CV51+CY51)*Tabelle!$W$58,0) -> 0 | DG51: 0 | DH51: =IF(OR($O51>DE$5,$O51=""),+(CX51+CZ51)*Tabelle!$W$58,0) -> 0 | DI51: 0 | DJ51: 0 | DK51: 0 | DL51: 0 | DN51: =+IFERROR(IF($H51<=DO$5,VLOOKUP($H51,Tabelle!$N$10:$X$60,11,FALSE),0),0) -> 0.000 | DO51: 0 | DP51: =IF(OR($O51>DO$5,$O51=""),+(DF51+DI51)*Tabelle!$X$59,0) -> 0 | DQ51: 0 | DR51: =IF(OR($O51>DO$5,$O51=""),+(DH51+DJ51)*Tabelle!$X$59,0) -> 0 | DS51: 0 | DT51: 0 | DU51: 0 | DV51: 0 | DX51: =+IFERROR(IF($H51<=DY$5,VLOOKUP($H51,Tabelle!$N$10:$Y$61,12,FALSE),0),0) -> 0.000 | DY51: 0 | DZ51: =IF(OR($O51>DY$5,$O51=""),+(DP51+DS51)*Tabelle!$Y$60,0) -> 0 | EA51: 0 | EB51: =IF(OR($O51>DY$5,$O51=""),+(DR51+DT51)*Tabelle!$Y$60,0) -> 0 | EC51: 0 | ED51: 0 | EE51: 0 | EF51: 0 | EH51: =+IFERROR(IF($H51<=EI$5,VLOOKUP($H51,Tabelle!$N$10:$Z$62,13,FALSE),0),0) -> 0.000 | EI51: 0 | EJ51: =IF(OR($O51>EI$5,$O51=""),+(DZ51+EC51)*Tabelle!$Z$61,0) -> 0 | EK51: 0 | EL51: =IF(OR($O51>EI$5,$O51=""),+(EB51+ED51)*Tabelle!$Z$61,0) -> 0 | EM51: 0 | EN51: 0 | EO51: 0 | EP51: 0
D52: =++IFERROR(INDEX(Tabelle!$H$11:$H$16,MATCH(IN_Cespiti!E52,Tabelle!$I$11:$I$16,0)),"") ->  | F52: =++IFERROR(INDEX(Tabelle!$C$10:$C$44,MATCH(IN_Cespiti!G52,Tabelle!$E$10:$E$44,0)),"") ->  | Q52: =IF($D52=3,$M52,+IFERROR(VLOOKUP(CONCATENATE(D52,".",F52),Tabelle!$D$10:$F$44,3,),"")) ->  | T52: =+IF(R52="",Q52,+IF(R52=Tabelle!$B$105,IN_Cespiti!Q52,IF(OR(R52=Tabelle!$B$103,R52=Tabelle!$B$104),IN_Cespiti!S52,0))) ->  | W52: =+IF(U52="",T52,+IF(U52=Tabelle!$B$105,IN_Cespiti!T52,IF(OR(U52=Tabelle!$B$103,U52=Tabelle!$B$104),IN_Cespiti!V52,0))) ->  | Z52: =+IF(OR(X52="",X52=Tabelle!$B$105),W52,Y52) ->  | AB52: =+IFERROR(IF($H52<=2017,VLOOKUP($H52,Tabelle!$N$10:$O$58,2,FALSE),0),0) -> 0.000 | AC52: 0 | AD52: 0 | AE52: 0 | AF52: 0 | AG52: 0 | AH52: 0 | AI52: 0 | AJ52: 0 | AL52: =+IFERROR(IF($H52<=AM$5,VLOOKUP($H52,Tabelle!$N$10:$P$58,3,FALSE),0),0) -> 0.000 | AM52: 0 | AN52: =IF(OR($O52>$AM$5,$O52=""),(AD52+AG52)*Tabelle!$P$51,0) -> 0 | AO52: 0 | AP52: =IF(OR($O52>$AM$5,$O52=""),(AF52+AH52)*Tabelle!$P$51,0) -> 0 | AQ52: 0 | AR52: 0 | AS52: 0 | AT52: 0 | AV52: =+IFERROR(IF($H52<=AW$5,VLOOKUP($H52,Tabelle!$N$10:$Q$58,4,FALSE),0),0) -> 0.000 | AW52: 0 | AX52: =IF(OR($O52>$AW$5,$O52=""),(AN52+AQ52)*Tabelle!$Q$52,0) -> 0 | AY52: 0 | AZ52: =IF(OR($O52>$AW$5,$O52=""),(AP52+AR52)*Tabelle!$Q$52,0) -> 0 | BA52: 0 | BB52: 0 | BC52: 0 | BD52: 0 | BF52: =+IFERROR(IF($H52<=BG$5,VLOOKUP($H52,Tabelle!$N$10:$R$58,5,FALSE),0),0) -> 0.000 | BG52: 0 | BH52: =IF(OR($O52>$BG$5,$O52=""),(AX52+BA52)*Tabelle!$R$53,0) -> 0 | BI52: 0 | BJ52: =IF(OR($O52>$BG$5,$O52=""),(AZ52+BB52)*Tabelle!$R$53,0) -> 0 | BK52: 0 | BL52: 0 | BM52: 0 | BN52: 0 | BP52: =+IFERROR(IF($H52<=BQ$5,VLOOKUP($H52,Tabelle!$N$10:$S$58,6,FALSE),0),0) -> 0.000 | BQ52: 0 | BR52: =IF(OR($O52>$BQ$5,$O52=""),(BH52+BK52)*Tabelle!$S$54,0) -> 0 | BS52: 0 | BT52: =IF(OR($O52>$BQ$5,$O52=""),(BJ52+BL52)*Tabelle!$S$54,0) -> 0 | BU52: 0 | BV52: 0 | BW52: 0 | BX52: 0 | BZ52: =+IFERROR(IF($H52<=CA$5,VLOOKUP($H52,Tabelle!$N$10:$T$58,7,FALSE),0),0) -> 0.000 | CA52: 0 | CB52: =IF(OR($O52>$CA$5,$O52=""),+(BR52+BU52)*Tabelle!$T$55,0) -> 0 | CC52: 0 | CD52: =IF(OR($O52>$CA$5,$O52=""),+(BT52+BV52)*Tabelle!$T$55,0) -> 0 | CE52: 0 | CF52: 0 | CG52: 0 | CH52: 0 | CJ52: =+IFERROR(IF($H52<=CK$5,VLOOKUP($H52,Tabelle!$N$10:$U$58,8,FALSE),0),0) -> 0.000 | CK52: 0 | CL52: =IF(OR($O52>$CK$5,$O52=""),+(CB52+CE52)*Tabelle!$U$56,0) -> 0 | CM52: 0 | CN52: =IF(OR($O52>$CK$5,$O52=""),+(CD52+CF52)*Tabelle!$U$56,0) -> 0 | CO52: 0 | CP52: 0 | CQ52: 0 | CR52: 0 | CT52: =+IFERROR(IF($H52<=CU$5,VLOOKUP($H52,Tabelle!$N$10:$V$58,9,FALSE),0),0) -> 0.000 | CU52: 0 | CV52: =IF(OR($O52>CU$5,$O52=""),(CL52+CO52)*Tabelle!$V$57,0) -> 0 | CW52: 0 | CX52: =IF(OR($O52>CU$5,$O52=""),(CN52+CP52)*Tabelle!$V$57,0) -> 0 | CY52: 0 | CZ52: 0 | DA52: 0 | DB52: 0 | DD52: =+IFERROR(IF($H52<=DE$5,VLOOKUP($H52,Tabelle!$N$10:$W$59,10,FALSE),0),0) -> 0.000 | DE52: 0 | DF52: =IF(OR($O52>DE$5,$O52=""),+(CV52+CY52)*Tabelle!$W$58,0) -> 0 | DG52: 0 | DH52: =IF(OR($O52>DE$5,$O52=""),+(CX52+CZ52)*Tabelle!$W$58,0) -> 0 | DI52: 0 | DJ52: 0 | DK52: 0 | DL52: 0 | DN52: =+IFERROR(IF($H52<=DO$5,VLOOKUP($H52,Tabelle!$N$10:$X$60,11,FALSE),0),0) -> 0.000 | DO52: 0 | DP52: =IF(OR($O52>DO$5,$O52=""),+(DF52+DI52)*Tabelle!$X$59,0) -> 0 | DQ52: 0 | DR52: =IF(OR($O52>DO$5,$O52=""),+(DH52+DJ52)*Tabelle!$X$59,0) -> 0 | DS52: 0 | DT52: 0 | DU52: 0 | DV52: 0 | DX52: =+IFERROR(IF($H52<=DY$5,VLOOKUP($H52,Tabelle!$N$10:$Y$61,12,FALSE),0),0) -> 0.000 | DY52: 0 | DZ52: =IF(OR($O52>DY$5,$O52=""),+(DP52+DS52)*Tabelle!$Y$60,0) -> 0 | EA52: 0 | EB52: =IF(OR($O52>DY$5,$O52=""),+(DR52+DT52)*Tabelle!$Y$60,0) -> 0 | EC52: 0 | ED52: 0 | EE52: 0 | EF52: 0 | EH52: =+IFERROR(IF($H52<=EI$5,VLOOKUP($H52,Tabelle!$N$10:$Z$62,13,FALSE),0),0) -> 0.000 | EI52: 0 | EJ52: =IF(OR($O52>EI$5,$O52=""),+(DZ52+EC52)*Tabelle!$Z$61,0) -> 0 | EK52: 0 | EL52: =IF(OR($O52>EI$5,$O52=""),+(EB52+ED52)*Tabelle!$Z$61,0) -> 0 | EM52: 0 | EN52: 0 | EO52: 0 | EP52: 0
D53: =++IFERROR(INDEX(Tabelle!$H$11:$H$16,MATCH(IN_Cespiti!E53,Tabelle!$I$11:$I$16,0)),"") ->  | F53: =++IFERROR(INDEX(Tabelle!$C$10:$C$44,MATCH(IN_Cespiti!G53,Tabelle!$E$10:$E$44,0)),"") ->  | Q53: =IF($D53=3,$M53,+IFERROR(VLOOKUP(CONCATENATE(D53,".",F53),Tabelle!$D$10:$F$44,3,),"")) ->  | T53: =+IF(R53="",Q53,+IF(R53=Tabelle!$B$105,IN_Cespiti!Q53,IF(OR(R53=Tabelle!$B$103,R53=Tabelle!$B$104),IN_Cespiti!S53,0))) ->  | W53: =+IF(U53="",T53,+IF(U53=Tabelle!$B$105,IN_Cespiti!T53,IF(OR(U53=Tabelle!$B$103,U53=Tabelle!$B$104),IN_Cespiti!V53,0))) ->  | Z53: =+IF(OR(X53="",X53=Tabelle!$B$105),W53,Y53) ->  | AB53: =+IFERROR(IF($H53<=2017,VLOOKUP($H53,Tabelle!$N$10:$O$58,2,FALSE),0),0) -> 0.000 | AC53: 0 | AD53: 0 | AE53: 0 | AF53: 0 | AG53: 0 | AH53: 0 | AI53: 0 | AJ53: 0 | AL53: =+IFERROR(IF($H53<=AM$5,VLOOKUP($H53,Tabelle!$N$10:$P$58,3,FALSE),0),0) -> 0.000 | AM53: 0 | AN53: =IF(OR($O53>$AM$5,$O53=""),(AD53+AG53)*Tabelle!$P$51,0) -> 0 | AO53: 0 | AP53: =IF(OR($O53>$AM$5,$O53=""),(AF53+AH53)*Tabelle!$P$51,0) -> 0 | AQ53: 0 | AR53: 0 | AS53: 0 | AT53: 0 | AV53: =+IFERROR(IF($H53<=AW$5,VLOOKUP($H53,Tabelle!$N$10:$Q$58,4,FALSE),0),0) -> 0.000 | AW53: 0 | AX53: =IF(OR($O53>$AW$5,$O53=""),(AN53+AQ53)*Tabelle!$Q$52,0) -> 0 | AY53: 0 | AZ53: =IF(OR($O53>$AW$5,$O53=""),(AP53+AR53)*Tabelle!$Q$52,0) -> 0 | BA53: 0 | BB53: 0 | BC53: 0 | BD53: 0 | BF53: =+IFERROR(IF($H53<=BG$5,VLOOKUP($H53,Tabelle!$N$10:$R$58,5,FALSE),0),0) -> 0.000 | BG53: 0 | BH53: =IF(OR($O53>$BG$5,$O53=""),(AX53+BA53)*Tabelle!$R$53,0) -> 0 | BI53: 0 | BJ53: =IF(OR($O53>$BG$5,$O53=""),(AZ53+BB53)*Tabelle!$R$53,0) -> 0 | BK53: 0 | BL53: 0 | BM53: 0 | BN53: 0 | BP53: =+IFERROR(IF($H53<=BQ$5,VLOOKUP($H53,Tabelle!$N$10:$S$58,6,FALSE),0),0) -> 0.000 | BQ53: 0 | BR53: =IF(OR($O53>$BQ$5,$O53=""),(BH53+BK53)*Tabelle!$S$54,0) -> 0 | BS53: 0 | BT53: =IF(OR($O53>$BQ$5,$O53=""),(BJ53+BL53)*Tabelle!$S$54,0) -> 0 | BU53: 0 | BV53: 0 | BW53: 0 | BX53: 0 | BZ53: =+IFERROR(IF($H53<=CA$5,VLOOKUP($H53,Tabelle!$N$10:$T$58,7,FALSE),0),0) -> 0.000 | CA53: 0 | CB53: =IF(OR($O53>$CA$5,$O53=""),+(BR53+BU53)*Tabelle!$T$55,0) -> 0 | CC53: 0 | CD53: =IF(OR($O53>$CA$5,$O53=""),+(BT53+BV53)*Tabelle!$T$55,0) -> 0 | CE53: 0 | CF53: 0 | CG53: 0 | CH53: 0 | CJ53: =+IFERROR(IF($H53<=CK$5,VLOOKUP($H53,Tabelle!$N$10:$U$58,8,FALSE),0),0) -> 0.000 | CK53: 0 | CL53: =IF(OR($O53>$CK$5,$O53=""),+(CB53+CE53)*Tabelle!$U$56,0) -> 0 | CM53: 0 | CN53: =IF(OR($O53>$CK$5,$O53=""),+(CD53+CF53)*Tabelle!$U$56,0) -> 0 | CO53: 0 | CP53: 0 | CQ53: 0 | CR53: 0 | CT53: =+IFERROR(IF($H53<=CU$5,VLOOKUP($H53,Tabelle!$N$10:$V$58,9,FALSE),0),0) -> 0.000 | CU53: 0 | CV53: =IF(OR($O53>CU$5,$O53=""),(CL53+CO53)*Tabelle!$V$57,0) -> 0 | CW53: 0 | CX53: =IF(OR($O53>CU$5,$O53=""),(CN53+CP53)*Tabelle!$V$57,0) -> 0 | CY53: 0 | CZ53: 0 | DA53: 0 | DB53: 0 | DD53: =+IFERROR(IF($H53<=DE$5,VLOOKUP($H53,Tabelle!$N$10:$W$59,10,FALSE),0),0) -> 0.000 | DE53: 0 | DF53: =IF(OR($O53>DE$5,$O53=""),+(CV53+CY53)*Tabelle!$W$58,0) -> 0 | DG53: 0 | DH53: =IF(OR($O53>DE$5,$O53=""),+(CX53+CZ53)*Tabelle!$W$58,0) -> 0 | DI53: 0 | DJ53: 0 | DK53: 0 | DL53: 0 | DN53: =+IFERROR(IF($H53<=DO$5,VLOOKUP($H53,Tabelle!$N$10:$X$60,11,FALSE),0),0) -> 0.000 | DO53: 0 | DP53: =IF(OR($O53>DO$5,$O53=""),+(DF53+DI53)*Tabelle!$X$59,0) -> 0 | DQ53: 0 | DR53: =IF(OR($O53>DO$5,$O53=""),+(DH53+DJ53)*Tabelle!$X$59,0) -> 0 | DS53: 0 | DT53: 0 | DU53: 0 | DV53: 0 | DX53: =+IFERROR(IF($H53<=DY$5,VLOOKUP($H53,Tabelle!$N$10:$Y$61,12,FALSE),0),0) -> 0.000 | DY53: 0 | DZ53: =IF(OR($O53>DY$5,$O53=""),+(DP53+DS53)*Tabelle!$Y$60,0) -> 0 | EA53: 0 | EB53: =IF(OR($O53>DY$5,$O53=""),+(DR53+DT53)*Tabelle!$Y$60,0) -> 0 | EC53: 0 | ED53: 0 | EE53: 0 | EF53: 0 | EH53: =+IFERROR(IF($H53<=EI$5,VLOOKUP($H53,Tabelle!$N$10:$Z$62,13,FALSE),0),0) -> 0.000 | EI53: 0 | EJ53: =IF(OR($O53>EI$5,$O53=""),+(DZ53+EC53)*Tabelle!$Z$61,0) -> 0 | EK53: 0 | EL53: =IF(OR($O53>EI$5,$O53=""),+(EB53+ED53)*Tabelle!$Z$61,0) -> 0 | EM53: 0 | EN53: 0 | EO53: 0 | EP53: 0
D54: =++IFERROR(INDEX(Tabelle!$H$11:$H$16,MATCH(IN_Cespiti!E54,Tabelle!$I$11:$I$16,0)),"") ->  | F54: =++IFERROR(INDEX(Tabelle!$C$10:$C$44,MATCH(IN_Cespiti!G54,Tabelle!$E$10:$E$44,0)),"") ->  | Q54: =IF($D54=3,$M54,+IFERROR(VLOOKUP(CONCATENATE(D54,".",F54),Tabelle!$D$10:$F$44,3,),"")) ->  | T54: =+IF(R54="",Q54,+IF(R54=Tabelle!$B$105,IN_Cespiti!Q54,IF(OR(R54=Tabelle!$B$103,R54=Tabelle!$B$104),IN_Cespiti!S54,0))) ->  | W54: =+IF(U54="",T54,+IF(U54=Tabelle!$B$105,IN_Cespiti!T54,IF(OR(U54=Tabelle!$B$103,U54=Tabelle!$B$104),IN_Cespiti!V54,0))) ->  | Z54: =+IF(OR(X54="",X54=Tabelle!$B$105),W54,Y54) ->  | AB54: =+IFERROR(IF($H54<=2017,VLOOKUP($H54,Tabelle!$N$10:$O$58,2,FALSE),0),0) -> 0.000 | AC54: 0 | AD54: 0 | AE54: 0 | AF54: 0 | AG54: 0 | AH54: 0 | AI54: 0 | AJ54: 0 | AL54: =+IFERROR(IF($H54<=AM$5,VLOOKUP($H54,Tabelle!$N$10:$P$58,3,FALSE),0),0) -> 0.000 | AM54: 0 | AN54: =IF(OR($O54>$AM$5,$O54=""),(AD54+AG54)*Tabelle!$P$51,0) -> 0 | AO54: 0 | AP54: =IF(OR($O54>$AM$5,$O54=""),(AF54+AH54)*Tabelle!$P$51,0) -> 0 | AQ54: 0 | AR54: 0 | AS54: 0 | AT54: 0 | AV54: =+IFERROR(IF($H54<=AW$5,VLOOKUP($H54,Tabelle!$N$10:$Q$58,4,FALSE),0),0) -> 0.000 | AW54: 0 | AX54: =IF(OR($O54>$AW$5,$O54=""),(AN54+AQ54)*Tabelle!$Q$52,0) -> 0 | AY54: 0 | AZ54: =IF(OR($O54>$AW$5,$O54=""),(AP54+AR54)*Tabelle!$Q$52,0) -> 0 | BA54: 0 | BB54: 0 | BC54: 0 | BD54: 0 | BF54: =+IFERROR(IF($H54<=BG$5,VLOOKUP($H54,Tabelle!$N$10:$R$58,5,FALSE),0),0) -> 0.000 | BG54: 0 | BH54: =IF(OR($O54>$BG$5,$O54=""),(AX54+BA54)*Tabelle!$R$53,0) -> 0 | BI54: 0 | BJ54: =IF(OR($O54>$BG$5,$O54=""),(AZ54+BB54)*Tabelle!$R$53,0) -> 0 | BK54: 0 | BL54: 0 | BM54: 0 | BN54: 0 | BP54: =+IFERROR(IF($H54<=BQ$5,VLOOKUP($H54,Tabelle!$N$10:$S$58,6,FALSE),0),0) -> 0.000 | BQ54: 0 | BR54: =IF(OR($O54>$BQ$5,$O54=""),(BH54+BK54)*Tabelle!$S$54,0) -> 0 | BS54: 0 | BT54: =IF(OR($O54>$BQ$5,$O54=""),(BJ54+BL54)*Tabelle!$S$54,0) -> 0 | BU54: 0 | BV54: 0 | BW54: 0 | BX54: 0 | BZ54: =+IFERROR(IF($H54<=CA$5,VLOOKUP($H54,Tabelle!$N$10:$T$58,7,FALSE),0),0) -> 0.000 | CA54: 0 | CB54: =IF(OR($O54>$CA$5,$O54=""),+(BR54+BU54)*Tabelle!$T$55,0) -> 0 | CC54: 0 | CD54: =IF(OR($O54>$CA$5,$O54=""),+(BT54+BV54)*Tabelle!$T$55,0) -> 0 | CE54: 0 | CF54: 0 | CG54: 0 | CH54: 0 | CJ54: =+IFERROR(IF($H54<=CK$5,VLOOKUP($H54,Tabelle!$N$10:$U$58,8,FALSE),0),0) -> 0.000 | CK54: 0 | CL54: =IF(OR($O54>$CK$5,$O54=""),+(CB54+CE54)*Tabelle!$U$56,0) -> 0 | CM54: 0 | CN54: =IF(OR($O54>$CK$5,$O54=""),+(CD54+CF54)*Tabelle!$U$56,0) -> 0 | CO54: 0 | CP54: 0 | CQ54: 0 | CR54: 0 | CT54: =+IFERROR(IF($H54<=CU$5,VLOOKUP($H54,Tabelle!$N$10:$V$58,9,FALSE),0),0) -> 0.000 | CU54: 0 | CV54: =IF(OR($O54>CU$5,$O54=""),(CL54+CO54)*Tabelle!$V$57,0) -> 0 | CW54: 0 | CX54: =IF(OR($O54>CU$5,$O54=""),(CN54+CP54)*Tabelle!$V$57,0) -> 0 | CY54: 0 | CZ54: 0 | DA54: 0 | DB54: 0 | DD54: =+IFERROR(IF($H54<=DE$5,VLOOKUP($H54,Tabelle!$N$10:$W$59,10,FALSE),0),0) -> 0.000 | DE54: 0 | DF54: =IF(OR($O54>DE$5,$O54=""),+(CV54+CY54)*Tabelle!$W$58,0) -> 0 | DG54: 0 | DH54: =IF(OR($O54>DE$5,$O54=""),+(CX54+CZ54)*Tabelle!$W$58,0) -> 0 | DI54: 0 | DJ54: 0 | DK54: 0 | DL54: 0 | DN54: =+IFERROR(IF($H54<=DO$5,VLOOKUP($H54,Tabelle!$N$10:$X$60,11,FALSE),0),0) -> 0.000 | DO54: 0 | DP54: =IF(OR($O54>DO$5,$O54=""),+(DF54+DI54)*Tabelle!$X$59,0) -> 0 | DQ54: 0 | DR54: =IF(OR($O54>DO$5,$O54=""),+(DH54+DJ54)*Tabelle!$X$59,0) -> 0 | DS54: 0 | DT54: 0 | DU54: 0 | DV54: 0 | DX54: =+IFERROR(IF($H54<=DY$5,VLOOKUP($H54,Tabelle!$N$10:$Y$61,12,FALSE),0),0) -> 0.000 | DY54: 0 | DZ54: =IF(OR($O54>DY$5,$O54=""),+(DP54+DS54)*Tabelle!$Y$60,0) -> 0 | EA54: 0 | EB54: =IF(OR($O54>DY$5,$O54=""),+(DR54+DT54)*Tabelle!$Y$60,0) -> 0 | EC54: 0 | ED54: 0 | EE54: 0 | EF54: 0 | EH54: =+IFERROR(IF($H54<=EI$5,VLOOKUP($H54,Tabelle!$N$10:$Z$62,13,FALSE),0),0) -> 0.000 | EI54: 0 | EJ54: =IF(OR($O54>EI$5,$O54=""),+(DZ54+EC54)*Tabelle!$Z$61,0) -> 0 | EK54: 0 | EL54: =IF(OR($O54>EI$5,$O54=""),+(EB54+ED54)*Tabelle!$Z$61,0) -> 0 | EM54: 0 | EN54: 0 | EO54: 0 | EP54: 0
D55: =++IFERROR(INDEX(Tabelle!$H$11:$H$16,MATCH(IN_Cespiti!E55,Tabelle!$I$11:$I$16,0)),"") ->  | F55: =++IFERROR(INDEX(Tabelle!$C$10:$C$44,MATCH(IN_Cespiti!G55,Tabelle!$E$10:$E$44,0)),"") ->  | Q55: =IF($D55=3,$M55,+IFERROR(VLOOKUP(CONCATENATE(D55,".",F55),Tabelle!$D$10:$F$44,3,),"")) ->  | T55: =+IF(R55="",Q55,+IF(R55=Tabelle!$B$105,IN_Cespiti!Q55,IF(OR(R55=Tabelle!$B$103,R55=Tabelle!$B$104),IN_Cespiti!S55,0))) ->  | W55: =+IF(U55="",T55,+IF(U55=Tabelle!$B$105,IN_Cespiti!T55,IF(OR(U55=Tabelle!$B$103,U55=Tabelle!$B$104),IN_Cespiti!V55,0))) ->  | Z55: =+IF(OR(X55="",X55=Tabelle!$B$105),W55,Y55) ->  | AB55: =+IFERROR(IF($H55<=2017,VLOOKUP($H55,Tabelle!$N$10:$O$58,2,FALSE),0),0) -> 0.000 | AC55: 0 | AD55: 0 | AE55: 0 | AF55: 0 | AG55: 0 | AH55: 0 | AI55: 0 | AJ55: 0 | AL55: =+IFERROR(IF($H55<=AM$5,VLOOKUP($H55,Tabelle!$N$10:$P$58,3,FALSE),0),0) -> 0.000 | AM55: 0 | AN55: =IF(OR($O55>$AM$5,$O55=""),(AD55+AG55)*Tabelle!$P$51,0) -> 0 | AO55: 0 | AP55: =IF(OR($O55>$AM$5,$O55=""),(AF55+AH55)*Tabelle!$P$51,0) -> 0 | AQ55: 0 | AR55: 0 | AS55: 0 | AT55: 0 | AV55: =+IFERROR(IF($H55<=AW$5,VLOOKUP($H55,Tabelle!$N$10:$Q$58,4,FALSE),0),0) -> 0.000 | AW55: 0 | AX55: =IF(OR($O55>$AW$5,$O55=""),(AN55+AQ55)*Tabelle!$Q$52,0) -> 0 | AY55: 0 | AZ55: =IF(OR($O55>$AW$5,$O55=""),(AP55+AR55)*Tabelle!$Q$52,0) -> 0 | BA55: 0 | BB55: 0 | BC55: 0 | BD55: 0 | BF55: =+IFERROR(IF($H55<=BG$5,VLOOKUP($H55,Tabelle!$N$10:$R$58,5,FALSE),0),0) -> 0.000 | BG55: 0 | BH55: =IF(OR($O55>$BG$5,$O55=""),(AX55+BA55)*Tabelle!$R$53,0) -> 0 | BI55: 0 | BJ55: =IF(OR($O55>$BG$5,$O55=""),(AZ55+BB55)*Tabelle!$R$53,0) -> 0 | BK55: 0 | BL55: 0 | BM55: 0 | BN55: 0 | BP55: =+IFERROR(IF($H55<=BQ$5,VLOOKUP($H55,Tabelle!$N$10:$S$58,6,FALSE),0),0) -> 0.000 | BQ55: 0 | BR55: =IF(OR($O55>$BQ$5,$O55=""),(BH55+BK55)*Tabelle!$S$54,0) -> 0 | BS55: 0 | BT55: =IF(OR($O55>$BQ$5,$O55=""),(BJ55+BL55)*Tabelle!$S$54,0) -> 0 | BU55: 0 | BV55: 0 | BW55: 0 | BX55: 0 | BZ55: =+IFERROR(IF($H55<=CA$5,VLOOKUP($H55,Tabelle!$N$10:$T$58,7,FALSE),0),0) -> 0.000 | CA55: 0 | CB55: =IF(OR($O55>$CA$5,$O55=""),+(BR55+BU55)*Tabelle!$T$55,0) -> 0 | CC55: 0 | CD55: =IF(OR($O55>$CA$5,$O55=""),+(BT55+BV55)*Tabelle!$T$55,0) -> 0 | CE55: 0 | CF55: 0 | CG55: 0 | CH55: 0 | CJ55: =+IFERROR(IF($H55<=CK$5,VLOOKUP($H55,Tabelle!$N$10:$U$58,8,FALSE),0),0) -> 0.000 | CK55: 0 | CL55: =IF(OR($O55>$CK$5,$O55=""),+(CB55+CE55)*Tabelle!$U$56,0) -> 0 | CM55: 0 | CN55: =IF(OR($O55>$CK$5,$O55=""),+(CD55+CF55)*Tabelle!$U$56,0) -> 0 | CO55: 0 | CP55: 0 | CQ55: 0 | CR55: 0 | CT55: =+IFERROR(IF($H55<=CU$5,VLOOKUP($H55,Tabelle!$N$10:$V$58,9,FALSE),0),0) -> 0.000 | CU55: 0 | CV55: =IF(OR($O55>CU$5,$O55=""),(CL55+CO55)*Tabelle!$V$57,0) -> 0 | CW55: 0 | CX55: =IF(OR($O55>CU$5,$O55=""),(CN55+CP55)*Tabelle!$V$57,0) -> 0 | CY55: 0 | CZ55: 0 | DA55: 0 | DB55: 0 | DD55: =+IFERROR(IF($H55<=DE$5,VLOOKUP($H55,Tabelle!$N$10:$W$59,10,FALSE),0),0) -> 0.000 | DE55: 0 | DF55: =IF(OR($O55>DE$5,$O55=""),+(CV55+CY55)*Tabelle!$W$58,0) -> 0 | DG55: 0 | DH55: =IF(OR($O55>DE$5,$O55=""),+(CX55+CZ55)*Tabelle!$W$58,0) -> 0 | DI55: 0 | DJ55: 0 | DK55: 0 | DL55: 0 | DN55: =+IFERROR(IF($H55<=DO$5,VLOOKUP($H55,Tabelle!$N$10:$X$60,11,FALSE),0),0) -> 0.000 | DO55: 0 | DP55: =IF(OR($O55>DO$5,$O55=""),+(DF55+DI55)*Tabelle!$X$59,0) -> 0 | DQ55: 0 | DR55: =IF(OR($O55>DO$5,$O55=""),+(DH55+DJ55)*Tabelle!$X$59,0) -> 0 | DS55: 0 | DT55: 0 | DU55: 0 | DV55: 0 | DX55: =+IFERROR(IF($H55<=DY$5,VLOOKUP($H55,Tabelle!$N$10:$Y$61,12,FALSE),0),0) -> 0.000 | DY55: 0 | DZ55: =IF(OR($O55>DY$5,$O55=""),+(DP55+DS55)*Tabelle!$Y$60,0) -> 0 | EA55: 0 | EB55: =IF(OR($O55>DY$5,$O55=""),+(DR55+DT55)*Tabelle!$Y$60,0) -> 0 | EC55: 0 | ED55: 0 | EE55: 0 | EF55: 0 | EH55: =+IFERROR(IF($H55<=EI$5,VLOOKUP($H55,Tabelle!$N$10:$Z$62,13,FALSE),0),0) -> 0.000 | EI55: 0 | EJ55: =IF(OR($O55>EI$5,$O55=""),+(DZ55+EC55)*Tabelle!$Z$61,0) -> 0 | EK55: 0 | EL55: =IF(OR($O55>EI$5,$O55=""),+(EB55+ED55)*Tabelle!$Z$61,0) -> 0 | EM55: 0 | EN55: 0 | EO55: 0 | EP55: 0
D56: =++IFERROR(INDEX(Tabelle!$H$11:$H$16,MATCH(IN_Cespiti!E56,Tabelle!$I$11:$I$16,0)),"") ->  | F56: =++IFERROR(INDEX(Tabelle!$C$10:$C$44,MATCH(IN_Cespiti!G56,Tabelle!$E$10:$E$44,0)),"") ->  | Q56: =IF($D56=3,$M56,+IFERROR(VLOOKUP(CONCATENATE(D56,".",F56),Tabelle!$D$10:$F$44,3,),"")) ->  | T56: =+IF(R56="",Q56,+IF(R56=Tabelle!$B$105,IN_Cespiti!Q56,IF(OR(R56=Tabelle!$B$103,R56=Tabelle!$B$104),IN_Cespiti!S56,0))) ->  | W56: =+IF(U56="",T56,+IF(U56=Tabelle!$B$105,IN_Cespiti!T56,IF(OR(U56=Tabelle!$B$103,U56=Tabelle!$B$104),IN_Cespiti!V56,0))) ->  | Z56: =+IF(OR(X56="",X56=Tabelle!$B$105),W56,Y56) ->  | AB56: =+IFERROR(IF($H56<=2017,VLOOKUP($H56,Tabelle!$N$10:$O$58,2,FALSE),0),0) -> 0.000 | AC56: 0 | AD56: 0 | AE56: 0 | AF56: 0 | AG56: 0 | AH56: 0 | AI56: 0 | AJ56: 0 | AL56: =+IFERROR(IF($H56<=AM$5,VLOOKUP($H56,Tabelle!$N$10:$P$58,3,FALSE),0),0) -> 0.000 | AM56: 0 | AN56: =IF(OR($O56>$AM$5,$O56=""),(AD56+AG56)*Tabelle!$P$51,0) -> 0 | AO56: 0 | AP56: =IF(OR($O56>$AM$5,$O56=""),(AF56+AH56)*Tabelle!$P$51,0) -> 0 | AQ56: 0 | AR56: 0 | AS56: 0 | AT56: 0 | AV56: =+IFERROR(IF($H56<=AW$5,VLOOKUP($H56,Tabelle!$N$10:$Q$58,4,FALSE),0),0) -> 0.000 | AW56: 0 | AX56: =IF(OR($O56>$AW$5,$O56=""),(AN56+AQ56)*Tabelle!$Q$52,0) -> 0 | AY56: 0 | AZ56: =IF(OR($O56>$AW$5,$O56=""),(AP56+AR56)*Tabelle!$Q$52,0) -> 0 | BA56: 0 | BB56: 0 | BC56: 0 | BD56: 0 | BF56: =+IFERROR(IF($H56<=BG$5,VLOOKUP($H56,Tabelle!$N$10:$R$58,5,FALSE),0),0) -> 0.000 | BG56: 0 | BH56: =IF(OR($O56>$BG$5,$O56=""),(AX56+BA56)*Tabelle!$R$53,0) -> 0 | BI56: 0 | BJ56: =IF(OR($O56>$BG$5,$O56=""),(AZ56+BB56)*Tabelle!$R$53,0) -> 0 | BK56: 0 | BL56: 0 | BM56: 0 | BN56: 0 | BP56: =+IFERROR(IF($H56<=BQ$5,VLOOKUP($H56,Tabelle!$N$10:$S$58,6,FALSE),0),0) -> 0.000 | BQ56: 0 | BR56: =IF(OR($O56>$BQ$5,$O56=""),(BH56+BK56)*Tabelle!$S$54,0) -> 0 | BS56: 0 | BT56: =IF(OR($O56>$BQ$5,$O56=""),(BJ56+BL56)*Tabelle!$S$54,0) -> 0 | BU56: 0 | BV56: 0 | BW56: 0 | BX56: 0 | BZ56: =+IFERROR(IF($H56<=CA$5,VLOOKUP($H56,Tabelle!$N$10:$T$58,7,FALSE),0),0) -> 0.000 | CA56: 0 | CB56: =IF(OR($O56>$CA$5,$O56=""),+(BR56+BU56)*Tabelle!$T$55,0) -> 0 | CC56: 0 | CD56: =IF(OR($O56>$CA$5,$O56=""),+(BT56+BV56)*Tabelle!$T$55,0) -> 0 | CE56: 0 | CF56: 0 | CG56: 0 | CH56: 0 | CJ56: =+IFERROR(IF($H56<=CK$5,VLOOKUP($H56,Tabelle!$N$10:$U$58,8,FALSE),0),0) -> 0.000 | CK56: 0 | CL56: =IF(OR($O56>$CK$5,$O56=""),+(CB56+CE56)*Tabelle!$U$56,0) -> 0 | CM56: 0 | CN56: =IF(OR($O56>$CK$5,$O56=""),+(CD56+CF56)*Tabelle!$U$56,0) -> 0 | CO56: 0 | CP56: 0 | CQ56: 0 | CR56: 0 | CT56: =+IFERROR(IF($H56<=CU$5,VLOOKUP($H56,Tabelle!$N$10:$V$58,9,FALSE),0),0) -> 0.000 | CU56: 0 | CV56: =IF(OR($O56>CU$5,$O56=""),(CL56+CO56)*Tabelle!$V$57,0) -> 0 | CW56: 0 | CX56: =IF(OR($O56>CU$5,$O56=""),(CN56+CP56)*Tabelle!$V$57,0) -> 0 | CY56: 0 | CZ56: 0 | DA56: 0 | DB56: 0 | DD56: =+IFERROR(IF($H56<=DE$5,VLOOKUP($H56,Tabelle!$N$10:$W$59,10,FALSE),0),0) -> 0.000 | DE56: 0 | DF56: =IF(OR($O56>DE$5,$O56=""),+(CV56+CY56)*Tabelle!$W$58,0) -> 0 | DG56: 0 | DH56: =IF(OR($O56>DE$5,$O56=""),+(CX56+CZ56)*Tabelle!$W$58,0) -> 0 | DI56: 0 | DJ56: 0 | DK56: 0 | DL56: 0 | DN56: =+IFERROR(IF($H56<=DO$5,VLOOKUP($H56,Tabelle!$N$10:$X$60,11,FALSE),0),0) -> 0.000 | DO56: 0 | DP56: =IF(OR($O56>DO$5,$O56=""),+(DF56+DI56)*Tabelle!$X$59,0) -> 0 | DQ56: 0 | DR56: =IF(OR($O56>DO$5,$O56=""),+(DH56+DJ56)*Tabelle!$X$59,0) -> 0 | DS56: 0 | DT56: 0 | DU56: 0 | DV56: 0 | DX56: =+IFERROR(IF($H56<=DY$5,VLOOKUP($H56,Tabelle!$N$10:$Y$61,12,FALSE),0),0) -> 0.000 | DY56: 0 | DZ56: =IF(OR($O56>DY$5,$O56=""),+(DP56+DS56)*Tabelle!$Y$60,0) -> 0 | EA56: 0 | EB56: =IF(OR($O56>DY$5,$O56=""),+(DR56+DT56)*Tabelle!$Y$60,0) -> 0 | EC56: 0 | ED56: 0 | EE56: 0 | EF56: 0 | EH56: =+IFERROR(IF($H56<=EI$5,VLOOKUP($H56,Tabelle!$N$10:$Z$62,13,FALSE),0),0) -> 0.000 | EI56: 0 | EJ56: =IF(OR($O56>EI$5,$O56=""),+(DZ56+EC56)*Tabelle!$Z$61,0) -> 0 | EK56: 0 | EL56: =IF(OR($O56>EI$5,$O56=""),+(EB56+ED56)*Tabelle!$Z$61,0) -> 0 | EM56: 0 | EN56: 0 | EO56: 0 | EP56: 0
D57: =++IFERROR(INDEX(Tabelle!$H$11:$H$16,MATCH(IN_Cespiti!E57,Tabelle!$I$11:$I$16,0)),"") ->  | F57: =++IFERROR(INDEX(Tabelle!$C$10:$C$44,MATCH(IN_Cespiti!G57,Tabelle!$E$10:$E$44,0)),"") ->  | Q57: =IF($D57=3,$M57,+IFERROR(VLOOKUP(CONCATENATE(D57,".",F57),Tabelle!$D$10:$F$44,3,),"")) ->  | T57: =+IF(R57="",Q57,+IF(R57=Tabelle!$B$105,IN_Cespiti!Q57,IF(OR(R57=Tabelle!$B$103,R57=Tabelle!$B$104),IN_Cespiti!S57,0))) ->  | W57: =+IF(U57="",T57,+IF(U57=Tabelle!$B$105,IN_Cespiti!T57,IF(OR(U57=Tabelle!$B$103,U57=Tabelle!$B$104),IN_Cespiti!V57,0))) ->  | Z57: =+IF(OR(X57="",X57=Tabelle!$B$105),W57,Y57) ->  | AB57: =+IFERROR(IF($H57<=2017,VLOOKUP($H57,Tabelle!$N$10:$O$58,2,FALSE),0),0) -> 0.000 | AC57: 0 | AD57: 0 | AE57: 0 | AF57: 0 | AG57: 0 | AH57: 0 | AI57: 0 | AJ57: 0 | AL57: =+IFERROR(IF($H57<=AM$5,VLOOKUP($H57,Tabelle!$N$10:$P$58,3,FALSE),0),0) -> 0.000 | AM57: 0 | AN57: =IF(OR($O57>$AM$5,$O57=""),(AD57+AG57)*Tabelle!$P$51,0) -> 0 | AO57: 0 | AP57: =IF(OR($O57>$AM$5,$O57=""),(AF57+AH57)*Tabelle!$P$51,0) -> 0 | AQ57: 0 | AR57: 0 | AS57: 0 | AT57: 0 | AV57: =+IFERROR(IF($H57<=AW$5,VLOOKUP($H57,Tabelle!$N$10:$Q$58,4,FALSE),0),0) -> 0.000 | AW57: 0 | AX57: =IF(OR($O57>$AW$5,$O57=""),(AN57+AQ57)*Tabelle!$Q$52,0) -> 0 | AY57: 0 | AZ57: =IF(OR($O57>$AW$5,$O57=""),(AP57+AR57)*Tabelle!$Q$52,0) -> 0 | BA57: 0 | BB57: 0 | BC57: 0 | BD57: 0 | BF57: =+IFERROR(IF($H57<=BG$5,VLOOKUP($H57,Tabelle!$N$10:$R$58,5,FALSE),0),0) -> 0.000 | BG57: 0 | BH57: =IF(OR($O57>$BG$5,$O57=""),(AX57+BA57)*Tabelle!$R$53,0) -> 0 | BI57: 0 | BJ57: =IF(OR($O57>$BG$5,$O57=""),(AZ57+BB57)*Tabelle!$R$53,0) -> 0 | BK57: 0 | BL57: 0 | BM57: 0 | BN57: 0 | BP57: =+IFERROR(IF($H57<=BQ$5,VLOOKUP($H57,Tabelle!$N$10:$S$58,6,FALSE),0),0) -> 0.000 | BQ57: 0 | BR57: =IF(OR($O57>$BQ$5,$O57=""),(BH57+BK57)*Tabelle!$S$54,0) -> 0 | BS57: 0 | BT57: =IF(OR($O57>$BQ$5,$O57=""),(BJ57+BL57)*Tabelle!$S$54,0) -> 0 | BU57: 0 | BV57: 0 | BW57: 0 | BX57: 0 | BZ57: =+IFERROR(IF($H57<=CA$5,VLOOKUP($H57,Tabelle!$N$10:$T$58,7,FALSE),0),0) -> 0.000 | CA57: 0 | CB57: =IF(OR($O57>$CA$5,$O57=""),+(BR57+BU57)*Tabelle!$T$55,0) -> 0 | CC57: 0 | CD57: =IF(OR($O57>$CA$5,$O57=""),+(BT57+BV57)*Tabelle!$T$55,0) -> 0 | CE57: 0 | CF57: 0 | CG57: 0 | CH57: 0 | CJ57: =+IFERROR(IF($H57<=CK$5,VLOOKUP($H57,Tabelle!$N$10:$U$58,8,FALSE),0),0) -> 0.000 | CK57: 0 | CL57: =IF(OR($O57>$CK$5,$O57=""),+(CB57+CE57)*Tabelle!$U$56,0) -> 0 | CM57: 0 | CN57: =IF(OR($O57>$CK$5,$O57=""),+(CD57+CF57)*Tabelle!$U$56,0) -> 0 | CO57: 0 | CP57: 0 | CQ57: 0 | CR57: 0 | CT57: =+IFERROR(IF($H57<=CU$5,VLOOKUP($H57,Tabelle!$N$10:$V$58,9,FALSE),0),0) -> 0.000 | CU57: 0 | CV57: =IF(OR($O57>CU$5,$O57=""),(CL57+CO57)*Tabelle!$V$57,0) -> 0 | CW57: 0 | CX57: =IF(OR($O57>CU$5,$O57=""),(CN57+CP57)*Tabelle!$V$57,0) -> 0 | CY57: 0 | CZ57: 0 | DA57: 0 | DB57: 0 | DD57: =+IFERROR(IF($H57<=DE$5,VLOOKUP($H57,Tabelle!$N$10:$W$59,10,FALSE),0),0) -> 0.000 | DE57: 0 | DF57: =IF(OR($O57>DE$5,$O57=""),+(CV57+CY57)*Tabelle!$W$58,0) -> 0 | DG57: 0 | DH57: =IF(OR($O57>DE$5,$O57=""),+(CX57+CZ57)*Tabelle!$W$58,0) -> 0 | DI57: 0 | DJ57: 0 | DK57: 0 | DL57: 0 | DN57: =+IFERROR(IF($H57<=DO$5,VLOOKUP($H57,Tabelle!$N$10:$X$60,11,FALSE),0),0) -> 0.000 | DO57: 0 | DP57: =IF(OR($O57>DO$5,$O57=""),+(DF57+DI57)*Tabelle!$X$59,0) -> 0 | DQ57: 0 | DR57: =IF(OR($O57>DO$5,$O57=""),+(DH57+DJ57)*Tabelle!$X$59,0) -> 0 | DS57: 0 | DT57: 0 | DU57: 0 | DV57: 0 | DX57: =+IFERROR(IF($H57<=DY$5,VLOOKUP($H57,Tabelle!$N$10:$Y$61,12,FALSE),0),0) -> 0.000 | DY57: 0 | DZ57: =IF(OR($O57>DY$5,$O57=""),+(DP57+DS57)*Tabelle!$Y$60,0) -> 0 | EA57: 0 | EB57: =IF(OR($O57>DY$5,$O57=""),+(DR57+DT57)*Tabelle!$Y$60,0) -> 0 | EC57: 0 | ED57: 0 | EE57: 0 | EF57: 0 | EH57: =+IFERROR(IF($H57<=EI$5,VLOOKUP($H57,Tabelle!$N$10:$Z$62,13,FALSE),0),0) -> 0.000 | EI57: 0 | EJ57: =IF(OR($O57>EI$5,$O57=""),+(DZ57+EC57)*Tabelle!$Z$61,0) -> 0 | EK57: 0 | EL57: =IF(OR($O57>EI$5,$O57=""),+(EB57+ED57)*Tabelle!$Z$61,0) -> 0 | EM57: 0 | EN57: 0 | EO57: 0 | EP57: 0
